Workbook

Sheet INTRO
B2: PC Joint Reporting Form v.3.1
B4: The purpose of this template Joint Reporting Form (JRF) - available as an Excel file - is to provide national health authorities and data managers with a standardized tool to address these reporting challenges, facilitate integration and thereby further contribute to improving overall programme management. This template aims to standardize national reporting of programme implementation outcomes, improve availability and coordination of preventive chemotherapy data across the World Health Organization regions. National authorities are requested to complete this form for submission to the World Health Organization any time before 15 August of the current year for reporting data on PC interventions implemented during the previous year.
B6: Structure of the application (worksheets):
B8: INTRO | C8: This worksheet includes guides on how to complete the joint reporting form and information about status of PC for endemic diseases in the country
B9: COUNTRY_INFO | C9: This worksheet includes information about administrative structure of the country, population by age group, status of endemicity for each disease, population requiring PC, planned interventions and interventions implemented
B10: MDA1, MDA2, MDA3, T1, T2 and T3 | C10: These worksheets include information about endemic districts targeted for treatment with specified PC medicines, treatment plan, and number of people who received treatment by age group
B11: DISTRICT | C11: This worksheet includes summary of people treated by disease at the level of implementation. If data by gender is available, it requires to enter.
B12: SUMMARY | C12: This worksheet includes summary of people treated by disease and by PC intervention. Before generating the report (run macros) please select the disease for which you need the report. Follow the same rule to generate various reports. This worksheet should be printed and submitted as a Joint Report (see the instruction for submission in the SUMMARY worksheet).
B14: Instruction for data entry
B16: Most of the cells in the above-mentioned worksheets include formula that are calculated automatically according to the treatment policy recommended by WHO for each disease. See the link http://www.who.int/neglected_diseases/preventive_chemotherapy/pct_manual/en/index.html
B18: Please enter your data into the cells according to their colour code:
C20: White - cell is not protected. Please enter the value of the requested indicator.
C22: Yellow - cell is protected and includes name of indicator. No data entry required.
C24: Orange - cell is not protected and includes a drop-down menu. Please select the value from the drop-down list.
C27: Green - cell is not protected and includes formula. Please change the value only if your data are different from those that are calculated automatically.
C30: Blue - cell is protected and includes formula. No data entry required.
B32: Country data
B34: COUNTRY | E34: Tanzania
B36: Year of reporting data | E36: 2020
B38: Is country endemic for lymphatic filariasis (LF)? | E38: Endemic
B40: Is country endemic for onchocerciasis (ONCHO)? | E40: Endemic
B42: Is country endemic for soil-transmitted helminthiases (STH)? | E42: Endemic
B44: Is country endemic for schistosomiasis (SCH)? | E44: Endemic
B46: How many administrative units in the country? | E46: 185
B47: If demographical data at the second administrative level are not available by age group, please enter the proportion (%) of population by age group in the country. If data are available, please leave these cells blank.
B48: 1-4 years age | C48: Preschool-age children (PreSAC) | E48: 0.129
B49: 5-14 years age | C49: School-age children (SAC) | E49: 0.191
B50: 15 years + | C50: Adults | E50: 0.561

Sheet COUNTRY_INFO
A1: COUNTRY INFORMATION
A2: Administrative structure, population by age group, endemicity status, planned interventions and interventions implemented
A4: TOTAL | D4: =SUM(D$9:D$1000) -> 54534665.86 | E4: =SUM(E$9:E$1000) -> 7034972 | F4: =SUM(F$9:F$1000) -> 12259500 | G4: =SUM(G$9:G$1000) -> 35240192.86 | L4: =SUM(L$9:L$1000) -> 8238488.77 | M4: =SUM(M$9:M$1000) -> 6575683.817 | N4: =SUM(N$9:N$1000) -> 19294472 | O4: =SUM(O$9:O$1000) -> 16495073.52
A6: Country administrative structure | D6: Population | H6: Endemicity | L6: Population requiring PC | P6: Number of treatment rounds planned for the year | T6: PC implemented | V6: Click to see the recommended strategy | AE6: mda3 | AF6: t1 | AG6: t3r1 | AI6: sth
A7: Country | B7: Province/State | C7: District | D7: Total | E7: PreSAC | F7: SAC | G7: Adults | H7: LF | I7: Oncho | J7: STH | K7: SCH | L7: LF | M7: Oncho | N7: STH | O7: SCH | P7: LF | Q7: Oncho | R7: STH | S7: SCH | T7: ROUND 1 | U7: ROUND2 | X7: IU_ID | Y7: IU_Name | Z7: x | AA7: x | AB7: x | AC7: x | AD7: x | AE7: x | AF7: x | AG7: x | AH7: x | AI7: x | AJ7: x | AK7: x | AL7: x | AM7: x | AN7: x | AO7: x | AP7: x | AQ7: x | AR7: x | AS7: x | AT7: x | AU7: x | AV7: x | AW7: x | AX7: x | AY7: x | AZ7: x | BA7: x
A9: =IF(INTRO!$E$34<>0,INTRO!$E$34,"") -> Tanzania | B9: Arusha | C9: Arusha City Council | D9: 517356.7869 | E9: 66739 | F9: 105216 | G9: 345401.7869 | H9: 0 | I9: 0 | J9: 3 | K9: 2 | L9: =IF(INTRO!$E$38="Endemic", IF($H9>0, IF($H9=4,"Unknown", IF($H9=99,"Stopped", $D9)), 0),"Not required") -> 0 | M9: =IF(INTRO!$E$40="Endemic", IF($I9>0, IF($I9=4,"Unknown",IF($I9=99,"Stopped", $D9)), 0),"Not required") -> 0 | N9: =IF(INTRO!$E$42="Endemic", IF(AND($J9>1,$J9<5), IF($J9=4, "Unknown", E9+F9), 0),"Not required") -> 171955 | O9: =IF(INTRO!$E$44="Endemic", IF(AND($K9>0,$K9<5), IF($K9=4,"Unknown", IF($K9=1, $F9*0.33, IF($K9=2, $F9*0.5+$G9*0.2, SUM(F9:G9)))), 0),"Not required") -> 121688.3574 | P9: 0 | Q9: 0 | R9: 1 | S9: 0 | U9: T3 (ALB/MBD) | V9: T1 | W9: T3 | X9: 46459 | Y9: Arusha City Council | AE9: ='MDA3'!Q9 -> 0 | AF9: ='T1'!O9 -> 0 | AG9: =T3_R1!N9 -> 103518 | AI9: =AF9+AG9 -> 103518 | AJ9: =COUNTIF(AF9:AG9,">0") -> 1
A10: =IF(INTRO!$E$34<>0,INTRO!$E$34,"") -> Tanzania | B10: Arusha | C10: Arusha District Council | D10: 401515.8965 | E10: 51796 | F10: 79707 | G10: 270012.8965 | H10: 0 | I10: 0 | J10: 3 | K10: 2 | L10: =IF(INTRO!$E$38="Endemic", IF($H10>0, IF($H10=4,"Unknown", IF($H10=99,"Stopped", $D10)), 0),"Not required") -> 0 | M10: =IF(INTRO!$E$40="Endemic", IF($I10>0, IF($I10=4,"Unknown",IF($I10=99,"Stopped", $D10)), 0),"Not required") -> 0 | N10: =IF(INTRO!$E$42="Endemic", IF(AND($J10>1,$J10<5), IF($J10=4, "Unknown", E10+F10), 0),"Not required") -> 131503 | O10: =IF(INTRO!$E$44="Endemic", IF(AND($K10>0,$K10<5), IF($K10=4,"Unknown", IF($K10=1, $F10*0.33, IF($K10=2, $F10*0.5+$G10*0.2, SUM(F10:G10)))), 0),"Not required") -> 93856.0793 | P10: 0 | Q10: 0 | R10: 1 | S10: 0 | U10: T3 (ALB/MBD) | V10: T1 | W10: T3 | X10: 46460 | Y10: Arusha District Council | AE10: ='MDA3'!Q10 -> 0 | AF10: ='T1'!O10 -> 0 | AG10: =T3_R1!N10 -> 76522 | AI10: =AF10+AG10 -> 76522 | AJ10: =COUNTIF(AF10:AG10,">0") -> 1
A11: =IF(INTRO!$E$34<>0,INTRO!$E$34,"") -> Tanzania | B11: Arusha | C11: Karatu District Council | D11: 285941.5522 | E11: 36886 | F11: 60712 | G11: 188343.5522 | H11: 0 | I11: 0 | J11: 3 | K11: 2 | L11: =IF(INTRO!$E$38="Endemic", IF($H11>0, IF($H11=4,"Unknown", IF($H11=99,"Stopped", $D11)), 0),"Not required") -> 0 | M11: =IF(INTRO!$E$40="Endemic", IF($I11>0, IF($I11=4,"Unknown",IF($I11=99,"Stopped", $D11)), 0),"Not required") -> 0 | N11: =IF(INTRO!$E$42="Endemic", IF(AND($J11>1,$J11<5), IF($J11=4, "Unknown", E11+F11), 0),"Not required") -> 97598 | O11: =IF(INTRO!$E$44="Endemic", IF(AND($K11>0,$K11<5), IF($K11=4,"Unknown", IF($K11=1, $F11*0.33, IF($K11=2, $F11*0.5+$G11*0.2, SUM(F11:G11)))), 0),"Not required") -> 68024.71043 | P11: 0 | Q11: 0 | R11: 1 | S11: 0 | U11: T3 (ALB/MBD) | V11: T1 | W11: T3 | X11: 46461 | Y11: Karatu District Council | AE11: ='MDA3'!Q11 -> 0 | AF11: ='T1'!O11 -> 0 | AG11: =T3_R1!N11 -> 59297 | AI11: 59297 | AJ11: 1
A12: =IF(INTRO!$E$34<>0,INTRO!$E$34,"") -> Tanzania | B12: Arusha | C12: Longido District Council | D12: 152994.8224 | E12: 19736 | F12: 35947 | G12: 97311.82239 | H12: 0 | I12: 0 | J12: 3 | K12: 2 | L12: =IF(INTRO!$E$38="Endemic", IF($H12>0, IF($H12=4,"Unknown", IF($H12=99,"Stopped", $D12)), 0),"Not required") -> 0 | M12: =IF(INTRO!$E$40="Endemic", IF($I12>0, IF($I12=4,"Unknown",IF($I12=99,"Stopped", $D12)), 0),"Not required") -> 0 | N12: =IF(INTRO!$E$42="Endemic", IF(AND($J12>1,$J12<5), IF($J12=4, "Unknown", E12+F12), 0),"Not required") -> 55683 | O12: =IF(INTRO!$E$44="Endemic", IF(AND($K12>0,$K12<5), IF($K12=4,"Unknown", IF($K12=1, $F12*0.33, IF($K12=2, $F12*0.5+$G12*0.2, SUM(F12:G12)))), 0),"Not required") -> 37435.86448 | P12: 0 | Q12: 0 | R12: 1 | S12: 0 | U12: T3 (ALB/MBD) | V12: T1 | W12: T3 | X12: 46462 | Y12: Longido District Council | AE12: ='MDA3'!Q12 -> 0 | AF12: ='T1'!O12 -> 0 | AG12: =T3_R1!N12 -> 35049 | AI12: 35049 | AJ12: 1
A13: =IF(INTRO!$E$34<>0,INTRO!$E$34,"") -> Tanzania | B13: Arusha | C13: Meru District Council | D13: 333121.7998 | E13: 42973 | F13: 67344 | G13: 222804.7998 | H13: 0 | I13: 0 | J13: 3 | K13: 2 | L13: =IF(INTRO!$E$38="Endemic", IF($H13>0, IF($H13=4,"Unknown", IF($H13=99,"Stopped", $D13)), 0),"Not required") -> 0 | M13: =IF(INTRO!$E$40="Endemic", IF($I13>0, IF($I13=4,"Unknown",IF($I13=99,"Stopped", $D13)), 0),"Not required") -> 0 | N13: =IF(INTRO!$E$42="Endemic", IF(AND($J13>1,$J13<5), IF($J13=4, "Unknown", E13+F13), 0),"Not required") -> 110317 | O13: =IF(INTRO!$E$44="Endemic", IF(AND($K13>0,$K13<5), IF($K13=4,"Unknown", IF($K13=1, $F13*0.33, IF($K13=2, $F13*0.5+$G13*0.2, SUM(F13:G13)))), 0),"Not required") -> 78232.95996 | P13: 0 | Q13: 0 | R13: 1 | S13: 0 | U13: T3 (ALB/MBD) | V13: T1 | W13: T3 | X13: 46463 | Y13: Meru District Council | AE13: ='MDA3'!Q13 -> 0 | AF13: ='T1'!O13 -> 0 | AG13: =T3_R1!N13 -> 66586 | AI13: 66586 | AJ13: 1
A14: =IF(INTRO!$E$34<>0,INTRO!$E$34,"") -> Tanzania | B14: Arusha | C14: Monduli District Council | D14: 197440.6299 | E14: 25470 | F14: 43473 | G14: 128497.6299 | H14: 0 | I14: 0 | J14: 3 | K14: 2 | L14: =IF(INTRO!$E$38="Endemic", IF($H14>0, IF($H14=4,"Unknown", IF($H14=99,"Stopped", $D14)), 0),"Not required") -> 0 | M14: =IF(INTRO!$E$40="Endemic", IF($I14>0, IF($I14=4,"Unknown",IF($I14=99,"Stopped", $D14)), 0),"Not required") -> 0 | N14: =IF(INTRO!$E$42="Endemic", IF(AND($J14>1,$J14<5), IF($J14=4, "Unknown", E14+F14), 0),"Not required") -> 68943 | O14: =IF(INTRO!$E$44="Endemic", IF(AND($K14>0,$K14<5), IF($K14=4,"Unknown", IF($K14=1, $F14*0.33, IF($K14=2, $F14*0.5+$G14*0.2, SUM(F14:G14)))), 0),"Not required") -> 47436.02598 | P14: 0 | Q14: 0 | R14: 1 | S14: 0 | U14: T3 (ALB/MBD) | V14: T1 | W14: T3 | X14: 46464 | Y14: Monduli District Council | AE14: ='MDA3'!Q14 -> 0 | AF14: ='T1'!O14 -> 0 | AG14: =T3_R1!N14 -> 41965 | AI14: 41965 | AJ14: 1
A15: =IF(INTRO!$E$34<>0,INTRO!$E$34,"") -> Tanzania | B15: Arusha | C15: Ngorongoro District Council | D15: 216510.169 | E15: 27930 | F15: 48404 | G15: 140176.169 | H15: 0 | I15: 0 | J15: 3 | K15: 2 | L15: =IF(INTRO!$E$38="Endemic", IF($H15>0, IF($H15=4,"Unknown", IF($H15=99,"Stopped", $D15)), 0),"Not required") -> 0 | M15: =IF(INTRO!$E$40="Endemic", IF($I15>0, IF($I15=4,"Unknown",IF($I15=99,"Stopped", $D15)), 0),"Not required") -> 0 | N15: =IF(INTRO!$E$42="Endemic", IF(AND($J15>1,$J15<5), IF($J15=4, "Unknown", E15+F15), 0),"Not required") -> 76334 | O15: =IF(INTRO!$E$44="Endemic", IF(AND($K15>0,$K15<5), IF($K15=4,"Unknown", IF($K15=1, $F15*0.33, IF($K15=2, $F15*0.5+$G15*0.2, SUM(F15:G15)))), 0),"Not required") -> 52237.23379 | P15: 0 | Q15: 0 | R15: 1 | S15: 0 | U15: T3 (ALB/MBD) | V15: T1 | W15: T3 | X15: 46465 | Y15: Ngorongoro District Council | AE15: ='MDA3'!Q15 -> 0 | AF15: ='T1'!O15 -> 0 | AG15: =T3_R1!N15 -> 44588 | AI15: 44588 | AJ15: 1
A16: =IF(INTRO!$E$34<>0,INTRO!$E$34,"") -> Tanzania | B16: Dar Es Salaam | C16: Dar es Salaam City Council | D16: 1 | E16: 0 | G16: 0 | H16: 1 | I16: 0 | J16: 3 | K16: 2 | L16: =IF(INTRO!$E$38="Endemic", IF($H16>0, IF($H16=4,"Unknown", IF($H16=99,"Stopped", $D16)), 0),"Not required") -> 1 | M16: =IF(INTRO!$E$40="Endemic", IF($I16>0, IF($I16=4,"Unknown",IF($I16=99,"Stopped", $D16)), 0),"Not required") -> 0 | N16: =IF(INTRO!$E$42="Endemic", IF(AND($J16>1,$J16<5), IF($J16=4, "Unknown", E16+F16), 0),"Not required") -> 0 | O16: =IF(INTRO!$E$44="Endemic", IF(AND($K16>0,$K16<5), IF($K16=4,"Unknown", IF($K16=1, $F16*0.33, IF($K16=2, $F16*0.5+$G16*0.2, SUM(F16:G16)))), 0),"Not required") -> 0 | P16: 0 | Q16: 0 | R16: 0 | S16: 1 | V16: MDA 1 | W16: T1 | X16: 46623 | Y16: Dar es Salaam City Council | AE16: ='MDA3'!Q16 -> 0 | AF16: ='T1'!O16 -> 0 | AG16: =T3_R1!N16 -> 0 | AI16: 0 | AJ16: 0
A17: =IF(INTRO!$E$34<>0,INTRO!$E$34,"") -> Tanzania | B17: Dar Es Salaam | C17: Ilala Municipal Council | D17: 1904036.475 | E17: 245621 | F17: 259565 | G17: 1398850.475 | H17: 1 | I17: 0 | J17: 3 | K17: 2 | L17: =IF(INTRO!$E$38="Endemic", IF($H17>0, IF($H17=4,"Unknown", IF($H17=99,"Stopped", $D17)), 0),"Not required") -> 1904036.475 | M17: =IF(INTRO!$E$40="Endemic", IF($I17>0, IF($I17=4,"Unknown",IF($I17=99,"Stopped", $D17)), 0),"Not required") -> 0 | N17: =IF(INTRO!$E$42="Endemic", IF(AND($J17>1,$J17<5), IF($J17=4, "Unknown", E17+F17), 0),"Not required") -> 505186 | O17: =IF(INTRO!$E$44="Endemic", IF(AND($K17>0,$K17<5), IF($K17=4,"Unknown", IF($K17=1, $F17*0.33, IF($K17=2, $F17*0.5+$G17*0.2, SUM(F17:G17)))), 0),"Not required") -> 409552.5951 | P17: 0 | Q17: 0 | R17: 0 | S17: 1 | V17: MDA 1 | W17: T1 | X17: 46466 | Y17: Ilala Municipal Council | AE17: ='MDA3'!Q17 -> 0 | AF17: ='T1'!O17 -> 0 | AG17: =T3_R1!N17 -> 0 | AI17: 0 | AJ17: 0
A18: =IF(INTRO!$E$34<>0,INTRO!$E$34,"") -> Tanzania | B18: Dar Es Salaam | C18: Kigamboni Municipal Council | D18: 254158.2213 | E18: 32786 | F18: 36130 | G18: 185242.2213 | H18: 1 | I18: 0 | J18: 3 | K18: 2 | L18: =IF(INTRO!$E$38="Endemic", IF($H18>0, IF($H18=4,"Unknown", IF($H18=99,"Stopped", $D18)), 0),"Not required") -> 254158.2213 | M18: =IF(INTRO!$E$40="Endemic", IF($I18>0, IF($I18=4,"Unknown",IF($I18=99,"Stopped", $D18)), 0),"Not required") -> 0 | N18: =IF(INTRO!$E$42="Endemic", IF(AND($J18>1,$J18<5), IF($J18=4, "Unknown", E18+F18), 0),"Not required") -> 68916 | O18: =IF(INTRO!$E$44="Endemic", IF(AND($K18>0,$K18<5), IF($K18=4,"Unknown", IF($K18=1, $F18*0.33, IF($K18=2, $F18*0.5+$G18*0.2, SUM(F18:G18)))), 0),"Not required") -> 55113.44427 | P18: 0 | Q18: 0 | R18: 0 | S18: 1 | V18: MDA 1 | W18: T1 | X18: 46624 | Y18: Kigamboni Municipal Council | AE18: ='MDA3'!Q18 -> 0 | AF18: ='T1'!O18 -> 0 | AG18: =T3_R1!N18 -> 0 | AI18: 0 | AJ18: 0
A19: =IF(INTRO!$E$34<>0,INTRO!$E$34,"") -> Tanzania | B19: Dar Es Salaam | C19: Kinondoni Municipal Council | D19: 1450212.906 | E19: 187077 | F19: 178824 | G19: 1084311.906 | H19: 1 | I19: 0 | J19: 3 | K19: 2 | L19: =IF(INTRO!$E$38="Endemic", IF($H19>0, IF($H19=4,"Unknown", IF($H19=99,"Stopped", $D19)), 0),"Not required") -> 1450212.906 | M19: =IF(INTRO!$E$40="Endemic", IF($I19>0, IF($I19=4,"Unknown",IF($I19=99,"Stopped", $D19)), 0),"Not required") -> 0 | N19: =IF(INTRO!$E$42="Endemic", IF(AND($J19>1,$J19<5), IF($J19=4, "Unknown", E19+F19), 0),"Not required") -> 365901 | O19: =IF(INTRO!$E$44="Endemic", IF(AND($K19>0,$K19<5), IF($K19=4,"Unknown", IF($K19=1, $F19*0.33, IF($K19=2, $F19*0.5+$G19*0.2, SUM(F19:G19)))), 0),"Not required") -> 306274.3811 | P19: 0 | Q19: 0 | R19: 0 | S19: 1 | V19: MDA 1 | W19: T1 | X19: 46467 | Y19: Kinondoni Municipal Council | AE19: ='MDA3'!Q19 -> 0 | AF19: ='T1'!O19 -> 0 | AG19: =T3_R1!N19 -> 0 | AI19: 0 | AJ19: 0
A20: =IF(INTRO!$E$34<>0,INTRO!$E$34,"") -> Tanzania | B20: Dar Es Salaam | C20: Temeke Municipal Council | D20: 1881166.08 | E20: 242670 | F20: 267420 | G20: 1371076.08 | H20: 1 | I20: 0 | J20: 3 | K20: 2 | L20: =IF(INTRO!$E$38="Endemic", IF($H20>0, IF($H20=4,"Unknown", IF($H20=99,"Stopped", $D20)), 0),"Not required") -> 1881166.08 | M20: =IF(INTRO!$E$40="Endemic", IF($I20>0, IF($I20=4,"Unknown",IF($I20=99,"Stopped", $D20)), 0),"Not required") -> 0 | N20: =IF(INTRO!$E$42="Endemic", IF(AND($J20>1,$J20<5), IF($J20=4, "Unknown", E20+F20), 0),"Not required") -> 510090 | O20: =IF(INTRO!$E$44="Endemic", IF(AND($K20>0,$K20<5), IF($K20=4,"Unknown", IF($K20=1, $F20*0.33, IF($K20=2, $F20*0.5+$G20*0.2, SUM(F20:G20)))), 0),"Not required") -> 407925.216 | P20: 0 | Q20: 0 | R20: 0 | S20: 1 | V20: MDA 1 | W20: T1 | X20: 46468 | Y20: Temeke Municipal Council | AE20: ='MDA3'!Q20 -> 0 | AF20: ='T1'!O20 -> 0 | AG20: =T3_R1!N20 -> 0 | AI20: 0 | AJ20: 0
A21: =IF(INTRO!$E$34<>0,INTRO!$E$34,"") -> Tanzania | B21: Dar Es Salaam | C21: Ubungo Municipal Council | D21: 1318692.822 | E21: 170111 | F21: 162606 | G21: 985975.8222 | H21: 1 | I21: 0 | J21: 3 | K21: 2 | L21: =IF(INTRO!$E$38="Endemic", IF($H21>0, IF($H21=4,"Unknown", IF($H21=99,"Stopped", $D21)), 0),"Not required") -> 1318692.822 | M21: =IF(INTRO!$E$40="Endemic", IF($I21>0, IF($I21=4,"Unknown",IF($I21=99,"Stopped", $D21)), 0),"Not required") -> 0 | N21: =IF(INTRO!$E$42="Endemic", IF(AND($J21>1,$J21<5), IF($J21=4, "Unknown", E21+F21), 0),"Not required") -> 332717 | O21: =IF(INTRO!$E$44="Endemic", IF(AND($K21>0,$K21<5), IF($K21=4,"Unknown", IF($K21=1, $F21*0.33, IF($K21=2, $F21*0.5+$G21*0.2, SUM(F21:G21)))), 0),"Not required") -> 278498.1644 | P21: 0 | Q21: 0 | R21: 0 | S21: 1 | V21: MDA 1 | W21: T1 | X21: 46625 | Y21: Ubungo Municipal Council | AE21: ='MDA3'!Q21 -> 0 | AF21: ='T1'!O21 -> 0 | AG21: =T3_R1!N21 -> 0 | AI21: 0 | AJ21: 0
A22: =IF(INTRO!$E$34<>0,INTRO!$E$34,"") -> Tanzania | B22: Dodoma | C22: Bahi District Council | D22: 261781.5003 | E22: 33770 | F22: 54955 | G22: 173056.5003 | H22: 99 | I22: 0 | J22: 3 | K22: 2 | L22: =IF(INTRO!$E$38="Endemic", IF($H22>0, IF($H22=4,"Unknown", IF($H22=99,"Stopped", $D22)), 0),"Not required") -> Stopped | M22: =IF(INTRO!$E$40="Endemic", IF($I22>0, IF($I22=4,"Unknown",IF($I22=99,"Stopped", $D22)), 0),"Not required") -> 0 | N22: =IF(INTRO!$E$42="Endemic", IF(AND($J22>1,$J22<5), IF($J22=4, "Unknown", E22+F22), 0),"Not required") -> 88725 | O22: =IF(INTRO!$E$44="Endemic", IF(AND($K22>0,$K22<5), IF($K22=4,"Unknown", IF($K22=1, $F22*0.33, IF($K22=2, $F22*0.5+$G22*0.2, SUM(F22:G22)))), 0),"Not required") -> 62088.80006 | P22: 0 | Q22: 0 | R22: 1 | S22: 0 | U22: T3 (ALB/MBD) | V22: T1 | W22: T3 | X22: 46469 | Y22: Bahi District Council | AE22: ='MDA3'!Q22 -> 0 | AF22: ='T1'!O22 -> 0 | AG22: =T3_R1!N22 -> 49768 | AI22: 49768 | AJ22: 1
A23: =IF(INTRO!$E$34<>0,INTRO!$E$34,"") -> Tanzania | B23: Dodoma | C23: Chamwino District Council | D23: 390396.2998 | E23: 50361 | F23: 91641 | G23: 248394.2998 | H23: 99 | I23: 0 | J23: 3 | K23: 2 | L23: =IF(INTRO!$E$38="Endemic", IF($H23>0, IF($H23=4,"Unknown", IF($H23=99,"Stopped", $D23)), 0),"Not required") -> Stopped | M23: =IF(INTRO!$E$40="Endemic", IF($I23>0, IF($I23=4,"Unknown",IF($I23=99,"Stopped", $D23)), 0),"Not required") -> 0 | N23: =IF(INTRO!$E$42="Endemic", IF(AND($J23>1,$J23<5), IF($J23=4, "Unknown", E23+F23), 0),"Not required") -> 142002 | O23: =IF(INTRO!$E$44="Endemic", IF(AND($K23>0,$K23<5), IF($K23=4,"Unknown", IF($K23=1, $F23*0.33, IF($K23=2, $F23*0.5+$G23*0.2, SUM(F23:G23)))), 0),"Not required") -> 95499.35996 | P23: 0 | Q23: 0 | R23: 1 | S23: 0 | U23: T3 (ALB/MBD) | V23: T1 | W23: T3 | X23: 46470 | Y23: Chamwino District Council | AE23: ='MDA3'!Q23 -> 0 | AF23: ='T1'!O23 -> 0 | AG23: =T3_R1!N23 -> 89473 | AI23: 89473 | AJ23: 1
A24: =IF(INTRO!$E$34<>0,INTRO!$E$34,"") -> Tanzania | B24: Dodoma | C24: Chemba District Council | D24: 321967 | E24: 41534 | F24: 66078 | G24: 214355 | H24: 99 | I24: 0 | J24: 3 | K24: 2 | L24: =IF(INTRO!$E$38="Endemic", IF($H24>0, IF($H24=4,"Unknown", IF($H24=99,"Stopped", $D24)), 0),"Not required") -> Stopped | M24: =IF(INTRO!$E$40="Endemic", IF($I24>0, IF($I24=4,"Unknown",IF($I24=99,"Stopped", $D24)), 0),"Not required") -> 0 | N24: =IF(INTRO!$E$42="Endemic", IF(AND($J24>1,$J24<5), IF($J24=4, "Unknown", E24+F24), 0),"Not required") -> 107612 | O24: =IF(INTRO!$E$44="Endemic", IF(AND($K24>0,$K24<5), IF($K24=4,"Unknown", IF($K24=1, $F24*0.33, IF($K24=2, $F24*0.5+$G24*0.2, SUM(F24:G24)))), 0),"Not required") -> 75910 | P24: 0 | Q24: 0 | R24: 1 | S24: 0 | U24: T3 (ALB/MBD) | V24: T1 | W24: T3 | X24: 46471 | Y24: Chemba District Council | AE24: ='MDA3'!Q24 -> 0 | AF24: ='T1'!O24 -> 0 | AG24: =T3_R1!N24 -> 60914 | AI24: 60914 | AJ24: 1
A25: =IF(INTRO!$E$34<>0,INTRO!$E$34,"") -> Tanzania | B25: Dodoma | C25: Dodoma City Council | D25: 485370.7053 | E25: 62613 | F25: 121924 | G25: 300833.7053 | H25: 99 | I25: 0 | J25: 3 | K25: 2 | L25: =IF(INTRO!$E$38="Endemic", IF($H25>0, IF($H25=4,"Unknown", IF($H25=99,"Stopped", $D25)), 0),"Not required") -> Stopped | M25: =IF(INTRO!$E$40="Endemic", IF($I25>0, IF($I25=4,"Unknown",IF($I25=99,"Stopped", $D25)), 0),"Not required") -> 0 | N25: =IF(INTRO!$E$42="Endemic", IF(AND($J25>1,$J25<5), IF($J25=4, "Unknown", E25+F25), 0),"Not required") -> 184537 | O25: =IF(INTRO!$E$44="Endemic", IF(AND($K25>0,$K25<5), IF($K25=4,"Unknown", IF($K25=1, $F25*0.33, IF($K25=2, $F25*0.5+$G25*0.2, SUM(F25:G25)))), 0),"Not required") -> 121128.7411 | P25: 0 | Q25: 0 | R25: 1 | S25: 0 | U25: T3 (ALB/MBD) | V25: T1 | W25: T3 | X25: 46472 | Y25: Dodoma Municipal Council | AE25: ='MDA3'!Q25 -> 0 | AF25: ='T1'!O25 -> 0 | AG25: =T3_R1!N25 -> 115379 | AI25: 115379 | AJ25: 1
A26: =IF(INTRO!$E$34<>0,INTRO!$E$34,"") -> Tanzania | B26: Dodoma | C26: Kondoa District Council | D26: 248832.8907 | E26: 32099 | F26: 56620 | G26: 160113.8907 | H26: 99 | I26: 0 | J26: 3 | K26: 2 | L26: =IF(INTRO!$E$38="Endemic", IF($H26>0, IF($H26=4,"Unknown", IF($H26=99,"Stopped", $D26)), 0),"Not required") -> Stopped | M26: =IF(INTRO!$E$40="Endemic", IF($I26>0, IF($I26=4,"Unknown",IF($I26=99,"Stopped", $D26)), 0),"Not required") -> 0 | N26: =IF(INTRO!$E$42="Endemic", IF(AND($J26>1,$J26<5), IF($J26=4, "Unknown", E26+F26), 0),"Not required") -> 88719 | O26: =IF(INTRO!$E$44="Endemic", IF(AND($K26>0,$K26<5), IF($K26=4,"Unknown", IF($K26=1, $F26*0.33, IF($K26=2, $F26*0.5+$G26*0.2, SUM(F26:G26)))), 0),"Not required") -> 60332.77815 | P26: 0 | Q26: 0 | R26: 1 | S26: 0 | U26: T3 (ALB/MBD) | V26: T1 | W26: T3 | X26: 46473 | Y26: Kondoa District Council | AE26: ='MDA3'!Q26 -> 0 | AF26: ='T1'!O26 -> 0 | AG26: =T3_R1!N26 -> 53655 | AI26: 53655 | AJ26: 1
A27: =IF(INTRO!$E$34<>0,INTRO!$E$34,"") -> Tanzania | B27: Dodoma | C27: Kondoa Town Council | D27: 69708.39238 | E27: 8992 | F27: 17486 | G27: 43230.39238 | H27: 99 | I27: 0 | J27: 3 | K27: 2 | L27: =IF(INTRO!$E$38="Endemic", IF($H27>0, IF($H27=4,"Unknown", IF($H27=99,"Stopped", $D27)), 0),"Not required") -> Stopped | M27: =IF(INTRO!$E$40="Endemic", IF($I27>0, IF($I27=4,"Unknown",IF($I27=99,"Stopped", $D27)), 0),"Not required") -> 0 | N27: =IF(INTRO!$E$42="Endemic", IF(AND($J27>1,$J27<5), IF($J27=4, "Unknown", E27+F27), 0),"Not required") -> 26478 | O27: =IF(INTRO!$E$44="Endemic", IF(AND($K27>0,$K27<5), IF($K27=4,"Unknown", IF($K27=1, $F27*0.33, IF($K27=2, $F27*0.5+$G27*0.2, SUM(F27:G27)))), 0),"Not required") -> 17389.07848 | P27: 0 | Q27: 0 | R27: 1 | S27: 0 | U27: T3 (ALB/MBD) | V27: T1 | W27: T3 | X27: 46626 | Y27: Kondoa Town Council | AE27: ='MDA3'!Q27 -> 0 | AF27: ='T1'!O27 -> 0 | AG27: =T3_R1!N27 -> 16630 | AI27: 16630 | AJ27: 1
A28: =IF(INTRO!$E$34<>0,INTRO!$E$34,"") -> Tanzania | B28: Dodoma | C28: Kongwa District Council | D28: 366102.7259 | E28: 47227 | F28: 92776 | G28: 226099.7259 | H28: 99 | I28: 0 | J28: 3 | K28: 2 | L28: =IF(INTRO!$E$38="Endemic", IF($H28>0, IF($H28=4,"Unknown", IF($H28=99,"Stopped", $D28)), 0),"Not required") -> Stopped | M28: =IF(INTRO!$E$40="Endemic", IF($I28>0, IF($I28=4,"Unknown",IF($I28=99,"Stopped", $D28)), 0),"Not required") -> 0 | N28: =IF(INTRO!$E$42="Endemic", IF(AND($J28>1,$J28<5), IF($J28=4, "Unknown", E28+F28), 0),"Not required") -> 140003 | O28: =IF(INTRO!$E$44="Endemic", IF(AND($K28>0,$K28<5), IF($K28=4,"Unknown", IF($K28=1, $F28*0.33, IF($K28=2, $F28*0.5+$G28*0.2, SUM(F28:G28)))), 0),"Not required") -> 91607.94517 | P28: 0 | Q28: 0 | R28: 1 | S28: 0 | U28: T3 (ALB/MBD) | V28: T1 | W28: T3 | X28: 46474 | Y28: Kongwa District Council | AE28: ='MDA3'!Q28 -> 0 | AF28: ='T1'!O28 -> 0 | AG28: =T3_R1!N28 -> 81220 | AI28: 81220 | AJ28: 1
A29: =IF(INTRO!$E$34<>0,INTRO!$E$34,"") -> Tanzania | B29: Dodoma | C29: Mpwapwa District Council | D29: 360295.2401 | E29: 46478 | F29: 83343 | G29: 230474.2401 | H29: 99 | I29: 0 | J29: 3 | K29: 2 | L29: =IF(INTRO!$E$38="Endemic", IF($H29>0, IF($H29=4,"Unknown", IF($H29=99,"Stopped", $D29)), 0),"Not required") -> Stopped | M29: =IF(INTRO!$E$40="Endemic", IF($I29>0, IF($I29=4,"Unknown",IF($I29=99,"Stopped", $D29)), 0),"Not required") -> 0 | N29: =IF(INTRO!$E$42="Endemic", IF(AND($J29>1,$J29<5), IF($J29=4, "Unknown", E29+F29), 0),"Not required") -> 129821 | O29: =IF(INTRO!$E$44="Endemic", IF(AND($K29>0,$K29<5), IF($K29=4,"Unknown", IF($K29=1, $F29*0.33, IF($K29=2, $F29*0.5+$G29*0.2, SUM(F29:G29)))), 0),"Not required") -> 87766.34802 | P29: 0 | Q29: 0 | R29: 1 | S29: 0 | U29: T3 (ALB/MBD) | V29: T1 | W29: T3 | X29: 46475 | Y29: Mpwapwa District Council | AE29: ='MDA3'!Q29 -> 0 | AF29: ='T1'!O29 -> 0 | AG29: =T3_R1!N29 -> 77282 | AI29: 77282 | AJ29: 1
A30: =IF(INTRO!$E$34<>0,INTRO!$E$34,"") -> Tanzania | B30: Geita | C30: Bukombe District Council | D30: 276549.0461 | E30: 35675 | F30: 97625 | G30: 143249.0461 | H30: 0 | I30: 0 | J30: 3 | K30: 2 | L30: =IF(INTRO!$E$38="Endemic", IF($H30>0, IF($H30=4,"Unknown", IF($H30=99,"Stopped", $D30)), 0),"Not required") -> 0 | M30: =IF(INTRO!$E$40="Endemic", IF($I30>0, IF($I30=4,"Unknown",IF($I30=99,"Stopped", $D30)), 0),"Not required") -> 0 | N30: =IF(INTRO!$E$42="Endemic", IF(AND($J30>1,$J30<5), IF($J30=4, "Unknown", E30+F30), 0),"Not required") -> 133300 | O30: =IF(INTRO!$E$44="Endemic", IF(AND($K30>0,$K30<5), IF($K30=4,"Unknown", IF($K30=1, $F30*0.33, IF($K30=2, $F30*0.5+$G30*0.2, SUM(F30:G30)))), 0),"Not required") -> 77462.30922 | P30: 0 | Q30: 0 | R30: 1 | S30: 0 | U30: T3 (ALB/MBD) | V30: T1 | W30: T3 | X30: 46476 | Y30: Bukombe District Council | AE30: ='MDA3'!Q30 -> 0 | AF30: ='T1'!O30 -> 0 | AG30: =T3_R1!N30 -> 96258 | AI30: 96258 | AJ30: 1
A31: =IF(INTRO!$E$34<>0,INTRO!$E$34,"") -> Tanzania | B31: Geita | C31: Chato District Council | D31: 449696.8258 | E31: 58011 | F31: 148511 | G31: 243174.8258 | H31: 0 | I31: 0 | J31: 3 | K31: 2 | L31: =IF(INTRO!$E$38="Endemic", IF($H31>0, IF($H31=4,"Unknown", IF($H31=99,"Stopped", $D31)), 0),"Not required") -> 0 | M31: =IF(INTRO!$E$40="Endemic", IF($I31>0, IF($I31=4,"Unknown",IF($I31=99,"Stopped", $D31)), 0),"Not required") -> 0 | N31: =IF(INTRO!$E$42="Endemic", IF(AND($J31>1,$J31<5), IF($J31=4, "Unknown", E31+F31), 0),"Not required") -> 206522 | O31: =IF(INTRO!$E$44="Endemic", IF(AND($K31>0,$K31<5), IF($K31=4,"Unknown", IF($K31=1, $F31*0.33, IF($K31=2, $F31*0.5+$G31*0.2, SUM(F31:G31)))), 0),"Not required") -> 122890.4652 | P31: 0 | Q31: 0 | R31: 1 | S31: 0 | U31: T3 (ALB/MBD) | V31: T1 | W31: T3 | X31: 46477 | Y31: Chato District Council | AE31: ='MDA3'!Q31 -> 0 | AF31: ='T1'!O31 -> 0 | AG31: =T3_R1!N31 -> 146445 | AI31: 146445 | AJ31: 1
A32: =IF(INTRO!$E$34<>0,INTRO!$E$34,"") -> Tanzania | B32: Geita | C32: Geita District Council | D32: 757338.2758 | E32: 97697 | F32: 257105 | G32: 402536.2758 | H32: 0 | I32: 0 | J32: 3 | K32: 2 | L32: =IF(INTRO!$E$38="Endemic", IF($H32>0, IF($H32=4,"Unknown", IF($H32=99,"Stopped", $D32)), 0),"Not required") -> 0 | M32: =IF(INTRO!$E$40="Endemic", IF($I32>0, IF($I32=4,"Unknown",IF($I32=99,"Stopped", $D32)), 0),"Not required") -> 0 | N32: =IF(INTRO!$E$42="Endemic", IF(AND($J32>1,$J32<5), IF($J32=4, "Unknown", E32+F32), 0),"Not required") -> 354802 | O32: =IF(INTRO!$E$44="Endemic", IF(AND($K32>0,$K32<5), IF($K32=4,"Unknown", IF($K32=1, $F32*0.33, IF($K32=2, $F32*0.5+$G32*0.2, SUM(F32:G32)))), 0),"Not required") -> 209059.7552 | P32: 0 | Q32: 0 | R32: 1 | S32: 0 | U32: T3 (ALB/MBD) | V32: T1 | W32: T3 | X32: 46478 | Y32: Geita District Council | AE32: ='MDA3'!Q32 -> 0 | AF32: ='T1'!O32 -> 0 | AG32: =T3_R1!N32 -> 244257 | AI32: 244257 | AJ32: 1
A33: =IF(INTRO!$E$34<>0,INTRO!$E$34,"") -> Tanzania | B33: Geita | C33: Geita Town Council | D33: 237341.4826 | E33: 30617 | F33: 72200 | G33: 134524.4826 | H33: 0 | I33: 0 | J33: 3 | K33: 2 | L33: =IF(INTRO!$E$38="Endemic", IF($H33>0, IF($H33=4,"Unknown", IF($H33=99,"Stopped", $D33)), 0),"Not required") -> 0 | M33: =IF(INTRO!$E$40="Endemic", IF($I33>0, IF($I33=4,"Unknown",IF($I33=99,"Stopped", $D33)), 0),"Not required") -> 0 | N33: =IF(INTRO!$E$42="Endemic", IF(AND($J33>1,$J33<5), IF($J33=4, "Unknown", E33+F33), 0),"Not required") -> 102817 | O33: =IF(INTRO!$E$44="Endemic", IF(AND($K33>0,$K33<5), IF($K33=4,"Unknown", IF($K33=1, $F33*0.33, IF($K33=2, $F33*0.5+$G33*0.2, SUM(F33:G33)))), 0),"Not required") -> 63004.89651 | P33: 0 | Q33: 0 | R33: 1 | S33: 0 | U33: T3 (ALB/MBD) | V33: T1 | W33: T3 | X33: 46627 | Y33: Geita Town Council | AE33: ='MDA3'!Q33 -> 0 | AF33: ='T1'!O33 -> 0 | AG33: =T3_R1!N33 -> 66255 | AI33: 66255 | AJ33: 1
A34: =IF(INTRO!$E$34<>0,INTRO!$E$34,"") -> Tanzania | B34: Geita | C34: Mbogwe District Council | D34: 238837.241 | E34: 30810 | F34: 83024 | G34: 125003.241 | H34: 0 | I34: 0 | J34: 3 | K34: 2 | L34: =IF(INTRO!$E$38="Endemic", IF($H34>0, IF($H34=4,"Unknown", IF($H34=99,"Stopped", $D34)), 0),"Not required") -> 0 | M34: =IF(INTRO!$E$40="Endemic", IF($I34>0, IF($I34=4,"Unknown",IF($I34=99,"Stopped", $D34)), 0),"Not required") -> 0 | N34: =IF(INTRO!$E$42="Endemic", IF(AND($J34>1,$J34<5), IF($J34=4, "Unknown", E34+F34), 0),"Not required") -> 113834 | O34: =IF(INTRO!$E$44="Endemic", IF(AND($K34>0,$K34<5), IF($K34=4,"Unknown", IF($K34=1, $F34*0.33, IF($K34=2, $F34*0.5+$G34*0.2, SUM(F34:G34)))), 0),"Not required") -> 66512.64821 | P34: 0 | Q34: 0 | R34: 1 | S34: 0 | U34: T3 (ALB/MBD) | V34: T1 | W34: T3 | X34: 46479 | Y34: Mbogwe District Council | AE34: ='MDA3'!Q34 -> 0 | AF34: ='T1'!O34 -> 0 | AG34: =T3_R1!N34 -> 74471 | AI34: 74471 | AJ34: 1
A35: =IF(INTRO!$E$34<>0,INTRO!$E$34,"") -> Tanzania | B35: Geita | C35: Nyang'hwale District Council | D35: 182671.6644 | E35: 23565 | F35: 52576 | G35: 106530.6644 | H35: 0 | I35: 0 | J35: 3 | K35: 2 | L35: =IF(INTRO!$E$38="Endemic", IF($H35>0, IF($H35=4,"Unknown", IF($H35=99,"Stopped", $D35)), 0),"Not required") -> 0 | M35: =IF(INTRO!$E$40="Endemic", IF($I35>0, IF($I35=4,"Unknown",IF($I35=99,"Stopped", $D35)), 0),"Not required") -> 0 | N35: =IF(INTRO!$E$42="Endemic", IF(AND($J35>1,$J35<5), IF($J35=4, "Unknown", E35+F35), 0),"Not required") -> 76141 | O35: =IF(INTRO!$E$44="Endemic", IF(AND($K35>0,$K35<5), IF($K35=4,"Unknown", IF($K35=1, $F35*0.33, IF($K35=2, $F35*0.5+$G35*0.2, SUM(F35:G35)))), 0),"Not required") -> 47594.13287 | P35: 0 | Q35: 0 | R35: 1 | S35: 0 | U35: T3 (ALB/MBD) | V35: T1 | W35: T3 | X35: 46480 | Y35: Nyang'hwale District Council | AE35: ='MDA3'!Q35 -> 0 | AF35: ='T1'!O35 -> 0 | AG35: =T3_R1!N35 -> 48206 | AI35: 48206 | AJ35: 1
A36: =IF(INTRO!$E$34<>0,INTRO!$E$34,"") -> Tanzania | B36: Iringa | C36: Iringa District Council | D36: 277809.7336 | E36: 35837 | F36: 78650 | G36: 163322.7336 | H36: 99 | I36: 0 | J36: 3 | K36: 2 | L36: =IF(INTRO!$E$38="Endemic", IF($H36>0, IF($H36=4,"Unknown", IF($H36=99,"Stopped", $D36)), 0),"Not required") -> Stopped | M36: =IF(INTRO!$E$40="Endemic", IF($I36>0, IF($I36=4,"Unknown",IF($I36=99,"Stopped", $D36)), 0),"Not required") -> 0 | N36: =IF(INTRO!$E$42="Endemic", IF(AND($J36>1,$J36<5), IF($J36=4, "Unknown", E36+F36), 0),"Not required") -> 114487 | O36: =IF(INTRO!$E$44="Endemic", IF(AND($K36>0,$K36<5), IF($K36=4,"Unknown", IF($K36=1, $F36*0.33, IF($K36=2, $F36*0.5+$G36*0.2, SUM(F36:G36)))), 0),"Not required") -> 71989.54671 | P36: 0 | Q36: 0 | R36: 1 | S36: 1 | U36: T1 (PZQ+ALB/MBD) | V36: T1 | W36: T3 | X36: 46481 | Y36: Iringa District Council | AE36: ='MDA3'!Q36 -> 0 | AF36: ='T1'!O36 -> 74688 | AG36: =T3_R1!N36 -> 0 | AI36: 74688 | AJ36: 1
A37: =IF(INTRO!$E$34<>0,INTRO!$E$34,"") -> Tanzania | B37: Iringa | C37: Iringa Municipal Council | D37: 165510.5455 | E37: 21351 | F37: 35531 | G37: 108628.5455 | H37: 99 | I37: 0 | J37: 3 | K37: 2 | L37: =IF(INTRO!$E$38="Endemic", IF($H37>0, IF($H37=4,"Unknown", IF($H37=99,"Stopped", $D37)), 0),"Not required") -> Stopped | M37: =IF(INTRO!$E$40="Endemic", IF($I37>0, IF($I37=4,"Unknown",IF($I37=99,"Stopped", $D37)), 0),"Not required") -> 0 | N37: =IF(INTRO!$E$42="Endemic", IF(AND($J37>1,$J37<5), IF($J37=4, "Unknown", E37+F37), 0),"Not required") -> 56882 | O37: =IF(INTRO!$E$44="Endemic", IF(AND($K37>0,$K37<5), IF($K37=4,"Unknown", IF($K37=1, $F37*0.33, IF($K37=2, $F37*0.5+$G37*0.2, SUM(F37:G37)))), 0),"Not required") -> 39491.2091 | P37: 0 | Q37: 0 | R37: 1 | S37: 1 | U37: T1 (PZQ+ALB/MBD) | V37: T1 | W37: T3 | X37: 46482 | Y37: Iringa Municipal Council | AE37: ='MDA3'!Q37 -> 0 | AF37: ='T1'!O37 -> 34215 | AG37: =T3_R1!N37 -> 0 | AI37: 34215 | AJ37: 1
A38: =IF(INTRO!$E$34<>0,INTRO!$E$34,"") -> Tanzania | B38: Iringa | C38: Kilolo District Council | D38: 238548.9364 | E38: 30773 | F38: 46669 | G38: 161106.9364 | H38: 99 | I38: 0 | J38: 3 | K38: 2 | L38: =IF(INTRO!$E$38="Endemic", IF($H38>0, IF($H38=4,"Unknown", IF($H38=99,"Stopped", $D38)), 0),"Not required") -> Stopped | M38: =IF(INTRO!$E$40="Endemic", IF($I38>0, IF($I38=4,"Unknown",IF($I38=99,"Stopped", $D38)), 0),"Not required") -> 0 | N38: =IF(INTRO!$E$42="Endemic", IF(AND($J38>1,$J38<5), IF($J38=4, "Unknown", E38+F38), 0),"Not required") -> 77442 | O38: =IF(INTRO!$E$44="Endemic", IF(AND($K38>0,$K38<5), IF($K38=4,"Unknown", IF($K38=1, $F38*0.33, IF($K38=2, $F38*0.5+$G38*0.2, SUM(F38:G38)))), 0),"Not required") -> 55555.88728 | P38: 0 | Q38: 0 | R38: 1 | S38: 1 | U38: T1 (PZQ+ALB/MBD) | V38: T1 | W38: T3 | X38: 46483 | Y38: Kilolo District Council | AE38: ='MDA3'!Q38 -> 0 | AF38: ='T1'!O38 -> 44850 | AG38: =T3_R1!N38 -> 0 | AI38: 44850 | AJ38: 1
A39: =IF(INTRO!$E$34<>0,INTRO!$E$34,"") -> Tanzania | B39: Iringa | C39: Mafinga Town Council | D39: 78346.73936 | E39: 10107 | F39: 17301 | G39: 50938.73936 | H39: 99 | I39: 0 | J39: 3 | K39: 2 | L39: =IF(INTRO!$E$38="Endemic", IF($H39>0, IF($H39=4,"Unknown", IF($H39=99,"Stopped", $D39)), 0),"Not required") -> Stopped | M39: =IF(INTRO!$E$40="Endemic", IF($I39>0, IF($I39=4,"Unknown",IF($I39=99,"Stopped", $D39)), 0),"Not required") -> 0 | N39: =IF(INTRO!$E$42="Endemic", IF(AND($J39>1,$J39<5), IF($J39=4, "Unknown", E39+F39), 0),"Not required") -> 27408 | O39: =IF(INTRO!$E$44="Endemic", IF(AND($K39>0,$K39<5), IF($K39=4,"Unknown", IF($K39=1, $F39*0.33, IF($K39=2, $F39*0.5+$G39*0.2, SUM(F39:G39)))), 0),"Not required") -> 18838.24787 | P39: 0 | Q39: 0 | R39: 1 | S39: 1 | U39: T1 (PZQ+ALB/MBD) | V39: T1 | W39: T3 | X39: 46484 | Y39: Mafinga Town Council | AE39: ='MDA3'!Q39 -> 0 | AF39: ='T1'!O39 -> 16660 | AG39: =T3_R1!N39 -> 0 | AI39: 16660 | AJ39: 1
A40: =IF(INTRO!$E$34<>0,INTRO!$E$34,"") -> Tanzania | B40: Iringa | C40: Mufindi District Council | D40: 285004 | E40: 36766 | F40: 69722 | G40: 178516 | H40: 99 | I40: 1 | J40: 3 | K40: 2 | L40: =IF(INTRO!$E$38="Endemic", IF($H40>0, IF($H40=4,"Unknown", IF($H40=99,"Stopped", $D40)), 0),"Not required") -> Stopped | M40: =IF(INTRO!$E$40="Endemic", IF($I40>0, IF($I40=4,"Unknown",IF($I40=99,"Stopped", $D40)), 0),"Not required") -> 285004 | N40: =IF(INTRO!$E$42="Endemic", IF(AND($J40>1,$J40<5), IF($J40=4, "Unknown", E40+F40), 0),"Not required") -> 106488 | O40: =IF(INTRO!$E$44="Endemic", IF(AND($K40>0,$K40<5), IF($K40=4,"Unknown", IF($K40=1, $F40*0.33, IF($K40=2, $F40*0.5+$G40*0.2, SUM(F40:G40)))), 0),"Not required") -> 70564.2 | P40: 0 | Q40: 1 | R40: 1 | S40: 1 | U40: T1 (PZQ+ALB/MBD) | V40: MDA 1 | W40: T1 | X40: 46485 | Y40: Mufindi District Council | AE40: ='MDA3'!Q40 -> 0 | AF40: ='T1'!O40 -> 67776 | AG40: =T3_R1!N40 -> 0 | AI40: 67776 | AJ40: 1
A41: =IF(INTRO!$E$34<>0,INTRO!$E$34,"") -> Tanzania | B41: Kagera | C41: Biharamulo District Council | D41: 416470.6082 | E41: 53725 | F41: 92572 | G41: 270173.6082 | H41: 0 | I41: 0 | J41: 3 | K41: 2 | L41: =IF(INTRO!$E$38="Endemic", IF($H41>0, IF($H41=4,"Unknown", IF($H41=99,"Stopped", $D41)), 0),"Not required") -> 0 | M41: =IF(INTRO!$E$40="Endemic", IF($I41>0, IF($I41=4,"Unknown",IF($I41=99,"Stopped", $D41)), 0),"Not required") -> 0 | N41: =IF(INTRO!$E$42="Endemic", IF(AND($J41>1,$J41<5), IF($J41=4, "Unknown", E41+F41), 0),"Not required") -> 146297 | O41: =IF(INTRO!$E$44="Endemic", IF(AND($K41>0,$K41<5), IF($K41=4,"Unknown", IF($K41=1, $F41*0.33, IF($K41=2, $F41*0.5+$G41*0.2, SUM(F41:G41)))), 0),"Not required") -> 100320.7216 | P41: 0 | Q41: 0 | R41: 0 | S41: 1 | V41: T1 | W41: T3 | X41: 46486 | Y41: Biharamulo District Council | AE41: ='MDA3'!Q41 -> 0 | AF41: ='T1'!O41 -> 0 | AG41: =T3_R1!N41 -> 0 | AI41: 0 | AJ41: 0
A42: =IF(INTRO!$E$34<>0,INTRO!$E$34,"") -> Tanzania | B42: Kagera | C42: Bukoba District Council | D42: 372971.1384 | E42: 48113 | F42: 86385 | G42: 238473.1384 | H42: 0 | I42: 0 | J42: 3 | K42: 2 | L42: =IF(INTRO!$E$38="Endemic", IF($H42>0, IF($H42=4,"Unknown", IF($H42=99,"Stopped", $D42)), 0),"Not required") -> 0 | M42: =IF(INTRO!$E$40="Endemic", IF($I42>0, IF($I42=4,"Unknown",IF($I42=99,"Stopped", $D42)), 0),"Not required") -> 0 | N42: =IF(INTRO!$E$42="Endemic", IF(AND($J42>1,$J42<5), IF($J42=4, "Unknown", E42+F42), 0),"Not required") -> 134498 | O42: =IF(INTRO!$E$44="Endemic", IF(AND($K42>0,$K42<5), IF($K42=4,"Unknown", IF($K42=1, $F42*0.33, IF($K42=2, $F42*0.5+$G42*0.2, SUM(F42:G42)))), 0),"Not required") -> 90887.12768 | P42: 0 | Q42: 0 | R42: 0 | S42: 1 | V42: T1 | W42: T3 | X42: 46487 | Y42: Bukoba District Council | AE42: ='MDA3'!Q42 -> 0 | AF42: ='T1'!O42 -> 0 | AG42: =T3_R1!N42 -> 0 | AI42: 0 | AJ42: 0
A43: =IF(INTRO!$E$34<>0,INTRO!$E$34,"") -> Tanzania | B43: Kagera | C43: Bukoba Municipal Council | D43: 165817.1515 | E43: 21390 | F43: 30105 | G43: 114322.1515 | H43: 0 | I43: 0 | J43: 3 | K43: 2 | L43: =IF(INTRO!$E$38="Endemic", IF($H43>0, IF($H43=4,"Unknown", IF($H43=99,"Stopped", $D43)), 0),"Not required") -> 0 | M43: =IF(INTRO!$E$40="Endemic", IF($I43>0, IF($I43=4,"Unknown",IF($I43=99,"Stopped", $D43)), 0),"Not required") -> 0 | N43: =IF(INTRO!$E$42="Endemic", IF(AND($J43>1,$J43<5), IF($J43=4, "Unknown", E43+F43), 0),"Not required") -> 51495 | O43: =IF(INTRO!$E$44="Endemic", IF(AND($K43>0,$K43<5), IF($K43=4,"Unknown", IF($K43=1, $F43*0.33, IF($K43=2, $F43*0.5+$G43*0.2, SUM(F43:G43)))), 0),"Not required") -> 37916.9303 | P43: 0 | Q43: 0 | R43: 0 | S43: 1 | V43: T1 | W43: T3 | X43: 46488 | Y43: Bukoba Municipal Council | AE43: ='MDA3'!Q43 -> 0 | AF43: ='T1'!O43 -> 0 | AG43: =T3_R1!N43 -> 0 | AI43: 0 | AJ43: 0
A44: =IF(INTRO!$E$34<>0,INTRO!$E$34,"") -> Tanzania | B44: Kagera | C44: Karagwe District Council | D44: 427457.0346 | E44: 55142 | F44: 86898 | G44: 285417.0346 | H44: 0 | I44: 0 | J44: 3 | K44: 2 | L44: =IF(INTRO!$E$38="Endemic", IF($H44>0, IF($H44=4,"Unknown", IF($H44=99,"Stopped", $D44)), 0),"Not required") -> 0 | M44: =IF(INTRO!$E$40="Endemic", IF($I44>0, IF($I44=4,"Unknown",IF($I44=99,"Stopped", $D44)), 0),"Not required") -> 0 | N44: =IF(INTRO!$E$42="Endemic", IF(AND($J44>1,$J44<5), IF($J44=4, "Unknown", E44+F44), 0),"Not required") -> 142040 | O44: =IF(INTRO!$E$44="Endemic", IF(AND($K44>0,$K44<5), IF($K44=4,"Unknown", IF($K44=1, $F44*0.33, IF($K44=2, $F44*0.5+$G44*0.2, SUM(F44:G44)))), 0),"Not required") -> 100532.4069 | P44: 0 | Q44: 0 | R44: 0 | S44: 1 | V44: T1 | W44: T3 | X44: 46489 | Y44: Karagwe District Council | AE44: ='MDA3'!Q44 -> 0 | AF44: ='T1'!O44 -> 0 | AG44: =T3_R1!N44 -> 0 | AI44: 0 | AJ44: 0
A45: =IF(INTRO!$E$34<>0,INTRO!$E$34,"") -> Tanzania | B45: Kagera | C45: Kyerwa District Council | D45: 413303.2486 | E45: 53316 | F45: 98370 | G45: 261617.2486 | H45: 0 | I45: 0 | J45: 3 | K45: 2 | L45: =IF(INTRO!$E$38="Endemic", IF($H45>0, IF($H45=4,"Unknown", IF($H45=99,"Stopped", $D45)), 0),"Not required") -> 0 | M45: =IF(INTRO!$E$40="Endemic", IF($I45>0, IF($I45=4,"Unknown",IF($I45=99,"Stopped", $D45)), 0),"Not required") -> 0 | N45: =IF(INTRO!$E$42="Endemic", IF(AND($J45>1,$J45<5), IF($J45=4, "Unknown", E45+F45), 0),"Not required") -> 151686 | O45: =IF(INTRO!$E$44="Endemic", IF(AND($K45>0,$K45<5), IF($K45=4,"Unknown", IF($K45=1, $F45*0.33, IF($K45=2, $F45*0.5+$G45*0.2, SUM(F45:G45)))), 0),"Not required") -> 101508.4497 | P45: 0 | Q45: 0 | R45: 0 | S45: 1 | V45: T1 | W45: T3 | X45: 46490 | Y45: Kyerwa District Council | AE45: ='MDA3'!Q45 -> 0 | AF45: ='T1'!O45 -> 0 | AG45: =T3_R1!N45 -> 0 | AI45: 0 | AJ45: 0
A46: =IF(INTRO!$E$34<>0,INTRO!$E$34,"") -> Tanzania | B46: Kagera | C46: Missenyi District Council | D46: 260878.3078 | E46: 33653 | F46: 55521 | G46: 171704.3078 | H46: 0 | I46: 0 | J46: 3 | K46: 2 | L46: =IF(INTRO!$E$38="Endemic", IF($H46>0, IF($H46=4,"Unknown", IF($H46=99,"Stopped", $D46)), 0),"Not required") -> 0 | M46: =IF(INTRO!$E$40="Endemic", IF($I46>0, IF($I46=4,"Unknown",IF($I46=99,"Stopped", $D46)), 0),"Not required") -> 0 | N46: =IF(INTRO!$E$42="Endemic", IF(AND($J46>1,$J46<5), IF($J46=4, "Unknown", E46+F46), 0),"Not required") -> 89174 | O46: =IF(INTRO!$E$44="Endemic", IF(AND($K46>0,$K46<5), IF($K46=4,"Unknown", IF($K46=1, $F46*0.33, IF($K46=2, $F46*0.5+$G46*0.2, SUM(F46:G46)))), 0),"Not required") -> 62101.36157 | P46: 0 | Q46: 0 | R46: 0 | S46: 1 | V46: T1 | W46: T3 | X46: 46491 | Y46: Missenyi District Council | AE46: ='MDA3'!Q46 -> 0 | AF46: ='T1'!O46 -> 0 | AG46: =T3_R1!N46 -> 0 | AI46: 0 | AJ46: 0
A47: =IF(INTRO!$E$34<>0,INTRO!$E$34,"") -> Tanzania | B47: Kagera | C47: Muleba District Council | D47: 695620.4758 | E47: 89735 | F47: 158457 | G47: 447428.4758 | H47: 0 | I47: 0 | J47: 3 | K47: 2 | L47: =IF(INTRO!$E$38="Endemic", IF($H47>0, IF($H47=4,"Unknown", IF($H47=99,"Stopped", $D47)), 0),"Not required") -> 0 | M47: =IF(INTRO!$E$40="Endemic", IF($I47>0, IF($I47=4,"Unknown",IF($I47=99,"Stopped", $D47)), 0),"Not required") -> 0 | N47: =IF(INTRO!$E$42="Endemic", IF(AND($J47>1,$J47<5), IF($J47=4, "Unknown", E47+F47), 0),"Not required") -> 248192 | O47: =IF(INTRO!$E$44="Endemic", IF(AND($K47>0,$K47<5), IF($K47=4,"Unknown", IF($K47=1, $F47*0.33, IF($K47=2, $F47*0.5+$G47*0.2, SUM(F47:G47)))), 0),"Not required") -> 168714.1952 | P47: 0 | Q47: 0 | R47: 0 | S47: 1 | V47: T1 | W47: T3 | X47: 46492 | Y47: Muleba District Council | AE47: ='MDA3'!Q47 -> 0 | AF47: ='T1'!O47 -> 0 | AG47: =T3_R1!N47 -> 0 | AI47: 0 | AJ47: 0
A48: =IF(INTRO!$E$34<>0,INTRO!$E$34,"") -> Tanzania | B48: Kagera | C48: Ngara District Council | D48: 412055.8577 | E48: 53155 | F48: 89999 | G48: 268901.8577 | H48: 0 | I48: 0 | J48: 3 | K48: 2 | L48: =IF(INTRO!$E$38="Endemic", IF($H48>0, IF($H48=4,"Unknown", IF($H48=99,"Stopped", $D48)), 0),"Not required") -> 0 | M48: =IF(INTRO!$E$40="Endemic", IF($I48>0, IF($I48=4,"Unknown",IF($I48=99,"Stopped", $D48)), 0),"Not required") -> 0 | N48: =IF(INTRO!$E$42="Endemic", IF(AND($J48>1,$J48<5), IF($J48=4, "Unknown", E48+F48), 0),"Not required") -> 143154 | O48: =IF(INTRO!$E$44="Endemic", IF(AND($K48>0,$K48<5), IF($K48=4,"Unknown", IF($K48=1, $F48*0.33, IF($K48=2, $F48*0.5+$G48*0.2, SUM(F48:G48)))), 0),"Not required") -> 98779.87154 | P48: 0 | Q48: 0 | R48: 0 | S48: 1 | V48: T1 | W48: T3 | X48: 46493 | Y48: Ngara District Council | AE48: ='MDA3'!Q48 -> 0 | AF48: ='T1'!O48 -> 0 | AG48: =T3_R1!N48 -> 0 | AI48: 0 | AJ48: 0
A49: =IF(INTRO!$E$34<>0,INTRO!$E$34,"") -> Tanzania | B49: Katavi | C49: Mlele District Council | D49: 55886.9327 | E49: 7209 | F49: 15075 | G49: 33602.9327 | H49: 99 | I49: 0 | J49: 3 | K49: 2 | L49: =IF(INTRO!$E$38="Endemic", IF($H49>0, IF($H49=4,"Unknown", IF($H49=99,"Stopped", $D49)), 0),"Not required") -> Stopped | M49: =IF(INTRO!$E$40="Endemic", IF($I49>0, IF($I49=4,"Unknown",IF($I49=99,"Stopped", $D49)), 0),"Not required") -> 0 | N49: =IF(INTRO!$E$42="Endemic", IF(AND($J49>1,$J49<5), IF($J49=4, "Unknown", E49+F49), 0),"Not required") -> 22284 | O49: =IF(INTRO!$E$44="Endemic", IF(AND($K49>0,$K49<5), IF($K49=4,"Unknown", IF($K49=1, $F49*0.33, IF($K49=2, $F49*0.5+$G49*0.2, SUM(F49:G49)))), 0),"Not required") -> 14258.08654 | P49: 0 | Q49: 0 | R49: 1 | S49: 0 | U49: T3 (ALB/MBD) | V49: T1 | W49: T3 | X49: 46494 | Y49: Mlele District Council | AE49: ='MDA3'!Q49 -> 0 | AF49: ='T1'!O49 -> 0 | AG49: =T3_R1!N49 -> 14568 | AI49: 14568 | AJ49: 1
A50: =IF(INTRO!$E$34<>0,INTRO!$E$34,"") -> Tanzania | B50: Katavi | C50: Mpanda District Council | D50: 231441.8399 | E50: 29856 | F50: 74108 | G50: 127477.8399 | H50: 99 | I50: 0 | J50: 3 | K50: 2 | L50: =IF(INTRO!$E$38="Endemic", IF($H50>0, IF($H50=4,"Unknown", IF($H50=99,"Stopped", $D50)), 0),"Not required") -> Stopped | M50: =IF(INTRO!$E$40="Endemic", IF($I50>0, IF($I50=4,"Unknown",IF($I50=99,"Stopped", $D50)), 0),"Not required") -> 0 | N50: =IF(INTRO!$E$42="Endemic", IF(AND($J50>1,$J50<5), IF($J50=4, "Unknown", E50+F50), 0),"Not required") -> 103964 | O50: =IF(INTRO!$E$44="Endemic", IF(AND($K50>0,$K50<5), IF($K50=4,"Unknown", IF($K50=1, $F50*0.33, IF($K50=2, $F50*0.5+$G50*0.2, SUM(F50:G50)))), 0),"Not required") -> 62549.56798 | P50: 0 | Q50: 0 | R50: 1 | S50: 0 | U50: T3 (ALB/MBD) | V50: T1 | W50: T3 | X50: 46495 | Y50: Mpanda District Council | AE50: ='MDA3'!Q50 -> 0 | AF50: ='T1'!O50 -> 0 | AG50: =T3_R1!N50 -> 67438 | AI50: 67438 | AJ50: 1
A51: =IF(INTRO!$E$34<>0,INTRO!$E$34,"") -> Tanzania | B51: Katavi | C51: Mpanda Municipal Council | D51: 142187.0527 | E51: 18342 | F51: 51634 | G51: 72211.05266 | H51: 99 | I51: 0 | J51: 3 | K51: 2 | L51: =IF(INTRO!$E$38="Endemic", IF($H51>0, IF($H51=4,"Unknown", IF($H51=99,"Stopped", $D51)), 0),"Not required") -> Stopped | M51: =IF(INTRO!$E$40="Endemic", IF($I51>0, IF($I51=4,"Unknown",IF($I51=99,"Stopped", $D51)), 0),"Not required") -> 0 | N51: =IF(INTRO!$E$42="Endemic", IF(AND($J51>1,$J51<5), IF($J51=4, "Unknown", E51+F51), 0),"Not required") -> 69976 | O51: =IF(INTRO!$E$44="Endemic", IF(AND($K51>0,$K51<5), IF($K51=4,"Unknown", IF($K51=1, $F51*0.33, IF($K51=2, $F51*0.5+$G51*0.2, SUM(F51:G51)))), 0),"Not required") -> 40259.21053 | P51: 0 | Q51: 0 | R51: 1 | S51: 0 | U51: T3 (ALB/MBD) | V51: T1 | W51: T3 | X51: 46496 | Y51: Mpanda Municipal Council | AE51: ='MDA3'!Q51 -> 0 | AF51: ='T1'!O51 -> 0 | AG51: =T3_R1!N51 -> 49258 | AI51: 49258 | AJ51: 1
A52: =IF(INTRO!$E$34<>0,INTRO!$E$34,"") -> Tanzania | B52: Katavi | C52: Mpimbwe District Council | D52: 133882.315 | E52: 17271 | F52: 31370 | G52: 85241.31501 | H52: 99 | I52: 0 | J52: 3 | K52: 2 | L52: =IF(INTRO!$E$38="Endemic", IF($H52>0, IF($H52=4,"Unknown", IF($H52=99,"Stopped", $D52)), 0),"Not required") -> Stopped | M52: =IF(INTRO!$E$40="Endemic", IF($I52>0, IF($I52=4,"Unknown",IF($I52=99,"Stopped", $D52)), 0),"Not required") -> 0 | N52: =IF(INTRO!$E$42="Endemic", IF(AND($J52>1,$J52<5), IF($J52=4, "Unknown", E52+F52), 0),"Not required") -> 48641 | O52: =IF(INTRO!$E$44="Endemic", IF(AND($K52>0,$K52<5), IF($K52=4,"Unknown", IF($K52=1, $F52*0.33, IF($K52=2, $F52*0.5+$G52*0.2, SUM(F52:G52)))), 0),"Not required") -> 32733.263 | P52: 0 | Q52: 0 | R52: 1 | S52: 0 | U52: T3 (ALB/MBD) | V52: T1 | W52: T3 | X52: 46628 | Y52: Mpimbwe District Council | AE52: ='MDA3'!Q52 -> 0 | AF52: ='T1'!O52 -> 0 | AG52: =T3_R1!N52 -> 29653 | AI52: 29653 | AJ52: 1
A53: =IF(INTRO!$E$34<>0,INTRO!$E$34,"") -> Tanzania | B53: Katavi | C53: Nsimbo District Council | D53: 166063.6768 | E53: 21422 | F53: 38218 | G53: 106423.6768 | H53: 99 | I53: 0 | J53: 3 | K53: 2 | L53: =IF(INTRO!$E$38="Endemic", IF($H53>0, IF($H53=4,"Unknown", IF($H53=99,"Stopped", $D53)), 0),"Not required") -> Stopped | M53: =IF(INTRO!$E$40="Endemic", IF($I53>0, IF($I53=4,"Unknown",IF($I53=99,"Stopped", $D53)), 0),"Not required") -> 0 | N53: =IF(INTRO!$E$42="Endemic", IF(AND($J53>1,$J53<5), IF($J53=4, "Unknown", E53+F53), 0),"Not required") -> 59640 | O53: =IF(INTRO!$E$44="Endemic", IF(AND($K53>0,$K53<5), IF($K53=4,"Unknown", IF($K53=1, $F53*0.33, IF($K53=2, $F53*0.5+$G53*0.2, SUM(F53:G53)))), 0),"Not required") -> 40393.73535 | P53: 0 | Q53: 0 | R53: 1 | S53: 0 | U53: T3 (ALB/MBD) | V53: T1 | W53: T3 | X53: 46497 | Y53: Nsimbo District Council | AE53: ='MDA3'!Q53 -> 0 | AF53: ='T1'!O53 -> 0 | AG53: =T3_R1!N53 -> 36163 | AI53: 36163 | AJ53: 1
A54: =IF(INTRO!$E$34<>0,INTRO!$E$34,"") -> Tanzania | B54: Kigoma | C54: Buhigwe District Council | D54: 315174.6715 | E54: 40658 | F54: 62549 | G54: 211967.6715 | H54: 0 | I54: 0 | J54: 3 | K54: 2 | L54: =IF(INTRO!$E$38="Endemic", IF($H54>0, IF($H54=4,"Unknown", IF($H54=99,"Stopped", $D54)), 0),"Not required") -> 0 | M54: =IF(INTRO!$E$40="Endemic", IF($I54>0, IF($I54=4,"Unknown",IF($I54=99,"Stopped", $D54)), 0),"Not required") -> 0 | N54: =IF(INTRO!$E$42="Endemic", IF(AND($J54>1,$J54<5), IF($J54=4, "Unknown", E54+F54), 0),"Not required") -> 103207 | O54: =IF(INTRO!$E$44="Endemic", IF(AND($K54>0,$K54<5), IF($K54=4,"Unknown", IF($K54=1, $F54*0.33, IF($K54=2, $F54*0.5+$G54*0.2, SUM(F54:G54)))), 0),"Not required") -> 73668.0343 | P54: 0 | Q54: 0 | R54: 0 | S54: 1 | V54: T1 | W54: T3 | X54: 46498 | Y54: Buhigwe District Council | AE54: ='MDA3'!Q54 -> 0 | AF54: ='T1'!O54 -> 0 | AG54: =T3_R1!N54 -> 0 | AI54: 0 | AJ54: 0
A55: =IF(INTRO!$E$34<>0,INTRO!$E$34,"") -> Tanzania | B55: Kigoma | C55: Kakonko District Council | D55: 207631.3183 | E55: 26784 | F55: 43172 | G55: 137675.3183 | H55: 0 | I55: 0 | J55: 3 | K55: 2 | L55: =IF(INTRO!$E$38="Endemic", IF($H55>0, IF($H55=4,"Unknown", IF($H55=99,"Stopped", $D55)), 0),"Not required") -> 0 | M55: =IF(INTRO!$E$40="Endemic", IF($I55>0, IF($I55=4,"Unknown",IF($I55=99,"Stopped", $D55)), 0),"Not required") -> 0 | N55: =IF(INTRO!$E$42="Endemic", IF(AND($J55>1,$J55<5), IF($J55=4, "Unknown", E55+F55), 0),"Not required") -> 69956 | O55: =IF(INTRO!$E$44="Endemic", IF(AND($K55>0,$K55<5), IF($K55=4,"Unknown", IF($K55=1, $F55*0.33, IF($K55=2, $F55*0.5+$G55*0.2, SUM(F55:G55)))), 0),"Not required") -> 49121.06366 | P55: 0 | Q55: 0 | R55: 0 | S55: 1 | V55: T1 | W55: T3 | X55: 46499 | Y55: Kakonko District Council | AE55: ='MDA3'!Q55 -> 0 | AF55: ='T1'!O55 -> 0 | AG55: =T3_R1!N55 -> 0 | AI55: 0 | AJ55: 0
A56: =IF(INTRO!$E$34<>0,INTRO!$E$34,"") -> Tanzania | B56: Kigoma | C56: Kasulu District Council | D56: 527633.3436 | E56: 68065 | F56: 110434 | G56: 349134.3436 | H56: 0 | I56: 0 | J56: 3 | K56: 2 | L56: =IF(INTRO!$E$38="Endemic", IF($H56>0, IF($H56=4,"Unknown", IF($H56=99,"Stopped", $D56)), 0),"Not required") -> 0 | M56: =IF(INTRO!$E$40="Endemic", IF($I56>0, IF($I56=4,"Unknown",IF($I56=99,"Stopped", $D56)), 0),"Not required") -> 0 | N56: =IF(INTRO!$E$42="Endemic", IF(AND($J56>1,$J56<5), IF($J56=4, "Unknown", E56+F56), 0),"Not required") -> 178499 | O56: =IF(INTRO!$E$44="Endemic", IF(AND($K56>0,$K56<5), IF($K56=4,"Unknown", IF($K56=1, $F56*0.33, IF($K56=2, $F56*0.5+$G56*0.2, SUM(F56:G56)))), 0),"Not required") -> 125043.8687 | P56: 0 | Q56: 0 | R56: 0 | S56: 1 | V56: T1 | W56: T3 | X56: 46500 | Y56: Kasulu District Council | AE56: ='MDA3'!Q56 -> 0 | AF56: ='T1'!O56 -> 0 | AG56: =T3_R1!N56 -> 0 | AI56: 0 | AJ56: 0
A57: =IF(INTRO!$E$34<>0,INTRO!$E$34,"") -> Tanzania | B57: Kigoma | C57: Kasulu Town Council | D57: 258050.2134 | E57: 33288 | F57: 51579 | G57: 173183.2134 | H57: 0 | I57: 0 | J57: 3 | K57: 2 | L57: =IF(INTRO!$E$38="Endemic", IF($H57>0, IF($H57=4,"Unknown", IF($H57=99,"Stopped", $D57)), 0),"Not required") -> 0 | M57: =IF(INTRO!$E$40="Endemic", IF($I57>0, IF($I57=4,"Unknown",IF($I57=99,"Stopped", $D57)), 0),"Not required") -> 0 | N57: =IF(INTRO!$E$42="Endemic", IF(AND($J57>1,$J57<5), IF($J57=4, "Unknown", E57+F57), 0),"Not required") -> 84867 | O57: =IF(INTRO!$E$44="Endemic", IF(AND($K57>0,$K57<5), IF($K57=4,"Unknown", IF($K57=1, $F57*0.33, IF($K57=2, $F57*0.5+$G57*0.2, SUM(F57:G57)))), 0),"Not required") -> 60426.14268 | P57: 0 | Q57: 0 | R57: 0 | S57: 1 | V57: T1 | W57: T3 | X57: 46501 | Y57: Kasulu Town Council | AE57: ='MDA3'!Q57 -> 0 | AF57: ='T1'!O57 -> 0 | AG57: =T3_R1!N57 -> 0 | AI57: 0 | AJ57: 0
A58: =IF(INTRO!$E$34<>0,INTRO!$E$34,"") -> Tanzania | B58: Kigoma | C58: Kibondo District Council | D58: 323835.1117 | E58: 41775 | F58: 66303 | G58: 215757.1117 | H58: 0 | I58: 0 | J58: 3 | K58: 2 | L58: =IF(INTRO!$E$38="Endemic", IF($H58>0, IF($H58=4,"Unknown", IF($H58=99,"Stopped", $D58)), 0),"Not required") -> 0 | M58: =IF(INTRO!$E$40="Endemic", IF($I58>0, IF($I58=4,"Unknown",IF($I58=99,"Stopped", $D58)), 0),"Not required") -> 0 | N58: =IF(INTRO!$E$42="Endemic", IF(AND($J58>1,$J58<5), IF($J58=4, "Unknown", E58+F58), 0),"Not required") -> 108078 | O58: =IF(INTRO!$E$44="Endemic", IF(AND($K58>0,$K58<5), IF($K58=4,"Unknown", IF($K58=1, $F58*0.33, IF($K58=2, $F58*0.5+$G58*0.2, SUM(F58:G58)))), 0),"Not required") -> 76302.92233 | P58: 0 | Q58: 0 | R58: 0 | S58: 1 | V58: T1 | W58: T3 | X58: 46502 | Y58: Kibondo District Council | AE58: ='MDA3'!Q58 -> 0 | AF58: ='T1'!O58 -> 0 | AG58: =T3_R1!N58 -> 0 | AI58: 0 | AJ58: 0
A59: =IF(INTRO!$E$34<>0,INTRO!$E$34,"") -> Tanzania | B59: Kigoma | C59: Kigoma District Council | D59: 262168.3919 | E59: 33820 | F59: 52925 | G59: 175423.3919 | H59: 0 | I59: 0 | J59: 3 | K59: 2 | L59: =IF(INTRO!$E$38="Endemic", IF($H59>0, IF($H59=4,"Unknown", IF($H59=99,"Stopped", $D59)), 0),"Not required") -> 0 | M59: =IF(INTRO!$E$40="Endemic", IF($I59>0, IF($I59=4,"Unknown",IF($I59=99,"Stopped", $D59)), 0),"Not required") -> 0 | N59: =IF(INTRO!$E$42="Endemic", IF(AND($J59>1,$J59<5), IF($J59=4, "Unknown", E59+F59), 0),"Not required") -> 86745 | O59: =IF(INTRO!$E$44="Endemic", IF(AND($K59>0,$K59<5), IF($K59=4,"Unknown", IF($K59=1, $F59*0.33, IF($K59=2, $F59*0.5+$G59*0.2, SUM(F59:G59)))), 0),"Not required") -> 61547.17837 | P59: 0 | Q59: 0 | R59: 0 | S59: 1 | V59: T1 | W59: T3 | X59: 46504 | Y59: Kigoma District Council | AE59: ='MDA3'!Q59 -> 0 | AF59: ='T1'!O59 -> 0 | AG59: =T3_R1!N59 -> 0 | AI59: 0 | AJ59: 0
A60: =IF(INTRO!$E$34<>0,INTRO!$E$34,"") -> Tanzania | B60: Kigoma | C60: Kigoma-Ujiji Municipal Council | D60: 266990.8177 | E60: 34442 | F60: 50225 | G60: 182323.8177 | H60: 0 | I60: 0 | J60: 3 | K60: 2 | L60: =IF(INTRO!$E$38="Endemic", IF($H60>0, IF($H60=4,"Unknown", IF($H60=99,"Stopped", $D60)), 0),"Not required") -> 0 | M60: =IF(INTRO!$E$40="Endemic", IF($I60>0, IF($I60=4,"Unknown",IF($I60=99,"Stopped", $D60)), 0),"Not required") -> 0 | N60: =IF(INTRO!$E$42="Endemic", IF(AND($J60>1,$J60<5), IF($J60=4, "Unknown", E60+F60), 0),"Not required") -> 84667 | O60: =IF(INTRO!$E$44="Endemic", IF(AND($K60>0,$K60<5), IF($K60=4,"Unknown", IF($K60=1, $F60*0.33, IF($K60=2, $F60*0.5+$G60*0.2, SUM(F60:G60)))), 0),"Not required") -> 61577.26354 | P60: 0 | Q60: 0 | R60: 0 | S60: 1 | V60: T1 | W60: T3 | X60: 46503 | Y60: Kigoma-Ujiji Municipal Council | AE60: ='MDA3'!Q60 -> 0 | AF60: ='T1'!O60 -> 0 | AG60: =T3_R1!N60 -> 0 | AI60: 0 | AJ60: 0
A61: =IF(INTRO!$E$34<>0,INTRO!$E$34,"") -> Tanzania | B61: Kigoma | C61: Uvinza District Council | D61: 475396.4985 | E61: 61326 | F61: 93843 | G61: 320227.4985 | H61: 0 | I61: 0 | J61: 3 | K61: 2 | L61: =IF(INTRO!$E$38="Endemic", IF($H61>0, IF($H61=4,"Unknown", IF($H61=99,"Stopped", $D61)), 0),"Not required") -> 0 | M61: =IF(INTRO!$E$40="Endemic", IF($I61>0, IF($I61=4,"Unknown",IF($I61=99,"Stopped", $D61)), 0),"Not required") -> 0 | N61: =IF(INTRO!$E$42="Endemic", IF(AND($J61>1,$J61<5), IF($J61=4, "Unknown", E61+F61), 0),"Not required") -> 155169 | O61: =IF(INTRO!$E$44="Endemic", IF(AND($K61>0,$K61<5), IF($K61=4,"Unknown", IF($K61=1, $F61*0.33, IF($K61=2, $F61*0.5+$G61*0.2, SUM(F61:G61)))), 0),"Not required") -> 110966.9997 | P61: 0 | Q61: 0 | R61: 0 | S61: 1 | V61: T1 | W61: T3 | X61: 46505 | Y61: Uvinza District Council | AE61: ='MDA3'!Q61 -> 0 | AF61: ='T1'!O61 -> 0 | AG61: =T3_R1!N61 -> 0 | AI61: 0 | AJ61: 0
A62: =IF(INTRO!$E$34<>0,INTRO!$E$34,"") -> Tanzania | B62: Kilimanjaro | C62: Hai District Council | D62: 242423.0793 | E62: 31273 | F62: 42159 | G62: 168991.0793 | H62: 0 | I62: 0 | J62: 3 | K62: 2 | L62: =IF(INTRO!$E$38="Endemic", IF($H62>0, IF($H62=4,"Unknown", IF($H62=99,"Stopped", $D62)), 0),"Not required") -> 0 | M62: =IF(INTRO!$E$40="Endemic", IF($I62>0, IF($I62=4,"Unknown",IF($I62=99,"Stopped", $D62)), 0),"Not required") -> 0 | N62: =IF(INTRO!$E$42="Endemic", IF(AND($J62>1,$J62<5), IF($J62=4, "Unknown", E62+F62), 0),"Not required") -> 73432 | O62: =IF(INTRO!$E$44="Endemic", IF(AND($K62>0,$K62<5), IF($K62=4,"Unknown", IF($K62=1, $F62*0.33, IF($K62=2, $F62*0.5+$G62*0.2, SUM(F62:G62)))), 0),"Not required") -> 54877.71587 | P62: 0 | Q62: 0 | R62: 1 | S62: 0 | U62: T3 (ALB/MBD) | V62: T1 | W62: T3 | X62: 46506 | Y62: Hai District Council | AE62: ='MDA3'!Q62 -> 0 | AF62: ='T1'!O62 -> 0 | AG62: =T3_R1!N62 -> 41912 | AI62: 41912 | AJ62: 1
A63: =IF(INTRO!$E$34<>0,INTRO!$E$34,"") -> Tanzania | B63: Kilimanjaro | C63: Moshi District Council | D63: 537440.329 | E63: 69330 | F63: 84147 | G63: 383963.329 | H63: 0 | I63: 0 | J63: 3 | K63: 2 | L63: =IF(INTRO!$E$38="Endemic", IF($H63>0, IF($H63=4,"Unknown", IF($H63=99,"Stopped", $D63)), 0),"Not required") -> 0 | M63: =IF(INTRO!$E$40="Endemic", IF($I63>0, IF($I63=4,"Unknown",IF($I63=99,"Stopped", $D63)), 0),"Not required") -> 0 | N63: =IF(INTRO!$E$42="Endemic", IF(AND($J63>1,$J63<5), IF($J63=4, "Unknown", E63+F63), 0),"Not required") -> 153477 | O63: =IF(INTRO!$E$44="Endemic", IF(AND($K63>0,$K63<5), IF($K63=4,"Unknown", IF($K63=1, $F63*0.33, IF($K63=2, $F63*0.5+$G63*0.2, SUM(F63:G63)))), 0),"Not required") -> 118866.1658 | P63: 0 | Q63: 0 | R63: 1 | S63: 0 | U63: T3 (ALB/MBD) | V63: T1 | W63: T3 | X63: 46507 | Y63: Moshi District Council | AE63: ='MDA3'!Q63 -> 0 | AF63: ='T1'!O63 -> 0 | AG63: =T3_R1!N63 -> 82412 | AI63: 82412 | AJ63: 1
A64: =IF(INTRO!$E$34<>0,INTRO!$E$34,"") -> Tanzania | B64: Kilimanjaro | C64: Moshi Municipal Council | D64: 212209.2088 | E64: 27375 | F64: 33731 | G64: 151103.2088 | H64: 0 | I64: 0 | J64: 3 | K64: 2 | L64: =IF(INTRO!$E$38="Endemic", IF($H64>0, IF($H64=4,"Unknown", IF($H64=99,"Stopped", $D64)), 0),"Not required") -> 0 | M64: =IF(INTRO!$E$40="Endemic", IF($I64>0, IF($I64=4,"Unknown",IF($I64=99,"Stopped", $D64)), 0),"Not required") -> 0 | N64: =IF(INTRO!$E$42="Endemic", IF(AND($J64>1,$J64<5), IF($J64=4, "Unknown", E64+F64), 0),"Not required") -> 61106 | O64: =IF(INTRO!$E$44="Endemic", IF(AND($K64>0,$K64<5), IF($K64=4,"Unknown", IF($K64=1, $F64*0.33, IF($K64=2, $F64*0.5+$G64*0.2, SUM(F64:G64)))), 0),"Not required") -> 47086.14176 | P64: 0 | Q64: 0 | R64: 1 | S64: 0 | U64: T3 (ALB/MBD) | V64: T1 | W64: T3 | X64: 46508 | Y64: Moshi Municipal Council | AE64: ='MDA3'!Q64 -> 0 | AF64: ='T1'!O64 -> 0 | AG64: =T3_R1!N64 -> 32985 | AI64: 32985 | AJ64: 1
A65: =IF(INTRO!$E$34<>0,INTRO!$E$34,"") -> Tanzania | B65: Kilimanjaro | C65: Mwanga District Council | D65: 151352.8389 | E65: 19525 | F65: 29935 | G65: 101892.8389 | H65: 0 | I65: 0 | J65: 3 | K65: 2 | L65: =IF(INTRO!$E$38="Endemic", IF($H65>0, IF($H65=4,"Unknown", IF($H65=99,"Stopped", $D65)), 0),"Not required") -> 0 | M65: =IF(INTRO!$E$40="Endemic", IF($I65>0, IF($I65=4,"Unknown",IF($I65=99,"Stopped", $D65)), 0),"Not required") -> 0 | N65: =IF(INTRO!$E$42="Endemic", IF(AND($J65>1,$J65<5), IF($J65=4, "Unknown", E65+F65), 0),"Not required") -> 49460 | O65: =IF(INTRO!$E$44="Endemic", IF(AND($K65>0,$K65<5), IF($K65=4,"Unknown", IF($K65=1, $F65*0.33, IF($K65=2, $F65*0.5+$G65*0.2, SUM(F65:G65)))), 0),"Not required") -> 35346.06779 | P65: 0 | Q65: 0 | R65: 1 | S65: 0 | U65: T3 (ALB/MBD) | V65: T1 | W65: T3 | X65: 46509 | Y65: Mwanga District Council | AE65: ='MDA3'!Q65 -> 0 | AF65: ='T1'!O65 -> 0 | AG65: =T3_R1!N65 -> 25899 | AI65: 25899 | AJ65: 1
A66: =IF(INTRO!$E$34<>0,INTRO!$E$34,"") -> Tanzania | B66: Kilimanjaro | C66: Rombo District Council | D66: 300493.07 | E66: 38764 | F66: 42872 | G66: 218857.07 | H66: 0 | I66: 0 | J66: 3 | K66: 2 | L66: =IF(INTRO!$E$38="Endemic", IF($H66>0, IF($H66=4,"Unknown", IF($H66=99,"Stopped", $D66)), 0),"Not required") -> 0 | M66: =IF(INTRO!$E$40="Endemic", IF($I66>0, IF($I66=4,"Unknown",IF($I66=99,"Stopped", $D66)), 0),"Not required") -> 0 | N66: =IF(INTRO!$E$42="Endemic", IF(AND($J66>1,$J66<5), IF($J66=4, "Unknown", E66+F66), 0),"Not required") -> 81636 | O66: =IF(INTRO!$E$44="Endemic", IF(AND($K66>0,$K66<5), IF($K66=4,"Unknown", IF($K66=1, $F66*0.33, IF($K66=2, $F66*0.5+$G66*0.2, SUM(F66:G66)))), 0),"Not required") -> 65207.414 | P66: 0 | Q66: 0 | R66: 1 | S66: 0 | U66: T3 (ALB/MBD) | V66: T1 | W66: T3 | X66: 46510 | Y66: Rombo District Council | AE66: ='MDA3'!Q66 -> 0 | AF66: ='T1'!O66 -> 0 | AG66: =T3_R1!N66 -> 42835 | AI66: 42835 | AJ66: 1
A67: =IF(INTRO!$E$34<>0,INTRO!$E$34,"") -> Tanzania | B67: Kilimanjaro | C67: Same District Council | D67: 310679.8318 | E67: 40078 | F67: 63787 | G67: 206814.8318 | H67: 0 | I67: 0 | J67: 3 | K67: 2 | L67: =IF(INTRO!$E$38="Endemic", IF($H67>0, IF($H67=4,"Unknown", IF($H67=99,"Stopped", $D67)), 0),"Not required") -> 0 | M67: =IF(INTRO!$E$40="Endemic", IF($I67>0, IF($I67=4,"Unknown",IF($I67=99,"Stopped", $D67)), 0),"Not required") -> 0 | N67: =IF(INTRO!$E$42="Endemic", IF(AND($J67>1,$J67<5), IF($J67=4, "Unknown", E67+F67), 0),"Not required") -> 103865 | O67: =IF(INTRO!$E$44="Endemic", IF(AND($K67>0,$K67<5), IF($K67=4,"Unknown", IF($K67=1, $F67*0.33, IF($K67=2, $F67*0.5+$G67*0.2, SUM(F67:G67)))), 0),"Not required") -> 73256.46637 | P67: 0 | Q67: 0 | R67: 1 | S67: 0 | U67: T3 (ALB/MBD) | V67: T1 | W67: T3 | X67: 46511 | Y67: Same District Council | AE67: ='MDA3'!Q67 -> 0 | AF67: ='T1'!O67 -> 0 | AG67: =T3_R1!N67 -> 57351 | AI67: 57351 | AJ67: 1
A68: =IF(INTRO!$E$34<>0,INTRO!$E$34,"") -> Tanzania | B68: Kilimanjaro | C68: Siha District Council | D68: 133932.1465 | E68: 17277 | F68: 26010 | G68: 90645.14645 | H68: 0 | I68: 0 | J68: 3 | K68: 2 | L68: =IF(INTRO!$E$38="Endemic", IF($H68>0, IF($H68=4,"Unknown", IF($H68=99,"Stopped", $D68)), 0),"Not required") -> 0 | M68: =IF(INTRO!$E$40="Endemic", IF($I68>0, IF($I68=4,"Unknown",IF($I68=99,"Stopped", $D68)), 0),"Not required") -> 0 | N68: =IF(INTRO!$E$42="Endemic", IF(AND($J68>1,$J68<5), IF($J68=4, "Unknown", E68+F68), 0),"Not required") -> 43287 | O68: =IF(INTRO!$E$44="Endemic", IF(AND($K68>0,$K68<5), IF($K68=4,"Unknown", IF($K68=1, $F68*0.33, IF($K68=2, $F68*0.5+$G68*0.2, SUM(F68:G68)))), 0),"Not required") -> 31134.02929 | P68: 0 | Q68: 0 | R68: 1 | S68: 0 | U68: T3 (ALB/MBD) | V68: T1 | W68: T3 | X68: 46512 | Y68: Siha District Council | AE68: ='MDA3'!Q68 -> 0 | AF68: ='T1'!O68 -> 0 | AG68: =T3_R1!N68 -> 25563 | AI68: 25563 | AJ68: 1
A69: =IF(INTRO!$E$34<>0,INTRO!$E$34,"") -> Tanzania | B69: Lindi | C69: Kilwa District Council | D69: 219359 | E69: 28297 | F69: 57322 | G69: 133740 | H69: 1 | I69: 0 | J69: 3 | K69: 2 | L69: =IF(INTRO!$E$38="Endemic", IF($H69>0, IF($H69=4,"Unknown", IF($H69=99,"Stopped", $D69)), 0),"Not required") -> 219359 | M69: =IF(INTRO!$E$40="Endemic", IF($I69>0, IF($I69=4,"Unknown",IF($I69=99,"Stopped", $D69)), 0),"Not required") -> 0 | N69: =IF(INTRO!$E$42="Endemic", IF(AND($J69>1,$J69<5), IF($J69=4, "Unknown", E69+F69), 0),"Not required") -> 85619 | O69: =IF(INTRO!$E$44="Endemic", IF(AND($K69>0,$K69<5), IF($K69=4,"Unknown", IF($K69=1, $F69*0.33, IF($K69=2, $F69*0.5+$G69*0.2, SUM(F69:G69)))), 0),"Not required") -> 55409 | P69: 0 | Q69: 0 | R69: 1 | S69: 0 | U69: T3 (ALB/MBD) | V69: MDA 1 | W69: T1 | X69: 46513 | Y69: Kilwa District Council | AE69: ='MDA3'!Q69 -> 0 | AF69: ='T1'!O69 -> 0 | AG69: =T3_R1!N69 -> 54456 | AI69: 54456 | AJ69: 1
A70: =IF(INTRO!$E$34<>0,INTRO!$E$34,"") -> Tanzania | B70: Lindi | C70: Lindi District Council (Mtama District Council) | D70: 208955.5807 | E70: 26955 | F70: 43558 | G70: 138442.5807 | H70: 1 | I70: 0 | J70: 3 | K70: 2 | L70: =IF(INTRO!$E$38="Endemic", IF($H70>0, IF($H70=4,"Unknown", IF($H70=99,"Stopped", $D70)), 0),"Not required") -> 208955.5807 | M70: =IF(INTRO!$E$40="Endemic", IF($I70>0, IF($I70=4,"Unknown",IF($I70=99,"Stopped", $D70)), 0),"Not required") -> 0 | N70: =IF(INTRO!$E$42="Endemic", IF(AND($J70>1,$J70<5), IF($J70=4, "Unknown", E70+F70), 0),"Not required") -> 70513 | O70: =IF(INTRO!$E$44="Endemic", IF(AND($K70>0,$K70<5), IF($K70=4,"Unknown", IF($K70=1, $F70*0.33, IF($K70=2, $F70*0.5+$G70*0.2, SUM(F70:G70)))), 0),"Not required") -> 49467.51614 | P70: 0 | Q70: 0 | R70: 1 | S70: 0 | U70: T3 (ALB/MBD) | V70: MDA 1 | W70: T1 | X70: 46514 | Y70: Mtama District Council (Lindi District Council) | AE70: ='MDA3'!Q70 -> 0 | AF70: ='T1'!O70 -> 0 | AG70: =T3_R1!N70 -> 42792 | AI70: 42792 | AJ70: 1
A71: =IF(INTRO!$E$34<>0,INTRO!$E$34,"") -> Tanzania | B71: Lindi | C71: Lindi Municipal Council | D71: 84856.77731 | E71: 10947 | F71: 16819 | G71: 57090.77731 | H71: 99 | I71: 0 | J71: 3 | K71: 2 | L71: =IF(INTRO!$E$38="Endemic", IF($H71>0, IF($H71=4,"Unknown", IF($H71=99,"Stopped", $D71)), 0),"Not required") -> Stopped | M71: =IF(INTRO!$E$40="Endemic", IF($I71>0, IF($I71=4,"Unknown",IF($I71=99,"Stopped", $D71)), 0),"Not required") -> 0 | N71: =IF(INTRO!$E$42="Endemic", IF(AND($J71>1,$J71<5), IF($J71=4, "Unknown", E71+F71), 0),"Not required") -> 27766 | O71: =IF(INTRO!$E$44="Endemic", IF(AND($K71>0,$K71<5), IF($K71=4,"Unknown", IF($K71=1, $F71*0.33, IF($K71=2, $F71*0.5+$G71*0.2, SUM(F71:G71)))), 0),"Not required") -> 19827.65546 | P71: 0 | Q71: 0 | R71: 1 | S71: 0 | U71: T3 (ALB/MBD) | V71: T1 | W71: T3 | X71: 46515 | Y71: Lindi Municipal Council | AE71: ='MDA3'!Q71 -> 0 | AF71: ='T1'!O71 -> 0 | AG71: =T3_R1!N71 -> 16374 | AI71: 16374 | AJ71: 1
A72: =IF(INTRO!$E$34<>0,INTRO!$E$34,"") -> Tanzania | B72: Lindi | C72: Liwale District Council | D72: 98353.5569 | E72: 12688 | F72: 24574 | G72: 61091.5569 | H72: 99 | I72: 0 | J72: 3 | K72: 2 | L72: =IF(INTRO!$E$38="Endemic", IF($H72>0, IF($H72=4,"Unknown", IF($H72=99,"Stopped", $D72)), 0),"Not required") -> Stopped | M72: =IF(INTRO!$E$40="Endemic", IF($I72>0, IF($I72=4,"Unknown",IF($I72=99,"Stopped", $D72)), 0),"Not required") -> 0 | N72: =IF(INTRO!$E$42="Endemic", IF(AND($J72>1,$J72<5), IF($J72=4, "Unknown", E72+F72), 0),"Not required") -> 37262 | O72: =IF(INTRO!$E$44="Endemic", IF(AND($K72>0,$K72<5), IF($K72=4,"Unknown", IF($K72=1, $F72*0.33, IF($K72=2, $F72*0.5+$G72*0.2, SUM(F72:G72)))), 0),"Not required") -> 24505.31138 | P72: 0 | Q72: 0 | R72: 1 | S72: 0 | U72: T3 (ALB/MBD) | V72: T1 | W72: T3 | X72: 46516 | Y72: Liwale District Council | AE72: ='MDA3'!Q72 -> 0 | AF72: ='T1'!O72 -> 0 | AG72: =T3_R1!N72 -> 22467 | AI72: 22467 | AJ72: 1
A73: =IF(INTRO!$E$34<>0,INTRO!$E$34,"") -> Tanzania | B73: Lindi | C73: Nachingwea District Council | D73: 192080.9137 | E73: 24778 | F73: 41540 | G73: 125762.9137 | H73: 99 | I73: 0 | J73: 3 | K73: 3 | L73: =IF(INTRO!$E$38="Endemic", IF($H73>0, IF($H73=4,"Unknown", IF($H73=99,"Stopped", $D73)), 0),"Not required") -> Stopped | M73: =IF(INTRO!$E$40="Endemic", IF($I73>0, IF($I73=4,"Unknown",IF($I73=99,"Stopped", $D73)), 0),"Not required") -> 0 | N73: =IF(INTRO!$E$42="Endemic", IF(AND($J73>1,$J73<5), IF($J73=4, "Unknown", E73+F73), 0),"Not required") -> 66318 | O73: =IF(INTRO!$E$44="Endemic", IF(AND($K73>0,$K73<5), IF($K73=4,"Unknown", IF($K73=1, $F73*0.33, IF($K73=2, $F73*0.5+$G73*0.2, SUM(F73:G73)))), 0),"Not required") -> 167302.9137 | P73: 0 | Q73: 0 | R73: 1 | S73: 1 | U73: T1 (PZQ+ALB/MBD) | V73: T1 | W73: T3 | X73: 46517 | Y73: Nachingwea District Council | AE73: ='MDA3'!Q73 -> 0 | AF73: ='T1'!O73 -> 39564 | AG73: =T3_R1!N73 -> 0 | AI73: 39564 | AJ73: 1
A74: =IF(INTRO!$E$34<>0,INTRO!$E$34,"") -> Tanzania | B74: Lindi | C74: Ruangwa District Council | D74: 141081.021 | E74: 18199 | F74: 29031 | G74: 93851.021 | H74: 99 | I74: 0 | J74: 3 | K74: 3 | L74: =IF(INTRO!$E$38="Endemic", IF($H74>0, IF($H74=4,"Unknown", IF($H74=99,"Stopped", $D74)), 0),"Not required") -> Stopped | M74: =IF(INTRO!$E$40="Endemic", IF($I74>0, IF($I74=4,"Unknown",IF($I74=99,"Stopped", $D74)), 0),"Not required") -> 0 | N74: =IF(INTRO!$E$42="Endemic", IF(AND($J74>1,$J74<5), IF($J74=4, "Unknown", E74+F74), 0),"Not required") -> 47230 | O74: =IF(INTRO!$E$44="Endemic", IF(AND($K74>0,$K74<5), IF($K74=4,"Unknown", IF($K74=1, $F74*0.33, IF($K74=2, $F74*0.5+$G74*0.2, SUM(F74:G74)))), 0),"Not required") -> 122882.021 | P74: 0 | Q74: 0 | R74: 1 | S74: 1 | U74: T1 (PZQ+ALB/MBD) | V74: T1 | W74: T3 | X74: 46518 | Y74: Ruangwa District Council | AE74: ='MDA3'!Q74 -> 0 | AF74: ='T1'!O74 -> 26416 | AG74: =T3_R1!N74 -> 0 | AI74: =AF74+AG74 -> 26416 | AJ74: =COUNTIF(AF74:AG74,">0") -> 1
A75: =IF(INTRO!$E$34<>0,INTRO!$E$34,"") -> Tanzania | B75: Manyara | C75: Babati District Council | D75: 402391.8161 | E75: 51909 | F75: 84279 | G75: 266203.8161 | H75: 99 | I75: 0 | J75: 3 | K75: 2 | L75: =IF(INTRO!$E$38="Endemic", IF($H75>0, IF($H75=4,"Unknown", IF($H75=99,"Stopped", $D75)), 0),"Not required") -> Stopped | M75: =IF(INTRO!$E$40="Endemic", IF($I75>0, IF($I75=4,"Unknown",IF($I75=99,"Stopped", $D75)), 0),"Not required") -> 0 | N75: =IF(INTRO!$E$42="Endemic", IF(AND($J75>1,$J75<5), IF($J75=4, "Unknown", E75+F75), 0),"Not required") -> 136188 | O75: =IF(INTRO!$E$44="Endemic", IF(AND($K75>0,$K75<5), IF($K75=4,"Unknown", IF($K75=1, $F75*0.33, IF($K75=2, $F75*0.5+$G75*0.2, SUM(F75:G75)))), 0),"Not required") -> 95380.26321 | P75: 0 | Q75: 0 | R75: 1 | S75: 0 | U75: T3 (ALB/MBD) | V75: T1 | W75: T3 | X75: 46519 | Y75: Babati District Council | AE75: ='MDA3'!Q75 -> 0 | AF75: ='T1'!O75 -> 0 | AG75: =T3_R1!N75 -> 82533 | AI75: 82533 | AJ75: 1
A76: =IF(INTRO!$E$34<>0,INTRO!$E$34,"") -> Tanzania | B76: Manyara | C76: Babati Town Council | D76: 119934.238 | E76: 15472 | F76: 24626 | G76: 79836.23799 | H76: 99 | I76: 0 | J76: 3 | K76: 2 | L76: =IF(INTRO!$E$38="Endemic", IF($H76>0, IF($H76=4,"Unknown", IF($H76=99,"Stopped", $D76)), 0),"Not required") -> Stopped | M76: =IF(INTRO!$E$40="Endemic", IF($I76>0, IF($I76=4,"Unknown",IF($I76=99,"Stopped", $D76)), 0),"Not required") -> 0 | N76: =IF(INTRO!$E$42="Endemic", IF(AND($J76>1,$J76<5), IF($J76=4, "Unknown", E76+F76), 0),"Not required") -> 40098 | O76: =IF(INTRO!$E$44="Endemic", IF(AND($K76>0,$K76<5), IF($K76=4,"Unknown", IF($K76=1, $F76*0.33, IF($K76=2, $F76*0.5+$G76*0.2, SUM(F76:G76)))), 0),"Not required") -> 28280.2476 | P76: 0 | Q76: 0 | R76: 1 | S76: 0 | U76: T3 (ALB/MBD) | V76: T1 | W76: T3 | X76: 46520 | Y76: Babati Town Council | AE76: ='MDA3'!Q76 -> 0 | AF76: ='T1'!O76 -> 0 | AG76: =T3_R1!N76 -> 23823 | AI76: 23823 | AJ76: 1
A77: =IF(INTRO!$E$34<>0,INTRO!$E$34,"") -> Tanzania | B77: Manyara | C77: Hanang District Council | D77: 355504.9067 | E77: 45860 | F77: 73713 | G77: 235931.9067 | H77: 99 | I77: 0 | J77: 3 | K77: 2 | L77: =IF(INTRO!$E$38="Endemic", IF($H77>0, IF($H77=4,"Unknown", IF($H77=99,"Stopped", $D77)), 0),"Not required") -> Stopped | M77: =IF(INTRO!$E$40="Endemic", IF($I77>0, IF($I77=4,"Unknown",IF($I77=99,"Stopped", $D77)), 0),"Not required") -> 0 | N77: =IF(INTRO!$E$42="Endemic", IF(AND($J77>1,$J77<5), IF($J77=4, "Unknown", E77+F77), 0),"Not required") -> 119573 | O77: =IF(INTRO!$E$44="Endemic", IF(AND($K77>0,$K77<5), IF($K77=4,"Unknown", IF($K77=1, $F77*0.33, IF($K77=2, $F77*0.5+$G77*0.2, SUM(F77:G77)))), 0),"Not required") -> 84042.88135 | P77: 0 | Q77: 0 | R77: 1 | S77: 0 | U77: T3 (ALB/MBD) | V77: T1 | W77: T3 | X77: 46521 | Y77: Hanang District Council | AE77: ='MDA3'!Q77 -> 0 | AF77: ='T1'!O77 -> 0 | AG77: =T3_R1!N77 -> 70798 | AI77: 70798 | AJ77: 1
A78: =IF(INTRO!$E$34<>0,INTRO!$E$34,"") -> Tanzania | B78: Manyara | C78: Kiteto District Council | D78: 315158.3749 | E78: 40655 | F78: 62322 | G78: 212181.3749 | H78: 99 | I78: 0 | J78: 3 | K78: 2 | L78: =IF(INTRO!$E$38="Endemic", IF($H78>0, IF($H78=4,"Unknown", IF($H78=99,"Stopped", $D78)), 0),"Not required") -> Stopped | M78: =IF(INTRO!$E$40="Endemic", IF($I78>0, IF($I78=4,"Unknown",IF($I78=99,"Stopped", $D78)), 0),"Not required") -> 0 | N78: =IF(INTRO!$E$42="Endemic", IF(AND($J78>1,$J78<5), IF($J78=4, "Unknown", E78+F78), 0),"Not required") -> 102977 | O78: =IF(INTRO!$E$44="Endemic", IF(AND($K78>0,$K78<5), IF($K78=4,"Unknown", IF($K78=1, $F78*0.33, IF($K78=2, $F78*0.5+$G78*0.2, SUM(F78:G78)))), 0),"Not required") -> 73597.27499 | P78: 0 | Q78: 0 | R78: 1 | S78: 0 | U78: T3 (ALB/MBD) | V78: T1 | W78: T3 | X78: 46522 | Y78: Kiteto District Council | AE78: ='MDA3'!Q78 -> 0 | AF78: ='T1'!O78 -> 0 | AG78: =T3_R1!N78 -> 56237 | AI78: 56237 | AJ78: 1
A79: =IF(INTRO!$E$34<>0,INTRO!$E$34,"") -> Tanzania | B79: Manyara | C79: Mbulu District Council | D79: 246311.8415 | E79: 31774 | F79: 50954 | G79: 163583.8415 | H79: 99 | I79: 0 | J79: 3 | K79: 2 | L79: =IF(INTRO!$E$38="Endemic", IF($H79>0, IF($H79=4,"Unknown", IF($H79=99,"Stopped", $D79)), 0),"Not required") -> Stopped | M79: =IF(INTRO!$E$40="Endemic", IF($I79>0, IF($I79=4,"Unknown",IF($I79=99,"Stopped", $D79)), 0),"Not required") -> 0 | N79: =IF(INTRO!$E$42="Endemic", IF(AND($J79>1,$J79<5), IF($J79=4, "Unknown", E79+F79), 0),"Not required") -> 82728 | O79: =IF(INTRO!$E$44="Endemic", IF(AND($K79>0,$K79<5), IF($K79=4,"Unknown", IF($K79=1, $F79*0.33, IF($K79=2, $F79*0.5+$G79*0.2, SUM(F79:G79)))), 0),"Not required") -> 58193.76831 | P79: 0 | Q79: 0 | R79: 1 | S79: 0 | U79: T3 (ALB/MBD) | V79: T1 | W79: T3 | X79: 46523 | Y79: Mbulu District Council | AE79: ='MDA3'!Q79 -> 0 | AF79: ='T1'!O79 -> 0 | AG79: =T3_R1!N79 -> 45208 | AI79: 45208 | AJ79: 1
A80: =IF(INTRO!$E$34<>0,INTRO!$E$34,"") -> Tanzania | B80: Manyara | C80: Mbulu Town Council | D80: 166240.3962 | E80: 21445 | F80: 34390 | G80: 110405.3962 | H80: 99 | I80: 0 | J80: 3 | K80: 2 | L80: =IF(INTRO!$E$38="Endemic", IF($H80>0, IF($H80=4,"Unknown", IF($H80=99,"Stopped", $D80)), 0),"Not required") -> Stopped | M80: =IF(INTRO!$E$40="Endemic", IF($I80>0, IF($I80=4,"Unknown",IF($I80=99,"Stopped", $D80)), 0),"Not required") -> 0 | N80: =IF(INTRO!$E$42="Endemic", IF(AND($J80>1,$J80<5), IF($J80=4, "Unknown", E80+F80), 0),"Not required") -> 55835 | O80: =IF(INTRO!$E$44="Endemic", IF(AND($K80>0,$K80<5), IF($K80=4,"Unknown", IF($K80=1, $F80*0.33, IF($K80=2, $F80*0.5+$G80*0.2, SUM(F80:G80)))), 0),"Not required") -> 39276.07925 | P80: 0 | Q80: 0 | R80: 1 | S80: 0 | U80: T3 (ALB/MBD) | V80: T1 | W80: T3 | X80: 46630 | Y80: Mbulu Town Council | AE80: ='MDA3'!Q80 -> 0 | AF80: ='T1'!O80 -> 0 | AG80: =T3_R1!N80 -> 30907 | AI80: 30907 | AJ80: 1
A81: =IF(INTRO!$E$34<>0,INTRO!$E$34,"") -> Tanzania | B81: Manyara | C81: Simanjiro District Council | D81: 230172.6653 | E81: 29692 | F81: 46441 | G81: 154039.6653 | H81: 99 | I81: 0 | J81: 3 | K81: 2 | L81: =IF(INTRO!$E$38="Endemic", IF($H81>0, IF($H81=4,"Unknown", IF($H81=99,"Stopped", $D81)), 0),"Not required") -> Stopped | M81: =IF(INTRO!$E$40="Endemic", IF($I81>0, IF($I81=4,"Unknown",IF($I81=99,"Stopped", $D81)), 0),"Not required") -> 0 | N81: =IF(INTRO!$E$42="Endemic", IF(AND($J81>1,$J81<5), IF($J81=4, "Unknown", E81+F81), 0),"Not required") -> 76133 | O81: =IF(INTRO!$E$44="Endemic", IF(AND($K81>0,$K81<5), IF($K81=4,"Unknown", IF($K81=1, $F81*0.33, IF($K81=2, $F81*0.5+$G81*0.2, SUM(F81:G81)))), 0),"Not required") -> 54028.43307 | P81: 0 | Q81: 0 | R81: 1 | S81: 0 | U81: T3 (ALB/MBD) | V81: T1 | W81: T3 | X81: 46524 | Y81: Simanjiro District Council | AE81: ='MDA3'!Q81 -> 0 | AF81: ='T1'!O81 -> 0 | AG81: =T3_R1!N81 -> 45161 | AI81: 45161 | AJ81: 1
A82: =IF(INTRO!$E$34<>0,INTRO!$E$34,"") -> Tanzania | B82: Mara | C82: Bunda District Council | D82: 269276.4879 | E82: 34737 | F82: 70753 | G82: 163786.4879 | H82: 0 | I82: 0 | J82: 3 | K82: 2 | L82: =IF(INTRO!$E$38="Endemic", IF($H82>0, IF($H82=4,"Unknown", IF($H82=99,"Stopped", $D82)), 0),"Not required") -> 0 | M82: =IF(INTRO!$E$40="Endemic", IF($I82>0, IF($I82=4,"Unknown",IF($I82=99,"Stopped", $D82)), 0),"Not required") -> 0 | N82: =IF(INTRO!$E$42="Endemic", IF(AND($J82>1,$J82<5), IF($J82=4, "Unknown", E82+F82), 0),"Not required") -> 105490 | O82: =IF(INTRO!$E$44="Endemic", IF(AND($K82>0,$K82<5), IF($K82=4,"Unknown", IF($K82=1, $F82*0.33, IF($K82=2, $F82*0.5+$G82*0.2, SUM(F82:G82)))), 0),"Not required") -> 68133.79757 | P82: 0 | Q82: 0 | R82: 0 | S82: 1 | V82: T1 | W82: T3 | X82: 46525 | Y82: Bunda District Council | AE82: ='MDA3'!Q82 -> 0 | AF82: ='T1'!O82 -> 0 | AG82: =T3_R1!N82 -> 0 | AI82: 0 | AJ82: 0
A83: =IF(INTRO!$E$34<>0,INTRO!$E$34,"") -> Tanzania | B83: Mara | C83: Bunda Town Council | D83: 138795.244 | E83: 17905 | F83: 50097 | G83: 70793.244 | H83: 0 | I83: 0 | J83: 3 | K83: 2 | L83: =IF(INTRO!$E$38="Endemic", IF($H83>0, IF($H83=4,"Unknown", IF($H83=99,"Stopped", $D83)), 0),"Not required") -> 0 | M83: =IF(INTRO!$E$40="Endemic", IF($I83>0, IF($I83=4,"Unknown",IF($I83=99,"Stopped", $D83)), 0),"Not required") -> 0 | N83: =IF(INTRO!$E$42="Endemic", IF(AND($J83>1,$J83<5), IF($J83=4, "Unknown", E83+F83), 0),"Not required") -> 68002 | O83: =IF(INTRO!$E$44="Endemic", IF(AND($K83>0,$K83<5), IF($K83=4,"Unknown", IF($K83=1, $F83*0.33, IF($K83=2, $F83*0.5+$G83*0.2, SUM(F83:G83)))), 0),"Not required") -> 39207.1488 | P83: 0 | Q83: 0 | R83: 0 | S83: 1 | V83: T1 | W83: T3 | X83: 46631 | Y83: Bunda Town Council | AE83: ='MDA3'!Q83 -> 0 | AF83: ='T1'!O83 -> 0 | AG83: =T3_R1!N83 -> 0 | AI83: 0 | AJ83: 0
A84: =IF(INTRO!$E$34<>0,INTRO!$E$34,"") -> Tanzania | B84: Mara | C84: Butiama District Council | D84: 258072.1046 | E84: 33291 | F84: 81236 | G84: 143545.1046 | H84: 0 | I84: 0 | J84: 3 | K84: 2 | L84: =IF(INTRO!$E$38="Endemic", IF($H84>0, IF($H84=4,"Unknown", IF($H84=99,"Stopped", $D84)), 0),"Not required") -> 0 | M84: =IF(INTRO!$E$40="Endemic", IF($I84>0, IF($I84=4,"Unknown",IF($I84=99,"Stopped", $D84)), 0),"Not required") -> 0 | N84: =IF(INTRO!$E$42="Endemic", IF(AND($J84>1,$J84<5), IF($J84=4, "Unknown", E84+F84), 0),"Not required") -> 114527 | O84: =IF(INTRO!$E$44="Endemic", IF(AND($K84>0,$K84<5), IF($K84=4,"Unknown", IF($K84=1, $F84*0.33, IF($K84=2, $F84*0.5+$G84*0.2, SUM(F84:G84)))), 0),"Not required") -> 69327.02091 | P84: 0 | Q84: 0 | R84: 0 | S84: 1 | V84: T1 | W84: T3 | X84: 46526 | Y84: Butiama District Council | AE84: ='MDA3'!Q84 -> 0 | AF84: ='T1'!O84 -> 0 | AG84: =T3_R1!N84 -> 0 | AI84: 0 | AJ84: 0
A85: =IF(INTRO!$E$34<>0,INTRO!$E$34,"") -> Tanzania | B85: Mara | C85: Musoma District Council | D85: 253552.9424 | E85: 32708 | F85: 72259 | G85: 148585.9424 | H85: 0 | I85: 0 | J85: 3 | K85: 2 | L85: =IF(INTRO!$E$38="Endemic", IF($H85>0, IF($H85=4,"Unknown", IF($H85=99,"Stopped", $D85)), 0),"Not required") -> 0 | M85: =IF(INTRO!$E$40="Endemic", IF($I85>0, IF($I85=4,"Unknown",IF($I85=99,"Stopped", $D85)), 0),"Not required") -> 0 | N85: =IF(INTRO!$E$42="Endemic", IF(AND($J85>1,$J85<5), IF($J85=4, "Unknown", E85+F85), 0),"Not required") -> 104967 | O85: =IF(INTRO!$E$44="Endemic", IF(AND($K85>0,$K85<5), IF($K85=4,"Unknown", IF($K85=1, $F85*0.33, IF($K85=2, $F85*0.5+$G85*0.2, SUM(F85:G85)))), 0),"Not required") -> 65846.68848 | P85: 0 | Q85: 0 | R85: 0 | S85: 1 | V85: T1 | W85: T3 | X85: 46527 | Y85: Musoma District Council | AE85: ='MDA3'!Q85 -> 0 | AF85: ='T1'!O85 -> 0 | AG85: =T3_R1!N85 -> 0 | AI85: 0 | AJ85: 0
A86: =IF(INTRO!$E$34<>0,INTRO!$E$34,"") -> Tanzania | B86: Mara | C86: Musoma Municipal Council | D86: 163598.6188 | E86: 21104 | F86: 44071 | G86: 98423.61882 | H86: 0 | I86: 0 | J86: 3 | K86: 2 | L86: =IF(INTRO!$E$38="Endemic", IF($H86>0, IF($H86=4,"Unknown", IF($H86=99,"Stopped", $D86)), 0),"Not required") -> 0 | M86: =IF(INTRO!$E$40="Endemic", IF($I86>0, IF($I86=4,"Unknown",IF($I86=99,"Stopped", $D86)), 0),"Not required") -> 0 | N86: =IF(INTRO!$E$42="Endemic", IF(AND($J86>1,$J86<5), IF($J86=4, "Unknown", E86+F86), 0),"Not required") -> 65175 | O86: =IF(INTRO!$E$44="Endemic", IF(AND($K86>0,$K86<5), IF($K86=4,"Unknown", IF($K86=1, $F86*0.33, IF($K86=2, $F86*0.5+$G86*0.2, SUM(F86:G86)))), 0),"Not required") -> 41720.22376 | P86: 0 | Q86: 0 | R86: 0 | S86: 1 | V86: T1 | W86: T3 | X86: 46528 | Y86: Musoma Municipal Council | AE86: ='MDA3'!Q86 -> 0 | AF86: ='T1'!O86 -> 0 | AG86: =T3_R1!N86 -> 0 | AI86: 0 | AJ86: 0
A87: =IF(INTRO!$E$34<>0,INTRO!$E$34,"") -> Tanzania | B87: Mara | C87: Rorya District Council | D87: 323037.7721 | E87: 41672 | F87: 102884 | G87: 178481.7721 | H87: 0 | I87: 0 | J87: 3 | K87: 2 | L87: =IF(INTRO!$E$38="Endemic", IF($H87>0, IF($H87=4,"Unknown", IF($H87=99,"Stopped", $D87)), 0),"Not required") -> 0 | M87: =IF(INTRO!$E$40="Endemic", IF($I87>0, IF($I87=4,"Unknown",IF($I87=99,"Stopped", $D87)), 0),"Not required") -> 0 | N87: =IF(INTRO!$E$42="Endemic", IF(AND($J87>1,$J87<5), IF($J87=4, "Unknown", E87+F87), 0),"Not required") -> 144556 | O87: =IF(INTRO!$E$44="Endemic", IF(AND($K87>0,$K87<5), IF($K87=4,"Unknown", IF($K87=1, $F87*0.33, IF($K87=2, $F87*0.5+$G87*0.2, SUM(F87:G87)))), 0),"Not required") -> 87138.35443 | P87: 0 | Q87: 0 | R87: 0 | S87: 1 | V87: T1 | W87: T3 | X87: 46529 | Y87: Rorya District Council | AE87: ='MDA3'!Q87 -> 0 | AF87: ='T1'!O87 -> 0 | AG87: =T3_R1!N87 -> 0 | AI87: 0 | AJ87: 0
A88: =IF(INTRO!$E$34<>0,INTRO!$E$34,"") -> Tanzania | B88: Mara | C88: Serengeti District Council | D88: 303768.9993 | E88: 39186 | F88: 84833 | G88: 179749.9993 | H88: 0 | I88: 0 | J88: 3 | K88: 2 | L88: =IF(INTRO!$E$38="Endemic", IF($H88>0, IF($H88=4,"Unknown", IF($H88=99,"Stopped", $D88)), 0),"Not required") -> 0 | M88: =IF(INTRO!$E$40="Endemic", IF($I88>0, IF($I88=4,"Unknown",IF($I88=99,"Stopped", $D88)), 0),"Not required") -> 0 | N88: =IF(INTRO!$E$42="Endemic", IF(AND($J88>1,$J88<5), IF($J88=4, "Unknown", E88+F88), 0),"Not required") -> 124019 | O88: =IF(INTRO!$E$44="Endemic", IF(AND($K88>0,$K88<5), IF($K88=4,"Unknown", IF($K88=1, $F88*0.33, IF($K88=2, $F88*0.5+$G88*0.2, SUM(F88:G88)))), 0),"Not required") -> 78366.49986 | P88: 0 | Q88: 0 | R88: 0 | S88: 1 | V88: T1 | W88: T3 | X88: 46530 | Y88: Serengeti District Council | AE88: ='MDA3'!Q88 -> 0 | AF88: ='T1'!O88 -> 0 | AG88: =T3_R1!N88 -> 0 | AI88: 0 | AJ88: 0
A89: =IF(INTRO!$E$34<>0,INTRO!$E$34,"") -> Tanzania | B89: Mara | C89: Tarime District Council | D89: 318671.7213 | E89: 41109 | F89: 105349 | G89: 172213.7213 | H89: 0 | I89: 0 | J89: 3 | K89: 2 | L89: =IF(INTRO!$E$38="Endemic", IF($H89>0, IF($H89=4,"Unknown", IF($H89=99,"Stopped", $D89)), 0),"Not required") -> 0 | M89: =IF(INTRO!$E$40="Endemic", IF($I89>0, IF($I89=4,"Unknown",IF($I89=99,"Stopped", $D89)), 0),"Not required") -> 0 | N89: =IF(INTRO!$E$42="Endemic", IF(AND($J89>1,$J89<5), IF($J89=4, "Unknown", E89+F89), 0),"Not required") -> 146458 | O89: =IF(INTRO!$E$44="Endemic", IF(AND($K89>0,$K89<5), IF($K89=4,"Unknown", IF($K89=1, $F89*0.33, IF($K89=2, $F89*0.5+$G89*0.2, SUM(F89:G89)))), 0),"Not required") -> 87117.24427 | P89: 0 | Q89: 0 | R89: 0 | S89: 1 | V89: T1 | W89: T3 | X89: 46531 | Y89: Tarime District Council | AE89: ='MDA3'!Q89 -> 0 | AF89: ='T1'!O89 -> 0 | AG89: =T3_R1!N89 -> 0 | AI89: 0 | AJ89: 0
A90: =IF(INTRO!$E$34<>0,INTRO!$E$34,"") -> Tanzania | B90: Mara | C90: Tarime Town Council | D90: 95039.56829 | E90: 12260 | F90: 34082 | G90: 48697.56829 | H90: 0 | I90: 0 | J90: 3 | K90: 2 | L90: =IF(INTRO!$E$38="Endemic", IF($H90>0, IF($H90=4,"Unknown", IF($H90=99,"Stopped", $D90)), 0),"Not required") -> 0 | M90: =IF(INTRO!$E$40="Endemic", IF($I90>0, IF($I90=4,"Unknown",IF($I90=99,"Stopped", $D90)), 0),"Not required") -> 0 | N90: =IF(INTRO!$E$42="Endemic", IF(AND($J90>1,$J90<5), IF($J90=4, "Unknown", E90+F90), 0),"Not required") -> 46342 | O90: =IF(INTRO!$E$44="Endemic", IF(AND($K90>0,$K90<5), IF($K90=4,"Unknown", IF($K90=1, $F90*0.33, IF($K90=2, $F90*0.5+$G90*0.2, SUM(F90:G90)))), 0),"Not required") -> 26780.51366 | P90: 0 | Q90: 0 | R90: 0 | S90: 1 | V90: T1 | W90: T3 | X90: 46532 | Y90: Tarime Town Council | AE90: ='MDA3'!Q90 -> 0 | AF90: ='T1'!O90 -> 0 | AG90: =T3_R1!N90 -> 0 | AI90: 0 | AJ90: 0
A91: =IF(INTRO!$E$34<>0,INTRO!$E$34,"") -> Tanzania | B91: Mbeya | C91: Busokelo District Council | D91: 117853.4261 | E91: 15203 | F91: 23641 | G91: 79009.42605 | H91: 99 | I91: 1 | J91: 3 | K91: 2 | L91: =IF(INTRO!$E$38="Endemic", IF($H91>0, IF($H91=4,"Unknown", IF($H91=99,"Stopped", $D91)), 0),"Not required") -> Stopped | M91: =IF(INTRO!$E$40="Endemic", IF($I91>0, IF($I91=4,"Unknown",IF($I91=99,"Stopped", $D91)), 0),"Not required") -> 117853.4261 | N91: =IF(INTRO!$E$42="Endemic", IF(AND($J91>1,$J91<5), IF($J91=4, "Unknown", E91+F91), 0),"Not required") -> 38844 | O91: =IF(INTRO!$E$44="Endemic", IF(AND($K91>0,$K91<5), IF($K91=4,"Unknown", IF($K91=1, $F91*0.33, IF($K91=2, $F91*0.5+$G91*0.2, SUM(F91:G91)))), 0),"Not required") -> 27622.38521 | P91: 0 | Q91: 1 | R91: 1 | S91: 1 | U91: T1 (PZQ+ALB/MBD) | V91: MDA 1 | W91: T1 | X91: 46533 | Y91: Busokelo District Council | AE91: ='MDA3'!Q91 -> 0 | AF91: ='T1'!O91 -> 23290 | AG91: =T3_R1!N91 -> 0 | AI91: 23290 | AJ91: 1
A92: =IF(INTRO!$E$34<>0,INTRO!$E$34,"") -> Tanzania | B92: Mbeya | C92: Chunya District Council | D92: 191781.191 | E92: 24740 | F92: 42075 | G92: 124966.191 | H92: 99 | I92: 0 | J92: 3 | K92: 2 | L92: =IF(INTRO!$E$38="Endemic", IF($H92>0, IF($H92=4,"Unknown", IF($H92=99,"Stopped", $D92)), 0),"Not required") -> Stopped | M92: =IF(INTRO!$E$40="Endemic", IF($I92>0, IF($I92=4,"Unknown",IF($I92=99,"Stopped", $D92)), 0),"Not required") -> 0 | N92: =IF(INTRO!$E$42="Endemic", IF(AND($J92>1,$J92<5), IF($J92=4, "Unknown", E92+F92), 0),"Not required") -> 66815 | O92: =IF(INTRO!$E$44="Endemic", IF(AND($K92>0,$K92<5), IF($K92=4,"Unknown", IF($K92=1, $F92*0.33, IF($K92=2, $F92*0.5+$G92*0.2, SUM(F92:G92)))), 0),"Not required") -> 46030.73821 | P92: 0 | Q92: 0 | R92: 1 | S92: 1 | U92: T1 (PZQ+ALB/MBD) | V92: T1 | W92: T3 | X92: 46534 | Y92: Chunya District Council | AE92: ='MDA3'!Q92 -> 0 | AF92: ='T1'!O92 -> 40993 | AG92: =T3_R1!N92 -> 0 | AI92: 40993 | AJ92: 1
A93: =IF(INTRO!$E$34<>0,INTRO!$E$34,"") -> Tanzania | B93: Mbeya | C93: Kyela District Council | D93: 270925.5053 | E93: 34949 | F93: 60119 | G93: 175857.5053 | H93: 99 | I93: 1 | J93: 3 | K93: 3 | L93: =IF(INTRO!$E$38="Endemic", IF($H93>0, IF($H93=4,"Unknown", IF($H93=99,"Stopped", $D93)), 0),"Not required") -> Stopped | M93: =IF(INTRO!$E$40="Endemic", IF($I93>0, IF($I93=4,"Unknown",IF($I93=99,"Stopped", $D93)), 0),"Not required") -> 270925.5053 | N93: =IF(INTRO!$E$42="Endemic", IF(AND($J93>1,$J93<5), IF($J93=4, "Unknown", E93+F93), 0),"Not required") -> 95068 | O93: =IF(INTRO!$E$44="Endemic", IF(AND($K93>0,$K93<5), IF($K93=4,"Unknown", IF($K93=1, $F93*0.33, IF($K93=2, $F93*0.5+$G93*0.2, SUM(F93:G93)))), 0),"Not required") -> 235976.5053 | P93: 0 | Q93: 1 | R93: 1 | S93: 1 | U93: T1 (PZQ+ALB/MBD) | V93: MDA 1 | W93: T1 | X93: 46536 | Y93: Kyela District Council | AE93: ='MDA3'!Q93 -> 0 | AF93: ='T1'!O93 -> 58622 | AG93: =T3_R1!N93 -> 0 | AI93: 58622 | AJ93: 1
A94: =IF(INTRO!$E$34<>0,INTRO!$E$34,"") -> Tanzania | B94: Mbeya | C94: Mbarali District Council | D94: 367592.0189 | E94: 47419 | F94: 76803 | G94: 243370.0189 | H94: 99 | I94: 0 | J94: 3 | K94: 2 | L94: =IF(INTRO!$E$38="Endemic", IF($H94>0, IF($H94=4,"Unknown", IF($H94=99,"Stopped", $D94)), 0),"Not required") -> Stopped | M94: =IF(INTRO!$E$40="Endemic", IF($I94>0, IF($I94=4,"Unknown",IF($I94=99,"Stopped", $D94)), 0),"Not required") -> 0 | N94: =IF(INTRO!$E$42="Endemic", IF(AND($J94>1,$J94<5), IF($J94=4, "Unknown", E94+F94), 0),"Not required") -> 124222 | O94: =IF(INTRO!$E$44="Endemic", IF(AND($K94>0,$K94<5), IF($K94=4,"Unknown", IF($K94=1, $F94*0.33, IF($K94=2, $F94*0.5+$G94*0.2, SUM(F94:G94)))), 0),"Not required") -> 87075.50378 | P94: 0 | Q94: 0 | R94: 1 | S94: 1 | U94: T1 (PZQ+ALB/MBD) | V94: T1 | W94: T3 | X94: 46537 | Y94: Mbarali District Council | AE94: ='MDA3'!Q94 -> 0 | AF94: ='T1'!O94 -> 74681 | AG94: =T3_R1!N94 -> 0 | AI94: 74681 | AJ94: 1
A95: =IF(INTRO!$E$34<>0,INTRO!$E$34,"") -> Tanzania | B95: Mbeya | C95: Mbeya City Council | D95: 471273.1746 | E95: 60794 | F95: 95895 | G95: 314584.1746 | H95: 99 | I95: 0 | J95: 3 | K95: 2 | L95: =IF(INTRO!$E$38="Endemic", IF($H95>0, IF($H95=4,"Unknown", IF($H95=99,"Stopped", $D95)), 0),"Not required") -> Stopped | M95: =IF(INTRO!$E$40="Endemic", IF($I95>0, IF($I95=4,"Unknown",IF($I95=99,"Stopped", $D95)), 0),"Not required") -> 0 | N95: =IF(INTRO!$E$42="Endemic", IF(AND($J95>1,$J95<5), IF($J95=4, "Unknown", E95+F95), 0),"Not required") -> 156689 | O95: =IF(INTRO!$E$44="Endemic", IF(AND($K95>0,$K95<5), IF($K95=4,"Unknown", IF($K95=1, $F95*0.33, IF($K95=2, $F95*0.5+$G95*0.2, SUM(F95:G95)))), 0),"Not required") -> 110864.3349 | P95: 0 | Q95: 0 | R95: 1 | S95: 1 | U95: T1 (PZQ+ALB/MBD) | V95: T1 | W95: T3 | X95: 46538 | Y95: Mbeya City Council | AE95: ='MDA3'!Q95 -> 0 | AF95: ='T1'!O95 -> 92059 | AG95: =T3_R1!N95 -> 0 | AI95: 92059 | AJ95: 1
A96: =IF(INTRO!$E$34<>0,INTRO!$E$34,"") -> Tanzania | B96: Mbeya | C96: Mbeya District Council | D96: 373468.0029 | E96: 48177 | F96: 78658 | G96: 246633.0029 | H96: 99 | I96: 0 | J96: 3 | K96: 2 | L96: =IF(INTRO!$E$38="Endemic", IF($H96>0, IF($H96=4,"Unknown", IF($H96=99,"Stopped", $D96)), 0),"Not required") -> Stopped | M96: =IF(INTRO!$E$40="Endemic", IF($I96>0, IF($I96=4,"Unknown",IF($I96=99,"Stopped", $D96)), 0),"Not required") -> 0 | N96: =IF(INTRO!$E$42="Endemic", IF(AND($J96>1,$J96<5), IF($J96=4, "Unknown", E96+F96), 0),"Not required") -> 126835 | O96: =IF(INTRO!$E$44="Endemic", IF(AND($K96>0,$K96<5), IF($K96=4,"Unknown", IF($K96=1, $F96*0.33, IF($K96=2, $F96*0.5+$G96*0.2, SUM(F96:G96)))), 0),"Not required") -> 88655.60058 | P96: 0 | Q96: 0 | R96: 1 | S96: 1 | U96: T1 (PZQ+ALB/MBD) | V96: T1 | W96: T3 | X96: 46539 | Y96: Mbeya District Council | AE96: ='MDA3'!Q96 -> 0 | AF96: ='T1'!O96 -> 77621 | AG96: =T3_R1!N96 -> 0 | AI96: 77621 | AJ96: 1
A97: =IF(INTRO!$E$34<>0,INTRO!$E$34,"") -> Tanzania | B97: Mbeya | C97: Rungwe District Council | D97: 297004.3666 | E97: 38314 | F97: 61502 | G97: 197188.3666 | H97: 99 | I97: 1 | J97: 3 | K97: 2 | L97: =IF(INTRO!$E$38="Endemic", IF($H97>0, IF($H97=4,"Unknown", IF($H97=99,"Stopped", $D97)), 0),"Not required") -> Stopped | M97: =IF(INTRO!$E$40="Endemic", IF($I97>0, IF($I97=4,"Unknown",IF($I97=99,"Stopped", $D97)), 0),"Not required") -> 297004.3666 | N97: =IF(INTRO!$E$42="Endemic", IF(AND($J97>1,$J97<5), IF($J97=4, "Unknown", E97+F97), 0),"Not required") -> 99816 | O97: =IF(INTRO!$E$44="Endemic", IF(AND($K97>0,$K97<5), IF($K97=4,"Unknown", IF($K97=1, $F97*0.33, IF($K97=2, $F97*0.5+$G97*0.2, SUM(F97:G97)))), 0),"Not required") -> 70188.67332 | P97: 0 | Q97: 1 | R97: 1 | S97: 1 | U97: T1 (PZQ+ALB/MBD) | V97: MDA 1 | W97: T1 | X97: 46542 | Y97: Rungwe District Council | AE97: ='MDA3'!Q97 -> 0 | AF97: ='T1'!O97 -> 60702 | AG97: =T3_R1!N97 -> 0 | AI97: 60702 | AJ97: 1
A98: =IF(INTRO!$E$34<>0,INTRO!$E$34,"") -> Tanzania | B98: Morogoro | C98: Gairo District Council | D98: 233800.0159 | E98: 30160 | F98: 49761 | G98: 153879.0159 | H98: 99 | I98: 1 | J98: 3 | K98: 2 | L98: =IF(INTRO!$E$38="Endemic", IF($H98>0, IF($H98=4,"Unknown", IF($H98=99,"Stopped", $D98)), 0),"Not required") -> Stopped | M98: =IF(INTRO!$E$40="Endemic", IF($I98>0, IF($I98=4,"Unknown",IF($I98=99,"Stopped", $D98)), 0),"Not required") -> 233800.0159 | N98: =IF(INTRO!$E$42="Endemic", IF(AND($J98>1,$J98<5), IF($J98=4, "Unknown", E98+F98), 0),"Not required") -> 79921 | O98: =IF(INTRO!$E$44="Endemic", IF(AND($K98>0,$K98<5), IF($K98=4,"Unknown", IF($K98=1, $F98*0.33, IF($K98=2, $F98*0.5+$G98*0.2, SUM(F98:G98)))), 0),"Not required") -> 55656.30318 | P98: 0 | Q98: 1 | R98: 1 | S98: 1 | U98: T1 (PZQ+ALB/MBD) | V98: MDA 1 | W98: T1 | X98: 46544 | Y98: Gairo District Council | AE98: ='MDA3'!Q98 -> 0 | AF98: ='T1'!O98 -> 45342 | AG98: =T3_R1!N98 -> 0 | AI98: 45342 | AJ98: 1
A99: =IF(INTRO!$E$34<>0,INTRO!$E$34,"") -> Tanzania | B99: Morogoro | C99: Ifakara Town Council | D99: 137578 | E99: 17748 | F99: 26429 | G99: 93401 | H99: 99 | I99: 1 | J99: 3 | K99: 2 | L99: =IF(INTRO!$E$38="Endemic", IF($H99>0, IF($H99=4,"Unknown", IF($H99=99,"Stopped", $D99)), 0),"Not required") -> Stopped | M99: =IF(INTRO!$E$40="Endemic", IF($I99>0, IF($I99=4,"Unknown",IF($I99=99,"Stopped", $D99)), 0),"Not required") -> 137578 | N99: =IF(INTRO!$E$42="Endemic", IF(AND($J99>1,$J99<5), IF($J99=4, "Unknown", E99+F99), 0),"Not required") -> 44177 | O99: =IF(INTRO!$E$44="Endemic", IF(AND($K99>0,$K99<5), IF($K99=4,"Unknown", IF($K99=1, $F99*0.33, IF($K99=2, $F99*0.5+$G99*0.2, SUM(F99:G99)))), 0),"Not required") -> 31894.7 | P99: 0 | Q99: 2 | R99: 1 | S99: 1 | T99: MDA3 (IVM) | U99: T1 (PZQ+ALB/MBD) | V99: MDA 1 | W99: T1 | X99: 46632 | Y99: Ifakara Town Council | AE99: ='MDA3'!Q99 -> 119560 | AF99: ='T1'!O99 -> 24164 | AG99: =T3_R1!N99 -> 0 | AI99: 24164 | AJ99: 1
A100: =IF(INTRO!$E$34<>0,INTRO!$E$34,"") -> Tanzania | B100: Morogoro | C100: Kilombero District Council (Mlimba District Council) | D100: 374778 | E100: 48346 | F100: 81523 | G100: 244909 | H100: 99 | I100: 1 | J100: 3 | K100: 2 | L100: =IF(INTRO!$E$38="Endemic", IF($H100>0, IF($H100=4,"Unknown", IF($H100=99,"Stopped", $D100)), 0),"Not required") -> Stopped | M100: =IF(INTRO!$E$40="Endemic", IF($I100>0, IF($I100=4,"Unknown",IF($I100=99,"Stopped", $D100)), 0),"Not required") -> 374778 | N100: =IF(INTRO!$E$42="Endemic", IF(AND($J100>1,$J100<5), IF($J100=4, "Unknown", E100+F100), 0),"Not required") -> 129869 | O100: =IF(INTRO!$E$44="Endemic", IF(AND($K100>0,$K100<5), IF($K100=4,"Unknown", IF($K100=1, $F100*0.33, IF($K100=2, $F100*0.5+$G100*0.2, SUM(F100:G100)))), 0),"Not required") -> 89743.3 | P100: 0 | Q100: 2 | R100: 1 | S100: 1 | T100: MDA3 (IVM) | U100: T1 (PZQ+ALB/MBD) | V100: MDA 1 | W100: T1 | X100: 46545 | Y100: Kilombero District Council | AE100: ='MDA3'!Q100 -> 326806 | AF100: ='T1'!O100 -> 79882 | AG100: =T3_R1!N100 -> 0 | AI100: 79882 | AJ100: 1
A101: =IF(INTRO!$E$34<>0,INTRO!$E$34,"") -> Tanzania | B101: Morogoro | C101: Kilosa District Council | D101: 530776.3876 | E101: 68470 | F101: 108984 | G101: 353322.3876 | H101: 99 | I101: 1 | J101: 3 | K101: 2 | L101: =IF(INTRO!$E$38="Endemic", IF($H101>0, IF($H101=4,"Unknown", IF($H101=99,"Stopped", $D101)), 0),"Not required") -> Stopped | M101: =IF(INTRO!$E$40="Endemic", IF($I101>0, IF($I101=4,"Unknown",IF($I101=99,"Stopped", $D101)), 0),"Not required") -> 530776.3876 | N101: =IF(INTRO!$E$42="Endemic", IF(AND($J101>1,$J101<5), IF($J101=4, "Unknown", E101+F101), 0),"Not required") -> 177454 | O101: =IF(INTRO!$E$44="Endemic", IF(AND($K101>0,$K101<5), IF($K101=4,"Unknown", IF($K101=1, $F101*0.33, IF($K101=2, $F101*0.5+$G101*0.2, SUM(F101:G101)))), 0),"Not required") -> 125156.4775 | P101: 0 | Q101: 1 | R101: 1 | S101: 1 | U101: T1 (PZQ+ALB/MBD) | V101: MDA 1 | W101: T1 | X101: 46546 | Y101: Kilosa District Council | AE101: ='MDA3'!Q101 -> 0 | AF101: ='T1'!O101 -> 104422 | AG101: =T3_R1!N101 -> 0 | AI101: 104422 | AJ101: 1
A102: =IF(INTRO!$E$34<>0,INTRO!$E$34,"") -> Tanzania | B102: Morogoro | C102: Malinyi District Council | D102: 159841 | E102: 20619 | F102: 32774 | G102: 106448 | H102: 99 | I102: 1 | J102: 3 | K102: 2 | L102: =IF(INTRO!$E$38="Endemic", IF($H102>0, IF($H102=4,"Unknown", IF($H102=99,"Stopped", $D102)), 0),"Not required") -> Stopped | M102: =IF(INTRO!$E$40="Endemic", IF($I102>0, IF($I102=4,"Unknown",IF($I102=99,"Stopped", $D102)), 0),"Not required") -> 159841 | N102: =IF(INTRO!$E$42="Endemic", IF(AND($J102>1,$J102<5), IF($J102=4, "Unknown", E102+F102), 0),"Not required") -> 53393 | O102: =IF(INTRO!$E$44="Endemic", IF(AND($K102>0,$K102<5), IF($K102=4,"Unknown", IF($K102=1, $F102*0.33, IF($K102=2, $F102*0.5+$G102*0.2, SUM(F102:G102)))), 0),"Not required") -> 37676.6 | P102: 0 | Q102: 2 | R102: 1 | S102: 1 | T102: MDA3 (IVM) | U102: T1 (PZQ+ALB/MBD) | V102: MDA 1 | W102: T1 | X102: 46633 | Y102: Malinyi District Council | AE102: ='MDA3'!Q102 -> 136906 | AF102: ='T1'!O102 -> 30863 | AG102: =T3_R1!N102 -> 0 | AI102: 30863 | AJ102: 1
A103: =IF(INTRO!$E$34<>0,INTRO!$E$34,"") -> Tanzania | B103: Morogoro | C103: Morogoro District Council | D103: 346743.2319 | E103: 44730 | F103: 81495 | G103: 220518.2319 | H103: 99 | I103: 1 | J103: 3 | K103: 2 | L103: =IF(INTRO!$E$38="Endemic", IF($H103>0, IF($H103=4,"Unknown", IF($H103=99,"Stopped", $D103)), 0),"Not required") -> Stopped | M103: =IF(INTRO!$E$40="Endemic", IF($I103>0, IF($I103=4,"Unknown",IF($I103=99,"Stopped", $D103)), 0),"Not required") -> 346743.2319 | N103: =IF(INTRO!$E$42="Endemic", IF(AND($J103>1,$J103<5), IF($J103=4, "Unknown", E103+F103), 0),"Not required") -> 126225 | O103: =IF(INTRO!$E$44="Endemic", IF(AND($K103>0,$K103<5), IF($K103=4,"Unknown", IF($K103=1, $F103*0.33, IF($K103=2, $F103*0.5+$G103*0.2, SUM(F103:G103)))), 0),"Not required") -> 84851.14638 | P103: 0 | Q103: 1 | R103: 1 | S103: 1 | U103: T1 (PZQ+ALB/MBD) | V103: MDA 1 | W103: T1 | X103: 46547 | Y103: Morogoro District Council | AE103: ='MDA3'!Q103 -> 0 | AF103: ='T1'!O103 -> 77353 | AG103: =T3_R1!N103 -> 0 | AI103: 77353 | AJ103: 1
A104: =IF(INTRO!$E$34<>0,INTRO!$E$34,"") -> Tanzania | B104: Morogoro | C104: Morogoro Municipal Council | D104: 382618.7528 | E104: 49358 | F104: 85142 | G104: 248118.7528 | H104: 99 | I104: 0 | J104: 3 | K104: 2 | L104: =IF(INTRO!$E$38="Endemic", IF($H104>0, IF($H104=4,"Unknown", IF($H104=99,"Stopped", $D104)), 0),"Not required") -> Stopped | M104: =IF(INTRO!$E$40="Endemic", IF($I104>0, IF($I104=4,"Unknown",IF($I104=99,"Stopped", $D104)), 0),"Not required") -> 0 | N104: =IF(INTRO!$E$42="Endemic", IF(AND($J104>1,$J104<5), IF($J104=4, "Unknown", E104+F104), 0),"Not required") -> 134500 | O104: =IF(INTRO!$E$44="Endemic", IF(AND($K104>0,$K104<5), IF($K104=4,"Unknown", IF($K104=1, $F104*0.33, IF($K104=2, $F104*0.5+$G104*0.2, SUM(F104:G104)))), 0),"Not required") -> 92194.75057 | P104: 0 | Q104: 0 | R104: 1 | S104: 1 | U104: T1 (PZQ+ALB/MBD) | V104: T1 | W104: T3 | X104: 46548 | Y104: Morogoro Municipal Council | AE104: ='MDA3'!Q104 -> 0 | AF104: ='T1'!O104 -> 72964 | AG104: =T3_R1!N104 -> 0 | AI104: 72964 | AJ104: 1
A105: =IF(INTRO!$E$34<>0,INTRO!$E$34,"") -> Tanzania | B105: Morogoro | C105: Mvomero District Council | D105: 378070.7122 | E105: 48771 | F105: 85290 | G105: 244009.7122 | H105: 99 | I105: 1 | J105: 3 | K105: 2 | L105: =IF(INTRO!$E$38="Endemic", IF($H105>0, IF($H105=4,"Unknown", IF($H105=99,"Stopped", $D105)), 0),"Not required") -> Stopped | M105: =IF(INTRO!$E$40="Endemic", IF($I105>0, IF($I105=4,"Unknown",IF($I105=99,"Stopped", $D105)), 0),"Not required") -> 378070.7122 | N105: =IF(INTRO!$E$42="Endemic", IF(AND($J105>1,$J105<5), IF($J105=4, "Unknown", E105+F105), 0),"Not required") -> 134061 | O105: =IF(INTRO!$E$44="Endemic", IF(AND($K105>0,$K105<5), IF($K105=4,"Unknown", IF($K105=1, $F105*0.33, IF($K105=2, $F105*0.5+$G105*0.2, SUM(F105:G105)))), 0),"Not required") -> 91446.94244 | P105: 0 | Q105: 1 | R105: 1 | S105: 1 | U105: T1 (PZQ+ALB/MBD) | V105: MDA 1 | W105: T1 | X105: 46549 | Y105: Mvomero District Council | AE105: ='MDA3'!Q105 -> 0 | AF105: ='T1'!O105 -> 77679 | AG105: =T3_R1!N105 -> 0 | AI105: 77679 | AJ105: 1
A106: =IF(INTRO!$E$34<>0,INTRO!$E$34,"") -> Tanzania | B106: Morogoro | C106: Ulanga District Council | D106: 208427 | E106: 26887 | F106: 52569 | G106: 128971 | H106: 99 | I106: 1 | J106: 3 | K106: 2 | L106: =IF(INTRO!$E$38="Endemic", IF($H106>0, IF($H106=4,"Unknown", IF($H106=99,"Stopped", $D106)), 0),"Not required") -> Stopped | M106: =IF(INTRO!$E$40="Endemic", IF($I106>0, IF($I106=4,"Unknown",IF($I106=99,"Stopped", $D106)), 0),"Not required") -> 208427 | N106: =IF(INTRO!$E$42="Endemic", IF(AND($J106>1,$J106<5), IF($J106=4, "Unknown", E106+F106), 0),"Not required") -> 79456 | O106: =IF(INTRO!$E$44="Endemic", IF(AND($K106>0,$K106<5), IF($K106=4,"Unknown", IF($K106=1, $F106*0.33, IF($K106=2, $F106*0.5+$G106*0.2, SUM(F106:G106)))), 0),"Not required") -> 52078.7 | P106: 0 | Q106: 2 | R106: 1 | S106: 1 | T106: MDA3 (IVM) | U106: T1 (PZQ+ALB/MBD) | V106: MDA 1 | W106: T1 | X106: 46550 | Y106: Ulanga District Council | AE106: ='MDA3'!Q106 -> 188469 | AF106: ='T1'!O106 -> 49076 | AG106: =T3_R1!N106 -> 0 | AI106: 49076 | AJ106: 1
A107: =IF(INTRO!$E$34<>0,INTRO!$E$34,"") -> Tanzania | B107: Mtwara | C107: Masasi District Council | D107: 287417.6168 | E107: 37077 | F107: 51908 | G107: 198432.6168 | H107: 1 | I107: 0 | J107: 3 | K107: 3 | L107: =IF(INTRO!$E$38="Endemic", IF($H107>0, IF($H107=4,"Unknown", IF($H107=99,"Stopped", $D107)), 0),"Not required") -> 287417.6168 | M107: =IF(INTRO!$E$40="Endemic", IF($I107>0, IF($I107=4,"Unknown",IF($I107=99,"Stopped", $D107)), 0),"Not required") -> 0 | N107: =IF(INTRO!$E$42="Endemic", IF(AND($J107>1,$J107<5), IF($J107=4, "Unknown", E107+F107), 0),"Not required") -> 88985 | O107: =IF(INTRO!$E$44="Endemic", IF(AND($K107>0,$K107<5), IF($K107=4,"Unknown", IF($K107=1, $F107*0.33, IF($K107=2, $F107*0.5+$G107*0.2, SUM(F107:G107)))), 0),"Not required") -> 250340.6168 | P107: 0 | Q107: 0 | R107: 1 | S107: 1 | U107: T1 (PZQ+ALB/MBD) | V107: MDA 1 | W107: T1 | X107: 46551 | Y107: Masasi District Council | AE107: ='MDA3'!Q107 -> 0 | AF107: ='T1'!O107 -> 49454 | AG107: =T3_R1!N107 -> 0 | AI107: 49454 | AJ107: 1
A108: =IF(INTRO!$E$34<>0,INTRO!$E$34,"") -> Tanzania | B108: Mtwara | C108: Masasi Town Council | D108: 98982.4395 | E108: 12769 | F108: 24754 | G108: 61459.4395 | H108: 99 | I108: 0 | J108: 3 | K108: 3 | L108: =IF(INTRO!$E$38="Endemic", IF($H108>0, IF($H108=4,"Unknown", IF($H108=99,"Stopped", $D108)), 0),"Not required") -> Stopped | M108: =IF(INTRO!$E$40="Endemic", IF($I108>0, IF($I108=4,"Unknown",IF($I108=99,"Stopped", $D108)), 0),"Not required") -> 0 | N108: =IF(INTRO!$E$42="Endemic", IF(AND($J108>1,$J108<5), IF($J108=4, "Unknown", E108+F108), 0),"Not required") -> 37523 | O108: =IF(INTRO!$E$44="Endemic", IF(AND($K108>0,$K108<5), IF($K108=4,"Unknown", IF($K108=1, $F108*0.33, IF($K108=2, $F108*0.5+$G108*0.2, SUM(F108:G108)))), 0),"Not required") -> 86213.4395 | P108: 0 | Q108: 0 | R108: 1 | S108: 1 | U108: T1 (PZQ+ALB/MBD) | V108: T1 | W108: T3 | X108: 46552 | Y108: Masasi Town Council | AE108: ='MDA3'!Q108 -> 0 | AF108: ='T1'!O108 -> 22358 | AG108: =T3_R1!N108 -> 0 | AI108: 22358 | AJ108: 1
A109: =IF(INTRO!$E$34<>0,INTRO!$E$34,"") -> Tanzania | B109: Mtwara | C109: Mtwara District Council | D109: 135520.7453 | E109: 17482 | F109: 34327 | G109: 83711.74532 | H109: 99 | I109: 0 | J109: 3 | K109: 3 | L109: =IF(INTRO!$E$38="Endemic", IF($H109>0, IF($H109=4,"Unknown", IF($H109=99,"Stopped", $D109)), 0),"Not required") -> Stopped | M109: =IF(INTRO!$E$40="Endemic", IF($I109>0, IF($I109=4,"Unknown",IF($I109=99,"Stopped", $D109)), 0),"Not required") -> 0 | N109: =IF(INTRO!$E$42="Endemic", IF(AND($J109>1,$J109<5), IF($J109=4, "Unknown", E109+F109), 0),"Not required") -> 51809 | O109: =IF(INTRO!$E$44="Endemic", IF(AND($K109>0,$K109<5), IF($K109=4,"Unknown", IF($K109=1, $F109*0.33, IF($K109=2, $F109*0.5+$G109*0.2, SUM(F109:G109)))), 0),"Not required") -> 118038.7453 | P109: 0 | Q109: 0 | R109: 1 | S109: 1 | U109: T1 (PZQ+ALB/MBD) | V109: T1 | W109: T3 | X109: 46553 | Y109: Mtwara District Council | AE109: ='MDA3'!Q109 -> 0 | AF109: ='T1'!O109 -> 31924 | AG109: =T3_R1!N109 -> 0 | AI109: 31924 | AJ109: 1
A110: =IF(INTRO!$E$34<>0,INTRO!$E$34,"") -> Tanzania | B110: Mtwara | C110: Mtwara-Mikindani Municipal Council | D110: 140907 | E110: 18177 | F110: 26644 | G110: 96086 | H110: 1 | I110: 0 | J110: 3 | K110: 2 | L110: =IF(INTRO!$E$38="Endemic", IF($H110>0, IF($H110=4,"Unknown", IF($H110=99,"Stopped", $D110)), 0),"Not required") -> 140907 | M110: =IF(INTRO!$E$40="Endemic", IF($I110>0, IF($I110=4,"Unknown",IF($I110=99,"Stopped", $D110)), 0),"Not required") -> 0 | N110: =IF(INTRO!$E$42="Endemic", IF(AND($J110>1,$J110<5), IF($J110=4, "Unknown", E110+F110), 0),"Not required") -> 44821 | O110: =IF(INTRO!$E$44="Endemic", IF(AND($K110>0,$K110<5), IF($K110=4,"Unknown", IF($K110=1, $F110*0.33, IF($K110=2, $F110*0.5+$G110*0.2, SUM(F110:G110)))), 0),"Not required") -> 32539.2 | P110: 0 | Q110: 0 | R110: 1 | S110: 0 | U110: T3 (ALB/MBD) | V110: MDA 1 | W110: T1 | X110: 46554 | Y110: Mtwara-Mikindani Municipal Council | AE110: ='MDA3'!Q110 -> 0 | AF110: ='T1'!O110 -> 0 | AG110: =T3_R1!N110 -> 25952 | AI110: 25952 | AJ110: 1
A111: =IF(INTRO!$E$34<>0,INTRO!$E$34,"") -> Tanzania | B111: Mtwara | C111: Nanyamba Town Council | D111: 115696.424 | E111: 14925 | F111: 25968 | G111: 74803.42397 | H111: 99 | I111: 0 | J111: 3 | K111: 3 | L111: =IF(INTRO!$E$38="Endemic", IF($H111>0, IF($H111=4,"Unknown", IF($H111=99,"Stopped", $D111)), 0),"Not required") -> Stopped | M111: =IF(INTRO!$E$40="Endemic", IF($I111>0, IF($I111=4,"Unknown",IF($I111=99,"Stopped", $D111)), 0),"Not required") -> 0 | N111: =IF(INTRO!$E$42="Endemic", IF(AND($J111>1,$J111<5), IF($J111=4, "Unknown", E111+F111), 0),"Not required") -> 40893 | O111: =IF(INTRO!$E$44="Endemic", IF(AND($K111>0,$K111<5), IF($K111=4,"Unknown", IF($K111=1, $F111*0.33, IF($K111=2, $F111*0.5+$G111*0.2, SUM(F111:G111)))), 0),"Not required") -> 100771.424 | P111: 0 | Q111: 0 | R111: 1 | S111: 1 | U111: T1 (PZQ+ALB/MBD) | V111: T1 | W111: T3 | X111: 46634 | Y111: Nanyamba District Council | AE111: ='MDA3'!Q111 -> 0 | AF111: ='T1'!O111 -> 25375 | AG111: =T3_R1!N111 -> 0 | AI111: 25375 | AJ111: 1
A112: =IF(INTRO!$E$34<>0,INTRO!$E$34,"") -> Tanzania | B112: Mtwara | C112: Nanyumbu District Council | D112: 166216.5327 | E112: 21442 | F112: 40705 | G112: 104069.5327 | H112: 99 | I112: 0 | J112: 3 | K112: 3 | L112: =IF(INTRO!$E$38="Endemic", IF($H112>0, IF($H112=4,"Unknown", IF($H112=99,"Stopped", $D112)), 0),"Not required") -> Stopped | M112: =IF(INTRO!$E$40="Endemic", IF($I112>0, IF($I112=4,"Unknown",IF($I112=99,"Stopped", $D112)), 0),"Not required") -> 0 | N112: =IF(INTRO!$E$42="Endemic", IF(AND($J112>1,$J112<5), IF($J112=4, "Unknown", E112+F112), 0),"Not required") -> 62147 | O112: =IF(INTRO!$E$44="Endemic", IF(AND($K112>0,$K112<5), IF($K112=4,"Unknown", IF($K112=1, $F112*0.33, IF($K112=2, $F112*0.5+$G112*0.2, SUM(F112:G112)))), 0),"Not required") -> 144774.5327 | P112: 0 | Q112: 0 | R112: 1 | S112: 1 | U112: T1 (PZQ+ALB/MBD) | V112: T1 | W112: T3 | X112: 46555 | Y112: Nanyumbu District Council | AE112: ='MDA3'!Q112 -> 0 | AF112: ='T1'!O112 -> 36535 | AG112: =T3_R1!N112 -> 0 | AI112: 36535 | AJ112: 1
A113: =IF(INTRO!$E$34<>0,INTRO!$E$34,"") -> Tanzania | B113: Mtwara | C113: Newala District Council | D113: 128077.8377 | E113: 16522 | F113: 26531 | G113: 85024.83772 | H113: 99 | I113: 0 | J113: 3 | K113: 2 | L113: =IF(INTRO!$E$38="Endemic", IF($H113>0, IF($H113=4,"Unknown", IF($H113=99,"Stopped", $D113)), 0),"Not required") -> Stopped | M113: =IF(INTRO!$E$40="Endemic", IF($I113>0, IF($I113=4,"Unknown",IF($I113=99,"Stopped", $D113)), 0),"Not required") -> 0 | N113: =IF(INTRO!$E$42="Endemic", IF(AND($J113>1,$J113<5), IF($J113=4, "Unknown", E113+F113), 0),"Not required") -> 43053 | O113: =IF(INTRO!$E$44="Endemic", IF(AND($K113>0,$K113<5), IF($K113=4,"Unknown", IF($K113=1, $F113*0.33, IF($K113=2, $F113*0.5+$G113*0.2, SUM(F113:G113)))), 0),"Not required") -> 30270.46754 | P113: 0 | Q113: 0 | R113: 1 | S113: 0 | U113: T3 (ALB/MBD) | V113: T1 | W113: T3 | X113: 46556 | Y113: Newala District Council | AE113: ='MDA3'!Q113 -> 0 | AF113: ='T1'!O113 -> 0 | AG113: =T3_R1!N113 -> 25381 | AI113: 25381 | AJ113: 1
A114: =IF(INTRO!$E$34<>0,INTRO!$E$34,"") -> Tanzania | B114: Mtwara | C114: Newala Town Council | D114: 98337.61584 | E114: 12686 | F114: 22216 | G114: 63435.61584 | H114: 99 | I114: 0 | J114: 3 | K114: 2 | L114: =IF(INTRO!$E$38="Endemic", IF($H114>0, IF($H114=4,"Unknown", IF($H114=99,"Stopped", $D114)), 0),"Not required") -> Stopped | M114: =IF(INTRO!$E$40="Endemic", IF($I114>0, IF($I114=4,"Unknown",IF($I114=99,"Stopped", $D114)), 0),"Not required") -> 0 | N114: =IF(INTRO!$E$42="Endemic", IF(AND($J114>1,$J114<5), IF($J114=4, "Unknown", E114+F114), 0),"Not required") -> 34902 | O114: =IF(INTRO!$E$44="Endemic", IF(AND($K114>0,$K114<5), IF($K114=4,"Unknown", IF($K114=1, $F114*0.33, IF($K114=2, $F114*0.5+$G114*0.2, SUM(F114:G114)))), 0),"Not required") -> 23795.12317 | P114: 0 | Q114: 0 | R114: 1 | S114: 0 | U114: T3 (ALB/MBD) | V114: T1 | W114: T3 | X114: 46635 | Y114: Newala Town Council | AE114: ='MDA3'!Q114 -> 0 | AF114: ='T1'!O114 -> 0 | AG114: =T3_R1!N114 -> 21558 | AI114: 21558 | AJ114: 1
A115: =IF(INTRO!$E$34<>0,INTRO!$E$34,"") -> Tanzania | B115: Mtwara | C115: Tandahimba District Council | D115: 250680.3899 | E115: 32338 | F115: 64986 | G115: 153356.3899 | H115: 99 | I115: 0 | J115: 3 | K115: 2 | L115: =IF(INTRO!$E$38="Endemic", IF($H115>0, IF($H115=4,"Unknown", IF($H115=99,"Stopped", $D115)), 0),"Not required") -> Stopped | M115: =IF(INTRO!$E$40="Endemic", IF($I115>0, IF($I115=4,"Unknown",IF($I115=99,"Stopped", $D115)), 0),"Not required") -> 0 | N115: =IF(INTRO!$E$42="Endemic", IF(AND($J115>1,$J115<5), IF($J115=4, "Unknown", E115+F115), 0),"Not required") -> 97324 | O115: =IF(INTRO!$E$44="Endemic", IF(AND($K115>0,$K115<5), IF($K115=4,"Unknown", IF($K115=1, $F115*0.33, IF($K115=2, $F115*0.5+$G115*0.2, SUM(F115:G115)))), 0),"Not required") -> 63164.27798 | P115: 0 | Q115: 0 | R115: 1 | S115: 0 | U115: T3 (ALB/MBD) | V115: T1 | W115: T3 | X115: 46557 | Y115: Tandahimba District Council | AE115: ='MDA3'!Q115 -> 0 | AF115: ='T1'!O115 -> 0 | AG115: =T3_R1!N115 -> 63709 | AI115: 63709 | AJ115: 1
A116: =IF(INTRO!$E$34<>0,INTRO!$E$34,"") -> Tanzania | B116: Mwanza | C116: Buchosa District Council | D116: 415622.4407 | E116: 53615 | F116: 109015 | G116: 252992.4407 | H116: 0 | I116: 0 | J116: 3 | K116: 2 | L116: =IF(INTRO!$E$38="Endemic", IF($H116>0, IF($H116=4,"Unknown", IF($H116=99,"Stopped", $D116)), 0),"Not required") -> 0 | M116: =IF(INTRO!$E$40="Endemic", IF($I116>0, IF($I116=4,"Unknown",IF($I116=99,"Stopped", $D116)), 0),"Not required") -> 0 | N116: =IF(INTRO!$E$42="Endemic", IF(AND($J116>1,$J116<5), IF($J116=4, "Unknown", E116+F116), 0),"Not required") -> 162630 | O116: =IF(INTRO!$E$44="Endemic", IF(AND($K116>0,$K116<5), IF($K116=4,"Unknown", IF($K116=1, $F116*0.33, IF($K116=2, $F116*0.5+$G116*0.2, SUM(F116:G116)))), 0),"Not required") -> 105105.9881 | P116: 0 | Q116: 0 | R116: 0 | S116: 1 | V116: T1 | W116: T3 | X116: 46636 | Y116: Buchosa District Council | AE116: ='MDA3'!Q116 -> 0 | AF116: ='T1'!O116 -> 0 | AG116: =T3_R1!N116 -> 0 | AI116: 0 | AJ116: 0
A117: =IF(INTRO!$E$34<>0,INTRO!$E$34,"") -> Tanzania | B117: Mwanza | C117: Ilemela Municipal Council | D117: 434940.1953 | E117: 56107 | F117: 97585 | G117: 281248.1953 | H117: 0 | I117: 0 | J117: 3 | K117: 2 | L117: =IF(INTRO!$E$38="Endemic", IF($H117>0, IF($H117=4,"Unknown", IF($H117=99,"Stopped", $D117)), 0),"Not required") -> 0 | M117: =IF(INTRO!$E$40="Endemic", IF($I117>0, IF($I117=4,"Unknown",IF($I117=99,"Stopped", $D117)), 0),"Not required") -> 0 | N117: =IF(INTRO!$E$42="Endemic", IF(AND($J117>1,$J117<5), IF($J117=4, "Unknown", E117+F117), 0),"Not required") -> 153692 | O117: =IF(INTRO!$E$44="Endemic", IF(AND($K117>0,$K117<5), IF($K117=4,"Unknown", IF($K117=1, $F117*0.33, IF($K117=2, $F117*0.5+$G117*0.2, SUM(F117:G117)))), 0),"Not required") -> 105042.1391 | P117: 0 | Q117: 0 | R117: 0 | S117: 1 | V117: T1 | W117: T3 | X117: 46558 | Y117: Ilemela Municipal Council | AE117: ='MDA3'!Q117 -> 0 | AF117: ='T1'!O117 -> 0 | AG117: =T3_R1!N117 -> 0 | AI117: 0 | AJ117: 0
A118: =IF(INTRO!$E$34<>0,INTRO!$E$34,"") -> Tanzania | B118: Mwanza | C118: Kwimba District Council | D118: 515471.9512 | E118: 66496 | F118: 117759 | G118: 331216.9512 | H118: 0 | I118: 0 | J118: 3 | K118: 3 | L118: =IF(INTRO!$E$38="Endemic", IF($H118>0, IF($H118=4,"Unknown", IF($H118=99,"Stopped", $D118)), 0),"Not required") -> 0 | M118: =IF(INTRO!$E$40="Endemic", IF($I118>0, IF($I118=4,"Unknown",IF($I118=99,"Stopped", $D118)), 0),"Not required") -> 0 | N118: =IF(INTRO!$E$42="Endemic", IF(AND($J118>1,$J118<5), IF($J118=4, "Unknown", E118+F118), 0),"Not required") -> 184255 | O118: =IF(INTRO!$E$44="Endemic", IF(AND($K118>0,$K118<5), IF($K118=4,"Unknown", IF($K118=1, $F118*0.33, IF($K118=2, $F118*0.5+$G118*0.2, SUM(F118:G118)))), 0),"Not required") -> 448975.9512 | P118: 0 | Q118: 0 | R118: 0 | S118: 1 | V118: T1 | W118: T3 | X118: 46559 | Y118: Kwimba District Council | AE118: ='MDA3'!Q118 -> 0 | AF118: ='T1'!O118 -> 0 | AG118: =T3_R1!N118 -> 0 | AI118: 0 | AJ118: 0
A119: =IF(INTRO!$E$34<>0,INTRO!$E$34,"") -> Tanzania | B119: Mwanza | C119: Magu District Council | D119: 380108.3574 | E119: 49034 | F119: 97585 | G119: 233489.3574 | H119: 0 | I119: 0 | J119: 3 | K119: 3 | L119: =IF(INTRO!$E$38="Endemic", IF($H119>0, IF($H119=4,"Unknown", IF($H119=99,"Stopped", $D119)), 0),"Not required") -> 0 | M119: =IF(INTRO!$E$40="Endemic", IF($I119>0, IF($I119=4,"Unknown",IF($I119=99,"Stopped", $D119)), 0),"Not required") -> 0 | N119: =IF(INTRO!$E$42="Endemic", IF(AND($J119>1,$J119<5), IF($J119=4, "Unknown", E119+F119), 0),"Not required") -> 146619 | O119: =IF(INTRO!$E$44="Endemic", IF(AND($K119>0,$K119<5), IF($K119=4,"Unknown", IF($K119=1, $F119*0.33, IF($K119=2, $F119*0.5+$G119*0.2, SUM(F119:G119)))), 0),"Not required") -> 331074.3574 | P119: 0 | Q119: 0 | R119: 0 | S119: 1 | V119: T1 | W119: T3 | X119: 46560 | Y119: Magu District Council | AE119: ='MDA3'!Q119 -> 0 | AF119: ='T1'!O119 -> 0 | AG119: =T3_R1!N119 -> 0 | AI119: 0 | AJ119: 0
A120: =IF(INTRO!$E$34<>0,INTRO!$E$34,"") -> Tanzania | B120: Mwanza | C120: Misungwi District Council | D120: 445852.7417 | E120: 57515 | F120: 104985 | G120: 283352.7417 | H120: 0 | I120: 0 | J120: 3 | K120: 3 | L120: =IF(INTRO!$E$38="Endemic", IF($H120>0, IF($H120=4,"Unknown", IF($H120=99,"Stopped", $D120)), 0),"Not required") -> 0 | M120: =IF(INTRO!$E$40="Endemic", IF($I120>0, IF($I120=4,"Unknown",IF($I120=99,"Stopped", $D120)), 0),"Not required") -> 0 | N120: =IF(INTRO!$E$42="Endemic", IF(AND($J120>1,$J120<5), IF($J120=4, "Unknown", E120+F120), 0),"Not required") -> 162500 | O120: =IF(INTRO!$E$44="Endemic", IF(AND($K120>0,$K120<5), IF($K120=4,"Unknown", IF($K120=1, $F120*0.33, IF($K120=2, $F120*0.5+$G120*0.2, SUM(F120:G120)))), 0),"Not required") -> 388337.7417 | P120: 0 | Q120: 0 | R120: 0 | S120: 1 | V120: T1 | W120: T3 | X120: 46561 | Y120: Misungwi District Council | AE120: ='MDA3'!Q120 -> 0 | AF120: ='T1'!O120 -> 0 | AG120: =T3_R1!N120 -> 0 | AI120: 0 | AJ120: 0
A121: =IF(INTRO!$E$34<>0,INTRO!$E$34,"") -> Tanzania | B121: Mwanza | C121: Mwanza-Nyamagana City Council | D121: 460872.3503 | E121: 59453 | F121: 116933 | G121: 284486.3503 | H121: 0 | I121: 0 | J121: 3 | K121: 2 | L121: =IF(INTRO!$E$38="Endemic", IF($H121>0, IF($H121=4,"Unknown", IF($H121=99,"Stopped", $D121)), 0),"Not required") -> 0 | M121: =IF(INTRO!$E$40="Endemic", IF($I121>0, IF($I121=4,"Unknown",IF($I121=99,"Stopped", $D121)), 0),"Not required") -> 0 | N121: =IF(INTRO!$E$42="Endemic", IF(AND($J121>1,$J121<5), IF($J121=4, "Unknown", E121+F121), 0),"Not required") -> 176386 | O121: =IF(INTRO!$E$44="Endemic", IF(AND($K121>0,$K121<5), IF($K121=4,"Unknown", IF($K121=1, $F121*0.33, IF($K121=2, $F121*0.5+$G121*0.2, SUM(F121:G121)))), 0),"Not required") -> 115363.7701 | P121: 0 | Q121: 0 | R121: 0 | S121: 1 | V121: T1 | W121: T3 | X121: 46562 | Y121: Mwanza-Nyamagana City Council | AE121: ='MDA3'!Q121 -> 0 | AF121: ='T1'!O121 -> 0 | AG121: =T3_R1!N121 -> 0 | AI121: 0 | AJ121: 0
A122: =IF(INTRO!$E$34<>0,INTRO!$E$34,"") -> Tanzania | B122: Mwanza | C122: Sengerema District Council | D122: 425133.405 | E122: 54842 | F122: 116239 | G122: 254052.405 | H122: 0 | I122: 0 | J122: 3 | K122: 2 | L122: =IF(INTRO!$E$38="Endemic", IF($H122>0, IF($H122=4,"Unknown", IF($H122=99,"Stopped", $D122)), 0),"Not required") -> 0 | M122: =IF(INTRO!$E$40="Endemic", IF($I122>0, IF($I122=4,"Unknown",IF($I122=99,"Stopped", $D122)), 0),"Not required") -> 0 | N122: =IF(INTRO!$E$42="Endemic", IF(AND($J122>1,$J122<5), IF($J122=4, "Unknown", E122+F122), 0),"Not required") -> 171081 | O122: =IF(INTRO!$E$44="Endemic", IF(AND($K122>0,$K122<5), IF($K122=4,"Unknown", IF($K122=1, $F122*0.33, IF($K122=2, $F122*0.5+$G122*0.2, SUM(F122:G122)))), 0),"Not required") -> 108929.981 | P122: 0 | Q122: 0 | R122: 0 | S122: 1 | V122: T1 | W122: T3 | X122: 46563 | Y122: Sengerema District Council | AE122: ='MDA3'!Q122 -> 0 | AF122: ='T1'!O122 -> 0 | AG122: =T3_R1!N122 -> 0 | AI122: 0 | AJ122: 0
A123: =IF(INTRO!$E$34<>0,INTRO!$E$34,"") -> Tanzania | B123: Mwanza | C123: Ukerewe District Council | D123: 437661.1364 | E123: 56458 | F123: 115190 | G123: 266013.1364 | H123: 0 | I123: 0 | J123: 3 | K123: 2 | L123: =IF(INTRO!$E$38="Endemic", IF($H123>0, IF($H123=4,"Unknown", IF($H123=99,"Stopped", $D123)), 0),"Not required") -> 0 | M123: =IF(INTRO!$E$40="Endemic", IF($I123>0, IF($I123=4,"Unknown",IF($I123=99,"Stopped", $D123)), 0),"Not required") -> 0 | N123: =IF(INTRO!$E$42="Endemic", IF(AND($J123>1,$J123<5), IF($J123=4, "Unknown", E123+F123), 0),"Not required") -> 171648 | O123: =IF(INTRO!$E$44="Endemic", IF(AND($K123>0,$K123<5), IF($K123=4,"Unknown", IF($K123=1, $F123*0.33, IF($K123=2, $F123*0.5+$G123*0.2, SUM(F123:G123)))), 0),"Not required") -> 110797.6273 | P123: 0 | Q123: 0 | R123: 0 | S123: 1 | V123: T1 | W123: T3 | X123: 46564 | Y123: Ukerewe District Council | AE123: ='MDA3'!Q123 -> 0 | AF123: ='T1'!O123 -> 0 | AG123: =T3_R1!N123 -> 0 | AI123: 0 | AJ123: 0
A124: =IF(INTRO!$E$34<>0,INTRO!$E$34,"") -> Tanzania | B124: Njombe | C124: Ludewa District Council | D124: 141972.1032 | E124: 18314 | F124: 39169 | G124: 84489.10324 | H124: 99 | I124: 1 | J124: 3 | K124: 2 | L124: =IF(INTRO!$E$38="Endemic", IF($H124>0, IF($H124=4,"Unknown", IF($H124=99,"Stopped", $D124)), 0),"Not required") -> Stopped | M124: =IF(INTRO!$E$40="Endemic", IF($I124>0, IF($I124=4,"Unknown",IF($I124=99,"Stopped", $D124)), 0),"Not required") -> 141972.1032 | N124: =IF(INTRO!$E$42="Endemic", IF(AND($J124>1,$J124<5), IF($J124=4, "Unknown", E124+F124), 0),"Not required") -> 57483 | O124: =IF(INTRO!$E$44="Endemic", IF(AND($K124>0,$K124<5), IF($K124=4,"Unknown", IF($K124=1, $F124*0.33, IF($K124=2, $F124*0.5+$G124*0.2, SUM(F124:G124)))), 0),"Not required") -> 36482.32065 | P124: 0 | Q124: 1 | R124: 1 | S124: 1 | U124: T1 (PZQ+ALB/MBD) | V124: MDA 1 | W124: T1 | X124: 46565 | Y124: Ludewa District Council | AE124: ='MDA3'!Q124 -> 0 | AF124: ='T1'!O124 -> 38027 | AG124: =T3_R1!N124 -> 0 | AI124: 38027 | AJ124: 1
A125: =IF(INTRO!$E$34<>0,INTRO!$E$34,"") -> Tanzania | B125: Njombe | C125: Makambako Town Council | D125: 99991.47275 | E125: 12899 | F125: 26510 | G125: 60582.47275 | H125: 99 | I125: 0 | J125: 3 | K125: 2 | L125: =IF(INTRO!$E$38="Endemic", IF($H125>0, IF($H125=4,"Unknown", IF($H125=99,"Stopped", $D125)), 0),"Not required") -> Stopped | M125: =IF(INTRO!$E$40="Endemic", IF($I125>0, IF($I125=4,"Unknown",IF($I125=99,"Stopped", $D125)), 0),"Not required") -> 0 | N125: =IF(INTRO!$E$42="Endemic", IF(AND($J125>1,$J125<5), IF($J125=4, "Unknown", E125+F125), 0),"Not required") -> 39409 | O125: =IF(INTRO!$E$44="Endemic", IF(AND($K125>0,$K125<5), IF($K125=4,"Unknown", IF($K125=1, $F125*0.33, IF($K125=2, $F125*0.5+$G125*0.2, SUM(F125:G125)))), 0),"Not required") -> 25371.49455 | P125: 0 | Q125: 0 | R125: 1 | S125: 1 | U125: T1 (PZQ+ALB/MBD) | V125: T1 | W125: T3 | X125: 46566 | Y125: Makambako Town Council | AE125: ='MDA3'!Q125 -> 0 | AF125: ='T1'!O125 -> 25323 | AG125: =T3_R1!N125 -> 0 | AI125: 25323 | AJ125: 1
A126: =IF(INTRO!$E$34<>0,INTRO!$E$34,"") -> Tanzania | B126: Njombe | C126: Makete District Council | D126: 103656.2905 | E126: 13372 | F126: 23200 | G126: 67084.29049 | H126: 99 | I126: 0 | J126: 3 | K126: 2 | L126: =IF(INTRO!$E$38="Endemic", IF($H126>0, IF($H126=4,"Unknown", IF($H126=99,"Stopped", $D126)), 0),"Not required") -> Stopped | M126: =IF(INTRO!$E$40="Endemic", IF($I126>0, IF($I126=4,"Unknown",IF($I126=99,"Stopped", $D126)), 0),"Not required") -> 0 | N126: =IF(INTRO!$E$42="Endemic", IF(AND($J126>1,$J126<5), IF($J126=4, "Unknown", E126+F126), 0),"Not required") -> 36572 | O126: =IF(INTRO!$E$44="Endemic", IF(AND($K126>0,$K126<5), IF($K126=4,"Unknown", IF($K126=1, $F126*0.33, IF($K126=2, $F126*0.5+$G126*0.2, SUM(F126:G126)))), 0),"Not required") -> 25016.8581 | P126: 0 | Q126: 0 | R126: 1 | S126: 1 | U126: T1 (PZQ+ALB/MBD) | V126: T1 | W126: T3 | X126: 46567 | Y126: Makete District Council | AE126: ='MDA3'!Q126 -> 0 | AF126: ='T1'!O126 -> 22677 | AG126: =T3_R1!N126 -> 0 | AI126: 22677 | AJ126: 1
A127: =IF(INTRO!$E$34<>0,INTRO!$E$34,"") -> Tanzania | B127: Njombe | C127: Njombe District Council | D127: 91382.63406 | E127: 11788 | F127: 24384 | G127: 55210.63406 | H127: 99 | I127: 1 | J127: 3 | K127: 2 | L127: =IF(INTRO!$E$38="Endemic", IF($H127>0, IF($H127=4,"Unknown", IF($H127=99,"Stopped", $D127)), 0),"Not required") -> Stopped | M127: =IF(INTRO!$E$40="Endemic", IF($I127>0, IF($I127=4,"Unknown",IF($I127=99,"Stopped", $D127)), 0),"Not required") -> 91382.63406 | N127: =IF(INTRO!$E$42="Endemic", IF(AND($J127>1,$J127<5), IF($J127=4, "Unknown", E127+F127), 0),"Not required") -> 36172 | O127: =IF(INTRO!$E$44="Endemic", IF(AND($K127>0,$K127<5), IF($K127=4,"Unknown", IF($K127=1, $F127*0.33, IF($K127=2, $F127*0.5+$G127*0.2, SUM(F127:G127)))), 0),"Not required") -> 23234.12681 | P127: 0 | Q127: 1 | R127: 1 | S127: 1 | U127: T1 (PZQ+ALB/MBD) | V127: MDA 1 | W127: T1 | X127: 46568 | Y127: Njombe District Council | AE127: ='MDA3'!Q127 -> 0 | AF127: ='T1'!O127 -> 24250 | AG127: =T3_R1!N127 -> 0 | AI127: 24250 | AJ127: 1
A128: =IF(INTRO!$E$34<>0,INTRO!$E$34,"") -> Tanzania | B128: Njombe | C128: Njombe Town Council | D128: 138779.565 | E128: 17903 | F128: 37639 | G128: 83237.56504 | H128: 99 | I128: 0 | J128: 3 | K128: 2 | L128: =IF(INTRO!$E$38="Endemic", IF($H128>0, IF($H128=4,"Unknown", IF($H128=99,"Stopped", $D128)), 0),"Not required") -> Stopped | M128: =IF(INTRO!$E$40="Endemic", IF($I128>0, IF($I128=4,"Unknown",IF($I128=99,"Stopped", $D128)), 0),"Not required") -> 0 | N128: =IF(INTRO!$E$42="Endemic", IF(AND($J128>1,$J128<5), IF($J128=4, "Unknown", E128+F128), 0),"Not required") -> 55542 | O128: =IF(INTRO!$E$44="Endemic", IF(AND($K128>0,$K128<5), IF($K128=4,"Unknown", IF($K128=1, $F128*0.33, IF($K128=2, $F128*0.5+$G128*0.2, SUM(F128:G128)))), 0),"Not required") -> 35467.01301 | P128: 0 | Q128: 0 | R128: 1 | S128: 1 | U128: T1 (PZQ+ALB/MBD) | V128: T1 | W128: T3 | X128: 46569 | Y128: Njombe Town Council | AE128: ='MDA3'!Q128 -> 0 | AF128: ='T1'!O128 -> 35356 | AG128: =T3_R1!N128 -> 0 | AI128: 35356 | AJ128: 1
A129: =IF(INTRO!$E$34<>0,INTRO!$E$34,"") -> Tanzania | B129: Njombe | C129: Wanging'ombe District Council | D129: 172448.5395 | E129: 22246 | F129: 43185 | G129: 107017.5395 | H129: 99 | I129: 0 | J129: 3 | K129: 2 | L129: =IF(INTRO!$E$38="Endemic", IF($H129>0, IF($H129=4,"Unknown", IF($H129=99,"Stopped", $D129)), 0),"Not required") -> Stopped | M129: =IF(INTRO!$E$40="Endemic", IF($I129>0, IF($I129=4,"Unknown",IF($I129=99,"Stopped", $D129)), 0),"Not required") -> 0 | N129: =IF(INTRO!$E$42="Endemic", IF(AND($J129>1,$J129<5), IF($J129=4, "Unknown", E129+F129), 0),"Not required") -> 65431 | O129: =IF(INTRO!$E$44="Endemic", IF(AND($K129>0,$K129<5), IF($K129=4,"Unknown", IF($K129=1, $F129*0.33, IF($K129=2, $F129*0.5+$G129*0.2, SUM(F129:G129)))), 0),"Not required") -> 42996.00789 | P129: 0 | Q129: 0 | R129: 1 | S129: 1 | U129: T1 (PZQ+ALB/MBD) | V129: T1 | W129: T3 | X129: 46570 | Y129: Wanging'ombe District Council | AE129: ='MDA3'!Q129 -> 0 | AF129: ='T1'!O129 -> 42487 | AG129: =T3_R1!N129 -> 0 | AI129: 42487 | AJ129: 1
A130: =IF(INTRO!$E$34<>0,INTRO!$E$34,"") -> Tanzania | B130: Pwani | C130: Bagamoyo District Council | D130: 116150.8486 | E130: 14983 | F130: 34954 | G130: 66213.8486 | H130: 99 | I130: 0 | J130: 3 | K130: 2 | L130: =IF(INTRO!$E$38="Endemic", IF($H130>0, IF($H130=4,"Unknown", IF($H130=99,"Stopped", $D130)), 0),"Not required") -> Stopped | M130: =IF(INTRO!$E$40="Endemic", IF($I130>0, IF($I130=4,"Unknown",IF($I130=99,"Stopped", $D130)), 0),"Not required") -> 0 | N130: =IF(INTRO!$E$42="Endemic", IF(AND($J130>1,$J130<5), IF($J130=4, "Unknown", E130+F130), 0),"Not required") -> 49937 | O130: =IF(INTRO!$E$44="Endemic", IF(AND($K130>0,$K130<5), IF($K130=4,"Unknown", IF($K130=1, $F130*0.33, IF($K130=2, $F130*0.5+$G130*0.2, SUM(F130:G130)))), 0),"Not required") -> 30719.76972 | P130: 0 | Q130: 0 | R130: 1 | S130: 0 | U130: T3 (ALB/MBD) | V130: T1 | W130: T3 | X130: 46571 | Y130: Bagamoyo District Council | AE130: ='MDA3'!Q130 -> 0 | AF130: ='T1'!O130 -> 0 | AG130: =T3_R1!N130 -> 34241 | AI130: 34241 | AJ130: 1
A131: =IF(INTRO!$E$34<>0,INTRO!$E$34,"") -> Tanzania | B131: Pwani | C131: Chalinze District Council | D131: 254617.2054 | E131: 32846 | F131: 60732 | G131: 161039.2054 | H131: 99 | I131: 0 | J131: 3 | K131: 2 | L131: =IF(INTRO!$E$38="Endemic", IF($H131>0, IF($H131=4,"Unknown", IF($H131=99,"Stopped", $D131)), 0),"Not required") -> Stopped | M131: =IF(INTRO!$E$40="Endemic", IF($I131>0, IF($I131=4,"Unknown",IF($I131=99,"Stopped", $D131)), 0),"Not required") -> 0 | N131: =IF(INTRO!$E$42="Endemic", IF(AND($J131>1,$J131<5), IF($J131=4, "Unknown", E131+F131), 0),"Not required") -> 93578 | O131: =IF(INTRO!$E$44="Endemic", IF(AND($K131>0,$K131<5), IF($K131=4,"Unknown", IF($K131=1, $F131*0.33, IF($K131=2, $F131*0.5+$G131*0.2, SUM(F131:G131)))), 0),"Not required") -> 62573.84108 | P131: 0 | Q131: 0 | R131: 1 | S131: 0 | U131: T3 (ALB/MBD) | V131: T1 | W131: T3 | X131: 46638 | Y131: Chalinze District Council | AE131: ='MDA3'!Q131 -> 0 | AF131: ='T1'!O131 -> 0 | AG131: =T3_R1!N131 -> 59560 | AI131: 59560 | AJ131: 1
A132: =IF(INTRO!$E$34<>0,INTRO!$E$34,"") -> Tanzania | B132: Pwani | C132: Kibaha District Council | D132: 83504.00276 | E132: 10772 | F132: 21500 | G132: 51232.00276 | H132: 1 | I132: 0 | J132: 3 | K132: 2 | L132: =IF(INTRO!$E$38="Endemic", IF($H132>0, IF($H132=4,"Unknown", IF($H132=99,"Stopped", $D132)), 0),"Not required") -> 83504.00276 | M132: =IF(INTRO!$E$40="Endemic", IF($I132>0, IF($I132=4,"Unknown",IF($I132=99,"Stopped", $D132)), 0),"Not required") -> 0 | N132: =IF(INTRO!$E$42="Endemic", IF(AND($J132>1,$J132<5), IF($J132=4, "Unknown", E132+F132), 0),"Not required") -> 32272 | O132: =IF(INTRO!$E$44="Endemic", IF(AND($K132>0,$K132<5), IF($K132=4,"Unknown", IF($K132=1, $F132*0.33, IF($K132=2, $F132*0.5+$G132*0.2, SUM(F132:G132)))), 0),"Not required") -> 20996.40055 | P132: 0 | Q132: 0 | R132: 1 | S132: 1 | U132: T1 (PZQ+ALB/MBD) | V132: MDA 1 | W132: T1 | X132: 46572 | Y132: Kibaha District Council | AE132: ='MDA3'!Q132 -> 0 | AF132: ='T1'!O132 -> 18781 | AG132: =T3_R1!N132 -> 0 | AI132: 18781 | AJ132: 1
A133: =IF(INTRO!$E$34<>0,INTRO!$E$34,"") -> Tanzania | B133: Pwani | C133: Kibaha Town Council | D133: 152817.5584 | E133: 19713 | F133: 34561 | G133: 98543.55838 | H133: 99 | I133: 0 | J133: 3 | K133: 2 | L133: =IF(INTRO!$E$38="Endemic", IF($H133>0, IF($H133=4,"Unknown", IF($H133=99,"Stopped", $D133)), 0),"Not required") -> Stopped | M133: =IF(INTRO!$E$40="Endemic", IF($I133>0, IF($I133=4,"Unknown",IF($I133=99,"Stopped", $D133)), 0),"Not required") -> 0 | N133: =IF(INTRO!$E$42="Endemic", IF(AND($J133>1,$J133<5), IF($J133=4, "Unknown", E133+F133), 0),"Not required") -> 54274 | O133: =IF(INTRO!$E$44="Endemic", IF(AND($K133>0,$K133<5), IF($K133=4,"Unknown", IF($K133=1, $F133*0.33, IF($K133=2, $F133*0.5+$G133*0.2, SUM(F133:G133)))), 0),"Not required") -> 36989.21168 | P133: 0 | Q133: 0 | R133: 1 | S133: 1 | U133: T1 (PZQ+ALB/MBD) | V133: T1 | W133: T3 | X133: 46573 | Y133: Kibaha Town Council | AE133: ='MDA3'!Q133 -> 0 | AF133: ='T1'!O133 -> 29183 | AG133: =T3_R1!N133 -> 0 | AI133: 29183 | AJ133: 1
A134: =IF(INTRO!$E$34<>0,INTRO!$E$34,"") -> Tanzania | B134: Pwani | C134: Kibiti District Council | D134: 123608.86 | E134: 15946 | F134: 41851 | G134: 65811.86003 | H134: 99 | I134: 0 | J134: 3 | K134: 2 | L134: =IF(INTRO!$E$38="Endemic", IF($H134>0, IF($H134=4,"Unknown", IF($H134=99,"Stopped", $D134)), 0),"Not required") -> Stopped | M134: =IF(INTRO!$E$40="Endemic", IF($I134>0, IF($I134=4,"Unknown",IF($I134=99,"Stopped", $D134)), 0),"Not required") -> 0 | N134: =IF(INTRO!$E$42="Endemic", IF(AND($J134>1,$J134<5), IF($J134=4, "Unknown", E134+F134), 0),"Not required") -> 57797 | O134: =IF(INTRO!$E$44="Endemic", IF(AND($K134>0,$K134<5), IF($K134=4,"Unknown", IF($K134=1, $F134*0.33, IF($K134=2, $F134*0.5+$G134*0.2, SUM(F134:G134)))), 0),"Not required") -> 34087.87201 | P134: 0 | Q134: 0 | R134: 1 | S134: 0 | U134: T3 (ALB/MBD) | V134: T1 | W134: T3 | X134: 46639 | Y134: Kibiti District Council | AE134: ='MDA3'!Q134 -> 0 | AF134: ='T1'!O134 -> 0 | AG134: =T3_R1!N134 -> 36587 | AI134: 36587 | AJ134: 1
A135: =IF(INTRO!$E$34<>0,INTRO!$E$34,"") -> Tanzania | B135: Pwani | C135: Kisarawe District Council | D135: 120834.6969 | E135: 15588 | F135: 31492 | G135: 73754.6969 | H135: 99 | I135: 0 | J135: 3 | K135: 2 | L135: =IF(INTRO!$E$38="Endemic", IF($H135>0, IF($H135=4,"Unknown", IF($H135=99,"Stopped", $D135)), 0),"Not required") -> Stopped | M135: =IF(INTRO!$E$40="Endemic", IF($I135>0, IF($I135=4,"Unknown",IF($I135=99,"Stopped", $D135)), 0),"Not required") -> 0 | N135: =IF(INTRO!$E$42="Endemic", IF(AND($J135>1,$J135<5), IF($J135=4, "Unknown", E135+F135), 0),"Not required") -> 47080 | O135: =IF(INTRO!$E$44="Endemic", IF(AND($K135>0,$K135<5), IF($K135=4,"Unknown", IF($K135=1, $F135*0.33, IF($K135=2, $F135*0.5+$G135*0.2, SUM(F135:G135)))), 0),"Not required") -> 30496.93938 | P135: 0 | Q135: 0 | R135: 1 | S135: 0 | U135: T3 (ALB/MBD) | V135: T1 | W135: T3 | X135: 46574 | Y135: Kisarawe District Council | AE135: ='MDA3'!Q135 -> 0 | AF135: ='T1'!O135 -> 0 | AG135: =T3_R1!N135 -> 28225 | AI135: 28225 | AJ135: 1
A136: =IF(INTRO!$E$34<>0,INTRO!$E$34,"") -> Tanzania | B136: Pwani | C136: Mafia District Council | D136: 55230.78086 | E136: 7125 | F136: 12421 | G136: 35684.78086 | H136: 1 | I136: 0 | J136: 3 | K136: 2 | L136: =IF(INTRO!$E$38="Endemic", IF($H136>0, IF($H136=4,"Unknown", IF($H136=99,"Stopped", $D136)), 0),"Not required") -> 55230.78086 | M136: =IF(INTRO!$E$40="Endemic", IF($I136>0, IF($I136=4,"Unknown",IF($I136=99,"Stopped", $D136)), 0),"Not required") -> 0 | N136: =IF(INTRO!$E$42="Endemic", IF(AND($J136>1,$J136<5), IF($J136=4, "Unknown", E136+F136), 0),"Not required") -> 19546 | O136: =IF(INTRO!$E$44="Endemic", IF(AND($K136>0,$K136<5), IF($K136=4,"Unknown", IF($K136=1, $F136*0.33, IF($K136=2, $F136*0.5+$G136*0.2, SUM(F136:G136)))), 0),"Not required") -> 13347.45617 | P136: 0 | Q136: 0 | R136: 1 | S136: 1 | U136: T1 (PZQ+ALB/MBD) | V136: MDA 1 | W136: T1 | X136: 46575 | Y136: Mafia District Council | AE136: ='MDA3'!Q136 -> 0 | AF136: ='T1'!O136 -> 12047 | AG136: =T3_R1!N136 -> 0 | AI136: 12047 | AJ136: 1
A137: =IF(INTRO!$E$34<>0,INTRO!$E$34,"") -> Tanzania | B137: Pwani | C137: Mkuranga District Council | D137: 265132.8267 | E137: 34202 | F137: 85317 | G137: 145613.8267 | H137: 99 | I137: 0 | J137: 3 | K137: 2 | L137: =IF(INTRO!$E$38="Endemic", IF($H137>0, IF($H137=4,"Unknown", IF($H137=99,"Stopped", $D137)), 0),"Not required") -> Stopped | M137: =IF(INTRO!$E$40="Endemic", IF($I137>0, IF($I137=4,"Unknown",IF($I137=99,"Stopped", $D137)), 0),"Not required") -> 0 | N137: =IF(INTRO!$E$42="Endemic", IF(AND($J137>1,$J137<5), IF($J137=4, "Unknown", E137+F137), 0),"Not required") -> 119519 | O137: =IF(INTRO!$E$44="Endemic", IF(AND($K137>0,$K137<5), IF($K137=4,"Unknown", IF($K137=1, $F137*0.33, IF($K137=2, $F137*0.5+$G137*0.2, SUM(F137:G137)))), 0),"Not required") -> 71781.26534 | P137: 0 | Q137: 0 | R137: 1 | S137: 0 | U137: T3 (ALB/MBD) | V137: T1 | W137: T3 | X137: 46576 | Y137: Mkuranga District Council | AE137: ='MDA3'!Q137 -> 0 | AF137: ='T1'!O137 -> 0 | AG137: =T3_R1!N137 -> 74393 | AI137: 74393 | AJ137: 1
A138: =IF(INTRO!$E$34<>0,INTRO!$E$34,"") -> Tanzania | B138: Pwani | C138: Rufiji District Council | D138: 134805.5288 | E138: 17390 | F138: 34675 | G138: 82740.52885 | H138: 99 | I138: 0 | J138: 3 | K138: 2 | L138: =IF(INTRO!$E$38="Endemic", IF($H138>0, IF($H138=4,"Unknown", IF($H138=99,"Stopped", $D138)), 0),"Not required") -> Stopped | M138: =IF(INTRO!$E$40="Endemic", IF($I138>0, IF($I138=4,"Unknown",IF($I138=99,"Stopped", $D138)), 0),"Not required") -> 0 | N138: =IF(INTRO!$E$42="Endemic", IF(AND($J138>1,$J138<5), IF($J138=4, "Unknown", E138+F138), 0),"Not required") -> 52065 | O138: =IF(INTRO!$E$44="Endemic", IF(AND($K138>0,$K138<5), IF($K138=4,"Unknown", IF($K138=1, $F138*0.33, IF($K138=2, $F138*0.5+$G138*0.2, SUM(F138:G138)))), 0),"Not required") -> 33885.60577 | P138: 0 | Q138: 0 | R138: 1 | S138: 0 | U138: T3 (ALB/MBD) | V138: T1 | W138: T3 | X138: 46577 | Y138: Rufiji District Council | AE138: ='MDA3'!Q138 -> 0 | AF138: ='T1'!O138 -> 0 | AG138: =T3_R1!N138 -> 32820 | AI138: =AF138+AG138 -> 32820 | AJ138: =COUNTIF(AF138:AG138,">0") -> 1
A139: =IF(INTRO!$E$34<>0,INTRO!$E$34,"") -> Tanzania | B139: Rukwa | C139: Kalambo District Council | D139: 267963.7962 | E139: 34567 | F139: 61789 | G139: 171607.7962 | H139: 99 | I139: 0 | J139: 3 | K139: 2 | L139: =IF(INTRO!$E$38="Endemic", IF($H139>0, IF($H139=4,"Unknown", IF($H139=99,"Stopped", $D139)), 0),"Not required") -> Stopped | M139: =IF(INTRO!$E$40="Endemic", IF($I139>0, IF($I139=4,"Unknown",IF($I139=99,"Stopped", $D139)), 0),"Not required") -> 0 | N139: =IF(INTRO!$E$42="Endemic", IF(AND($J139>1,$J139<5), IF($J139=4, "Unknown", E139+F139), 0),"Not required") -> 96356 | O139: =IF(INTRO!$E$44="Endemic", IF(AND($K139>0,$K139<5), IF($K139=4,"Unknown", IF($K139=1, $F139*0.33, IF($K139=2, $F139*0.5+$G139*0.2, SUM(F139:G139)))), 0),"Not required") -> 65216.05923 | P139: 0 | Q139: 0 | R139: 1 | S139: 0 | U139: T3 (ALB/MBD) | V139: T1 | W139: T3 | X139: 46578 | Y139: Kalambo District Council | AE139: ='MDA3'!Q139 -> 0 | AF139: ='T1'!O139 -> 0 | AG139: =T3_R1!N139 -> 58958 | AI139: 58958 | AJ139: 1
A140: =IF(INTRO!$E$34<>0,INTRO!$E$34,"") -> Tanzania | B140: Rukwa | C140: Nkasi District Council | D140: 362791.605 | E140: 46800 | F140: 92300 | G140: 223691.605 | H140: 99 | I140: 0 | J140: 3 | K140: 2 | L140: =IF(INTRO!$E$38="Endemic", IF($H140>0, IF($H140=4,"Unknown", IF($H140=99,"Stopped", $D140)), 0),"Not required") -> Stopped | M140: =IF(INTRO!$E$40="Endemic", IF($I140>0, IF($I140=4,"Unknown",IF($I140=99,"Stopped", $D140)), 0),"Not required") -> 0 | N140: =IF(INTRO!$E$42="Endemic", IF(AND($J140>1,$J140<5), IF($J140=4, "Unknown", E140+F140), 0),"Not required") -> 139100 | O140: =IF(INTRO!$E$44="Endemic", IF(AND($K140>0,$K140<5), IF($K140=4,"Unknown", IF($K140=1, $F140*0.33, IF($K140=2, $F140*0.5+$G140*0.2, SUM(F140:G140)))), 0),"Not required") -> 90888.321 | P140: 0 | Q140: 0 | R140: 1 | S140: 0 | U140: T3 (ALB/MBD) | V140: T1 | W140: T3 | X140: 46579 | Y140: Nkasi District Council | AE140: ='MDA3'!Q140 -> 0 | AF140: ='T1'!O140 -> 0 | AG140: =T3_R1!N140 -> 89245 | AI140: 89245 | AJ140: 1
A141: =IF(INTRO!$E$34<>0,INTRO!$E$34,"") -> Tanzania | B141: Rukwa | C141: Sumbawanga District Council | D141: 394588.6815 | E141: 50902 | F141: 100766 | G141: 242920.6815 | H141: 99 | I141: 0 | J141: 3 | K141: 2 | L141: =IF(INTRO!$E$38="Endemic", IF($H141>0, IF($H141=4,"Unknown", IF($H141=99,"Stopped", $D141)), 0),"Not required") -> Stopped | M141: =IF(INTRO!$E$40="Endemic", IF($I141>0, IF($I141=4,"Unknown",IF($I141=99,"Stopped", $D141)), 0),"Not required") -> 0 | N141: =IF(INTRO!$E$42="Endemic", IF(AND($J141>1,$J141<5), IF($J141=4, "Unknown", E141+F141), 0),"Not required") -> 151668 | O141: =IF(INTRO!$E$44="Endemic", IF(AND($K141>0,$K141<5), IF($K141=4,"Unknown", IF($K141=1, $F141*0.33, IF($K141=2, $F141*0.5+$G141*0.2, SUM(F141:G141)))), 0),"Not required") -> 98967.13631 | P141: 0 | Q141: 0 | R141: 1 | S141: 0 | U141: T3 (ALB/MBD) | V141: T1 | W141: T3 | X141: 46580 | Y141: Sumbawanga District Council | AE141: ='MDA3'!Q141 -> 0 | AF141: ='T1'!O141 -> 0 | AG141: =T3_R1!N141 -> 90508 | AI141: 90508 | AJ141: 1
A142: =IF(INTRO!$E$34<>0,INTRO!$E$34,"") -> Tanzania | B142: Rukwa | C142: Sumbawanga Municipal Council | D142: 270663.1785 | E142: 34916 | F142: 66630 | G142: 169117.1785 | H142: 99 | I142: 0 | J142: 3 | K142: 2 | L142: =IF(INTRO!$E$38="Endemic", IF($H142>0, IF($H142=4,"Unknown", IF($H142=99,"Stopped", $D142)), 0),"Not required") -> Stopped | M142: =IF(INTRO!$E$40="Endemic", IF($I142>0, IF($I142=4,"Unknown",IF($I142=99,"Stopped", $D142)), 0),"Not required") -> 0 | N142: =IF(INTRO!$E$42="Endemic", IF(AND($J142>1,$J142<5), IF($J142=4, "Unknown", E142+F142), 0),"Not required") -> 101546 | O142: =IF(INTRO!$E$44="Endemic", IF(AND($K142>0,$K142<5), IF($K142=4,"Unknown", IF($K142=1, $F142*0.33, IF($K142=2, $F142*0.5+$G142*0.2, SUM(F142:G142)))), 0),"Not required") -> 67138.43569 | P142: 0 | Q142: 0 | R142: 1 | S142: 0 | U142: T3 (ALB/MBD) | V142: T1 | W142: T3 | X142: 46581 | Y142: Sumbawanga Municipal Council | AE142: ='MDA3'!Q142 -> 0 | AF142: ='T1'!O142 -> 0 | AG142: =T3_R1!N142 -> 64794 | AI142: 64794 | AJ142: 1
A143: =IF(INTRO!$E$34<>0,INTRO!$E$34,"") -> Tanzania | B143: Ruvuma | C143: Madaba District Council | D143: 56536.82581 | E143: 7293 | F143: 11155 | G143: 38088.82581 | H143: 99 | I143: 1 | J143: 3 | K143: 2 | L143: =IF(INTRO!$E$38="Endemic", IF($H143>0, IF($H143=4,"Unknown", IF($H143=99,"Stopped", $D143)), 0),"Not required") -> Stopped | M143: =IF(INTRO!$E$40="Endemic", IF($I143>0, IF($I143=4,"Unknown",IF($I143=99,"Stopped", $D143)), 0),"Not required") -> 56536.82581 | N143: =IF(INTRO!$E$42="Endemic", IF(AND($J143>1,$J143<5), IF($J143=4, "Unknown", E143+F143), 0),"Not required") -> 18448 | O143: =IF(INTRO!$E$44="Endemic", IF(AND($K143>0,$K143<5), IF($K143=4,"Unknown", IF($K143=1, $F143*0.33, IF($K143=2, $F143*0.5+$G143*0.2, SUM(F143:G143)))), 0),"Not required") -> 13195.26516 | P143: 0 | Q143: 1 | R143: 1 | S143: 1 | U143: T1 (PZQ+ALB/MBD) | V143: MDA 1 | W143: T1 | X143: 46640 | Y143: Madaba District Council | AE143: ='MDA3'!Q143 -> 0 | AF143: ='T1'!O143 -> 10789 | AG143: =T3_R1!N143 -> 0 | AI143: 10789 | AJ143: 1
A144: =IF(INTRO!$E$34<>0,INTRO!$E$34,"") -> Tanzania | B144: Ruvuma | C144: Mbinga District Council | D144: 265542.6408 | E144: 34255 | F144: 65978 | G144: 165309.6408 | H144: 99 | I144: 1 | J144: 3 | K144: 2 | L144: =IF(INTRO!$E$38="Endemic", IF($H144>0, IF($H144=4,"Unknown", IF($H144=99,"Stopped", $D144)), 0),"Not required") -> Stopped | M144: =IF(INTRO!$E$40="Endemic", IF($I144>0, IF($I144=4,"Unknown",IF($I144=99,"Stopped", $D144)), 0),"Not required") -> 265542.6408 | N144: =IF(INTRO!$E$42="Endemic", IF(AND($J144>1,$J144<5), IF($J144=4, "Unknown", E144+F144), 0),"Not required") -> 100233 | O144: =IF(INTRO!$E$44="Endemic", IF(AND($K144>0,$K144<5), IF($K144=4,"Unknown", IF($K144=1, $F144*0.33, IF($K144=2, $F144*0.5+$G144*0.2, SUM(F144:G144)))), 0),"Not required") -> 66050.92816 | P144: 0 | Q144: 1 | R144: 1 | S144: 1 | U144: T1 (PZQ+ALB/MBD) | V144: MDA 1 | W144: T1 | X144: 46582 | Y144: Mbinga District Council | AE144: ='MDA3'!Q144 -> 0 | AF144: ='T1'!O144 -> 64873 | AG144: =T3_R1!N144 -> 0 | AI144: 64873 | AJ144: 1
A145: =IF(INTRO!$E$34<>0,INTRO!$E$34,"") -> Tanzania | B145: Ruvuma | C145: Mbinga Town Council | D145: 105251 | E145: 13577 | F145: 31310 | G145: 60364 | H145: 99 | I145: 1 | J145: 3 | K145: 2 | L145: =IF(INTRO!$E$38="Endemic", IF($H145>0, IF($H145=4,"Unknown", IF($H145=99,"Stopped", $D145)), 0),"Not required") -> Stopped | M145: =IF(INTRO!$E$40="Endemic", IF($I145>0, IF($I145=4,"Unknown",IF($I145=99,"Stopped", $D145)), 0),"Not required") -> 105251 | N145: =IF(INTRO!$E$42="Endemic", IF(AND($J145>1,$J145<5), IF($J145=4, "Unknown", E145+F145), 0),"Not required") -> 44887 | O145: =IF(INTRO!$E$44="Endemic", IF(AND($K145>0,$K145<5), IF($K145=4,"Unknown", IF($K145=1, $F145*0.33, IF($K145=2, $F145*0.5+$G145*0.2, SUM(F145:G145)))), 0),"Not required") -> 27727.8 | P145: 0 | Q145: 1 | R145: 1 | S145: 1 | U145: T1 (PZQ+ALB/MBD) | V145: MDA 1 | W145: T1 | X145: 46641 | Y145: Mbinga Town Council | AE145: ='MDA3'!Q145 -> 0 | AF145: ='T1'!O145 -> 30519 | AG145: =T3_R1!N145 -> 0 | AI145: 30519 | AJ145: 1
A146: =IF(INTRO!$E$34<>0,INTRO!$E$34,"") -> Tanzania | B146: Ruvuma | C146: Namtumbo District Council | D146: 238623.9746 | E146: 30782 | F146: 56849 | G146: 150992.9746 | H146: 99 | I146: 1 | J146: 3 | K146: 2 | L146: =IF(INTRO!$E$38="Endemic", IF($H146>0, IF($H146=4,"Unknown", IF($H146=99,"Stopped", $D146)), 0),"Not required") -> Stopped | M146: =IF(INTRO!$E$40="Endemic", IF($I146>0, IF($I146=4,"Unknown",IF($I146=99,"Stopped", $D146)), 0),"Not required") -> 238623.9746 | N146: =IF(INTRO!$E$42="Endemic", IF(AND($J146>1,$J146<5), IF($J146=4, "Unknown", E146+F146), 0),"Not required") -> 87631 | O146: =IF(INTRO!$E$44="Endemic", IF(AND($K146>0,$K146<5), IF($K146=4,"Unknown", IF($K146=1, $F146*0.33, IF($K146=2, $F146*0.5+$G146*0.2, SUM(F146:G146)))), 0),"Not required") -> 58623.09493 | P146: 0 | Q146: 1 | R146: 1 | S146: 1 | U146: T1 (PZQ+ALB/MBD) | V146: MDA 1 | W146: T1 | X146: 46583 | Y146: Namtumbo District Council | AE146: ='MDA3'!Q146 -> 0 | AF146: ='T1'!O146 -> 51885 | AG146: =T3_R1!N146 -> 0 | AI146: 51885 | AJ146: 1
A147: =IF(INTRO!$E$34<>0,INTRO!$E$34,"") -> Tanzania | B147: Ruvuma | C147: Nyasa District Council | D147: 172968.1288 | E147: 22313 | F147: 46635 | G147: 104020.1288 | H147: 99 | I147: 1 | J147: 3 | K147: 2 | L147: =IF(INTRO!$E$38="Endemic", IF($H147>0, IF($H147=4,"Unknown", IF($H147=99,"Stopped", $D147)), 0),"Not required") -> Stopped | M147: =IF(INTRO!$E$40="Endemic", IF($I147>0, IF($I147=4,"Unknown",IF($I147=99,"Stopped", $D147)), 0),"Not required") -> 172968.1288 | N147: =IF(INTRO!$E$42="Endemic", IF(AND($J147>1,$J147<5), IF($J147=4, "Unknown", E147+F147), 0),"Not required") -> 68948 | O147: =IF(INTRO!$E$44="Endemic", IF(AND($K147>0,$K147<5), IF($K147=4,"Unknown", IF($K147=1, $F147*0.33, IF($K147=2, $F147*0.5+$G147*0.2, SUM(F147:G147)))), 0),"Not required") -> 44121.52575 | P147: 0 | Q147: 1 | R147: 1 | S147: 1 | U147: T1 (PZQ+ALB/MBD) | V147: MDA 1 | W147: T1 | X147: 46584 | Y147: Nyasa District Council | AE147: ='MDA3'!Q147 -> 0 | AF147: ='T1'!O147 -> 45838 | AG147: =T3_R1!N147 -> 0 | AI147: 45838 | AJ147: 1
A148: =IF(INTRO!$E$34<>0,INTRO!$E$34,"") -> Tanzania | B148: Ruvuma | C148: Songea District Council | D148: 149167.1247 | E148: 19243 | F148: 31213 | G148: 98711.12466 | H148: 99 | I148: 1 | J148: 3 | K148: 2 | L148: =IF(INTRO!$E$38="Endemic", IF($H148>0, IF($H148=4,"Unknown", IF($H148=99,"Stopped", $D148)), 0),"Not required") -> Stopped | M148: =IF(INTRO!$E$40="Endemic", IF($I148>0, IF($I148=4,"Unknown",IF($I148=99,"Stopped", $D148)), 0),"Not required") -> 149167.1247 | N148: =IF(INTRO!$E$42="Endemic", IF(AND($J148>1,$J148<5), IF($J148=4, "Unknown", E148+F148), 0),"Not required") -> 50456 | O148: =IF(INTRO!$E$44="Endemic", IF(AND($K148>0,$K148<5), IF($K148=4,"Unknown", IF($K148=1, $F148*0.33, IF($K148=2, $F148*0.5+$G148*0.2, SUM(F148:G148)))), 0),"Not required") -> 35348.72493 | P148: 0 | Q148: 1 | R148: 1 | S148: 1 | U148: T1 (PZQ+ALB/MBD) | V148: MDA 1 | W148: T1 | X148: 46585 | Y148: Songea District Council | AE148: ='MDA3'!Q148 -> 0 | AF148: ='T1'!O148 -> 30640 | AG148: =T3_R1!N148 -> 0 | AI148: 30640 | AJ148: 1
A149: =IF(INTRO!$E$34<>0,INTRO!$E$34,"") -> Tanzania | B149: Ruvuma | C149: Songea Municipal Council | D149: 240601.1333 | E149: 31038 | F149: 56337 | G149: 153226.1333 | H149: 99 | I149: 1 | J149: 3 | K149: 2 | L149: =IF(INTRO!$E$38="Endemic", IF($H149>0, IF($H149=4,"Unknown", IF($H149=99,"Stopped", $D149)), 0),"Not required") -> Stopped | M149: =IF(INTRO!$E$40="Endemic", IF($I149>0, IF($I149=4,"Unknown",IF($I149=99,"Stopped", $D149)), 0),"Not required") -> 240601.1333 | N149: =IF(INTRO!$E$42="Endemic", IF(AND($J149>1,$J149<5), IF($J149=4, "Unknown", E149+F149), 0),"Not required") -> 87375 | O149: =IF(INTRO!$E$44="Endemic", IF(AND($K149>0,$K149<5), IF($K149=4,"Unknown", IF($K149=1, $F149*0.33, IF($K149=2, $F149*0.5+$G149*0.2, SUM(F149:G149)))), 0),"Not required") -> 58813.72667 | P149: 0 | Q149: 1 | R149: 1 | S149: 1 | U149: T1 (PZQ+ALB/MBD) | V149: MDA 1 | W149: T1 | X149: 46586 | Y149: Songea Municipal Council | AE149: ='MDA3'!Q149 -> 0 | AF149: ='T1'!O149 -> 51267 | AG149: =T3_R1!N149 -> 0 | AI149: 51267 | AJ149: 1
A150: =IF(INTRO!$E$34<>0,INTRO!$E$34,"") -> Tanzania | B150: Ruvuma | C150: Tunduru District Council | D150: 352990.2138 | E150: 45536 | F150: 71037 | G150: 236417.2138 | H150: 99 | I150: 1 | J150: 3 | K150: 3 | L150: =IF(INTRO!$E$38="Endemic", IF($H150>0, IF($H150=4,"Unknown", IF($H150=99,"Stopped", $D150)), 0),"Not required") -> Stopped | M150: =IF(INTRO!$E$40="Endemic", IF($I150>0, IF($I150=4,"Unknown",IF($I150=99,"Stopped", $D150)), 0),"Not required") -> 352990.2138 | N150: =IF(INTRO!$E$42="Endemic", IF(AND($J150>1,$J150<5), IF($J150=4, "Unknown", E150+F150), 0),"Not required") -> 116573 | O150: =IF(INTRO!$E$44="Endemic", IF(AND($K150>0,$K150<5), IF($K150=4,"Unknown", IF($K150=1, $F150*0.33, IF($K150=2, $F150*0.5+$G150*0.2, SUM(F150:G150)))), 0),"Not required") -> 307454.2138 | P150: 0 | Q150: 1 | R150: 1 | S150: 1 | U150: T1 (PZQ+ALB/MBD) | V150: MDA 1 | W150: T1 | X150: 46587 | Y150: Tunduru District Council | AE150: ='MDA3'!Q150 -> 0 | AF150: ='T1'!O150 -> 69465 | AG150: =T3_R1!N150 -> 0 | AI150: 69465 | AJ150: 1
A151: =IF(INTRO!$E$34<>0,INTRO!$E$34,"") -> Tanzania | B151: Shinyanga | C151: Kahama Town Council | D151: 285741.3052 | E151: 36861 | F151: 88907 | G151: 159973.3052 | H151: 0 | I151: 0 | J151: 3 | K151: 2 | L151: =IF(INTRO!$E$38="Endemic", IF($H151>0, IF($H151=4,"Unknown", IF($H151=99,"Stopped", $D151)), 0),"Not required") -> 0 | M151: =IF(INTRO!$E$40="Endemic", IF($I151>0, IF($I151=4,"Unknown",IF($I151=99,"Stopped", $D151)), 0),"Not required") -> 0 | N151: =IF(INTRO!$E$42="Endemic", IF(AND($J151>1,$J151<5), IF($J151=4, "Unknown", E151+F151), 0),"Not required") -> 125768 | O151: =IF(INTRO!$E$44="Endemic", IF(AND($K151>0,$K151<5), IF($K151=4,"Unknown", IF($K151=1, $F151*0.33, IF($K151=2, $F151*0.5+$G151*0.2, SUM(F151:G151)))), 0),"Not required") -> 76448.16104 | P151: 0 | Q151: 0 | R151: 0 | S151: 1 | V151: T1 | W151: T3 | X151: 46589 | Y151: Kahama Town Council | AE151: ='MDA3'!Q151 -> 0 | AF151: ='T1'!O151 -> 0 | AG151: =T3_R1!N151 -> 0 | AI151: 0 | AJ151: 0
A152: =IF(INTRO!$E$34<>0,INTRO!$E$34,"") -> Tanzania | B152: Shinyanga | C152: Kishapu District Council | D152: 322054.9921 | E152: 41545 | F152: 89851 | G152: 190658.9921 | H152: 0 | I152: 0 | J152: 3 | K152: 2 | L152: =IF(INTRO!$E$38="Endemic", IF($H152>0, IF($H152=4,"Unknown", IF($H152=99,"Stopped", $D152)), 0),"Not required") -> 0 | M152: =IF(INTRO!$E$40="Endemic", IF($I152>0, IF($I152=4,"Unknown",IF($I152=99,"Stopped", $D152)), 0),"Not required") -> 0 | N152: =IF(INTRO!$E$42="Endemic", IF(AND($J152>1,$J152<5), IF($J152=4, "Unknown", E152+F152), 0),"Not required") -> 131396 | O152: =IF(INTRO!$E$44="Endemic", IF(AND($K152>0,$K152<5), IF($K152=4,"Unknown", IF($K152=1, $F152*0.33, IF($K152=2, $F152*0.5+$G152*0.2, SUM(F152:G152)))), 0),"Not required") -> 83057.29841 | P152: 0 | Q152: 0 | R152: 0 | S152: 1 | V152: T1 | W152: T3 | X152: 46590 | Y152: Kishapu District Council | AE152: ='MDA3'!Q152 -> 0 | AF152: ='T1'!O152 -> 0 | AG152: =T3_R1!N152 -> 0 | AI152: 0 | AJ152: 0
A153: =IF(INTRO!$E$34<>0,INTRO!$E$34,"") -> Tanzania | B153: Shinyanga | C153: Msalala District Council | D153: 295792.0216 | E153: 38157 | F153: 67518 | G153: 190117.0216 | H153: 0 | I153: 0 | J153: 3 | K153: 2 | L153: =IF(INTRO!$E$38="Endemic", IF($H153>0, IF($H153=4,"Unknown", IF($H153=99,"Stopped", $D153)), 0),"Not required") -> 0 | M153: =IF(INTRO!$E$40="Endemic", IF($I153>0, IF($I153=4,"Unknown",IF($I153=99,"Stopped", $D153)), 0),"Not required") -> 0 | N153: =IF(INTRO!$E$42="Endemic", IF(AND($J153>1,$J153<5), IF($J153=4, "Unknown", E153+F153), 0),"Not required") -> 105675 | O153: =IF(INTRO!$E$44="Endemic", IF(AND($K153>0,$K153<5), IF($K153=4,"Unknown", IF($K153=1, $F153*0.33, IF($K153=2, $F153*0.5+$G153*0.2, SUM(F153:G153)))), 0),"Not required") -> 71782.40431 | P153: 0 | Q153: 0 | R153: 0 | S153: 1 | V153: T1 | W153: T3 | X153: 46642 | Y153: Msalala District Council | AE153: ='MDA3'!Q153 -> 0 | AF153: ='T1'!O153 -> 0 | AG153: =T3_R1!N153 -> 0 | AI153: 0 | AJ153: 0
A154: =IF(INTRO!$E$34<>0,INTRO!$E$34,"") -> Tanzania | B154: Shinyanga | C154: Shinyanga District Council | D154: 394523.552 | E154: 50894 | F154: 91832 | G154: 251797.552 | H154: 0 | I154: 0 | J154: 3 | K154: 2 | L154: =IF(INTRO!$E$38="Endemic", IF($H154>0, IF($H154=4,"Unknown", IF($H154=99,"Stopped", $D154)), 0),"Not required") -> 0 | M154: =IF(INTRO!$E$40="Endemic", IF($I154>0, IF($I154=4,"Unknown",IF($I154=99,"Stopped", $D154)), 0),"Not required") -> 0 | N154: =IF(INTRO!$E$42="Endemic", IF(AND($J154>1,$J154<5), IF($J154=4, "Unknown", E154+F154), 0),"Not required") -> 142726 | O154: =IF(INTRO!$E$44="Endemic", IF(AND($K154>0,$K154<5), IF($K154=4,"Unknown", IF($K154=1, $F154*0.33, IF($K154=2, $F154*0.5+$G154*0.2, SUM(F154:G154)))), 0),"Not required") -> 96275.5104 | P154: 0 | Q154: 0 | R154: 0 | S154: 1 | V154: T1 | W154: T3 | X154: 46591 | Y154: Shinyanga District Council | AE154: ='MDA3'!Q154 -> 0 | AF154: ='T1'!O154 -> 0 | AG154: =T3_R1!N154 -> 0 | AI154: 0 | AJ154: 0
A155: =IF(INTRO!$E$34<>0,INTRO!$E$34,"") -> Tanzania | B155: Shinyanga | C155: Shinyanga Municipal Council | D155: 190399.6081 | E155: 24562 | F155: 43070 | G155: 122767.6081 | H155: 0 | I155: 0 | J155: 3 | K155: 2 | L155: =IF(INTRO!$E$38="Endemic", IF($H155>0, IF($H155=4,"Unknown", IF($H155=99,"Stopped", $D155)), 0),"Not required") -> 0 | M155: =IF(INTRO!$E$40="Endemic", IF($I155>0, IF($I155=4,"Unknown",IF($I155=99,"Stopped", $D155)), 0),"Not required") -> 0 | N155: =IF(INTRO!$E$42="Endemic", IF(AND($J155>1,$J155<5), IF($J155=4, "Unknown", E155+F155), 0),"Not required") -> 67632 | O155: =IF(INTRO!$E$44="Endemic", IF(AND($K155>0,$K155<5), IF($K155=4,"Unknown", IF($K155=1, $F155*0.33, IF($K155=2, $F155*0.5+$G155*0.2, SUM(F155:G155)))), 0),"Not required") -> 46088.52162 | P155: 0 | Q155: 0 | R155: 0 | S155: 1 | V155: T1 | W155: T3 | X155: 46592 | Y155: Shinyanga Municipal Council | AE155: ='MDA3'!Q155 -> 0 | AF155: ='T1'!O155 -> 0 | AG155: =T3_R1!N155 -> 0 | AI155: 0 | AJ155: 0
A156: =IF(INTRO!$E$34<>0,INTRO!$E$34,"") -> Tanzania | B156: Shinyanga | C156: Ushetu District Council | D156: 322153.7125 | E156: 41558 | F156: 84815 | G156: 195780.7125 | H156: 0 | I156: 0 | J156: 3 | K156: 2 | L156: =IF(INTRO!$E$38="Endemic", IF($H156>0, IF($H156=4,"Unknown", IF($H156=99,"Stopped", $D156)), 0),"Not required") -> 0 | M156: =IF(INTRO!$E$40="Endemic", IF($I156>0, IF($I156=4,"Unknown",IF($I156=99,"Stopped", $D156)), 0),"Not required") -> 0 | N156: =IF(INTRO!$E$42="Endemic", IF(AND($J156>1,$J156<5), IF($J156=4, "Unknown", E156+F156), 0),"Not required") -> 126373 | O156: =IF(INTRO!$E$44="Endemic", IF(AND($K156>0,$K156<5), IF($K156=4,"Unknown", IF($K156=1, $F156*0.33, IF($K156=2, $F156*0.5+$G156*0.2, SUM(F156:G156)))), 0),"Not required") -> 81563.64251 | P156: 0 | Q156: 0 | R156: 0 | S156: 1 | V156: T1 | W156: T3 | X156: 46643 | Y156: Ushetu District Council | AE156: ='MDA3'!Q156 -> 0 | AF156: ='T1'!O156 -> 0 | AG156: =T3_R1!N156 -> 0 | AI156: 0 | AJ156: 0
A157: =IF(INTRO!$E$34<>0,INTRO!$E$34,"") -> Tanzania | B157: Simiyu | C157: Bariadi District Council | D157: 309171.1506 | E157: 39883 | F157: 91716 | G157: 177572.1506 | H157: 0 | I157: 0 | J157: 3 | K157: 3 | L157: =IF(INTRO!$E$38="Endemic", IF($H157>0, IF($H157=4,"Unknown", IF($H157=99,"Stopped", $D157)), 0),"Not required") -> 0 | M157: =IF(INTRO!$E$40="Endemic", IF($I157>0, IF($I157=4,"Unknown",IF($I157=99,"Stopped", $D157)), 0),"Not required") -> 0 | N157: =IF(INTRO!$E$42="Endemic", IF(AND($J157>1,$J157<5), IF($J157=4, "Unknown", E157+F157), 0),"Not required") -> 131599 | O157: =IF(INTRO!$E$44="Endemic", IF(AND($K157>0,$K157<5), IF($K157=4,"Unknown", IF($K157=1, $F157*0.33, IF($K157=2, $F157*0.5+$G157*0.2, SUM(F157:G157)))), 0),"Not required") -> 269288.1506 | P157: 0 | Q157: 0 | R157: 0 | S157: 1 | V157: T1 | W157: T3 | X157: 46593 | Y157: Bariadi District Council | AE157: ='MDA3'!Q157 -> 0 | AF157: ='T1'!O157 -> 0 | AG157: =T3_R1!N157 -> 0 | AI157: 0 | AJ157: 0
A158: =IF(INTRO!$E$34<>0,INTRO!$E$34,"") -> Tanzania | B158: Simiyu | C158: Bariadi Town Council | D158: 179998.3801 | E158: 23220 | F158: 53996 | G158: 102782.3801 | H158: 0 | I158: 0 | J158: 3 | K158: 3 | L158: =IF(INTRO!$E$38="Endemic", IF($H158>0, IF($H158=4,"Unknown", IF($H158=99,"Stopped", $D158)), 0),"Not required") -> 0 | M158: =IF(INTRO!$E$40="Endemic", IF($I158>0, IF($I158=4,"Unknown",IF($I158=99,"Stopped", $D158)), 0),"Not required") -> 0 | N158: =IF(INTRO!$E$42="Endemic", IF(AND($J158>1,$J158<5), IF($J158=4, "Unknown", E158+F158), 0),"Not required") -> 77216 | O158: =IF(INTRO!$E$44="Endemic", IF(AND($K158>0,$K158<5), IF($K158=4,"Unknown", IF($K158=1, $F158*0.33, IF($K158=2, $F158*0.5+$G158*0.2, SUM(F158:G158)))), 0),"Not required") -> 156778.3801 | P158: 0 | Q158: 0 | R158: 0 | S158: 1 | V158: T1 | W158: T3 | X158: 46594 | Y158: Bariadi Town Council | AE158: ='MDA3'!Q158 -> 0 | AF158: ='T1'!O158 -> 0 | AG158: =T3_R1!N158 -> 0 | AI158: 0 | AJ158: 0
A159: =IF(INTRO!$E$34<>0,INTRO!$E$34,"") -> Tanzania | B159: Simiyu | C159: Busega District Council | D159: 235492.0976 | E159: 30378 | F159: 85473 | G159: 119641.0976 | H159: 0 | I159: 0 | J159: 3 | K159: 2 | L159: =IF(INTRO!$E$38="Endemic", IF($H159>0, IF($H159=4,"Unknown", IF($H159=99,"Stopped", $D159)), 0),"Not required") -> 0 | M159: =IF(INTRO!$E$40="Endemic", IF($I159>0, IF($I159=4,"Unknown",IF($I159=99,"Stopped", $D159)), 0),"Not required") -> 0 | N159: =IF(INTRO!$E$42="Endemic", IF(AND($J159>1,$J159<5), IF($J159=4, "Unknown", E159+F159), 0),"Not required") -> 115851 | O159: =IF(INTRO!$E$44="Endemic", IF(AND($K159>0,$K159<5), IF($K159=4,"Unknown", IF($K159=1, $F159*0.33, IF($K159=2, $F159*0.5+$G159*0.2, SUM(F159:G159)))), 0),"Not required") -> 66664.71951 | P159: 0 | Q159: 0 | R159: 0 | S159: 1 | V159: T1 | W159: T3 | X159: 46595 | Y159: Busega District Council | AE159: ='MDA3'!Q159 -> 0 | AF159: ='T1'!O159 -> 0 | AG159: =T3_R1!N159 -> 0 | AI159: 0 | AJ159: 0
A160: =IF(INTRO!$E$34<>0,INTRO!$E$34,"") -> Tanzania | B160: Simiyu | C160: Itilima District Council | D160: 363073.3486 | E160: 46836 | F160: 101715 | G160: 214522.3486 | H160: 0 | I160: 0 | J160: 3 | K160: 3 | L160: =IF(INTRO!$E$38="Endemic", IF($H160>0, IF($H160=4,"Unknown", IF($H160=99,"Stopped", $D160)), 0),"Not required") -> 0 | M160: =IF(INTRO!$E$40="Endemic", IF($I160>0, IF($I160=4,"Unknown",IF($I160=99,"Stopped", $D160)), 0),"Not required") -> 0 | N160: =IF(INTRO!$E$42="Endemic", IF(AND($J160>1,$J160<5), IF($J160=4, "Unknown", E160+F160), 0),"Not required") -> 148551 | O160: =IF(INTRO!$E$44="Endemic", IF(AND($K160>0,$K160<5), IF($K160=4,"Unknown", IF($K160=1, $F160*0.33, IF($K160=2, $F160*0.5+$G160*0.2, SUM(F160:G160)))), 0),"Not required") -> 316237.3486 | P160: 0 | Q160: 0 | R160: 0 | S160: 1 | V160: T1 | W160: T3 | X160: 46596 | Y160: Itilima District Council | AE160: ='MDA3'!Q160 -> 0 | AF160: ='T1'!O160 -> 0 | AG160: =T3_R1!N160 -> 0 | AI160: 0 | AJ160: 0
A161: =IF(INTRO!$E$34<>0,INTRO!$E$34,"") -> Tanzania | B161: Simiyu | C161: Maswa District Council | D161: 398036.2729 | E161: 51347 | F161: 82467 | G161: 264222.2729 | H161: 0 | I161: 0 | J161: 3 | K161: 3 | L161: =IF(INTRO!$E$38="Endemic", IF($H161>0, IF($H161=4,"Unknown", IF($H161=99,"Stopped", $D161)), 0),"Not required") -> 0 | M161: =IF(INTRO!$E$40="Endemic", IF($I161>0, IF($I161=4,"Unknown",IF($I161=99,"Stopped", $D161)), 0),"Not required") -> 0 | N161: =IF(INTRO!$E$42="Endemic", IF(AND($J161>1,$J161<5), IF($J161=4, "Unknown", E161+F161), 0),"Not required") -> 133814 | O161: =IF(INTRO!$E$44="Endemic", IF(AND($K161>0,$K161<5), IF($K161=4,"Unknown", IF($K161=1, $F161*0.33, IF($K161=2, $F161*0.5+$G161*0.2, SUM(F161:G161)))), 0),"Not required") -> 346689.2729 | P161: 0 | Q161: 0 | R161: 0 | S161: 1 | V161: T1 | W161: T3 | X161: 46597 | Y161: Maswa District Council | AE161: ='MDA3'!Q161 -> 0 | AF161: ='T1'!O161 -> 0 | AG161: =T3_R1!N161 -> 0 | AI161: 0 | AJ161: 0
A162: =IF(INTRO!$E$34<>0,INTRO!$E$34,"") -> Tanzania | B162: Simiyu | C162: Meatu District Council | D162: 346557.8699 | E162: 44706 | F162: 72414 | G162: 229437.8699 | H162: 0 | I162: 0 | J162: 3 | K162: 2 | L162: =IF(INTRO!$E$38="Endemic", IF($H162>0, IF($H162=4,"Unknown", IF($H162=99,"Stopped", $D162)), 0),"Not required") -> 0 | M162: =IF(INTRO!$E$40="Endemic", IF($I162>0, IF($I162=4,"Unknown",IF($I162=99,"Stopped", $D162)), 0),"Not required") -> 0 | N162: =IF(INTRO!$E$42="Endemic", IF(AND($J162>1,$J162<5), IF($J162=4, "Unknown", E162+F162), 0),"Not required") -> 117120 | O162: =IF(INTRO!$E$44="Endemic", IF(AND($K162>0,$K162<5), IF($K162=4,"Unknown", IF($K162=1, $F162*0.33, IF($K162=2, $F162*0.5+$G162*0.2, SUM(F162:G162)))), 0),"Not required") -> 82094.57399 | P162: 0 | Q162: 0 | R162: 0 | S162: 1 | V162: T1 | W162: T3 | X162: 46598 | Y162: Meatu District Council | AE162: ='MDA3'!Q162 -> 0 | AF162: ='T1'!O162 -> 0 | AG162: =T3_R1!N162 -> 0 | AI162: 0 | AJ162: 0
A163: =IF(INTRO!$E$34<>0,INTRO!$E$34,"") -> Tanzania | B163: Singida | C163: Ikungi District Council | D163: 328187.9665 | E163: 42336 | F163: 83799 | G163: 202052.9665 | H163: 99 | I163: 0 | J163: 3 | K163: 2 | L163: =IF(INTRO!$E$38="Endemic", IF($H163>0, IF($H163=4,"Unknown", IF($H163=99,"Stopped", $D163)), 0),"Not required") -> Stopped | M163: =IF(INTRO!$E$40="Endemic", IF($I163>0, IF($I163=4,"Unknown",IF($I163=99,"Stopped", $D163)), 0),"Not required") -> 0 | N163: =IF(INTRO!$E$42="Endemic", IF(AND($J163>1,$J163<5), IF($J163=4, "Unknown", E163+F163), 0),"Not required") -> 126135 | O163: =IF(INTRO!$E$44="Endemic", IF(AND($K163>0,$K163<5), IF($K163=4,"Unknown", IF($K163=1, $F163*0.33, IF($K163=2, $F163*0.5+$G163*0.2, SUM(F163:G163)))), 0),"Not required") -> 82310.0933 | P163: 0 | Q163: 0 | R163: 1 | S163: 0 | U163: T3 (ALB/MBD) | V163: T1 | W163: T3 | X163: 46599 | Y163: Ikungi District Council | AE163: ='MDA3'!Q163 -> 0 | AF163: ='T1'!O163 -> 0 | AG163: =T3_R1!N163 -> 83690 | AI163: 83690 | AJ163: 1
A164: =IF(INTRO!$E$34<>0,INTRO!$E$34,"") -> Tanzania | B164: Singida | C164: Iramba District Council | D164: 284087.8926 | E164: 36647 | F164: 67252 | G164: 180188.8926 | H164: 99 | I164: 0 | J164: 3 | K164: 2 | L164: =IF(INTRO!$E$38="Endemic", IF($H164>0, IF($H164=4,"Unknown", IF($H164=99,"Stopped", $D164)), 0),"Not required") -> Stopped | M164: =IF(INTRO!$E$40="Endemic", IF($I164>0, IF($I164=4,"Unknown",IF($I164=99,"Stopped", $D164)), 0),"Not required") -> 0 | N164: =IF(INTRO!$E$42="Endemic", IF(AND($J164>1,$J164<5), IF($J164=4, "Unknown", E164+F164), 0),"Not required") -> 103899 | O164: =IF(INTRO!$E$44="Endemic", IF(AND($K164>0,$K164<5), IF($K164=4,"Unknown", IF($K164=1, $F164*0.33, IF($K164=2, $F164*0.5+$G164*0.2, SUM(F164:G164)))), 0),"Not required") -> 69663.77852 | P164: 0 | Q164: 0 | R164: 1 | S164: 0 | U164: T3 (ALB/MBD) | V164: T1 | W164: T3 | X164: 46600 | Y164: Iramba District Council | AE164: ='MDA3'!Q164 -> 0 | AF164: ='T1'!O164 -> 0 | AG164: =T3_R1!N164 -> 66062 | AI164: 66062 | AJ164: 1
A165: =IF(INTRO!$E$34<>0,INTRO!$E$34,"") -> Tanzania | B165: Singida | C165: Itigi District Council | D165: 135341.364 | E165: 17459 | F165: 39272 | G165: 78610.36397 | H165: 99 | I165: 0 | J165: 3 | K165: 2 | L165: =IF(INTRO!$E$38="Endemic", IF($H165>0, IF($H165=4,"Unknown", IF($H165=99,"Stopped", $D165)), 0),"Not required") -> Stopped | M165: =IF(INTRO!$E$40="Endemic", IF($I165>0, IF($I165=4,"Unknown",IF($I165=99,"Stopped", $D165)), 0),"Not required") -> 0 | N165: =IF(INTRO!$E$42="Endemic", IF(AND($J165>1,$J165<5), IF($J165=4, "Unknown", E165+F165), 0),"Not required") -> 56731 | O165: =IF(INTRO!$E$44="Endemic", IF(AND($K165>0,$K165<5), IF($K165=4,"Unknown", IF($K165=1, $F165*0.33, IF($K165=2, $F165*0.5+$G165*0.2, SUM(F165:G165)))), 0),"Not required") -> 35358.07279 | P165: 0 | Q165: 0 | R165: 1 | S165: 0 | U165: T3 (ALB/MBD) | V165: T1 | W165: T3 | X165: 46644 | Y165: Itigi District Council | AE165: ='MDA3'!Q165 -> 0 | AF165: ='T1'!O165 -> 0 | AG165: =T3_R1!N165 -> 36887 | AI165: 36887 | AJ165: 1
A166: =IF(INTRO!$E$34<>0,INTRO!$E$34,"") -> Tanzania | B166: Singida | C166: Manyoni District Council | D166: 221465.7882 | E166: 28569 | F166: 49408 | G166: 143488.7882 | H166: 99 | I166: 0 | J166: 3 | K166: 2 | L166: =IF(INTRO!$E$38="Endemic", IF($H166>0, IF($H166=4,"Unknown", IF($H166=99,"Stopped", $D166)), 0),"Not required") -> Stopped | M166: =IF(INTRO!$E$40="Endemic", IF($I166>0, IF($I166=4,"Unknown",IF($I166=99,"Stopped", $D166)), 0),"Not required") -> 0 | N166: =IF(INTRO!$E$42="Endemic", IF(AND($J166>1,$J166<5), IF($J166=4, "Unknown", E166+F166), 0),"Not required") -> 77977 | O166: =IF(INTRO!$E$44="Endemic", IF(AND($K166>0,$K166<5), IF($K166=4,"Unknown", IF($K166=1, $F166*0.33, IF($K166=2, $F166*0.5+$G166*0.2, SUM(F166:G166)))), 0),"Not required") -> 53401.75764 | P166: 0 | Q166: 0 | R166: 1 | S166: 0 | U166: T3 (ALB/MBD) | V166: T1 | W166: T3 | X166: 46601 | Y166: Manyoni District Council | AE166: ='MDA3'!Q166 -> 0 | AF166: ='T1'!O166 -> 0 | AG166: =T3_R1!N166 -> 48242 | AI166: 48242 | AJ166: 1
A167: =IF(INTRO!$E$34<>0,INTRO!$E$34,"") -> Tanzania | B167: Singida | C167: Mkalama District Council | D167: 226919.9236 | E167: 29273 | F167: 59870 | G167: 137776.9236 | H167: 99 | I167: 0 | J167: 3 | K167: 2 | L167: =IF(INTRO!$E$38="Endemic", IF($H167>0, IF($H167=4,"Unknown", IF($H167=99,"Stopped", $D167)), 0),"Not required") -> Stopped | M167: =IF(INTRO!$E$40="Endemic", IF($I167>0, IF($I167=4,"Unknown",IF($I167=99,"Stopped", $D167)), 0),"Not required") -> 0 | N167: =IF(INTRO!$E$42="Endemic", IF(AND($J167>1,$J167<5), IF($J167=4, "Unknown", E167+F167), 0),"Not required") -> 89143 | O167: =IF(INTRO!$E$44="Endemic", IF(AND($K167>0,$K167<5), IF($K167=4,"Unknown", IF($K167=1, $F167*0.33, IF($K167=2, $F167*0.5+$G167*0.2, SUM(F167:G167)))), 0),"Not required") -> 57490.38471 | P167: 0 | Q167: 0 | R167: 1 | S167: 0 | U167: T3 (ALB/MBD) | V167: T1 | W167: T3 | X167: 46602 | Y167: Mkalama District Council | AE167: ='MDA3'!Q167 -> 0 | AF167: ='T1'!O167 -> 0 | AG167: =T3_R1!N167 -> 58520 | AI167: 58520 | AJ167: 1
A168: =IF(INTRO!$E$34<>0,INTRO!$E$34,"") -> Tanzania | B168: Singida | C168: Singida District Council | D168: 271149.7597 | E168: 34978 | F168: 76601 | G168: 159570.7597 | H168: 99 | I168: 0 | J168: 3 | K168: 2 | L168: =IF(INTRO!$E$38="Endemic", IF($H168>0, IF($H168=4,"Unknown", IF($H168=99,"Stopped", $D168)), 0),"Not required") -> Stopped | M168: =IF(INTRO!$E$40="Endemic", IF($I168>0, IF($I168=4,"Unknown",IF($I168=99,"Stopped", $D168)), 0),"Not required") -> 0 | N168: =IF(INTRO!$E$42="Endemic", IF(AND($J168>1,$J168<5), IF($J168=4, "Unknown", E168+F168), 0),"Not required") -> 111579 | O168: =IF(INTRO!$E$44="Endemic", IF(AND($K168>0,$K168<5), IF($K168=4,"Unknown", IF($K168=1, $F168*0.33, IF($K168=2, $F168*0.5+$G168*0.2, SUM(F168:G168)))), 0),"Not required") -> 70214.65194 | P168: 0 | Q168: 0 | R168: 1 | S168: 0 | U168: T3 (ALB/MBD) | V168: T1 | W168: T3 | X168: 46603 | Y168: Singida District Council | AE168: ='MDA3'!Q168 -> 0 | AF168: ='T1'!O168 -> 0 | AG168: =T3_R1!N168 -> 75465 | AI168: 75465 | AJ168: 1
A169: =IF(INTRO!$E$34<>0,INTRO!$E$34,"") -> Tanzania | B169: Singida | C169: Singida Municipal Council | D169: 180804.9064 | E169: 23324 | F169: 49900 | G169: 107580.9064 | H169: 99 | I169: 0 | J169: 3 | K169: 2 | L169: =IF(INTRO!$E$38="Endemic", IF($H169>0, IF($H169=4,"Unknown", IF($H169=99,"Stopped", $D169)), 0),"Not required") -> Stopped | M169: =IF(INTRO!$E$40="Endemic", IF($I169>0, IF($I169=4,"Unknown",IF($I169=99,"Stopped", $D169)), 0),"Not required") -> 0 | N169: =IF(INTRO!$E$42="Endemic", IF(AND($J169>1,$J169<5), IF($J169=4, "Unknown", E169+F169), 0),"Not required") -> 73224 | O169: =IF(INTRO!$E$44="Endemic", IF(AND($K169>0,$K169<5), IF($K169=4,"Unknown", IF($K169=1, $F169*0.33, IF($K169=2, $F169*0.5+$G169*0.2, SUM(F169:G169)))), 0),"Not required") -> 46466.18127 | P169: 0 | Q169: 0 | R169: 1 | S169: 0 | U169: T3 (ALB/MBD) | V169: T1 | W169: T3 | X169: 46604 | Y169: Singida Municipal Council | AE169: ='MDA3'!Q169 -> 0 | AF169: ='T1'!O169 -> 0 | AG169: =T3_R1!N169 -> 48414 | AI169: 48414 | AJ169: 1
A170: =IF(INTRO!$E$34<>0,INTRO!$E$34,"") -> Tanzania | B170: Songwe | C170: Ileje District Council | D170: 158398.7965 | E170: 20433 | F170: 26908 | G170: 111057.7965 | H170: 99 | I170: 1 | J170: 3 | K170: 2 | L170: =IF(INTRO!$E$38="Endemic", IF($H170>0, IF($H170=4,"Unknown", IF($H170=99,"Stopped", $D170)), 0),"Not required") -> Stopped | M170: =IF(INTRO!$E$40="Endemic", IF($I170>0, IF($I170=4,"Unknown",IF($I170=99,"Stopped", $D170)), 0),"Not required") -> 158398.7965 | N170: =IF(INTRO!$E$42="Endemic", IF(AND($J170>1,$J170<5), IF($J170=4, "Unknown", E170+F170), 0),"Not required") -> 47341 | O170: =IF(INTRO!$E$44="Endemic", IF(AND($K170>0,$K170<5), IF($K170=4,"Unknown", IF($K170=1, $F170*0.33, IF($K170=2, $F170*0.5+$G170*0.2, SUM(F170:G170)))), 0),"Not required") -> 35665.5593 | P170: 0 | Q170: 1 | R170: 1 | S170: 1 | U170: T1 (PZQ+ALB/MBD) | V170: MDA 1 | W170: T1 | X170: 46535 | Y170: Ileje District Council | AE170: ='MDA3'!Q170 -> 0 | AF170: ='T1'!O170 -> 25012 | AG170: =T3_R1!N170 -> 0 | AI170: 25012 | AJ170: 1
A171: =IF(INTRO!$E$34<>0,INTRO!$E$34,"") -> Tanzania | B171: Songwe | C171: Mbozi District Council | D171: 568087.1064 | E171: 73283 | F171: 123543 | G171: 371261.1064 | H171: 99 | I171: 0 | J171: 3 | K171: 3 | L171: =IF(INTRO!$E$38="Endemic", IF($H171>0, IF($H171=4,"Unknown", IF($H171=99,"Stopped", $D171)), 0),"Not required") -> Stopped | M171: =IF(INTRO!$E$40="Endemic", IF($I171>0, IF($I171=4,"Unknown",IF($I171=99,"Stopped", $D171)), 0),"Not required") -> 0 | N171: =IF(INTRO!$E$42="Endemic", IF(AND($J171>1,$J171<5), IF($J171=4, "Unknown", E171+F171), 0),"Not required") -> 196826 | O171: =IF(INTRO!$E$44="Endemic", IF(AND($K171>0,$K171<5), IF($K171=4,"Unknown", IF($K171=1, $F171*0.33, IF($K171=2, $F171*0.5+$G171*0.2, SUM(F171:G171)))), 0),"Not required") -> 494804.1064 | P171: 0 | Q171: 0 | R171: 1 | S171: 1 | U171: T1 (PZQ+ALB/MBD) | V171: T1 | W171: T3 | X171: 46540 | Y171: Mbozi District Council | AE171: ='MDA3'!Q171 -> 0 | AF171: ='T1'!O171 -> 121543 | AG171: =T3_R1!N171 -> 0 | AI171: 121543 | AJ171: 1
A172: =IF(INTRO!$E$34<>0,INTRO!$E$34,"") -> Tanzania | B172: Songwe | C172: Momba District Council | D172: 214766.2414 | E172: 27705 | F172: 50336 | G172: 136725.2414 | H172: 99 | I172: 0 | J172: 3 | K172: 3 | L172: =IF(INTRO!$E$38="Endemic", IF($H172>0, IF($H172=4,"Unknown", IF($H172=99,"Stopped", $D172)), 0),"Not required") -> Stopped | M172: =IF(INTRO!$E$40="Endemic", IF($I172>0, IF($I172=4,"Unknown",IF($I172=99,"Stopped", $D172)), 0),"Not required") -> 0 | N172: =IF(INTRO!$E$42="Endemic", IF(AND($J172>1,$J172<5), IF($J172=4, "Unknown", E172+F172), 0),"Not required") -> 78041 | O172: =IF(INTRO!$E$44="Endemic", IF(AND($K172>0,$K172<5), IF($K172=4,"Unknown", IF($K172=1, $F172*0.33, IF($K172=2, $F172*0.5+$G172*0.2, SUM(F172:G172)))), 0),"Not required") -> 187061.2414 | P172: 0 | Q172: 0 | R172: 1 | S172: 1 | U172: T1 (PZQ+ALB/MBD) | V172: T1 | W172: T3 | X172: 46541 | Y172: Momba District Council | AE172: ='MDA3'!Q172 -> 0 | AF172: ='T1'!O172 -> 47911 | AG172: =T3_R1!N172 -> 0 | AI172: 47911 | AJ172: 1
A173: =IF(INTRO!$E$34<>0,INTRO!$E$34,"") -> Tanzania | B173: Songwe | C173: Songwe District Council | D173: 170159.4087 | E173: 21951 | F173: 35910 | G173: 112298.4087 | H173: 99 | I173: 0 | J173: 3 | K173: 2 | L173: =IF(INTRO!$E$38="Endemic", IF($H173>0, IF($H173=4,"Unknown", IF($H173=99,"Stopped", $D173)), 0),"Not required") -> Stopped | M173: =IF(INTRO!$E$40="Endemic", IF($I173>0, IF($I173=4,"Unknown",IF($I173=99,"Stopped", $D173)), 0),"Not required") -> 0 | N173: =IF(INTRO!$E$42="Endemic", IF(AND($J173>1,$J173<5), IF($J173=4, "Unknown", E173+F173), 0),"Not required") -> 57861 | O173: =IF(INTRO!$E$44="Endemic", IF(AND($K173>0,$K173<5), IF($K173=4,"Unknown", IF($K173=1, $F173*0.33, IF($K173=2, $F173*0.5+$G173*0.2, SUM(F173:G173)))), 0),"Not required") -> 40414.68173 | P173: 0 | Q173: 0 | R173: 1 | S173: 1 | U173: T1 (PZQ+ALB/MBD) | V173: T1 | W173: T3 | X173: 46645 | Y173: Songwe District Council | AE173: ='MDA3'!Q173 -> 0 | AF173: ='T1'!O173 -> 35869 | AG173: =T3_R1!N173 -> 0 | AI173: 35869 | AJ173: 1
A174: =IF(INTRO!$E$34<>0,INTRO!$E$34,"") -> Tanzania | B174: Songwe | C174: Tunduma Town Council | D174: 159913.3471 | E174: 20629 | F174: 38320 | G174: 100964.3471 | H174: 99 | I174: 0 | J174: 3 | K174: 3 | L174: =IF(INTRO!$E$38="Endemic", IF($H174>0, IF($H174=4,"Unknown", IF($H174=99,"Stopped", $D174)), 0),"Not required") -> Stopped | M174: =IF(INTRO!$E$40="Endemic", IF($I174>0, IF($I174=4,"Unknown",IF($I174=99,"Stopped", $D174)), 0),"Not required") -> 0 | N174: =IF(INTRO!$E$42="Endemic", IF(AND($J174>1,$J174<5), IF($J174=4, "Unknown", E174+F174), 0),"Not required") -> 58949 | O174: =IF(INTRO!$E$44="Endemic", IF(AND($K174>0,$K174<5), IF($K174=4,"Unknown", IF($K174=1, $F174*0.33, IF($K174=2, $F174*0.5+$G174*0.2, SUM(F174:G174)))), 0),"Not required") -> 139284.3471 | P174: 0 | Q174: 0 | R174: 1 | S174: 1 | U174: T1 (PZQ+ALB/MBD) | V174: T1 | W174: T3 | X174: 46543 | Y174: Tunduma Town Council | AE174: ='MDA3'!Q174 -> 0 | AF174: ='T1'!O174 -> 37107 | AG174: =T3_R1!N174 -> 0 | AI174: 37107 | AJ174: 1
A175: =IF(INTRO!$E$34<>0,INTRO!$E$34,"") -> Tanzania | B175: Tabora | C175: Igunga District Council | D175: 504106.6442 | E175: 65030 | F175: 99821 | G175: 339255.6442 | H175: 99 | I175: 0 | J175: 3 | K175: 2 | L175: =IF(INTRO!$E$38="Endemic", IF($H175>0, IF($H175=4,"Unknown", IF($H175=99,"Stopped", $D175)), 0),"Not required") -> Stopped | M175: =IF(INTRO!$E$40="Endemic", IF($I175>0, IF($I175=4,"Unknown",IF($I175=99,"Stopped", $D175)), 0),"Not required") -> 0 | N175: =IF(INTRO!$E$42="Endemic", IF(AND($J175>1,$J175<5), IF($J175=4, "Unknown", E175+F175), 0),"Not required") -> 164851 | O175: =IF(INTRO!$E$44="Endemic", IF(AND($K175>0,$K175<5), IF($K175=4,"Unknown", IF($K175=1, $F175*0.33, IF($K175=2, $F175*0.5+$G175*0.2, SUM(F175:G175)))), 0),"Not required") -> 117761.6288 | P175: 0 | Q175: 0 | R175: 1 | S175: 0 | U175: T3 (ALB/MBD) | V175: T1 | W175: T3 | X175: 46605 | Y175: Igunga District Council | AE175: ='MDA3'!Q175 -> 0 | AF175: ='T1'!O175 -> 0 | AG175: =T3_R1!N175 -> 84117 | AI175: 84117 | AJ175: 1
A176: =IF(INTRO!$E$34<>0,INTRO!$E$34,"") -> Tanzania | B176: Tabora | C176: Kaliua District Council | D176: 496074.2568 | E176: 63994 | F176: 124959 | G176: 307121.2568 | H176: 99 | I176: 0 | J176: 3 | K176: 2 | L176: =IF(INTRO!$E$38="Endemic", IF($H176>0, IF($H176=4,"Unknown", IF($H176=99,"Stopped", $D176)), 0),"Not required") -> Stopped | M176: =IF(INTRO!$E$40="Endemic", IF($I176>0, IF($I176=4,"Unknown",IF($I176=99,"Stopped", $D176)), 0),"Not required") -> 0 | N176: =IF(INTRO!$E$42="Endemic", IF(AND($J176>1,$J176<5), IF($J176=4, "Unknown", E176+F176), 0),"Not required") -> 188953 | O176: =IF(INTRO!$E$44="Endemic", IF(AND($K176>0,$K176<5), IF($K176=4,"Unknown", IF($K176=1, $F176*0.33, IF($K176=2, $F176*0.5+$G176*0.2, SUM(F176:G176)))), 0),"Not required") -> 123903.7514 | P176: 0 | Q176: 0 | R176: 1 | S176: 1 | U176: T1 (PZQ+ALB/MBD) | V176: T1 | W176: T3 | X176: 46606 | Y176: Kaliua District Council | AE176: ='MDA3'!Q176 -> 0 | AF176: ='T1'!O176 -> 96077 | AG176: =T3_R1!N176 -> 0 | AI176: 96077 | AJ176: 1
A177: =IF(INTRO!$E$34<>0,INTRO!$E$34,"") -> Tanzania | B177: Tabora | C177: Nzega District Council | D177: 552232.2163 | E177: 71238 | F177: 127286 | G177: 353708.2163 | H177: 99 | I177: 0 | J177: 3 | K177: 2 | L177: =IF(INTRO!$E$38="Endemic", IF($H177>0, IF($H177=4,"Unknown", IF($H177=99,"Stopped", $D177)), 0),"Not required") -> Stopped | M177: =IF(INTRO!$E$40="Endemic", IF($I177>0, IF($I177=4,"Unknown",IF($I177=99,"Stopped", $D177)), 0),"Not required") -> 0 | N177: =IF(INTRO!$E$42="Endemic", IF(AND($J177>1,$J177<5), IF($J177=4, "Unknown", E177+F177), 0),"Not required") -> 198524 | O177: =IF(INTRO!$E$44="Endemic", IF(AND($K177>0,$K177<5), IF($K177=4,"Unknown", IF($K177=1, $F177*0.33, IF($K177=2, $F177*0.5+$G177*0.2, SUM(F177:G177)))), 0),"Not required") -> 134384.6433 | P177: 0 | Q177: 0 | R177: 1 | S177: 0 | U177: T3 (ALB/MBD) | V177: T1 | W177: T3 | X177: 46607 | Y177: Nzega District Council | AE177: ='MDA3'!Q177 -> 0 | AF177: ='T1'!O177 -> 0 | AG177: =T3_R1!N177 -> 127166 | AI177: 127166 | AJ177: 1
A178: =IF(INTRO!$E$34<>0,INTRO!$E$34,"") -> Tanzania | B178: Tabora | C178: Nzega Town Council | D178: 81175.10389 | E178: 10472 | F178: 27178 | G178: 43525.10389 | H178: 99 | I178: 0 | J178: 3 | K178: 2 | L178: =IF(INTRO!$E$38="Endemic", IF($H178>0, IF($H178=4,"Unknown", IF($H178=99,"Stopped", $D178)), 0),"Not required") -> Stopped | M178: =IF(INTRO!$E$40="Endemic", IF($I178>0, IF($I178=4,"Unknown",IF($I178=99,"Stopped", $D178)), 0),"Not required") -> 0 | N178: =IF(INTRO!$E$42="Endemic", IF(AND($J178>1,$J178<5), IF($J178=4, "Unknown", E178+F178), 0),"Not required") -> 37650 | O178: =IF(INTRO!$E$44="Endemic", IF(AND($K178>0,$K178<5), IF($K178=4,"Unknown", IF($K178=1, $F178*0.33, IF($K178=2, $F178*0.5+$G178*0.2, SUM(F178:G178)))), 0),"Not required") -> 22294.02078 | P178: 0 | Q178: 0 | R178: 1 | S178: 0 | U178: T3 (ALB/MBD) | V178: T1 | W178: T3 | X178: 46646 | Y178: Nzega Town Council | AE178: ='MDA3'!Q178 -> 0 | AF178: ='T1'!O178 -> 0 | AG178: =T3_R1!N178 -> 27176 | AI178: 27176 | AJ178: 1
A179: =IF(INTRO!$E$34<>0,INTRO!$E$34,"") -> Tanzania | B179: Tabora | C179: Sikonge District Council | D179: 226855.1454 | E179: 29264 | F179: 54642 | G179: 142949.1454 | H179: 99 | I179: 0 | J179: 3 | K179: 2 | L179: =IF(INTRO!$E$38="Endemic", IF($H179>0, IF($H179=4,"Unknown", IF($H179=99,"Stopped", $D179)), 0),"Not required") -> Stopped | M179: =IF(INTRO!$E$40="Endemic", IF($I179>0, IF($I179=4,"Unknown",IF($I179=99,"Stopped", $D179)), 0),"Not required") -> 0 | N179: =IF(INTRO!$E$42="Endemic", IF(AND($J179>1,$J179<5), IF($J179=4, "Unknown", E179+F179), 0),"Not required") -> 83906 | O179: =IF(INTRO!$E$44="Endemic", IF(AND($K179>0,$K179<5), IF($K179=4,"Unknown", IF($K179=1, $F179*0.33, IF($K179=2, $F179*0.5+$G179*0.2, SUM(F179:G179)))), 0),"Not required") -> 55910.82907 | P179: 0 | Q179: 0 | R179: 1 | S179: 0 | U179: T3 (ALB/MBD) | V179: T1 | W179: T3 | X179: 46608 | Y179: Sikonge District Council | AE179: ='MDA3'!Q179 -> 0 | AF179: ='T1'!O179 -> 0 | AG179: =T3_R1!N179 -> 51940 | AI179: 51940 | AJ179: 1
A180: =IF(INTRO!$E$34<>0,INTRO!$E$34,"") -> Tanzania | B180: Tabora | C180: Tabora Municipal Council | D180: 286274.6787 | E180: 36929 | F180: 52466 | G180: 196879.6787 | H180: 99 | I180: 0 | J180: 3 | K180: 2 | L180: =IF(INTRO!$E$38="Endemic", IF($H180>0, IF($H180=4,"Unknown", IF($H180=99,"Stopped", $D180)), 0),"Not required") -> Stopped | M180: =IF(INTRO!$E$40="Endemic", IF($I180>0, IF($I180=4,"Unknown",IF($I180=99,"Stopped", $D180)), 0),"Not required") -> 0 | N180: =IF(INTRO!$E$42="Endemic", IF(AND($J180>1,$J180<5), IF($J180=4, "Unknown", E180+F180), 0),"Not required") -> 89395 | O180: =IF(INTRO!$E$44="Endemic", IF(AND($K180>0,$K180<5), IF($K180=4,"Unknown", IF($K180=1, $F180*0.33, IF($K180=2, $F180*0.5+$G180*0.2, SUM(F180:G180)))), 0),"Not required") -> 65608.93574 | P180: 0 | Q180: 0 | R180: 1 | S180: 1 | U180: T1 (PZQ+ALB/MBD) | V180: T1 | W180: T3 | X180: 46609 | Y180: Tabora Municipal Council | AE180: ='MDA3'!Q180 -> 0 | AF180: ='T1'!O180 -> 51169 | AG180: =T3_R1!N180 -> 0 | AI180: 51169 | AJ180: 1
A181: =IF(INTRO!$E$34<>0,INTRO!$E$34,"") -> Tanzania | B181: Tabora | C181: Urambo District Council | D181: 243123.2048 | E181: 31363 | F181: 56488 | G181: 155272.2048 | H181: 99 | I181: 0 | J181: 3 | K181: 2 | L181: =IF(INTRO!$E$38="Endemic", IF($H181>0, IF($H181=4,"Unknown", IF($H181=99,"Stopped", $D181)), 0),"Not required") -> Stopped | M181: =IF(INTRO!$E$40="Endemic", IF($I181>0, IF($I181=4,"Unknown",IF($I181=99,"Stopped", $D181)), 0),"Not required") -> 0 | N181: =IF(INTRO!$E$42="Endemic", IF(AND($J181>1,$J181<5), IF($J181=4, "Unknown", E181+F181), 0),"Not required") -> 87851 | O181: =IF(INTRO!$E$44="Endemic", IF(AND($K181>0,$K181<5), IF($K181=4,"Unknown", IF($K181=1, $F181*0.33, IF($K181=2, $F181*0.5+$G181*0.2, SUM(F181:G181)))), 0),"Not required") -> 59298.44095 | P181: 0 | Q181: 0 | R181: 1 | S181: 1 | U181: T1 (PZQ+ALB/MBD) | V181: T1 | W181: T3 | X181: 46610 | Y181: Urambo District Council | AE181: ='MDA3'!Q181 -> 0 | AF181: ='T1'!O181 -> 56246 | AG181: =T3_R1!N181 -> 0 | AI181: 56246 | AJ181: 1
A182: =IF(INTRO!$E$34<>0,INTRO!$E$34,"") -> Tanzania | B182: Tabora | C182: Uyui District Council | D182: 500195.0671 | E182: 64525 | F182: 114798 | G182: 320872.0671 | H182: 99 | I182: 0 | J182: 3 | K182: 2 | L182: =IF(INTRO!$E$38="Endemic", IF($H182>0, IF($H182=4,"Unknown", IF($H182=99,"Stopped", $D182)), 0),"Not required") -> Stopped | M182: =IF(INTRO!$E$40="Endemic", IF($I182>0, IF($I182=4,"Unknown",IF($I182=99,"Stopped", $D182)), 0),"Not required") -> 0 | N182: =IF(INTRO!$E$42="Endemic", IF(AND($J182>1,$J182<5), IF($J182=4, "Unknown", E182+F182), 0),"Not required") -> 179323 | O182: =IF(INTRO!$E$44="Endemic", IF(AND($K182>0,$K182<5), IF($K182=4,"Unknown", IF($K182=1, $F182*0.33, IF($K182=2, $F182*0.5+$G182*0.2, SUM(F182:G182)))), 0),"Not required") -> 121573.4134 | P182: 0 | Q182: 0 | R182: 1 | S182: 1 | U182: T1 (PZQ+ALB/MBD) | V182: T1 | W182: T3 | X182: 46611 | Y182: Uyui District Council | AE182: ='MDA3'!Q182 -> 0 | AF182: ='T1'!O182 -> 114792 | AG182: =T3_R1!N182 -> 0 | AI182: 114792 | AJ182: 1
A183: =IF(INTRO!$E$34<>0,INTRO!$E$34,"") -> Tanzania | B183: Tanga | C183: Bumbuli District Council | D183: 190952.524 | E183: 24633 | F183: 43050 | G183: 123269.524 | H183: 99 | I183: 1 | J183: 3 | K183: 2 | L183: =IF(INTRO!$E$38="Endemic", IF($H183>0, IF($H183=4,"Unknown", IF($H183=99,"Stopped", $D183)), 0),"Not required") -> Stopped | M183: =IF(INTRO!$E$40="Endemic", IF($I183>0, IF($I183=4,"Unknown",IF($I183=99,"Stopped", $D183)), 0),"Not required") -> 190952.524 | N183: =IF(INTRO!$E$42="Endemic", IF(AND($J183>1,$J183<5), IF($J183=4, "Unknown", E183+F183), 0),"Not required") -> 67683 | O183: =IF(INTRO!$E$44="Endemic", IF(AND($K183>0,$K183<5), IF($K183=4,"Unknown", IF($K183=1, $F183*0.33, IF($K183=2, $F183*0.5+$G183*0.2, SUM(F183:G183)))), 0),"Not required") -> 46178.9048 | P183: 0 | Q183: 2 | R183: 1 | S183: 1 | T183: MDA3 (IVM) | U183: T1 (PZQ+ALB/MBD) | V183: MDA 1 | W183: T1 | X183: 46612 | Y183: Bumbuli District Council | AE183: ='MDA3'!Q183 -> 148177 | AF183: ='T1'!O183 -> 41102 | AG183: =T3_R1!N183 -> 0 | AI183: 41102 | AJ183: 1
A184: =IF(INTRO!$E$34<>0,INTRO!$E$34,"") -> Tanzania | B184: Tanga | C184: Handeni District Council | D184: 330154.3284 | E184: 42590 | F184: 77524 | G184: 210040.3284 | H184: 99 | I184: 0 | J184: 3 | K184: 2 | L184: =IF(INTRO!$E$38="Endemic", IF($H184>0, IF($H184=4,"Unknown", IF($H184=99,"Stopped", $D184)), 0),"Not required") -> Stopped | M184: =IF(INTRO!$E$40="Endemic", IF($I184>0, IF($I184=4,"Unknown",IF($I184=99,"Stopped", $D184)), 0),"Not required") -> 0 | N184: =IF(INTRO!$E$42="Endemic", IF(AND($J184>1,$J184<5), IF($J184=4, "Unknown", E184+F184), 0),"Not required") -> 120114 | O184: =IF(INTRO!$E$44="Endemic", IF(AND($K184>0,$K184<5), IF($K184=4,"Unknown", IF($K184=1, $F184*0.33, IF($K184=2, $F184*0.5+$G184*0.2, SUM(F184:G184)))), 0),"Not required") -> 80770.06568 | P184: 0 | Q184: 0 | R184: 1 | S184: 1 | U184: T1 (PZQ+ALB/MBD) | V184: T1 | W184: T3 | X184: 46613 | Y184: Handeni District Council | AE184: ='MDA3'!Q184 -> 0 | AF184: ='T1'!O184 -> 77184 | AG184: =T3_R1!N184 -> 0 | AI184: 77184 | AJ184: 1
A185: =IF(INTRO!$E$34<>0,INTRO!$E$34,"") -> Tanzania | B185: Tanga | C185: Handeni Town Council | D185: 94345.65477 | E185: 12171 | F185: 23066 | G185: 59108.65477 | H185: 99 | I185: 0 | J185: 3 | K185: 2 | L185: =IF(INTRO!$E$38="Endemic", IF($H185>0, IF($H185=4,"Unknown", IF($H185=99,"Stopped", $D185)), 0),"Not required") -> Stopped | M185: =IF(INTRO!$E$40="Endemic", IF($I185>0, IF($I185=4,"Unknown",IF($I185=99,"Stopped", $D185)), 0),"Not required") -> 0 | N185: =IF(INTRO!$E$42="Endemic", IF(AND($J185>1,$J185<5), IF($J185=4, "Unknown", E185+F185), 0),"Not required") -> 35237 | O185: =IF(INTRO!$E$44="Endemic", IF(AND($K185>0,$K185<5), IF($K185=4,"Unknown", IF($K185=1, $F185*0.33, IF($K185=2, $F185*0.5+$G185*0.2, SUM(F185:G185)))), 0),"Not required") -> 23354.73095 | P185: 0 | Q185: 0 | R185: 1 | S185: 1 | U185: T1 (PZQ+ALB/MBD) | V185: T1 | W185: T3 | X185: 46614 | Y185: Handeni Town Council | AE185: ='MDA3'!Q185 -> 0 | AF185: ='T1'!O185 -> 20535 | AG185: =T3_R1!N185 -> 0 | AI185: 20535 | AJ185: 1
A186: =IF(INTRO!$E$34<>0,INTRO!$E$34,"") -> Tanzania | B186: Tanga | C186: Kilindi District Council | D186: 282641.5787 | E186: 36461 | F186: 71052 | G186: 175128.5787 | H186: 99 | I186: 0 | J186: 3 | K186: 2 | L186: =IF(INTRO!$E$38="Endemic", IF($H186>0, IF($H186=4,"Unknown", IF($H186=99,"Stopped", $D186)), 0),"Not required") -> Stopped | M186: =IF(INTRO!$E$40="Endemic", IF($I186>0, IF($I186=4,"Unknown",IF($I186=99,"Stopped", $D186)), 0),"Not required") -> 0 | N186: =IF(INTRO!$E$42="Endemic", IF(AND($J186>1,$J186<5), IF($J186=4, "Unknown", E186+F186), 0),"Not required") -> 107513 | O186: =IF(INTRO!$E$44="Endemic", IF(AND($K186>0,$K186<5), IF($K186=4,"Unknown", IF($K186=1, $F186*0.33, IF($K186=2, $F186*0.5+$G186*0.2, SUM(F186:G186)))), 0),"Not required") -> 70551.71574 | P186: 0 | Q186: 0 | R186: 1 | S186: 1 | U186: T1 (PZQ+ALB/MBD) | V186: T1 | W186: T3 | X186: 46615 | Y186: Kilindi District Council | AE186: ='MDA3'!Q186 -> 0 | AF186: ='T1'!O186 -> 60680 | AG186: =T3_R1!N186 -> 0 | AI186: 60680 | AJ186: 1
A187: =IF(INTRO!$E$34<>0,INTRO!$E$34,"") -> Tanzania | B187: Tanga | C187: Korogwe District Council | D187: 288851.8047 | E187: 37262 | F187: 63952 | G187: 187637.8047 | H187: 1 | I187: 1 | J187: 3 | K187: 2 | L187: =IF(INTRO!$E$38="Endemic", IF($H187>0, IF($H187=4,"Unknown", IF($H187=99,"Stopped", $D187)), 0),"Not required") -> 288851.8047 | M187: =IF(INTRO!$E$40="Endemic", IF($I187>0, IF($I187=4,"Unknown",IF($I187=99,"Stopped", $D187)), 0),"Not required") -> 288851.8047 | N187: =IF(INTRO!$E$42="Endemic", IF(AND($J187>1,$J187<5), IF($J187=4, "Unknown", E187+F187), 0),"Not required") -> 101214 | O187: =IF(INTRO!$E$44="Endemic", IF(AND($K187>0,$K187<5), IF($K187=4,"Unknown", IF($K187=1, $F187*0.33, IF($K187=2, $F187*0.5+$G187*0.2, SUM(F187:G187)))), 0),"Not required") -> 69503.56095 | P187: 0 | Q187: 2 | R187: 1 | S187: 1 | T187: MDA3 (IVM) | U187: T1 (PZQ+ALB/MBD) | V187: MDA 1 | W187: T1 | X187: 46616 | Y187: Korogwe District Council | AE187: ='MDA3'!Q187 -> 227216 | AF187: ='T1'!O187 -> 57376 | AG187: =T3_R1!N187 -> 0 | AI187: 57376 | AJ187: 1
A188: =IF(INTRO!$E$34<>0,INTRO!$E$34,"") -> Tanzania | B188: Tanga | C188: Korogwe Town Council | D188: 81520.09743 | E188: 10516 | F188: 17747 | G188: 53257.09743 | H188: 1 | I188: 0 | J188: 3 | K188: 2 | L188: =IF(INTRO!$E$38="Endemic", IF($H188>0, IF($H188=4,"Unknown", IF($H188=99,"Stopped", $D188)), 0),"Not required") -> 81520.09743 | M188: =IF(INTRO!$E$40="Endemic", IF($I188>0, IF($I188=4,"Unknown",IF($I188=99,"Stopped", $D188)), 0),"Not required") -> 0 | N188: =IF(INTRO!$E$42="Endemic", IF(AND($J188>1,$J188<5), IF($J188=4, "Unknown", E188+F188), 0),"Not required") -> 28263 | O188: =IF(INTRO!$E$44="Endemic", IF(AND($K188>0,$K188<5), IF($K188=4,"Unknown", IF($K188=1, $F188*0.33, IF($K188=2, $F188*0.5+$G188*0.2, SUM(F188:G188)))), 0),"Not required") -> 19524.91949 | P188: 0 | Q188: 0 | R188: 1 | S188: 1 | U188: T1 (PZQ+ALB/MBD) | V188: MDA 1 | W188: T1 | X188: 46617 | Y188: Korogwe Town Council | AE188: ='MDA3'!Q188 -> 0 | AF188: ='T1'!O188 -> 16045 | AG188: =T3_R1!N188 -> 0 | AI188: 16045 | AJ188: 1
A189: =IF(INTRO!$E$34<>0,INTRO!$E$34,"") -> Tanzania | B189: Tanga | C189: Lushoto District Council | D189: 396735.6204 | E189: 51179 | F189: 94062 | G189: 251494.6204 | H189: 99 | I189: 1 | J189: 3 | K189: 2 | L189: =IF(INTRO!$E$38="Endemic", IF($H189>0, IF($H189=4,"Unknown", IF($H189=99,"Stopped", $D189)), 0),"Not required") -> Stopped | M189: =IF(INTRO!$E$40="Endemic", IF($I189>0, IF($I189=4,"Unknown",IF($I189=99,"Stopped", $D189)), 0),"Not required") -> 396735.6204 | N189: =IF(INTRO!$E$42="Endemic", IF(AND($J189>1,$J189<5), IF($J189=4, "Unknown", E189+F189), 0),"Not required") -> 145241 | O189: =IF(INTRO!$E$44="Endemic", IF(AND($K189>0,$K189<5), IF($K189=4,"Unknown", IF($K189=1, $F189*0.33, IF($K189=2, $F189*0.5+$G189*0.2, SUM(F189:G189)))), 0),"Not required") -> 97329.92407 | P189: 0 | Q189: 2 | R189: 1 | S189: 1 | T189: MDA3 (IVM) | U189: T1 (PZQ+ALB/MBD) | V189: MDA 1 | W189: T1 | X189: 46618 | Y189: Lushoto District Council | AE189: ='MDA3'!Q189 -> 346000 | AF189: ='T1'!O189 -> 92062 | AG189: =T3_R1!N189 -> 0 | AI189: 92062 | AJ189: 1
A190: =IF(INTRO!$E$34<>0,INTRO!$E$34,"") -> Tanzania | B190: Tanga | C190: Mkinga District Council | D190: 140901.0919 | E190: 18176 | F190: 34054 | G190: 88671.09189 | H190: 99 | I190: 1 | J190: 3 | K190: 2 | L190: =IF(INTRO!$E$38="Endemic", IF($H190>0, IF($H190=4,"Unknown", IF($H190=99,"Stopped", $D190)), 0),"Not required") -> Stopped | M190: =IF(INTRO!$E$40="Endemic", IF($I190>0, IF($I190=4,"Unknown",IF($I190=99,"Stopped", $D190)), 0),"Not required") -> 140901.0919 | N190: =IF(INTRO!$E$42="Endemic", IF(AND($J190>1,$J190<5), IF($J190=4, "Unknown", E190+F190), 0),"Not required") -> 52230 | O190: =IF(INTRO!$E$44="Endemic", IF(AND($K190>0,$K190<5), IF($K190=4,"Unknown", IF($K190=1, $F190*0.33, IF($K190=2, $F190*0.5+$G190*0.2, SUM(F190:G190)))), 0),"Not required") -> 34761.21838 | P190: 0 | Q190: 2 | R190: 1 | S190: 1 | T190: MDA3 (IVM) | U190: T1 (PZQ+ALB/MBD) | V190: MDA 1 | W190: T1 | X190: 46619 | Y190: Mkinga District Council | AE190: ='MDA3'!Q190 -> 114566 | AF190: ='T1'!O190 -> 33179 | AG190: =T3_R1!N190 -> 0 | AI190: 33179 | AJ190: 1
A191: =IF(INTRO!$E$34<>0,INTRO!$E$34,"") -> Tanzania | B191: Tanga | C191: Muheza District Council | D191: 244006.5544 | E191: 31477 | F191: 44672 | G191: 167857.5544 | H191: 99 | I191: 1 | J191: 3 | K191: 2 | L191: =IF(INTRO!$E$38="Endemic", IF($H191>0, IF($H191=4,"Unknown", IF($H191=99,"Stopped", $D191)), 0),"Not required") -> Stopped | M191: =IF(INTRO!$E$40="Endemic", IF($I191>0, IF($I191=4,"Unknown",IF($I191=99,"Stopped", $D191)), 0),"Not required") -> 244006.5544 | N191: =IF(INTRO!$E$42="Endemic", IF(AND($J191>1,$J191<5), IF($J191=4, "Unknown", E191+F191), 0),"Not required") -> 76149 | O191: =IF(INTRO!$E$44="Endemic", IF(AND($K191>0,$K191<5), IF($K191=4,"Unknown", IF($K191=1, $F191*0.33, IF($K191=2, $F191*0.5+$G191*0.2, SUM(F191:G191)))), 0),"Not required") -> 55907.51088 | P191: 0 | Q191: 2 | R191: 1 | S191: 1 | T191: MDA3 (IVM) | U191: T1 (PZQ+ALB/MBD) | V191: MDA 1 | W191: T1 | X191: 46620 | Y191: Muheza District Council | AE191: ='MDA3'!Q191 -> 202491 | AF191: ='T1'!O191 -> 44216 | AG191: =T3_R1!N191 -> 0 | AI191: 44216 | AJ191: 1
A192: =IF(INTRO!$E$34<>0,INTRO!$E$34,"") -> Tanzania | B192: Tanga | C192: Pangani District Council | D192: 64475.38236 | E192: 8317 | F192: 14507 | G192: 41651.38236 | H192: 1 | I192: 0 | J192: 3 | K192: 2 | L192: =IF(INTRO!$E$38="Endemic", IF($H192>0, IF($H192=4,"Unknown", IF($H192=99,"Stopped", $D192)), 0),"Not required") -> 64475.38236 | M192: =IF(INTRO!$E$40="Endemic", IF($I192>0, IF($I192=4,"Unknown",IF($I192=99,"Stopped", $D192)), 0),"Not required") -> 0 | N192: =IF(INTRO!$E$42="Endemic", IF(AND($J192>1,$J192<5), IF($J192=4, "Unknown", E192+F192), 0),"Not required") -> 22824 | O192: =IF(INTRO!$E$44="Endemic", IF(AND($K192>0,$K192<5), IF($K192=4,"Unknown", IF($K192=1, $F192*0.33, IF($K192=2, $F192*0.5+$G192*0.2, SUM(F192:G192)))), 0),"Not required") -> 15583.77647 | P192: 0 | Q192: 0 | R192: 1 | S192: 1 | U192: T1 (PZQ+ALB/MBD) | V192: MDA 1 | W192: T1 | X192: 46621 | Y192: Pangani District Council | AE192: ='MDA3'!Q192 -> 0 | AF192: ='T1'!O192 -> 13323 | AG192: =T3_R1!N192 -> 0 | AI192: 13323 | AJ192: 1
A193: =IF(INTRO!$E$34<>0,INTRO!$E$34,"") -> Tanzania | B193: Tanga | C193: Tanga City Council | D193: 326197.4512 | E193: 42079 | F193: 97103 | G193: 187015.4512 | H193: 99 | I193: 0 | J193: 3 | K193: 2 | L193: =IF(INTRO!$E$38="Endemic", IF($H193>0, IF($H193=4,"Unknown", IF($H193=99,"Stopped", $D193)), 0),"Not required") -> Stopped | M193: =IF(INTRO!$E$40="Endemic", IF($I193>0, IF($I193=4,"Unknown",IF($I193=99,"Stopped", $D193)), 0),"Not required") -> 0 | N193: =IF(INTRO!$E$42="Endemic", IF(AND($J193>1,$J193<5), IF($J193=4, "Unknown", E193+F193), 0),"Not required") -> 139182 | O193: =IF(INTRO!$E$44="Endemic", IF(AND($K193>0,$K193<5), IF($K193=4,"Unknown", IF($K193=1, $F193*0.33, IF($K193=2, $F193*0.5+$G193*0.2, SUM(F193:G193)))), 0),"Not required") -> 85954.59023 | P193: 0 | Q193: 0 | R193: 1 | S193: 1 | U193: T1 (PZQ+ALB/MBD) | V193: T1 | W193: T3 | X193: 46622 | Y193: Tanga City Council | AE193: ='MDA3'!Q193 -> 0 | AF193: ='T1'!O193 -> 95207 | AG193: =T3_R1!N193 -> 0 | AI193: 95207 | AJ193: 1

Sheet MDA1
A1: MDA 1 - Ivermectin (IVM) and Albendazole (ALB)
A2: Administrative structure, population requiring PC by age group, population treated by age group and coverage
A4: TOTAL | G4: =SUM(G$9:G$1000) -> 0 | H4: =SUM(H$9:H$1000) -> 0 | I4: =SUM(I$9:I$1000) -> 0 | K4: =SUM(K$9:K$1000) -> 0 | L4: =SUM(L$9:L$1000) -> 0 | M4: =SUM(M$9:M$1000) -> 0 | O4: =IF(G4<>0, IF(K4/G4*100=0, "-", K4/G4*100), " ") ->  | P4: =IF(H4<>0, IF(L4/H4*100=0, "-", L4/H4*100), " ") ->  | Q4: =IF(I4<>0, IF(M4/I4*100=0, "-", M4/I4*100), " ") -> 
D6: PC implemented | E6: Date | F6: Population targeted for MDA 1 | J6: Population treated | N6: Programme coverage (%)
A7: Country | B7: Province/State | C7: District | F7: PreSAC | G7: SAC | H7: Adults | I7: Total | J7: PreSAC | K7: SAC | L7: Adults | M7: Total | N7: PreSAC | O7: SAC | P7: Adults | Q7: Total
A9: =IF(COUNTRY_INFO!A9=0," ",COUNTRY_INFO!A9) -> Tanzania | B9: =IF(COUNTRY_INFO!B9=0," ",COUNTRY_INFO!B9) -> Arusha | C9: =IF(COUNTRY_INFO!C9=0," ",COUNTRY_INFO!C9) -> Arusha City Council | D9: =IF(COUNTRY_INFO!$T$9:$T$1000="MDA1 (IVM+ALB)", COUNTRY_INFO!$T$9:$T$1000, " ") ->  | I9: =SUM(F9:H9) -> 0 | M9: =SUM(J9:L9) -> 0 | O9: =IF(G9<>0, IF(K9/G9*100=0, "-", K9/G9*100), " ") ->  | P9: =IF(H9<>0, IF(L9/H9*100=0, "-", L9/H9*100), " ") -> 
A10: =IF(COUNTRY_INFO!A10=0," ",COUNTRY_INFO!A10) -> Tanzania | B10: =IF(COUNTRY_INFO!B10=0," ",COUNTRY_INFO!B10) -> Arusha | C10: =IF(COUNTRY_INFO!C10=0," ",COUNTRY_INFO!C10) -> Arusha District Council | D10: =IF(COUNTRY_INFO!$T$9:$T$1000="MDA1 (IVM+ALB)", COUNTRY_INFO!$T$9:$T$1000, " ") ->  | I10: =SUM(F10:H10) -> 0 | M10: =SUM(J10:L10) -> 0 | O10: =IF(G10<>0, IF(K10/G10*100=0, "-", K10/G10*100), " ") ->  | P10: =IF(H10<>0, IF(L10/H10*100=0, "-", L10/H10*100), " ") ->  | Q10: =IF(I10<>0, IF(M10/I10*100=0, "-", M10/I10*100), " ") -> 
A11: =IF(COUNTRY_INFO!A11=0," ",COUNTRY_INFO!A11) -> Tanzania | B11: =IF(COUNTRY_INFO!B11=0," ",COUNTRY_INFO!B11) -> Arusha | C11: =IF(COUNTRY_INFO!C11=0," ",COUNTRY_INFO!C11) -> Karatu District Council | D11: =IF(COUNTRY_INFO!$T$9:$T$1000="MDA1 (IVM+ALB)", COUNTRY_INFO!$T$9:$T$1000, " ") ->  | I11: 0 | M11: 0
A12: =IF(COUNTRY_INFO!A12=0," ",COUNTRY_INFO!A12) -> Tanzania | B12: =IF(COUNTRY_INFO!B12=0," ",COUNTRY_INFO!B12) -> Arusha | C12: =IF(COUNTRY_INFO!C12=0," ",COUNTRY_INFO!C12) -> Longido District Council | D12: =IF(COUNTRY_INFO!$T$9:$T$1000="MDA1 (IVM+ALB)", COUNTRY_INFO!$T$9:$T$1000, " ") ->  | I12: 0 | M12: 0
A13: =IF(COUNTRY_INFO!A13=0," ",COUNTRY_INFO!A13) -> Tanzania | B13: =IF(COUNTRY_INFO!B13=0," ",COUNTRY_INFO!B13) -> Arusha | C13: =IF(COUNTRY_INFO!C13=0," ",COUNTRY_INFO!C13) -> Meru District Council | D13: =IF(COUNTRY_INFO!$T$9:$T$1000="MDA1 (IVM+ALB)", COUNTRY_INFO!$T$9:$T$1000, " ") ->  | I13: 0 | M13: 0
A14: =IF(COUNTRY_INFO!A14=0," ",COUNTRY_INFO!A14) -> Tanzania | B14: =IF(COUNTRY_INFO!B14=0," ",COUNTRY_INFO!B14) -> Arusha | C14: =IF(COUNTRY_INFO!C14=0," ",COUNTRY_INFO!C14) -> Monduli District Council | D14: =IF(COUNTRY_INFO!$T$9:$T$1000="MDA1 (IVM+ALB)", COUNTRY_INFO!$T$9:$T$1000, " ") ->  | I14: 0 | M14: 0
A15: =IF(COUNTRY_INFO!A15=0," ",COUNTRY_INFO!A15) -> Tanzania | B15: =IF(COUNTRY_INFO!B15=0," ",COUNTRY_INFO!B15) -> Arusha | C15: =IF(COUNTRY_INFO!C15=0," ",COUNTRY_INFO!C15) -> Ngorongoro District Council | D15: =IF(COUNTRY_INFO!$T$9:$T$1000="MDA1 (IVM+ALB)", COUNTRY_INFO!$T$9:$T$1000, " ") ->  | I15: 0 | M15: 0
A16: =IF(COUNTRY_INFO!A16=0," ",COUNTRY_INFO!A16) -> Tanzania | B16: =IF(COUNTRY_INFO!B16=0," ",COUNTRY_INFO!B16) -> Dar Es Salaam | C16: =IF(COUNTRY_INFO!C16=0," ",COUNTRY_INFO!C16) -> Dar es Salaam City Council | D16: =IF(COUNTRY_INFO!$T$9:$T$1000="MDA1 (IVM+ALB)", COUNTRY_INFO!$T$9:$T$1000, " ") ->  | I16: 0 | M16: 0
A17: =IF(COUNTRY_INFO!A17=0," ",COUNTRY_INFO!A17) -> Tanzania | B17: =IF(COUNTRY_INFO!B17=0," ",COUNTRY_INFO!B17) -> Dar Es Salaam | C17: =IF(COUNTRY_INFO!C17=0," ",COUNTRY_INFO!C17) -> Ilala Municipal Council | D17: =IF(COUNTRY_INFO!$T$9:$T$1000="MDA1 (IVM+ALB)", COUNTRY_INFO!$T$9:$T$1000, " ") ->  | I17: 0 | M17: 0
A18: =IF(COUNTRY_INFO!A18=0," ",COUNTRY_INFO!A18) -> Tanzania | B18: =IF(COUNTRY_INFO!B18=0," ",COUNTRY_INFO!B18) -> Dar Es Salaam | C18: =IF(COUNTRY_INFO!C18=0," ",COUNTRY_INFO!C18) -> Kigamboni Municipal Council | D18: =IF(COUNTRY_INFO!$T$9:$T$1000="MDA1 (IVM+ALB)", COUNTRY_INFO!$T$9:$T$1000, " ") ->  | I18: 0 | M18: 0
A19: =IF(COUNTRY_INFO!A19=0," ",COUNTRY_INFO!A19) -> Tanzania | B19: =IF(COUNTRY_INFO!B19=0," ",COUNTRY_INFO!B19) -> Dar Es Salaam | C19: =IF(COUNTRY_INFO!C19=0," ",COUNTRY_INFO!C19) -> Kinondoni Municipal Council | D19: =IF(COUNTRY_INFO!$T$9:$T$1000="MDA1 (IVM+ALB)", COUNTRY_INFO!$T$9:$T$1000, " ") ->  | I19: 0 | M19: 0
A20: =IF(COUNTRY_INFO!A20=0," ",COUNTRY_INFO!A20) -> Tanzania | B20: =IF(COUNTRY_INFO!B20=0," ",COUNTRY_INFO!B20) -> Dar Es Salaam | C20: =IF(COUNTRY_INFO!C20=0," ",COUNTRY_INFO!C20) -> Temeke Municipal Council | D20: =IF(COUNTRY_INFO!$T$9:$T$1000="MDA1 (IVM+ALB)", COUNTRY_INFO!$T$9:$T$1000, " ") ->  | I20: 0 | M20: 0
A21: =IF(COUNTRY_INFO!A21=0," ",COUNTRY_INFO!A21) -> Tanzania | B21: =IF(COUNTRY_INFO!B21=0," ",COUNTRY_INFO!B21) -> Dar Es Salaam | C21: =IF(COUNTRY_INFO!C21=0," ",COUNTRY_INFO!C21) -> Ubungo Municipal Council | D21: =IF(COUNTRY_INFO!$T$9:$T$1000="MDA1 (IVM+ALB)", COUNTRY_INFO!$T$9:$T$1000, " ") ->  | I21: 0 | M21: 0
A22: =IF(COUNTRY_INFO!A22=0," ",COUNTRY_INFO!A22) -> Tanzania | B22: =IF(COUNTRY_INFO!B22=0," ",COUNTRY_INFO!B22) -> Dodoma | C22: =IF(COUNTRY_INFO!C22=0," ",COUNTRY_INFO!C22) -> Bahi District Council | D22: =IF(COUNTRY_INFO!$T$9:$T$1000="MDA1 (IVM+ALB)", COUNTRY_INFO!$T$9:$T$1000, " ") ->  | I22: 0 | M22: 0
A23: =IF(COUNTRY_INFO!A23=0," ",COUNTRY_INFO!A23) -> Tanzania | B23: =IF(COUNTRY_INFO!B23=0," ",COUNTRY_INFO!B23) -> Dodoma | C23: =IF(COUNTRY_INFO!C23=0," ",COUNTRY_INFO!C23) -> Chamwino District Council | D23: =IF(COUNTRY_INFO!$T$9:$T$1000="MDA1 (IVM+ALB)", COUNTRY_INFO!$T$9:$T$1000, " ") ->  | I23: 0 | M23: 0
A24: =IF(COUNTRY_INFO!A24=0," ",COUNTRY_INFO!A24) -> Tanzania | B24: =IF(COUNTRY_INFO!B24=0," ",COUNTRY_INFO!B24) -> Dodoma | C24: =IF(COUNTRY_INFO!C24=0," ",COUNTRY_INFO!C24) -> Chemba District Council | D24: =IF(COUNTRY_INFO!$T$9:$T$1000="MDA1 (IVM+ALB)", COUNTRY_INFO!$T$9:$T$1000, " ") ->  | I24: 0 | M24: 0
A25: =IF(COUNTRY_INFO!A25=0," ",COUNTRY_INFO!A25) -> Tanzania | B25: =IF(COUNTRY_INFO!B25=0," ",COUNTRY_INFO!B25) -> Dodoma | C25: =IF(COUNTRY_INFO!C25=0," ",COUNTRY_INFO!C25) -> Dodoma City Council | D25: =IF(COUNTRY_INFO!$T$9:$T$1000="MDA1 (IVM+ALB)", COUNTRY_INFO!$T$9:$T$1000, " ") ->  | I25: 0 | M25: 0
A26: =IF(COUNTRY_INFO!A26=0," ",COUNTRY_INFO!A26) -> Tanzania | B26: =IF(COUNTRY_INFO!B26=0," ",COUNTRY_INFO!B26) -> Dodoma | C26: =IF(COUNTRY_INFO!C26=0," ",COUNTRY_INFO!C26) -> Kondoa District Council | D26: =IF(COUNTRY_INFO!$T$9:$T$1000="MDA1 (IVM+ALB)", COUNTRY_INFO!$T$9:$T$1000, " ") ->  | I26: 0 | M26: 0
A27: =IF(COUNTRY_INFO!A27=0," ",COUNTRY_INFO!A27) -> Tanzania | B27: =IF(COUNTRY_INFO!B27=0," ",COUNTRY_INFO!B27) -> Dodoma | C27: =IF(COUNTRY_INFO!C27=0," ",COUNTRY_INFO!C27) -> Kondoa Town Council | D27: =IF(COUNTRY_INFO!$T$9:$T$1000="MDA1 (IVM+ALB)", COUNTRY_INFO!$T$9:$T$1000, " ") ->  | I27: 0 | M27: 0
A28: =IF(COUNTRY_INFO!A28=0," ",COUNTRY_INFO!A28) -> Tanzania | B28: =IF(COUNTRY_INFO!B28=0," ",COUNTRY_INFO!B28) -> Dodoma | C28: =IF(COUNTRY_INFO!C28=0," ",COUNTRY_INFO!C28) -> Kongwa District Council | D28: =IF(COUNTRY_INFO!$T$9:$T$1000="MDA1 (IVM+ALB)", COUNTRY_INFO!$T$9:$T$1000, " ") ->  | I28: 0 | M28: 0
A29: =IF(COUNTRY_INFO!A29=0," ",COUNTRY_INFO!A29) -> Tanzania | B29: =IF(COUNTRY_INFO!B29=0," ",COUNTRY_INFO!B29) -> Dodoma | C29: =IF(COUNTRY_INFO!C29=0," ",COUNTRY_INFO!C29) -> Mpwapwa District Council | D29: =IF(COUNTRY_INFO!$T$9:$T$1000="MDA1 (IVM+ALB)", COUNTRY_INFO!$T$9:$T$1000, " ") ->  | I29: 0 | M29: 0
A30: =IF(COUNTRY_INFO!A30=0," ",COUNTRY_INFO!A30) -> Tanzania | B30: =IF(COUNTRY_INFO!B30=0," ",COUNTRY_INFO!B30) -> Geita | C30: =IF(COUNTRY_INFO!C30=0," ",COUNTRY_INFO!C30) -> Bukombe District Council | D30: =IF(COUNTRY_INFO!$T$9:$T$1000="MDA1 (IVM+ALB)", COUNTRY_INFO!$T$9:$T$1000, " ") ->  | I30: 0 | M30: 0
A31: =IF(COUNTRY_INFO!A31=0," ",COUNTRY_INFO!A31) -> Tanzania | B31: =IF(COUNTRY_INFO!B31=0," ",COUNTRY_INFO!B31) -> Geita | C31: =IF(COUNTRY_INFO!C31=0," ",COUNTRY_INFO!C31) -> Chato District Council | D31: =IF(COUNTRY_INFO!$T$9:$T$1000="MDA1 (IVM+ALB)", COUNTRY_INFO!$T$9:$T$1000, " ") ->  | I31: 0 | M31: 0
A32: =IF(COUNTRY_INFO!A32=0," ",COUNTRY_INFO!A32) -> Tanzania | B32: =IF(COUNTRY_INFO!B32=0," ",COUNTRY_INFO!B32) -> Geita | C32: =IF(COUNTRY_INFO!C32=0," ",COUNTRY_INFO!C32) -> Geita District Council | D32: =IF(COUNTRY_INFO!$T$9:$T$1000="MDA1 (IVM+ALB)", COUNTRY_INFO!$T$9:$T$1000, " ") ->  | I32: 0 | M32: 0
A33: =IF(COUNTRY_INFO!A33=0," ",COUNTRY_INFO!A33) -> Tanzania | B33: =IF(COUNTRY_INFO!B33=0," ",COUNTRY_INFO!B33) -> Geita | C33: =IF(COUNTRY_INFO!C33=0," ",COUNTRY_INFO!C33) -> Geita Town Council | D33: =IF(COUNTRY_INFO!$T$9:$T$1000="MDA1 (IVM+ALB)", COUNTRY_INFO!$T$9:$T$1000, " ") ->  | I33: 0 | M33: 0
A34: =IF(COUNTRY_INFO!A34=0," ",COUNTRY_INFO!A34) -> Tanzania | B34: =IF(COUNTRY_INFO!B34=0," ",COUNTRY_INFO!B34) -> Geita | C34: =IF(COUNTRY_INFO!C34=0," ",COUNTRY_INFO!C34) -> Mbogwe District Council | D34: =IF(COUNTRY_INFO!$T$9:$T$1000="MDA1 (IVM+ALB)", COUNTRY_INFO!$T$9:$T$1000, " ") ->  | I34: 0 | M34: 0
A35: =IF(COUNTRY_INFO!A35=0," ",COUNTRY_INFO!A35) -> Tanzania | B35: =IF(COUNTRY_INFO!B35=0," ",COUNTRY_INFO!B35) -> Geita | C35: =IF(COUNTRY_INFO!C35=0," ",COUNTRY_INFO!C35) -> Nyang'hwale District Council | D35: =IF(COUNTRY_INFO!$T$9:$T$1000="MDA1 (IVM+ALB)", COUNTRY_INFO!$T$9:$T$1000, " ") ->  | I35: 0 | M35: 0
A36: =IF(COUNTRY_INFO!A36=0," ",COUNTRY_INFO!A36) -> Tanzania | B36: =IF(COUNTRY_INFO!B36=0," ",COUNTRY_INFO!B36) -> Iringa | C36: =IF(COUNTRY_INFO!C36=0," ",COUNTRY_INFO!C36) -> Iringa District Council | D36: =IF(COUNTRY_INFO!$T$9:$T$1000="MDA1 (IVM+ALB)", COUNTRY_INFO!$T$9:$T$1000, " ") ->  | I36: 0 | M36: 0
A37: =IF(COUNTRY_INFO!A37=0," ",COUNTRY_INFO!A37) -> Tanzania | B37: =IF(COUNTRY_INFO!B37=0," ",COUNTRY_INFO!B37) -> Iringa | C37: =IF(COUNTRY_INFO!C37=0," ",COUNTRY_INFO!C37) -> Iringa Municipal Council | D37: =IF(COUNTRY_INFO!$T$9:$T$1000="MDA1 (IVM+ALB)", COUNTRY_INFO!$T$9:$T$1000, " ") ->  | I37: 0 | M37: 0
A38: =IF(COUNTRY_INFO!A38=0," ",COUNTRY_INFO!A38) -> Tanzania | B38: =IF(COUNTRY_INFO!B38=0," ",COUNTRY_INFO!B38) -> Iringa | C38: =IF(COUNTRY_INFO!C38=0," ",COUNTRY_INFO!C38) -> Kilolo District Council | D38: =IF(COUNTRY_INFO!$T$9:$T$1000="MDA1 (IVM+ALB)", COUNTRY_INFO!$T$9:$T$1000, " ") ->  | I38: 0 | M38: 0
A39: =IF(COUNTRY_INFO!A39=0," ",COUNTRY_INFO!A39) -> Tanzania | B39: =IF(COUNTRY_INFO!B39=0," ",COUNTRY_INFO!B39) -> Iringa | C39: =IF(COUNTRY_INFO!C39=0," ",COUNTRY_INFO!C39) -> Mafinga Town Council | D39: =IF(COUNTRY_INFO!$T$9:$T$1000="MDA1 (IVM+ALB)", COUNTRY_INFO!$T$9:$T$1000, " ") ->  | I39: 0 | M39: 0
A40: =IF(COUNTRY_INFO!A40=0," ",COUNTRY_INFO!A40) -> Tanzania | B40: =IF(COUNTRY_INFO!B40=0," ",COUNTRY_INFO!B40) -> Iringa | C40: =IF(COUNTRY_INFO!C40=0," ",COUNTRY_INFO!C40) -> Mufindi District Council | D40: =IF(COUNTRY_INFO!$T$9:$T$1000="MDA1 (IVM+ALB)", COUNTRY_INFO!$T$9:$T$1000, " ") ->  | I40: 0 | M40: 0
A41: =IF(COUNTRY_INFO!A41=0," ",COUNTRY_INFO!A41) -> Tanzania | B41: =IF(COUNTRY_INFO!B41=0," ",COUNTRY_INFO!B41) -> Kagera | C41: =IF(COUNTRY_INFO!C41=0," ",COUNTRY_INFO!C41) -> Biharamulo District Council | D41: =IF(COUNTRY_INFO!$T$9:$T$1000="MDA1 (IVM+ALB)", COUNTRY_INFO!$T$9:$T$1000, " ") ->  | I41: 0 | M41: 0
A42: =IF(COUNTRY_INFO!A42=0," ",COUNTRY_INFO!A42) -> Tanzania | B42: =IF(COUNTRY_INFO!B42=0," ",COUNTRY_INFO!B42) -> Kagera | C42: =IF(COUNTRY_INFO!C42=0," ",COUNTRY_INFO!C42) -> Bukoba District Council | D42: =IF(COUNTRY_INFO!$T$9:$T$1000="MDA1 (IVM+ALB)", COUNTRY_INFO!$T$9:$T$1000, " ") ->  | I42: 0 | M42: 0
A43: =IF(COUNTRY_INFO!A43=0," ",COUNTRY_INFO!A43) -> Tanzania | B43: =IF(COUNTRY_INFO!B43=0," ",COUNTRY_INFO!B43) -> Kagera | C43: =IF(COUNTRY_INFO!C43=0," ",COUNTRY_INFO!C43) -> Bukoba Municipal Council | D43: =IF(COUNTRY_INFO!$T$9:$T$1000="MDA1 (IVM+ALB)", COUNTRY_INFO!$T$9:$T$1000, " ") ->  | I43: 0 | M43: 0
A44: =IF(COUNTRY_INFO!A44=0," ",COUNTRY_INFO!A44) -> Tanzania | B44: =IF(COUNTRY_INFO!B44=0," ",COUNTRY_INFO!B44) -> Kagera | C44: =IF(COUNTRY_INFO!C44=0," ",COUNTRY_INFO!C44) -> Karagwe District Council | D44: =IF(COUNTRY_INFO!$T$9:$T$1000="MDA1 (IVM+ALB)", COUNTRY_INFO!$T$9:$T$1000, " ") ->  | I44: 0 | M44: 0
A45: =IF(COUNTRY_INFO!A45=0," ",COUNTRY_INFO!A45) -> Tanzania | B45: =IF(COUNTRY_INFO!B45=0," ",COUNTRY_INFO!B45) -> Kagera | C45: =IF(COUNTRY_INFO!C45=0," ",COUNTRY_INFO!C45) -> Kyerwa District Council | D45: =IF(COUNTRY_INFO!$T$9:$T$1000="MDA1 (IVM+ALB)", COUNTRY_INFO!$T$9:$T$1000, " ") ->  | I45: 0 | M45: 0
A46: =IF(COUNTRY_INFO!A46=0," ",COUNTRY_INFO!A46) -> Tanzania | B46: =IF(COUNTRY_INFO!B46=0," ",COUNTRY_INFO!B46) -> Kagera | C46: =IF(COUNTRY_INFO!C46=0," ",COUNTRY_INFO!C46) -> Missenyi District Council | D46: =IF(COUNTRY_INFO!$T$9:$T$1000="MDA1 (IVM+ALB)", COUNTRY_INFO!$T$9:$T$1000, " ") ->  | I46: 0 | M46: 0
A47: =IF(COUNTRY_INFO!A47=0," ",COUNTRY_INFO!A47) -> Tanzania | B47: =IF(COUNTRY_INFO!B47=0," ",COUNTRY_INFO!B47) -> Kagera | C47: =IF(COUNTRY_INFO!C47=0," ",COUNTRY_INFO!C47) -> Muleba District Council | D47: =IF(COUNTRY_INFO!$T$9:$T$1000="MDA1 (IVM+ALB)", COUNTRY_INFO!$T$9:$T$1000, " ") ->  | I47: 0 | M47: 0
A48: =IF(COUNTRY_INFO!A48=0," ",COUNTRY_INFO!A48) -> Tanzania | B48: =IF(COUNTRY_INFO!B48=0," ",COUNTRY_INFO!B48) -> Kagera | C48: =IF(COUNTRY_INFO!C48=0," ",COUNTRY_INFO!C48) -> Ngara District Council | D48: =IF(COUNTRY_INFO!$T$9:$T$1000="MDA1 (IVM+ALB)", COUNTRY_INFO!$T$9:$T$1000, " ") ->  | I48: 0 | M48: 0
A49: =IF(COUNTRY_INFO!A49=0," ",COUNTRY_INFO!A49) -> Tanzania | B49: =IF(COUNTRY_INFO!B49=0," ",COUNTRY_INFO!B49) -> Katavi | C49: =IF(COUNTRY_INFO!C49=0," ",COUNTRY_INFO!C49) -> Mlele District Council | D49: =IF(COUNTRY_INFO!$T$9:$T$1000="MDA1 (IVM+ALB)", COUNTRY_INFO!$T$9:$T$1000, " ") ->  | I49: 0 | M49: 0
A50: =IF(COUNTRY_INFO!A50=0," ",COUNTRY_INFO!A50) -> Tanzania | B50: =IF(COUNTRY_INFO!B50=0," ",COUNTRY_INFO!B50) -> Katavi | C50: =IF(COUNTRY_INFO!C50=0," ",COUNTRY_INFO!C50) -> Mpanda District Council | D50: =IF(COUNTRY_INFO!$T$9:$T$1000="MDA1 (IVM+ALB)", COUNTRY_INFO!$T$9:$T$1000, " ") ->  | I50: 0 | M50: 0
A51: =IF(COUNTRY_INFO!A51=0," ",COUNTRY_INFO!A51) -> Tanzania | B51: =IF(COUNTRY_INFO!B51=0," ",COUNTRY_INFO!B51) -> Katavi | C51: =IF(COUNTRY_INFO!C51=0," ",COUNTRY_INFO!C51) -> Mpanda Municipal Council | D51: =IF(COUNTRY_INFO!$T$9:$T$1000="MDA1 (IVM+ALB)", COUNTRY_INFO!$T$9:$T$1000, " ") ->  | I51: 0 | M51: 0
A52: =IF(COUNTRY_INFO!A52=0," ",COUNTRY_INFO!A52) -> Tanzania | B52: =IF(COUNTRY_INFO!B52=0," ",COUNTRY_INFO!B52) -> Katavi | C52: =IF(COUNTRY_INFO!C52=0," ",COUNTRY_INFO!C52) -> Mpimbwe District Council | D52: =IF(COUNTRY_INFO!$T$9:$T$1000="MDA1 (IVM+ALB)", COUNTRY_INFO!$T$9:$T$1000, " ") ->  | I52: 0 | M52: 0
A53: =IF(COUNTRY_INFO!A53=0," ",COUNTRY_INFO!A53) -> Tanzania | B53: =IF(COUNTRY_INFO!B53=0," ",COUNTRY_INFO!B53) -> Katavi | C53: =IF(COUNTRY_INFO!C53=0," ",COUNTRY_INFO!C53) -> Nsimbo District Council | D53: =IF(COUNTRY_INFO!$T$9:$T$1000="MDA1 (IVM+ALB)", COUNTRY_INFO!$T$9:$T$1000, " ") ->  | I53: 0 | M53: 0
A54: =IF(COUNTRY_INFO!A54=0," ",COUNTRY_INFO!A54) -> Tanzania | B54: =IF(COUNTRY_INFO!B54=0," ",COUNTRY_INFO!B54) -> Kigoma | C54: =IF(COUNTRY_INFO!C54=0," ",COUNTRY_INFO!C54) -> Buhigwe District Council | D54: =IF(COUNTRY_INFO!$T$9:$T$1000="MDA1 (IVM+ALB)", COUNTRY_INFO!$T$9:$T$1000, " ") ->  | I54: 0 | M54: 0
A55: =IF(COUNTRY_INFO!A55=0," ",COUNTRY_INFO!A55) -> Tanzania | B55: =IF(COUNTRY_INFO!B55=0," ",COUNTRY_INFO!B55) -> Kigoma | C55: =IF(COUNTRY_INFO!C55=0," ",COUNTRY_INFO!C55) -> Kakonko District Council | D55: =IF(COUNTRY_INFO!$T$9:$T$1000="MDA1 (IVM+ALB)", COUNTRY_INFO!$T$9:$T$1000, " ") ->  | I55: 0 | M55: 0
A56: =IF(COUNTRY_INFO!A56=0," ",COUNTRY_INFO!A56) -> Tanzania | B56: =IF(COUNTRY_INFO!B56=0," ",COUNTRY_INFO!B56) -> Kigoma | C56: =IF(COUNTRY_INFO!C56=0," ",COUNTRY_INFO!C56) -> Kasulu District Council | D56: =IF(COUNTRY_INFO!$T$9:$T$1000="MDA1 (IVM+ALB)", COUNTRY_INFO!$T$9:$T$1000, " ") ->  | I56: 0 | M56: 0
A57: =IF(COUNTRY_INFO!A57=0," ",COUNTRY_INFO!A57) -> Tanzania | B57: =IF(COUNTRY_INFO!B57=0," ",COUNTRY_INFO!B57) -> Kigoma | C57: =IF(COUNTRY_INFO!C57=0," ",COUNTRY_INFO!C57) -> Kasulu Town Council | D57: =IF(COUNTRY_INFO!$T$9:$T$1000="MDA1 (IVM+ALB)", COUNTRY_INFO!$T$9:$T$1000, " ") ->  | I57: 0 | M57: 0
A58: =IF(COUNTRY_INFO!A58=0," ",COUNTRY_INFO!A58) -> Tanzania | B58: =IF(COUNTRY_INFO!B58=0," ",COUNTRY_INFO!B58) -> Kigoma | C58: =IF(COUNTRY_INFO!C58=0," ",COUNTRY_INFO!C58) -> Kibondo District Council | D58: =IF(COUNTRY_INFO!$T$9:$T$1000="MDA1 (IVM+ALB)", COUNTRY_INFO!$T$9:$T$1000, " ") ->  | I58: 0 | M58: 0
A59: =IF(COUNTRY_INFO!A59=0," ",COUNTRY_INFO!A59) -> Tanzania | B59: =IF(COUNTRY_INFO!B59=0," ",COUNTRY_INFO!B59) -> Kigoma | C59: =IF(COUNTRY_INFO!C59=0," ",COUNTRY_INFO!C59) -> Kigoma District Council | D59: =IF(COUNTRY_INFO!$T$9:$T$1000="MDA1 (IVM+ALB)", COUNTRY_INFO!$T$9:$T$1000, " ") ->  | I59: 0 | M59: 0
A60: =IF(COUNTRY_INFO!A60=0," ",COUNTRY_INFO!A60) -> Tanzania | B60: =IF(COUNTRY_INFO!B60=0," ",COUNTRY_INFO!B60) -> Kigoma | C60: =IF(COUNTRY_INFO!C60=0," ",COUNTRY_INFO!C60) -> Kigoma-Ujiji Municipal Council | D60: =IF(COUNTRY_INFO!$T$9:$T$1000="MDA1 (IVM+ALB)", COUNTRY_INFO!$T$9:$T$1000, " ") ->  | I60: 0 | M60: 0
A61: =IF(COUNTRY_INFO!A61=0," ",COUNTRY_INFO!A61) -> Tanzania | B61: =IF(COUNTRY_INFO!B61=0," ",COUNTRY_INFO!B61) -> Kigoma | C61: =IF(COUNTRY_INFO!C61=0," ",COUNTRY_INFO!C61) -> Uvinza District Council | D61: =IF(COUNTRY_INFO!$T$9:$T$1000="MDA1 (IVM+ALB)", COUNTRY_INFO!$T$9:$T$1000, " ") ->  | I61: 0 | M61: 0
A62: =IF(COUNTRY_INFO!A62=0," ",COUNTRY_INFO!A62) -> Tanzania | B62: =IF(COUNTRY_INFO!B62=0," ",COUNTRY_INFO!B62) -> Kilimanjaro | C62: =IF(COUNTRY_INFO!C62=0," ",COUNTRY_INFO!C62) -> Hai District Council | D62: =IF(COUNTRY_INFO!$T$9:$T$1000="MDA1 (IVM+ALB)", COUNTRY_INFO!$T$9:$T$1000, " ") ->  | I62: 0 | M62: 0
A63: =IF(COUNTRY_INFO!A63=0," ",COUNTRY_INFO!A63) -> Tanzania | B63: =IF(COUNTRY_INFO!B63=0," ",COUNTRY_INFO!B63) -> Kilimanjaro | C63: =IF(COUNTRY_INFO!C63=0," ",COUNTRY_INFO!C63) -> Moshi District Council | D63: =IF(COUNTRY_INFO!$T$9:$T$1000="MDA1 (IVM+ALB)", COUNTRY_INFO!$T$9:$T$1000, " ") ->  | I63: 0 | M63: 0
A64: =IF(COUNTRY_INFO!A64=0," ",COUNTRY_INFO!A64) -> Tanzania | B64: =IF(COUNTRY_INFO!B64=0," ",COUNTRY_INFO!B64) -> Kilimanjaro | C64: =IF(COUNTRY_INFO!C64=0," ",COUNTRY_INFO!C64) -> Moshi Municipal Council | D64: =IF(COUNTRY_INFO!$T$9:$T$1000="MDA1 (IVM+ALB)", COUNTRY_INFO!$T$9:$T$1000, " ") ->  | I64: 0 | M64: 0
A65: =IF(COUNTRY_INFO!A65=0," ",COUNTRY_INFO!A65) -> Tanzania | B65: =IF(COUNTRY_INFO!B65=0," ",COUNTRY_INFO!B65) -> Kilimanjaro | C65: =IF(COUNTRY_INFO!C65=0," ",COUNTRY_INFO!C65) -> Mwanga District Council | D65: =IF(COUNTRY_INFO!$T$9:$T$1000="MDA1 (IVM+ALB)", COUNTRY_INFO!$T$9:$T$1000, " ") ->  | I65: 0 | M65: 0
A66: =IF(COUNTRY_INFO!A66=0," ",COUNTRY_INFO!A66) -> Tanzania | B66: =IF(COUNTRY_INFO!B66=0," ",COUNTRY_INFO!B66) -> Kilimanjaro | C66: =IF(COUNTRY_INFO!C66=0," ",COUNTRY_INFO!C66) -> Rombo District Council | D66: =IF(COUNTRY_INFO!$T$9:$T$1000="MDA1 (IVM+ALB)", COUNTRY_INFO!$T$9:$T$1000, " ") ->  | I66: 0 | M66: 0
A67: =IF(COUNTRY_INFO!A67=0," ",COUNTRY_INFO!A67) -> Tanzania | B67: =IF(COUNTRY_INFO!B67=0," ",COUNTRY_INFO!B67) -> Kilimanjaro | C67: =IF(COUNTRY_INFO!C67=0," ",COUNTRY_INFO!C67) -> Same District Council | D67: =IF(COUNTRY_INFO!$T$9:$T$1000="MDA1 (IVM+ALB)", COUNTRY_INFO!$T$9:$T$1000, " ") ->  | I67: 0 | M67: 0
A68: =IF(COUNTRY_INFO!A68=0," ",COUNTRY_INFO!A68) -> Tanzania | B68: =IF(COUNTRY_INFO!B68=0," ",COUNTRY_INFO!B68) -> Kilimanjaro | C68: =IF(COUNTRY_INFO!C68=0," ",COUNTRY_INFO!C68) -> Siha District Council | D68: =IF(COUNTRY_INFO!$T$9:$T$1000="MDA1 (IVM+ALB)", COUNTRY_INFO!$T$9:$T$1000, " ") ->  | I68: 0 | M68: 0
A69: =IF(COUNTRY_INFO!A69=0," ",COUNTRY_INFO!A69) -> Tanzania | B69: =IF(COUNTRY_INFO!B69=0," ",COUNTRY_INFO!B69) -> Lindi | C69: =IF(COUNTRY_INFO!C69=0," ",COUNTRY_INFO!C69) -> Kilwa District Council | D69: =IF(COUNTRY_INFO!$T$9:$T$1000="MDA1 (IVM+ALB)", COUNTRY_INFO!$T$9:$T$1000, " ") ->  | I69: 0 | M69: 0
A70: =IF(COUNTRY_INFO!A70=0," ",COUNTRY_INFO!A70) -> Tanzania | B70: =IF(COUNTRY_INFO!B70=0," ",COUNTRY_INFO!B70) -> Lindi | C70: =IF(COUNTRY_INFO!C70=0," ",COUNTRY_INFO!C70) -> Lindi District Council (Mtama District Council) | D70: =IF(COUNTRY_INFO!$T$9:$T$1000="MDA1 (IVM+ALB)", COUNTRY_INFO!$T$9:$T$1000, " ") ->  | I70: 0 | M70: 0
A71: =IF(COUNTRY_INFO!A71=0," ",COUNTRY_INFO!A71) -> Tanzania | B71: =IF(COUNTRY_INFO!B71=0," ",COUNTRY_INFO!B71) -> Lindi | C71: =IF(COUNTRY_INFO!C71=0," ",COUNTRY_INFO!C71) -> Lindi Municipal Council | D71: =IF(COUNTRY_INFO!$T$9:$T$1000="MDA1 (IVM+ALB)", COUNTRY_INFO!$T$9:$T$1000, " ") ->  | I71: 0 | M71: 0
A72: =IF(COUNTRY_INFO!A72=0," ",COUNTRY_INFO!A72) -> Tanzania | B72: =IF(COUNTRY_INFO!B72=0," ",COUNTRY_INFO!B72) -> Lindi | C72: =IF(COUNTRY_INFO!C72=0," ",COUNTRY_INFO!C72) -> Liwale District Council | D72: =IF(COUNTRY_INFO!$T$9:$T$1000="MDA1 (IVM+ALB)", COUNTRY_INFO!$T$9:$T$1000, " ") ->  | I72: 0 | M72: 0
A73: =IF(COUNTRY_INFO!A73=0," ",COUNTRY_INFO!A73) -> Tanzania | B73: =IF(COUNTRY_INFO!B73=0," ",COUNTRY_INFO!B73) -> Lindi | C73: =IF(COUNTRY_INFO!C73=0," ",COUNTRY_INFO!C73) -> Nachingwea District Council | D73: =IF(COUNTRY_INFO!$T$9:$T$1000="MDA1 (IVM+ALB)", COUNTRY_INFO!$T$9:$T$1000, " ") ->  | I73: 0 | M73: 0
A74: =IF(COUNTRY_INFO!A74=0," ",COUNTRY_INFO!A74) -> Tanzania | B74: =IF(COUNTRY_INFO!B74=0," ",COUNTRY_INFO!B74) -> Lindi | C74: =IF(COUNTRY_INFO!C74=0," ",COUNTRY_INFO!C74) -> Ruangwa District Council | D74: =IF(COUNTRY_INFO!$T$9:$T$1000="MDA1 (IVM+ALB)", COUNTRY_INFO!$T$9:$T$1000, " ") ->  | I74: =SUM(F74:H74) -> 0 | M74: =SUM(J74:L74) -> 0 | O74: =IF(G74<>0, IF(K74/G74*100=0, "-", K74/G74*100), " ") ->  | P74: =IF(H74<>0, IF(L74/H74*100=0, "-", L74/H74*100), " ") ->  | Q74: =IF(I74<>0, IF(M74/I74*100=0, "-", M74/I74*100), " ") -> 
A75: =IF(COUNTRY_INFO!A75=0," ",COUNTRY_INFO!A75) -> Tanzania | B75: =IF(COUNTRY_INFO!B75=0," ",COUNTRY_INFO!B75) -> Manyara | C75: =IF(COUNTRY_INFO!C75=0," ",COUNTRY_INFO!C75) -> Babati District Council | D75: =IF(COUNTRY_INFO!$T$9:$T$1000="MDA1 (IVM+ALB)", COUNTRY_INFO!$T$9:$T$1000, " ") ->  | I75: 0 | M75: 0
A76: =IF(COUNTRY_INFO!A76=0," ",COUNTRY_INFO!A76) -> Tanzania | B76: =IF(COUNTRY_INFO!B76=0," ",COUNTRY_INFO!B76) -> Manyara | C76: =IF(COUNTRY_INFO!C76=0," ",COUNTRY_INFO!C76) -> Babati Town Council | D76: =IF(COUNTRY_INFO!$T$9:$T$1000="MDA1 (IVM+ALB)", COUNTRY_INFO!$T$9:$T$1000, " ") ->  | I76: 0 | M76: 0
A77: =IF(COUNTRY_INFO!A77=0," ",COUNTRY_INFO!A77) -> Tanzania | B77: =IF(COUNTRY_INFO!B77=0," ",COUNTRY_INFO!B77) -> Manyara | C77: =IF(COUNTRY_INFO!C77=0," ",COUNTRY_INFO!C77) -> Hanang District Council | D77: =IF(COUNTRY_INFO!$T$9:$T$1000="MDA1 (IVM+ALB)", COUNTRY_INFO!$T$9:$T$1000, " ") ->  | I77: 0 | M77: 0
A78: =IF(COUNTRY_INFO!A78=0," ",COUNTRY_INFO!A78) -> Tanzania | B78: =IF(COUNTRY_INFO!B78=0," ",COUNTRY_INFO!B78) -> Manyara | C78: =IF(COUNTRY_INFO!C78=0," ",COUNTRY_INFO!C78) -> Kiteto District Council | D78: =IF(COUNTRY_INFO!$T$9:$T$1000="MDA1 (IVM+ALB)", COUNTRY_INFO!$T$9:$T$1000, " ") ->  | I78: 0 | M78: 0
A79: =IF(COUNTRY_INFO!A79=0," ",COUNTRY_INFO!A79) -> Tanzania | B79: =IF(COUNTRY_INFO!B79=0," ",COUNTRY_INFO!B79) -> Manyara | C79: =IF(COUNTRY_INFO!C79=0," ",COUNTRY_INFO!C79) -> Mbulu District Council | D79: =IF(COUNTRY_INFO!$T$9:$T$1000="MDA1 (IVM+ALB)", COUNTRY_INFO!$T$9:$T$1000, " ") ->  | I79: 0 | M79: 0
A80: =IF(COUNTRY_INFO!A80=0," ",COUNTRY_INFO!A80) -> Tanzania | B80: =IF(COUNTRY_INFO!B80=0," ",COUNTRY_INFO!B80) -> Manyara | C80: =IF(COUNTRY_INFO!C80=0," ",COUNTRY_INFO!C80) -> Mbulu Town Council | D80: =IF(COUNTRY_INFO!$T$9:$T$1000="MDA1 (IVM+ALB)", COUNTRY_INFO!$T$9:$T$1000, " ") ->  | I80: 0 | M80: 0
A81: =IF(COUNTRY_INFO!A81=0," ",COUNTRY_INFO!A81) -> Tanzania | B81: =IF(COUNTRY_INFO!B81=0," ",COUNTRY_INFO!B81) -> Manyara | C81: =IF(COUNTRY_INFO!C81=0," ",COUNTRY_INFO!C81) -> Simanjiro District Council | D81: =IF(COUNTRY_INFO!$T$9:$T$1000="MDA1 (IVM+ALB)", COUNTRY_INFO!$T$9:$T$1000, " ") ->  | I81: 0 | M81: 0
A82: =IF(COUNTRY_INFO!A82=0," ",COUNTRY_INFO!A82) -> Tanzania | B82: =IF(COUNTRY_INFO!B82=0," ",COUNTRY_INFO!B82) -> Mara | C82: =IF(COUNTRY_INFO!C82=0," ",COUNTRY_INFO!C82) -> Bunda District Council | D82: =IF(COUNTRY_INFO!$T$9:$T$1000="MDA1 (IVM+ALB)", COUNTRY_INFO!$T$9:$T$1000, " ") ->  | I82: 0 | M82: 0
A83: =IF(COUNTRY_INFO!A83=0," ",COUNTRY_INFO!A83) -> Tanzania | B83: =IF(COUNTRY_INFO!B83=0," ",COUNTRY_INFO!B83) -> Mara | C83: =IF(COUNTRY_INFO!C83=0," ",COUNTRY_INFO!C83) -> Bunda Town Council | D83: =IF(COUNTRY_INFO!$T$9:$T$1000="MDA1 (IVM+ALB)", COUNTRY_INFO!$T$9:$T$1000, " ") ->  | I83: 0 | M83: 0
A84: =IF(COUNTRY_INFO!A84=0," ",COUNTRY_INFO!A84) -> Tanzania | B84: =IF(COUNTRY_INFO!B84=0," ",COUNTRY_INFO!B84) -> Mara | C84: =IF(COUNTRY_INFO!C84=0," ",COUNTRY_INFO!C84) -> Butiama District Council | D84: =IF(COUNTRY_INFO!$T$9:$T$1000="MDA1 (IVM+ALB)", COUNTRY_INFO!$T$9:$T$1000, " ") ->  | I84: 0 | M84: 0
A85: =IF(COUNTRY_INFO!A85=0," ",COUNTRY_INFO!A85) -> Tanzania | B85: =IF(COUNTRY_INFO!B85=0," ",COUNTRY_INFO!B85) -> Mara | C85: =IF(COUNTRY_INFO!C85=0," ",COUNTRY_INFO!C85) -> Musoma District Council | D85: =IF(COUNTRY_INFO!$T$9:$T$1000="MDA1 (IVM+ALB)", COUNTRY_INFO!$T$9:$T$1000, " ") ->  | I85: 0 | M85: 0
A86: =IF(COUNTRY_INFO!A86=0," ",COUNTRY_INFO!A86) -> Tanzania | B86: =IF(COUNTRY_INFO!B86=0," ",COUNTRY_INFO!B86) -> Mara | C86: =IF(COUNTRY_INFO!C86=0," ",COUNTRY_INFO!C86) -> Musoma Municipal Council | D86: =IF(COUNTRY_INFO!$T$9:$T$1000="MDA1 (IVM+ALB)", COUNTRY_INFO!$T$9:$T$1000, " ") ->  | I86: 0 | M86: 0
A87: =IF(COUNTRY_INFO!A87=0," ",COUNTRY_INFO!A87) -> Tanzania | B87: =IF(COUNTRY_INFO!B87=0," ",COUNTRY_INFO!B87) -> Mara | C87: =IF(COUNTRY_INFO!C87=0," ",COUNTRY_INFO!C87) -> Rorya District Council | D87: =IF(COUNTRY_INFO!$T$9:$T$1000="MDA1 (IVM+ALB)", COUNTRY_INFO!$T$9:$T$1000, " ") ->  | I87: 0 | M87: 0
A88: =IF(COUNTRY_INFO!A88=0," ",COUNTRY_INFO!A88) -> Tanzania | B88: =IF(COUNTRY_INFO!B88=0," ",COUNTRY_INFO!B88) -> Mara | C88: =IF(COUNTRY_INFO!C88=0," ",COUNTRY_INFO!C88) -> Serengeti District Council | D88: =IF(COUNTRY_INFO!$T$9:$T$1000="MDA1 (IVM+ALB)", COUNTRY_INFO!$T$9:$T$1000, " ") ->  | I88: 0 | M88: 0
A89: =IF(COUNTRY_INFO!A89=0," ",COUNTRY_INFO!A89) -> Tanzania | B89: =IF(COUNTRY_INFO!B89=0," ",COUNTRY_INFO!B89) -> Mara | C89: =IF(COUNTRY_INFO!C89=0," ",COUNTRY_INFO!C89) -> Tarime District Council | D89: =IF(COUNTRY_INFO!$T$9:$T$1000="MDA1 (IVM+ALB)", COUNTRY_INFO!$T$9:$T$1000, " ") ->  | I89: 0 | M89: 0
A90: =IF(COUNTRY_INFO!A90=0," ",COUNTRY_INFO!A90) -> Tanzania | B90: =IF(COUNTRY_INFO!B90=0," ",COUNTRY_INFO!B90) -> Mara | C90: =IF(COUNTRY_INFO!C90=0," ",COUNTRY_INFO!C90) -> Tarime Town Council | D90: =IF(COUNTRY_INFO!$T$9:$T$1000="MDA1 (IVM+ALB)", COUNTRY_INFO!$T$9:$T$1000, " ") ->  | I90: 0 | M90: 0
A91: =IF(COUNTRY_INFO!A91=0," ",COUNTRY_INFO!A91) -> Tanzania | B91: =IF(COUNTRY_INFO!B91=0," ",COUNTRY_INFO!B91) -> Mbeya | C91: =IF(COUNTRY_INFO!C91=0," ",COUNTRY_INFO!C91) -> Busokelo District Council | D91: =IF(COUNTRY_INFO!$T$9:$T$1000="MDA1 (IVM+ALB)", COUNTRY_INFO!$T$9:$T$1000, " ") ->  | I91: 0 | M91: 0
A92: =IF(COUNTRY_INFO!A92=0," ",COUNTRY_INFO!A92) -> Tanzania | B92: =IF(COUNTRY_INFO!B92=0," ",COUNTRY_INFO!B92) -> Mbeya | C92: =IF(COUNTRY_INFO!C92=0," ",COUNTRY_INFO!C92) -> Chunya District Council | D92: =IF(COUNTRY_INFO!$T$9:$T$1000="MDA1 (IVM+ALB)", COUNTRY_INFO!$T$9:$T$1000, " ") ->  | I92: 0 | M92: 0
A93: =IF(COUNTRY_INFO!A93=0," ",COUNTRY_INFO!A93) -> Tanzania | B93: =IF(COUNTRY_INFO!B93=0," ",COUNTRY_INFO!B93) -> Mbeya | C93: =IF(COUNTRY_INFO!C93=0," ",COUNTRY_INFO!C93) -> Kyela District Council | D93: =IF(COUNTRY_INFO!$T$9:$T$1000="MDA1 (IVM+ALB)", COUNTRY_INFO!$T$9:$T$1000, " ") ->  | I93: 0 | M93: 0
A94: =IF(COUNTRY_INFO!A94=0," ",COUNTRY_INFO!A94) -> Tanzania | B94: =IF(COUNTRY_INFO!B94=0," ",COUNTRY_INFO!B94) -> Mbeya | C94: =IF(COUNTRY_INFO!C94=0," ",COUNTRY_INFO!C94) -> Mbarali District Council | D94: =IF(COUNTRY_INFO!$T$9:$T$1000="MDA1 (IVM+ALB)", COUNTRY_INFO!$T$9:$T$1000, " ") ->  | I94: 0 | M94: 0
A95: =IF(COUNTRY_INFO!A95=0," ",COUNTRY_INFO!A95) -> Tanzania | B95: =IF(COUNTRY_INFO!B95=0," ",COUNTRY_INFO!B95) -> Mbeya | C95: =IF(COUNTRY_INFO!C95=0," ",COUNTRY_INFO!C95) -> Mbeya City Council | D95: =IF(COUNTRY_INFO!$T$9:$T$1000="MDA1 (IVM+ALB)", COUNTRY_INFO!$T$9:$T$1000, " ") ->  | I95: 0 | M95: 0
A96: =IF(COUNTRY_INFO!A96=0," ",COUNTRY_INFO!A96) -> Tanzania | B96: =IF(COUNTRY_INFO!B96=0," ",COUNTRY_INFO!B96) -> Mbeya | C96: =IF(COUNTRY_INFO!C96=0," ",COUNTRY_INFO!C96) -> Mbeya District Council | D96: =IF(COUNTRY_INFO!$T$9:$T$1000="MDA1 (IVM+ALB)", COUNTRY_INFO!$T$9:$T$1000, " ") ->  | I96: 0 | M96: 0
A97: =IF(COUNTRY_INFO!A97=0," ",COUNTRY_INFO!A97) -> Tanzania | B97: =IF(COUNTRY_INFO!B97=0," ",COUNTRY_INFO!B97) -> Mbeya | C97: =IF(COUNTRY_INFO!C97=0," ",COUNTRY_INFO!C97) -> Rungwe District Council | D97: =IF(COUNTRY_INFO!$T$9:$T$1000="MDA1 (IVM+ALB)", COUNTRY_INFO!$T$9:$T$1000, " ") ->  | I97: 0 | M97: 0
A98: =IF(COUNTRY_INFO!A98=0," ",COUNTRY_INFO!A98) -> Tanzania | B98: =IF(COUNTRY_INFO!B98=0," ",COUNTRY_INFO!B98) -> Morogoro | C98: =IF(COUNTRY_INFO!C98=0," ",COUNTRY_INFO!C98) -> Gairo District Council | D98: =IF(COUNTRY_INFO!$T$9:$T$1000="MDA1 (IVM+ALB)", COUNTRY_INFO!$T$9:$T$1000, " ") ->  | I98: 0 | M98: 0
A99: =IF(COUNTRY_INFO!A99=0," ",COUNTRY_INFO!A99) -> Tanzania | B99: =IF(COUNTRY_INFO!B99=0," ",COUNTRY_INFO!B99) -> Morogoro | C99: =IF(COUNTRY_INFO!C99=0," ",COUNTRY_INFO!C99) -> Ifakara Town Council | D99: =IF(COUNTRY_INFO!$T$9:$T$1000="MDA1 (IVM+ALB)", COUNTRY_INFO!$T$9:$T$1000, " ") ->  | I99: 0 | M99: 0
A100: =IF(COUNTRY_INFO!A100=0," ",COUNTRY_INFO!A100) -> Tanzania | B100: =IF(COUNTRY_INFO!B100=0," ",COUNTRY_INFO!B100) -> Morogoro | C100: =IF(COUNTRY_INFO!C100=0," ",COUNTRY_INFO!C100) -> Kilombero District Council (Mlimba District Council) | D100: =IF(COUNTRY_INFO!$T$9:$T$1000="MDA1 (IVM+ALB)", COUNTRY_INFO!$T$9:$T$1000, " ") ->  | I100: 0 | M100: 0
A101: =IF(COUNTRY_INFO!A101=0," ",COUNTRY_INFO!A101) -> Tanzania | B101: =IF(COUNTRY_INFO!B101=0," ",COUNTRY_INFO!B101) -> Morogoro | C101: =IF(COUNTRY_INFO!C101=0," ",COUNTRY_INFO!C101) -> Kilosa District Council | D101: =IF(COUNTRY_INFO!$T$9:$T$1000="MDA1 (IVM+ALB)", COUNTRY_INFO!$T$9:$T$1000, " ") ->  | I101: 0 | M101: 0
A102: =IF(COUNTRY_INFO!A102=0," ",COUNTRY_INFO!A102) -> Tanzania | B102: =IF(COUNTRY_INFO!B102=0," ",COUNTRY_INFO!B102) -> Morogoro | C102: =IF(COUNTRY_INFO!C102=0," ",COUNTRY_INFO!C102) -> Malinyi District Council | D102: =IF(COUNTRY_INFO!$T$9:$T$1000="MDA1 (IVM+ALB)", COUNTRY_INFO!$T$9:$T$1000, " ") ->  | I102: 0 | M102: 0
A103: =IF(COUNTRY_INFO!A103=0," ",COUNTRY_INFO!A103) -> Tanzania | B103: =IF(COUNTRY_INFO!B103=0," ",COUNTRY_INFO!B103) -> Morogoro | C103: =IF(COUNTRY_INFO!C103=0," ",COUNTRY_INFO!C103) -> Morogoro District Council | D103: =IF(COUNTRY_INFO!$T$9:$T$1000="MDA1 (IVM+ALB)", COUNTRY_INFO!$T$9:$T$1000, " ") ->  | I103: 0 | M103: 0
A104: =IF(COUNTRY_INFO!A104=0," ",COUNTRY_INFO!A104) -> Tanzania | B104: =IF(COUNTRY_INFO!B104=0," ",COUNTRY_INFO!B104) -> Morogoro | C104: =IF(COUNTRY_INFO!C104=0," ",COUNTRY_INFO!C104) -> Morogoro Municipal Council | D104: =IF(COUNTRY_INFO!$T$9:$T$1000="MDA1 (IVM+ALB)", COUNTRY_INFO!$T$9:$T$1000, " ") ->  | I104: 0 | M104: 0
A105: =IF(COUNTRY_INFO!A105=0," ",COUNTRY_INFO!A105) -> Tanzania | B105: =IF(COUNTRY_INFO!B105=0," ",COUNTRY_INFO!B105) -> Morogoro | C105: =IF(COUNTRY_INFO!C105=0," ",COUNTRY_INFO!C105) -> Mvomero District Council | D105: =IF(COUNTRY_INFO!$T$9:$T$1000="MDA1 (IVM+ALB)", COUNTRY_INFO!$T$9:$T$1000, " ") ->  | I105: 0 | M105: 0
A106: =IF(COUNTRY_INFO!A106=0," ",COUNTRY_INFO!A106) -> Tanzania | B106: =IF(COUNTRY_INFO!B106=0," ",COUNTRY_INFO!B106) -> Morogoro | C106: =IF(COUNTRY_INFO!C106=0," ",COUNTRY_INFO!C106) -> Ulanga District Council | D106: =IF(COUNTRY_INFO!$T$9:$T$1000="MDA1 (IVM+ALB)", COUNTRY_INFO!$T$9:$T$1000, " ") ->  | I106: 0 | M106: 0
A107: =IF(COUNTRY_INFO!A107=0," ",COUNTRY_INFO!A107) -> Tanzania | B107: =IF(COUNTRY_INFO!B107=0," ",COUNTRY_INFO!B107) -> Mtwara | C107: =IF(COUNTRY_INFO!C107=0," ",COUNTRY_INFO!C107) -> Masasi District Council | D107: =IF(COUNTRY_INFO!$T$9:$T$1000="MDA1 (IVM+ALB)", COUNTRY_INFO!$T$9:$T$1000, " ") ->  | I107: 0 | M107: 0
A108: =IF(COUNTRY_INFO!A108=0," ",COUNTRY_INFO!A108) -> Tanzania | B108: =IF(COUNTRY_INFO!B108=0," ",COUNTRY_INFO!B108) -> Mtwara | C108: =IF(COUNTRY_INFO!C108=0," ",COUNTRY_INFO!C108) -> Masasi Town Council | D108: =IF(COUNTRY_INFO!$T$9:$T$1000="MDA1 (IVM+ALB)", COUNTRY_INFO!$T$9:$T$1000, " ") ->  | I108: 0 | M108: 0
A109: =IF(COUNTRY_INFO!A109=0," ",COUNTRY_INFO!A109) -> Tanzania | B109: =IF(COUNTRY_INFO!B109=0," ",COUNTRY_INFO!B109) -> Mtwara | C109: =IF(COUNTRY_INFO!C109=0," ",COUNTRY_INFO!C109) -> Mtwara District Council | D109: =IF(COUNTRY_INFO!$T$9:$T$1000="MDA1 (IVM+ALB)", COUNTRY_INFO!$T$9:$T$1000, " ") ->  | I109: 0 | M109: 0
A110: =IF(COUNTRY_INFO!A110=0," ",COUNTRY_INFO!A110) -> Tanzania | B110: =IF(COUNTRY_INFO!B110=0," ",COUNTRY_INFO!B110) -> Mtwara | C110: =IF(COUNTRY_INFO!C110=0," ",COUNTRY_INFO!C110) -> Mtwara-Mikindani Municipal Council | D110: =IF(COUNTRY_INFO!$T$9:$T$1000="MDA1 (IVM+ALB)", COUNTRY_INFO!$T$9:$T$1000, " ") ->  | I110: 0 | M110: 0
A111: =IF(COUNTRY_INFO!A111=0," ",COUNTRY_INFO!A111) -> Tanzania | B111: =IF(COUNTRY_INFO!B111=0," ",COUNTRY_INFO!B111) -> Mtwara | C111: =IF(COUNTRY_INFO!C111=0," ",COUNTRY_INFO!C111) -> Nanyamba Town Council | D111: =IF(COUNTRY_INFO!$T$9:$T$1000="MDA1 (IVM+ALB)", COUNTRY_INFO!$T$9:$T$1000, " ") ->  | I111: 0 | M111: 0
A112: =IF(COUNTRY_INFO!A112=0," ",COUNTRY_INFO!A112) -> Tanzania | B112: =IF(COUNTRY_INFO!B112=0," ",COUNTRY_INFO!B112) -> Mtwara | C112: =IF(COUNTRY_INFO!C112=0," ",COUNTRY_INFO!C112) -> Nanyumbu District Council | D112: =IF(COUNTRY_INFO!$T$9:$T$1000="MDA1 (IVM+ALB)", COUNTRY_INFO!$T$9:$T$1000, " ") ->  | I112: 0 | M112: 0
A113: =IF(COUNTRY_INFO!A113=0," ",COUNTRY_INFO!A113) -> Tanzania | B113: =IF(COUNTRY_INFO!B113=0," ",COUNTRY_INFO!B113) -> Mtwara | C113: =IF(COUNTRY_INFO!C113=0," ",COUNTRY_INFO!C113) -> Newala District Council | D113: =IF(COUNTRY_INFO!$T$9:$T$1000="MDA1 (IVM+ALB)", COUNTRY_INFO!$T$9:$T$1000, " ") ->  | I113: 0 | M113: 0
A114: =IF(COUNTRY_INFO!A114=0," ",COUNTRY_INFO!A114) -> Tanzania | B114: =IF(COUNTRY_INFO!B114=0," ",COUNTRY_INFO!B114) -> Mtwara | C114: =IF(COUNTRY_INFO!C114=0," ",COUNTRY_INFO!C114) -> Newala Town Council | D114: =IF(COUNTRY_INFO!$T$9:$T$1000="MDA1 (IVM+ALB)", COUNTRY_INFO!$T$9:$T$1000, " ") ->  | I114: 0 | M114: 0
A115: =IF(COUNTRY_INFO!A115=0," ",COUNTRY_INFO!A115) -> Tanzania | B115: =IF(COUNTRY_INFO!B115=0," ",COUNTRY_INFO!B115) -> Mtwara | C115: =IF(COUNTRY_INFO!C115=0," ",COUNTRY_INFO!C115) -> Tandahimba District Council | D115: =IF(COUNTRY_INFO!$T$9:$T$1000="MDA1 (IVM+ALB)", COUNTRY_INFO!$T$9:$T$1000, " ") ->  | I115: 0 | M115: 0
A116: =IF(COUNTRY_INFO!A116=0," ",COUNTRY_INFO!A116) -> Tanzania | B116: =IF(COUNTRY_INFO!B116=0," ",COUNTRY_INFO!B116) -> Mwanza | C116: =IF(COUNTRY_INFO!C116=0," ",COUNTRY_INFO!C116) -> Buchosa District Council | D116: =IF(COUNTRY_INFO!$T$9:$T$1000="MDA1 (IVM+ALB)", COUNTRY_INFO!$T$9:$T$1000, " ") ->  | I116: 0 | M116: 0
A117: =IF(COUNTRY_INFO!A117=0," ",COUNTRY_INFO!A117) -> Tanzania | B117: =IF(COUNTRY_INFO!B117=0," ",COUNTRY_INFO!B117) -> Mwanza | C117: =IF(COUNTRY_INFO!C117=0," ",COUNTRY_INFO!C117) -> Ilemela Municipal Council | D117: =IF(COUNTRY_INFO!$T$9:$T$1000="MDA1 (IVM+ALB)", COUNTRY_INFO!$T$9:$T$1000, " ") ->  | I117: 0 | M117: 0
A118: =IF(COUNTRY_INFO!A118=0," ",COUNTRY_INFO!A118) -> Tanzania | B118: =IF(COUNTRY_INFO!B118=0," ",COUNTRY_INFO!B118) -> Mwanza | C118: =IF(COUNTRY_INFO!C118=0," ",COUNTRY_INFO!C118) -> Kwimba District Council | D118: =IF(COUNTRY_INFO!$T$9:$T$1000="MDA1 (IVM+ALB)", COUNTRY_INFO!$T$9:$T$1000, " ") ->  | I118: 0 | M118: 0
A119: =IF(COUNTRY_INFO!A119=0," ",COUNTRY_INFO!A119) -> Tanzania | B119: =IF(COUNTRY_INFO!B119=0," ",COUNTRY_INFO!B119) -> Mwanza | C119: =IF(COUNTRY_INFO!C119=0," ",COUNTRY_INFO!C119) -> Magu District Council | D119: =IF(COUNTRY_INFO!$T$9:$T$1000="MDA1 (IVM+ALB)", COUNTRY_INFO!$T$9:$T$1000, " ") ->  | I119: 0 | M119: 0
A120: =IF(COUNTRY_INFO!A120=0," ",COUNTRY_INFO!A120) -> Tanzania | B120: =IF(COUNTRY_INFO!B120=0," ",COUNTRY_INFO!B120) -> Mwanza | C120: =IF(COUNTRY_INFO!C120=0," ",COUNTRY_INFO!C120) -> Misungwi District Council | D120: =IF(COUNTRY_INFO!$T$9:$T$1000="MDA1 (IVM+ALB)", COUNTRY_INFO!$T$9:$T$1000, " ") ->  | I120: 0 | M120: 0
A121: =IF(COUNTRY_INFO!A121=0," ",COUNTRY_INFO!A121) -> Tanzania | B121: =IF(COUNTRY_INFO!B121=0," ",COUNTRY_INFO!B121) -> Mwanza | C121: =IF(COUNTRY_INFO!C121=0," ",COUNTRY_INFO!C121) -> Mwanza-Nyamagana City Council | D121: =IF(COUNTRY_INFO!$T$9:$T$1000="MDA1 (IVM+ALB)", COUNTRY_INFO!$T$9:$T$1000, " ") ->  | I121: 0 | M121: 0
A122: =IF(COUNTRY_INFO!A122=0," ",COUNTRY_INFO!A122) -> Tanzania | B122: =IF(COUNTRY_INFO!B122=0," ",COUNTRY_INFO!B122) -> Mwanza | C122: =IF(COUNTRY_INFO!C122=0," ",COUNTRY_INFO!C122) -> Sengerema District Council | D122: =IF(COUNTRY_INFO!$T$9:$T$1000="MDA1 (IVM+ALB)", COUNTRY_INFO!$T$9:$T$1000, " ") ->  | I122: 0 | M122: 0
A123: =IF(COUNTRY_INFO!A123=0," ",COUNTRY_INFO!A123) -> Tanzania | B123: =IF(COUNTRY_INFO!B123=0," ",COUNTRY_INFO!B123) -> Mwanza | C123: =IF(COUNTRY_INFO!C123=0," ",COUNTRY_INFO!C123) -> Ukerewe District Council | D123: =IF(COUNTRY_INFO!$T$9:$T$1000="MDA1 (IVM+ALB)", COUNTRY_INFO!$T$9:$T$1000, " ") ->  | I123: 0 | M123: 0
A124: =IF(COUNTRY_INFO!A124=0," ",COUNTRY_INFO!A124) -> Tanzania | B124: =IF(COUNTRY_INFO!B124=0," ",COUNTRY_INFO!B124) -> Njombe | C124: =IF(COUNTRY_INFO!C124=0," ",COUNTRY_INFO!C124) -> Ludewa District Council | D124: =IF(COUNTRY_INFO!$T$9:$T$1000="MDA1 (IVM+ALB)", COUNTRY_INFO!$T$9:$T$1000, " ") ->  | I124: 0 | M124: 0
A125: =IF(COUNTRY_INFO!A125=0," ",COUNTRY_INFO!A125) -> Tanzania | B125: =IF(COUNTRY_INFO!B125=0," ",COUNTRY_INFO!B125) -> Njombe | C125: =IF(COUNTRY_INFO!C125=0," ",COUNTRY_INFO!C125) -> Makambako Town Council | D125: =IF(COUNTRY_INFO!$T$9:$T$1000="MDA1 (IVM+ALB)", COUNTRY_INFO!$T$9:$T$1000, " ") ->  | I125: 0 | M125: 0
A126: =IF(COUNTRY_INFO!A126=0," ",COUNTRY_INFO!A126) -> Tanzania | B126: =IF(COUNTRY_INFO!B126=0," ",COUNTRY_INFO!B126) -> Njombe | C126: =IF(COUNTRY_INFO!C126=0," ",COUNTRY_INFO!C126) -> Makete District Council | D126: =IF(COUNTRY_INFO!$T$9:$T$1000="MDA1 (IVM+ALB)", COUNTRY_INFO!$T$9:$T$1000, " ") ->  | I126: 0 | M126: 0
A127: =IF(COUNTRY_INFO!A127=0," ",COUNTRY_INFO!A127) -> Tanzania | B127: =IF(COUNTRY_INFO!B127=0," ",COUNTRY_INFO!B127) -> Njombe | C127: =IF(COUNTRY_INFO!C127=0," ",COUNTRY_INFO!C127) -> Njombe District Council | D127: =IF(COUNTRY_INFO!$T$9:$T$1000="MDA1 (IVM+ALB)", COUNTRY_INFO!$T$9:$T$1000, " ") ->  | I127: 0 | M127: 0
A128: =IF(COUNTRY_INFO!A128=0," ",COUNTRY_INFO!A128) -> Tanzania | B128: =IF(COUNTRY_INFO!B128=0," ",COUNTRY_INFO!B128) -> Njombe | C128: =IF(COUNTRY_INFO!C128=0," ",COUNTRY_INFO!C128) -> Njombe Town Council | D128: =IF(COUNTRY_INFO!$T$9:$T$1000="MDA1 (IVM+ALB)", COUNTRY_INFO!$T$9:$T$1000, " ") ->  | I128: 0 | M128: 0
A129: =IF(COUNTRY_INFO!A129=0," ",COUNTRY_INFO!A129) -> Tanzania | B129: =IF(COUNTRY_INFO!B129=0," ",COUNTRY_INFO!B129) -> Njombe | C129: =IF(COUNTRY_INFO!C129=0," ",COUNTRY_INFO!C129) -> Wanging'ombe District Council | D129: =IF(COUNTRY_INFO!$T$9:$T$1000="MDA1 (IVM+ALB)", COUNTRY_INFO!$T$9:$T$1000, " ") ->  | I129: 0 | M129: 0
A130: =IF(COUNTRY_INFO!A130=0," ",COUNTRY_INFO!A130) -> Tanzania | B130: =IF(COUNTRY_INFO!B130=0," ",COUNTRY_INFO!B130) -> Pwani | C130: =IF(COUNTRY_INFO!C130=0," ",COUNTRY_INFO!C130) -> Bagamoyo District Council | D130: =IF(COUNTRY_INFO!$T$9:$T$1000="MDA1 (IVM+ALB)", COUNTRY_INFO!$T$9:$T$1000, " ") ->  | I130: 0 | M130: 0
A131: =IF(COUNTRY_INFO!A131=0," ",COUNTRY_INFO!A131) -> Tanzania | B131: =IF(COUNTRY_INFO!B131=0," ",COUNTRY_INFO!B131) -> Pwani | C131: =IF(COUNTRY_INFO!C131=0," ",COUNTRY_INFO!C131) -> Chalinze District Council | D131: =IF(COUNTRY_INFO!$T$9:$T$1000="MDA1 (IVM+ALB)", COUNTRY_INFO!$T$9:$T$1000, " ") ->  | I131: 0 | M131: 0
A132: =IF(COUNTRY_INFO!A132=0," ",COUNTRY_INFO!A132) -> Tanzania | B132: =IF(COUNTRY_INFO!B132=0," ",COUNTRY_INFO!B132) -> Pwani | C132: =IF(COUNTRY_INFO!C132=0," ",COUNTRY_INFO!C132) -> Kibaha District Council | D132: =IF(COUNTRY_INFO!$T$9:$T$1000="MDA1 (IVM+ALB)", COUNTRY_INFO!$T$9:$T$1000, " ") ->  | I132: 0 | M132: 0
A133: =IF(COUNTRY_INFO!A133=0," ",COUNTRY_INFO!A133) -> Tanzania | B133: =IF(COUNTRY_INFO!B133=0," ",COUNTRY_INFO!B133) -> Pwani | C133: =IF(COUNTRY_INFO!C133=0," ",COUNTRY_INFO!C133) -> Kibaha Town Council | D133: =IF(COUNTRY_INFO!$T$9:$T$1000="MDA1 (IVM+ALB)", COUNTRY_INFO!$T$9:$T$1000, " ") ->  | I133: 0 | M133: 0
A134: =IF(COUNTRY_INFO!A134=0," ",COUNTRY_INFO!A134) -> Tanzania | B134: =IF(COUNTRY_INFO!B134=0," ",COUNTRY_INFO!B134) -> Pwani | C134: =IF(COUNTRY_INFO!C134=0," ",COUNTRY_INFO!C134) -> Kibiti District Council | D134: =IF(COUNTRY_INFO!$T$9:$T$1000="MDA1 (IVM+ALB)", COUNTRY_INFO!$T$9:$T$1000, " ") ->  | I134: 0 | M134: 0
A135: =IF(COUNTRY_INFO!A135=0," ",COUNTRY_INFO!A135) -> Tanzania | B135: =IF(COUNTRY_INFO!B135=0," ",COUNTRY_INFO!B135) -> Pwani | C135: =IF(COUNTRY_INFO!C135=0," ",COUNTRY_INFO!C135) -> Kisarawe District Council | D135: =IF(COUNTRY_INFO!$T$9:$T$1000="MDA1 (IVM+ALB)", COUNTRY_INFO!$T$9:$T$1000, " ") ->  | I135: 0 | M135: 0
A136: =IF(COUNTRY_INFO!A136=0," ",COUNTRY_INFO!A136) -> Tanzania | B136: =IF(COUNTRY_INFO!B136=0," ",COUNTRY_INFO!B136) -> Pwani | C136: =IF(COUNTRY_INFO!C136=0," ",COUNTRY_INFO!C136) -> Mafia District Council | D136: =IF(COUNTRY_INFO!$T$9:$T$1000="MDA1 (IVM+ALB)", COUNTRY_INFO!$T$9:$T$1000, " ") ->  | I136: 0 | M136: 0
A137: =IF(COUNTRY_INFO!A137=0," ",COUNTRY_INFO!A137) -> Tanzania | B137: =IF(COUNTRY_INFO!B137=0," ",COUNTRY_INFO!B137) -> Pwani | C137: =IF(COUNTRY_INFO!C137=0," ",COUNTRY_INFO!C137) -> Mkuranga District Council | D137: =IF(COUNTRY_INFO!$T$9:$T$1000="MDA1 (IVM+ALB)", COUNTRY_INFO!$T$9:$T$1000, " ") ->  | I137: 0 | M137: 0
A138: =IF(COUNTRY_INFO!A138=0," ",COUNTRY_INFO!A138) -> Tanzania | B138: =IF(COUNTRY_INFO!B138=0," ",COUNTRY_INFO!B138) -> Pwani | C138: =IF(COUNTRY_INFO!C138=0," ",COUNTRY_INFO!C138) -> Rufiji District Council | D138: =IF(COUNTRY_INFO!$T$9:$T$1000="MDA1 (IVM+ALB)", COUNTRY_INFO!$T$9:$T$1000, " ") ->  | I138: =SUM(F138:H138) -> 0 | M138: =SUM(J138:L138) -> 0 | O138: =IF(G138<>0, IF(K138/G138*100=0, "-", K138/G138*100), " ") ->  | P138: =IF(H138<>0, IF(L138/H138*100=0, "-", L138/H138*100), " ") ->  | Q138: =IF(I138<>0, IF(M138/I138*100=0, "-", M138/I138*100), " ") -> 
A139: =IF(COUNTRY_INFO!A139=0," ",COUNTRY_INFO!A139) -> Tanzania | B139: =IF(COUNTRY_INFO!B139=0," ",COUNTRY_INFO!B139) -> Rukwa | C139: =IF(COUNTRY_INFO!C139=0," ",COUNTRY_INFO!C139) -> Kalambo District Council | D139: =IF(COUNTRY_INFO!$T$9:$T$1000="MDA1 (IVM+ALB)", COUNTRY_INFO!$T$9:$T$1000, " ") ->  | I139: 0 | M139: 0
A140: =IF(COUNTRY_INFO!A140=0," ",COUNTRY_INFO!A140) -> Tanzania | B140: =IF(COUNTRY_INFO!B140=0," ",COUNTRY_INFO!B140) -> Rukwa | C140: =IF(COUNTRY_INFO!C140=0," ",COUNTRY_INFO!C140) -> Nkasi District Council | D140: =IF(COUNTRY_INFO!$T$9:$T$1000="MDA1 (IVM+ALB)", COUNTRY_INFO!$T$9:$T$1000, " ") ->  | I140: 0 | M140: 0
A141: =IF(COUNTRY_INFO!A141=0," ",COUNTRY_INFO!A141) -> Tanzania | B141: =IF(COUNTRY_INFO!B141=0," ",COUNTRY_INFO!B141) -> Rukwa | C141: =IF(COUNTRY_INFO!C141=0," ",COUNTRY_INFO!C141) -> Sumbawanga District Council | D141: =IF(COUNTRY_INFO!$T$9:$T$1000="MDA1 (IVM+ALB)", COUNTRY_INFO!$T$9:$T$1000, " ") ->  | I141: 0 | M141: 0
A142: =IF(COUNTRY_INFO!A142=0," ",COUNTRY_INFO!A142) -> Tanzania | B142: =IF(COUNTRY_INFO!B142=0," ",COUNTRY_INFO!B142) -> Rukwa | C142: =IF(COUNTRY_INFO!C142=0," ",COUNTRY_INFO!C142) -> Sumbawanga Municipal Council | D142: =IF(COUNTRY_INFO!$T$9:$T$1000="MDA1 (IVM+ALB)", COUNTRY_INFO!$T$9:$T$1000, " ") ->  | I142: 0 | M142: 0
A143: =IF(COUNTRY_INFO!A143=0," ",COUNTRY_INFO!A143) -> Tanzania | B143: =IF(COUNTRY_INFO!B143=0," ",COUNTRY_INFO!B143) -> Ruvuma | C143: =IF(COUNTRY_INFO!C143=0," ",COUNTRY_INFO!C143) -> Madaba District Council | D143: =IF(COUNTRY_INFO!$T$9:$T$1000="MDA1 (IVM+ALB)", COUNTRY_INFO!$T$9:$T$1000, " ") ->  | I143: 0 | M143: 0
A144: =IF(COUNTRY_INFO!A144=0," ",COUNTRY_INFO!A144) -> Tanzania | B144: =IF(COUNTRY_INFO!B144=0," ",COUNTRY_INFO!B144) -> Ruvuma | C144: =IF(COUNTRY_INFO!C144=0," ",COUNTRY_INFO!C144) -> Mbinga District Council | D144: =IF(COUNTRY_INFO!$T$9:$T$1000="MDA1 (IVM+ALB)", COUNTRY_INFO!$T$9:$T$1000, " ") ->  | I144: 0 | M144: 0
A145: =IF(COUNTRY_INFO!A145=0," ",COUNTRY_INFO!A145) -> Tanzania | B145: =IF(COUNTRY_INFO!B145=0," ",COUNTRY_INFO!B145) -> Ruvuma | C145: =IF(COUNTRY_INFO!C145=0," ",COUNTRY_INFO!C145) -> Mbinga Town Council | D145: =IF(COUNTRY_INFO!$T$9:$T$1000="MDA1 (IVM+ALB)", COUNTRY_INFO!$T$9:$T$1000, " ") ->  | I145: 0 | M145: 0
A146: =IF(COUNTRY_INFO!A146=0," ",COUNTRY_INFO!A146) -> Tanzania | B146: =IF(COUNTRY_INFO!B146=0," ",COUNTRY_INFO!B146) -> Ruvuma | C146: =IF(COUNTRY_INFO!C146=0," ",COUNTRY_INFO!C146) -> Namtumbo District Council | D146: =IF(COUNTRY_INFO!$T$9:$T$1000="MDA1 (IVM+ALB)", COUNTRY_INFO!$T$9:$T$1000, " ") ->  | I146: 0 | M146: 0
A147: =IF(COUNTRY_INFO!A147=0," ",COUNTRY_INFO!A147) -> Tanzania | B147: =IF(COUNTRY_INFO!B147=0," ",COUNTRY_INFO!B147) -> Ruvuma | C147: =IF(COUNTRY_INFO!C147=0," ",COUNTRY_INFO!C147) -> Nyasa District Council | D147: =IF(COUNTRY_INFO!$T$9:$T$1000="MDA1 (IVM+ALB)", COUNTRY_INFO!$T$9:$T$1000, " ") ->  | I147: 0 | M147: 0
A148: =IF(COUNTRY_INFO!A148=0," ",COUNTRY_INFO!A148) -> Tanzania | B148: =IF(COUNTRY_INFO!B148=0," ",COUNTRY_INFO!B148) -> Ruvuma | C148: =IF(COUNTRY_INFO!C148=0," ",COUNTRY_INFO!C148) -> Songea District Council | D148: =IF(COUNTRY_INFO!$T$9:$T$1000="MDA1 (IVM+ALB)", COUNTRY_INFO!$T$9:$T$1000, " ") ->  | I148: 0 | M148: 0
A149: =IF(COUNTRY_INFO!A149=0," ",COUNTRY_INFO!A149) -> Tanzania | B149: =IF(COUNTRY_INFO!B149=0," ",COUNTRY_INFO!B149) -> Ruvuma | C149: =IF(COUNTRY_INFO!C149=0," ",COUNTRY_INFO!C149) -> Songea Municipal Council | D149: =IF(COUNTRY_INFO!$T$9:$T$1000="MDA1 (IVM+ALB)", COUNTRY_INFO!$T$9:$T$1000, " ") ->  | I149: 0 | M149: 0
A150: =IF(COUNTRY_INFO!A150=0," ",COUNTRY_INFO!A150) -> Tanzania | B150: =IF(COUNTRY_INFO!B150=0," ",COUNTRY_INFO!B150) -> Ruvuma | C150: =IF(COUNTRY_INFO!C150=0," ",COUNTRY_INFO!C150) -> Tunduru District Council | D150: =IF(COUNTRY_INFO!$T$9:$T$1000="MDA1 (IVM+ALB)", COUNTRY_INFO!$T$9:$T$1000, " ") ->  | I150: 0 | M150: 0
A151: =IF(COUNTRY_INFO!A151=0," ",COUNTRY_INFO!A151) -> Tanzania | B151: =IF(COUNTRY_INFO!B151=0," ",COUNTRY_INFO!B151) -> Shinyanga | C151: =IF(COUNTRY_INFO!C151=0," ",COUNTRY_INFO!C151) -> Kahama Town Council | D151: =IF(COUNTRY_INFO!$T$9:$T$1000="MDA1 (IVM+ALB)", COUNTRY_INFO!$T$9:$T$1000, " ") ->  | I151: 0 | M151: 0
A152: =IF(COUNTRY_INFO!A152=0," ",COUNTRY_INFO!A152) -> Tanzania | B152: =IF(COUNTRY_INFO!B152=0," ",COUNTRY_INFO!B152) -> Shinyanga | C152: =IF(COUNTRY_INFO!C152=0," ",COUNTRY_INFO!C152) -> Kishapu District Council | D152: =IF(COUNTRY_INFO!$T$9:$T$1000="MDA1 (IVM+ALB)", COUNTRY_INFO!$T$9:$T$1000, " ") ->  | I152: 0 | M152: 0
A153: =IF(COUNTRY_INFO!A153=0," ",COUNTRY_INFO!A153) -> Tanzania | B153: =IF(COUNTRY_INFO!B153=0," ",COUNTRY_INFO!B153) -> Shinyanga | C153: =IF(COUNTRY_INFO!C153=0," ",COUNTRY_INFO!C153) -> Msalala District Council | D153: =IF(COUNTRY_INFO!$T$9:$T$1000="MDA1 (IVM+ALB)", COUNTRY_INFO!$T$9:$T$1000, " ") ->  | I153: 0 | M153: 0
A154: =IF(COUNTRY_INFO!A154=0," ",COUNTRY_INFO!A154) -> Tanzania | B154: =IF(COUNTRY_INFO!B154=0," ",COUNTRY_INFO!B154) -> Shinyanga | C154: =IF(COUNTRY_INFO!C154=0," ",COUNTRY_INFO!C154) -> Shinyanga District Council | D154: =IF(COUNTRY_INFO!$T$9:$T$1000="MDA1 (IVM+ALB)", COUNTRY_INFO!$T$9:$T$1000, " ") ->  | I154: 0 | M154: 0
A155: =IF(COUNTRY_INFO!A155=0," ",COUNTRY_INFO!A155) -> Tanzania | B155: =IF(COUNTRY_INFO!B155=0," ",COUNTRY_INFO!B155) -> Shinyanga | C155: =IF(COUNTRY_INFO!C155=0," ",COUNTRY_INFO!C155) -> Shinyanga Municipal Council | D155: =IF(COUNTRY_INFO!$T$9:$T$1000="MDA1 (IVM+ALB)", COUNTRY_INFO!$T$9:$T$1000, " ") ->  | I155: 0 | M155: 0
A156: =IF(COUNTRY_INFO!A156=0," ",COUNTRY_INFO!A156) -> Tanzania | B156: =IF(COUNTRY_INFO!B156=0," ",COUNTRY_INFO!B156) -> Shinyanga | C156: =IF(COUNTRY_INFO!C156=0," ",COUNTRY_INFO!C156) -> Ushetu District Council | D156: =IF(COUNTRY_INFO!$T$9:$T$1000="MDA1 (IVM+ALB)", COUNTRY_INFO!$T$9:$T$1000, " ") ->  | I156: 0 | M156: 0
A157: =IF(COUNTRY_INFO!A157=0," ",COUNTRY_INFO!A157) -> Tanzania | B157: =IF(COUNTRY_INFO!B157=0," ",COUNTRY_INFO!B157) -> Simiyu | C157: =IF(COUNTRY_INFO!C157=0," ",COUNTRY_INFO!C157) -> Bariadi District Council | D157: =IF(COUNTRY_INFO!$T$9:$T$1000="MDA1 (IVM+ALB)", COUNTRY_INFO!$T$9:$T$1000, " ") ->  | I157: 0 | M157: 0
A158: =IF(COUNTRY_INFO!A158=0," ",COUNTRY_INFO!A158) -> Tanzania | B158: =IF(COUNTRY_INFO!B158=0," ",COUNTRY_INFO!B158) -> Simiyu | C158: =IF(COUNTRY_INFO!C158=0," ",COUNTRY_INFO!C158) -> Bariadi Town Council | D158: =IF(COUNTRY_INFO!$T$9:$T$1000="MDA1 (IVM+ALB)", COUNTRY_INFO!$T$9:$T$1000, " ") ->  | I158: 0 | M158: 0
A159: =IF(COUNTRY_INFO!A159=0," ",COUNTRY_INFO!A159) -> Tanzania | B159: =IF(COUNTRY_INFO!B159=0," ",COUNTRY_INFO!B159) -> Simiyu | C159: =IF(COUNTRY_INFO!C159=0," ",COUNTRY_INFO!C159) -> Busega District Council | D159: =IF(COUNTRY_INFO!$T$9:$T$1000="MDA1 (IVM+ALB)", COUNTRY_INFO!$T$9:$T$1000, " ") ->  | I159: 0 | M159: 0
A160: =IF(COUNTRY_INFO!A160=0," ",COUNTRY_INFO!A160) -> Tanzania | B160: =IF(COUNTRY_INFO!B160=0," ",COUNTRY_INFO!B160) -> Simiyu | C160: =IF(COUNTRY_INFO!C160=0," ",COUNTRY_INFO!C160) -> Itilima District Council | D160: =IF(COUNTRY_INFO!$T$9:$T$1000="MDA1 (IVM+ALB)", COUNTRY_INFO!$T$9:$T$1000, " ") ->  | I160: 0 | M160: 0
A161: =IF(COUNTRY_INFO!A161=0," ",COUNTRY_INFO!A161) -> Tanzania | B161: =IF(COUNTRY_INFO!B161=0," ",COUNTRY_INFO!B161) -> Simiyu | C161: =IF(COUNTRY_INFO!C161=0," ",COUNTRY_INFO!C161) -> Maswa District Council | D161: =IF(COUNTRY_INFO!$T$9:$T$1000="MDA1 (IVM+ALB)", COUNTRY_INFO!$T$9:$T$1000, " ") ->  | I161: 0 | M161: 0
A162: =IF(COUNTRY_INFO!A162=0," ",COUNTRY_INFO!A162) -> Tanzania | B162: =IF(COUNTRY_INFO!B162=0," ",COUNTRY_INFO!B162) -> Simiyu | C162: =IF(COUNTRY_INFO!C162=0," ",COUNTRY_INFO!C162) -> Meatu District Council | D162: =IF(COUNTRY_INFO!$T$9:$T$1000="MDA1 (IVM+ALB)", COUNTRY_INFO!$T$9:$T$1000, " ") ->  | I162: 0 | M162: 0
A163: =IF(COUNTRY_INFO!A163=0," ",COUNTRY_INFO!A163) -> Tanzania | B163: =IF(COUNTRY_INFO!B163=0," ",COUNTRY_INFO!B163) -> Singida | C163: =IF(COUNTRY_INFO!C163=0," ",COUNTRY_INFO!C163) -> Ikungi District Council | D163: =IF(COUNTRY_INFO!$T$9:$T$1000="MDA1 (IVM+ALB)", COUNTRY_INFO!$T$9:$T$1000, " ") ->  | I163: 0 | M163: 0
A164: =IF(COUNTRY_INFO!A164=0," ",COUNTRY_INFO!A164) -> Tanzania | B164: =IF(COUNTRY_INFO!B164=0," ",COUNTRY_INFO!B164) -> Singida | C164: =IF(COUNTRY_INFO!C164=0," ",COUNTRY_INFO!C164) -> Iramba District Council | D164: =IF(COUNTRY_INFO!$T$9:$T$1000="MDA1 (IVM+ALB)", COUNTRY_INFO!$T$9:$T$1000, " ") ->  | I164: 0 | M164: 0
A165: =IF(COUNTRY_INFO!A165=0," ",COUNTRY_INFO!A165) -> Tanzania | B165: =IF(COUNTRY_INFO!B165=0," ",COUNTRY_INFO!B165) -> Singida | C165: =IF(COUNTRY_INFO!C165=0," ",COUNTRY_INFO!C165) -> Itigi District Council | D165: =IF(COUNTRY_INFO!$T$9:$T$1000="MDA1 (IVM+ALB)", COUNTRY_INFO!$T$9:$T$1000, " ") ->  | I165: 0 | M165: 0
A166: =IF(COUNTRY_INFO!A166=0," ",COUNTRY_INFO!A166) -> Tanzania | B166: =IF(COUNTRY_INFO!B166=0," ",COUNTRY_INFO!B166) -> Singida | C166: =IF(COUNTRY_INFO!C166=0," ",COUNTRY_INFO!C166) -> Manyoni District Council | D166: =IF(COUNTRY_INFO!$T$9:$T$1000="MDA1 (IVM+ALB)", COUNTRY_INFO!$T$9:$T$1000, " ") ->  | I166: 0 | M166: 0
A167: =IF(COUNTRY_INFO!A167=0," ",COUNTRY_INFO!A167) -> Tanzania | B167: =IF(COUNTRY_INFO!B167=0," ",COUNTRY_INFO!B167) -> Singida | C167: =IF(COUNTRY_INFO!C167=0," ",COUNTRY_INFO!C167) -> Mkalama District Council | D167: =IF(COUNTRY_INFO!$T$9:$T$1000="MDA1 (IVM+ALB)", COUNTRY_INFO!$T$9:$T$1000, " ") ->  | I167: 0 | M167: 0
A168: =IF(COUNTRY_INFO!A168=0," ",COUNTRY_INFO!A168) -> Tanzania | B168: =IF(COUNTRY_INFO!B168=0," ",COUNTRY_INFO!B168) -> Singida | C168: =IF(COUNTRY_INFO!C168=0," ",COUNTRY_INFO!C168) -> Singida District Council | D168: =IF(COUNTRY_INFO!$T$9:$T$1000="MDA1 (IVM+ALB)", COUNTRY_INFO!$T$9:$T$1000, " ") ->  | I168: 0 | M168: 0
A169: =IF(COUNTRY_INFO!A169=0," ",COUNTRY_INFO!A169) -> Tanzania | B169: =IF(COUNTRY_INFO!B169=0," ",COUNTRY_INFO!B169) -> Singida | C169: =IF(COUNTRY_INFO!C169=0," ",COUNTRY_INFO!C169) -> Singida Municipal Council | D169: =IF(COUNTRY_INFO!$T$9:$T$1000="MDA1 (IVM+ALB)", COUNTRY_INFO!$T$9:$T$1000, " ") ->  | I169: 0 | M169: 0
A170: =IF(COUNTRY_INFO!A170=0," ",COUNTRY_INFO!A170) -> Tanzania | B170: =IF(COUNTRY_INFO!B170=0," ",COUNTRY_INFO!B170) -> Songwe | C170: =IF(COUNTRY_INFO!C170=0," ",COUNTRY_INFO!C170) -> Ileje District Council | D170: =IF(COUNTRY_INFO!$T$9:$T$1000="MDA1 (IVM+ALB)", COUNTRY_INFO!$T$9:$T$1000, " ") ->  | I170: 0 | M170: 0
A171: =IF(COUNTRY_INFO!A171=0," ",COUNTRY_INFO!A171) -> Tanzania | B171: =IF(COUNTRY_INFO!B171=0," ",COUNTRY_INFO!B171) -> Songwe | C171: =IF(COUNTRY_INFO!C171=0," ",COUNTRY_INFO!C171) -> Mbozi District Council | D171: =IF(COUNTRY_INFO!$T$9:$T$1000="MDA1 (IVM+ALB)", COUNTRY_INFO!$T$9:$T$1000, " ") ->  | I171: 0 | M171: 0
A172: =IF(COUNTRY_INFO!A172=0," ",COUNTRY_INFO!A172) -> Tanzania | B172: =IF(COUNTRY_INFO!B172=0," ",COUNTRY_INFO!B172) -> Songwe | C172: =IF(COUNTRY_INFO!C172=0," ",COUNTRY_INFO!C172) -> Momba District Council | D172: =IF(COUNTRY_INFO!$T$9:$T$1000="MDA1 (IVM+ALB)", COUNTRY_INFO!$T$9:$T$1000, " ") ->  | I172: 0 | M172: 0
A173: =IF(COUNTRY_INFO!A173=0," ",COUNTRY_INFO!A173) -> Tanzania | B173: =IF(COUNTRY_INFO!B173=0," ",COUNTRY_INFO!B173) -> Songwe | C173: =IF(COUNTRY_INFO!C173=0," ",COUNTRY_INFO!C173) -> Songwe District Council | D173: =IF(COUNTRY_INFO!$T$9:$T$1000="MDA1 (IVM+ALB)", COUNTRY_INFO!$T$9:$T$1000, " ") ->  | I173: 0 | M173: 0
A174: =IF(COUNTRY_INFO!A174=0," ",COUNTRY_INFO!A174) -> Tanzania | B174: =IF(COUNTRY_INFO!B174=0," ",COUNTRY_INFO!B174) -> Songwe | C174: =IF(COUNTRY_INFO!C174=0," ",COUNTRY_INFO!C174) -> Tunduma Town Council | D174: =IF(COUNTRY_INFO!$T$9:$T$1000="MDA1 (IVM+ALB)", COUNTRY_INFO!$T$9:$T$1000, " ") ->  | I174: 0 | M174: 0
A175: =IF(COUNTRY_INFO!A175=0," ",COUNTRY_INFO!A175) -> Tanzania | B175: =IF(COUNTRY_INFO!B175=0," ",COUNTRY_INFO!B175) -> Tabora | C175: =IF(COUNTRY_INFO!C175=0," ",COUNTRY_INFO!C175) -> Igunga District Council | D175: =IF(COUNTRY_INFO!$T$9:$T$1000="MDA1 (IVM+ALB)", COUNTRY_INFO!$T$9:$T$1000, " ") ->  | I175: 0 | M175: 0
A176: =IF(COUNTRY_INFO!A176=0," ",COUNTRY_INFO!A176) -> Tanzania | B176: =IF(COUNTRY_INFO!B176=0," ",COUNTRY_INFO!B176) -> Tabora | C176: =IF(COUNTRY_INFO!C176=0," ",COUNTRY_INFO!C176) -> Kaliua District Council | D176: =IF(COUNTRY_INFO!$T$9:$T$1000="MDA1 (IVM+ALB)", COUNTRY_INFO!$T$9:$T$1000, " ") ->  | I176: 0 | M176: 0
A177: =IF(COUNTRY_INFO!A177=0," ",COUNTRY_INFO!A177) -> Tanzania | B177: =IF(COUNTRY_INFO!B177=0," ",COUNTRY_INFO!B177) -> Tabora | C177: =IF(COUNTRY_INFO!C177=0," ",COUNTRY_INFO!C177) -> Nzega District Council | D177: =IF(COUNTRY_INFO!$T$9:$T$1000="MDA1 (IVM+ALB)", COUNTRY_INFO!$T$9:$T$1000, " ") ->  | I177: 0 | M177: 0
A178: =IF(COUNTRY_INFO!A178=0," ",COUNTRY_INFO!A178) -> Tanzania | B178: =IF(COUNTRY_INFO!B178=0," ",COUNTRY_INFO!B178) -> Tabora | C178: =IF(COUNTRY_INFO!C178=0," ",COUNTRY_INFO!C178) -> Nzega Town Council | D178: =IF(COUNTRY_INFO!$T$9:$T$1000="MDA1 (IVM+ALB)", COUNTRY_INFO!$T$9:$T$1000, " ") ->  | I178: 0 | M178: 0
A179: =IF(COUNTRY_INFO!A179=0," ",COUNTRY_INFO!A179) -> Tanzania | B179: =IF(COUNTRY_INFO!B179=0," ",COUNTRY_INFO!B179) -> Tabora | C179: =IF(COUNTRY_INFO!C179=0," ",COUNTRY_INFO!C179) -> Sikonge District Council | D179: =IF(COUNTRY_INFO!$T$9:$T$1000="MDA1 (IVM+ALB)", COUNTRY_INFO!$T$9:$T$1000, " ") ->  | I179: 0 | M179: 0
A180: =IF(COUNTRY_INFO!A180=0," ",COUNTRY_INFO!A180) -> Tanzania | B180: =IF(COUNTRY_INFO!B180=0," ",COUNTRY_INFO!B180) -> Tabora | C180: =IF(COUNTRY_INFO!C180=0," ",COUNTRY_INFO!C180) -> Tabora Municipal Council | D180: =IF(COUNTRY_INFO!$T$9:$T$1000="MDA1 (IVM+ALB)", COUNTRY_INFO!$T$9:$T$1000, " ") ->  | I180: 0 | M180: 0
A181: =IF(COUNTRY_INFO!A181=0," ",COUNTRY_INFO!A181) -> Tanzania | B181: =IF(COUNTRY_INFO!B181=0," ",COUNTRY_INFO!B181) -> Tabora | C181: =IF(COUNTRY_INFO!C181=0," ",COUNTRY_INFO!C181) -> Urambo District Council | D181: =IF(COUNTRY_INFO!$T$9:$T$1000="MDA1 (IVM+ALB)", COUNTRY_INFO!$T$9:$T$1000, " ") ->  | I181: 0 | M181: 0
A182: =IF(COUNTRY_INFO!A182=0," ",COUNTRY_INFO!A182) -> Tanzania | B182: =IF(COUNTRY_INFO!B182=0," ",COUNTRY_INFO!B182) -> Tabora | C182: =IF(COUNTRY_INFO!C182=0," ",COUNTRY_INFO!C182) -> Uyui District Council | D182: =IF(COUNTRY_INFO!$T$9:$T$1000="MDA1 (IVM+ALB)", COUNTRY_INFO!$T$9:$T$1000, " ") ->  | I182: 0 | M182: 0
A183: =IF(COUNTRY_INFO!A183=0," ",COUNTRY_INFO!A183) -> Tanzania | B183: =IF(COUNTRY_INFO!B183=0," ",COUNTRY_INFO!B183) -> Tanga | C183: =IF(COUNTRY_INFO!C183=0," ",COUNTRY_INFO!C183) -> Bumbuli District Council | D183: =IF(COUNTRY_INFO!$T$9:$T$1000="MDA1 (IVM+ALB)", COUNTRY_INFO!$T$9:$T$1000, " ") ->  | I183: 0 | M183: 0
A184: =IF(COUNTRY_INFO!A184=0," ",COUNTRY_INFO!A184) -> Tanzania | B184: =IF(COUNTRY_INFO!B184=0," ",COUNTRY_INFO!B184) -> Tanga | C184: =IF(COUNTRY_INFO!C184=0," ",COUNTRY_INFO!C184) -> Handeni District Council | D184: =IF(COUNTRY_INFO!$T$9:$T$1000="MDA1 (IVM+ALB)", COUNTRY_INFO!$T$9:$T$1000, " ") ->  | I184: 0 | M184: 0
A185: =IF(COUNTRY_INFO!A185=0," ",COUNTRY_INFO!A185) -> Tanzania | B185: =IF(COUNTRY_INFO!B185=0," ",COUNTRY_INFO!B185) -> Tanga | C185: =IF(COUNTRY_INFO!C185=0," ",COUNTRY_INFO!C185) -> Handeni Town Council | D185: =IF(COUNTRY_INFO!$T$9:$T$1000="MDA1 (IVM+ALB)", COUNTRY_INFO!$T$9:$T$1000, " ") ->  | I185: 0 | M185: 0
A186: =IF(COUNTRY_INFO!A186=0," ",COUNTRY_INFO!A186) -> Tanzania | B186: =IF(COUNTRY_INFO!B186=0," ",COUNTRY_INFO!B186) -> Tanga | C186: =IF(COUNTRY_INFO!C186=0," ",COUNTRY_INFO!C186) -> Kilindi District Council | D186: =IF(COUNTRY_INFO!$T$9:$T$1000="MDA1 (IVM+ALB)", COUNTRY_INFO!$T$9:$T$1000, " ") ->  | I186: 0 | M186: 0
A187: =IF(COUNTRY_INFO!A187=0," ",COUNTRY_INFO!A187) -> Tanzania | B187: =IF(COUNTRY_INFO!B187=0," ",COUNTRY_INFO!B187) -> Tanga | C187: =IF(COUNTRY_INFO!C187=0," ",COUNTRY_INFO!C187) -> Korogwe District Council | D187: =IF(COUNTRY_INFO!$T$9:$T$1000="MDA1 (IVM+ALB)", COUNTRY_INFO!$T$9:$T$1000, " ") ->  | I187: 0 | M187: 0
A188: =IF(COUNTRY_INFO!A188=0," ",COUNTRY_INFO!A188) -> Tanzania | B188: =IF(COUNTRY_INFO!B188=0," ",COUNTRY_INFO!B188) -> Tanga | C188: =IF(COUNTRY_INFO!C188=0," ",COUNTRY_INFO!C188) -> Korogwe Town Council | D188: =IF(COUNTRY_INFO!$T$9:$T$1000="MDA1 (IVM+ALB)", COUNTRY_INFO!$T$9:$T$1000, " ") ->  | I188: 0 | M188: 0
A189: =IF(COUNTRY_INFO!A189=0," ",COUNTRY_INFO!A189) -> Tanzania | B189: =IF(COUNTRY_INFO!B189=0," ",COUNTRY_INFO!B189) -> Tanga | C189: =IF(COUNTRY_INFO!C189=0," ",COUNTRY_INFO!C189) -> Lushoto District Council | D189: =IF(COUNTRY_INFO!$T$9:$T$1000="MDA1 (IVM+ALB)", COUNTRY_INFO!$T$9:$T$1000, " ") ->  | I189: 0 | M189: 0
A190: =IF(COUNTRY_INFO!A190=0," ",COUNTRY_INFO!A190) -> Tanzania | B190: =IF(COUNTRY_INFO!B190=0," ",COUNTRY_INFO!B190) -> Tanga | C190: =IF(COUNTRY_INFO!C190=0," ",COUNTRY_INFO!C190) -> Mkinga District Council | D190: =IF(COUNTRY_INFO!$T$9:$T$1000="MDA1 (IVM+ALB)", COUNTRY_INFO!$T$9:$T$1000, " ") ->  | I190: 0 | M190: 0
A191: =IF(COUNTRY_INFO!A191=0," ",COUNTRY_INFO!A191) -> Tanzania | B191: =IF(COUNTRY_INFO!B191=0," ",COUNTRY_INFO!B191) -> Tanga | C191: =IF(COUNTRY_INFO!C191=0," ",COUNTRY_INFO!C191) -> Muheza District Council | D191: =IF(COUNTRY_INFO!$T$9:$T$1000="MDA1 (IVM+ALB)", COUNTRY_INFO!$T$9:$T$1000, " ") ->  | I191: 0 | M191: 0
A192: =IF(COUNTRY_INFO!A192=0," ",COUNTRY_INFO!A192) -> Tanzania | B192: =IF(COUNTRY_INFO!B192=0," ",COUNTRY_INFO!B192) -> Tanga | C192: =IF(COUNTRY_INFO!C192=0," ",COUNTRY_INFO!C192) -> Pangani District Council | D192: =IF(COUNTRY_INFO!$T$9:$T$1000="MDA1 (IVM+ALB)", COUNTRY_INFO!$T$9:$T$1000, " ") ->  | I192: 0 | M192: 0
A193: =IF(COUNTRY_INFO!A193=0," ",COUNTRY_INFO!A193) -> Tanzania | B193: =IF(COUNTRY_INFO!B193=0," ",COUNTRY_INFO!B193) -> Tanga | C193: =IF(COUNTRY_INFO!C193=0," ",COUNTRY_INFO!C193) -> Tanga City Council | D193: =IF(COUNTRY_INFO!$T$9:$T$1000="MDA1 (IVM+ALB)", COUNTRY_INFO!$T$9:$T$1000, " ") ->  | I193: 0 | M193: 0

Sheet MDA2 (hidden)
A1: MDA 2 - Diethylcarbamazine citrate (DEC) + Albendazole (ALB)
A2: Administrative structure, population requiring PC by age group, population treated by age group and coverage
A4: TOTAL | F4: =SUM(F$9:F$1000) -> 0 | G4: =SUM(G$9:G$1000) -> 0 | H4: 0 | I4: 0 | J4: 0 | K4: 0 | L4: 0 | M4: 0 | N4: =IF(F4<>0, IF(J4/F4*100=0, "-", J4/F4*100), " ") ->  | O4: =IF(G4<>0, IF(K4/G4*100=0, "-", K4/G4*100), " ") ->  | P4: =IF(H4<>0, IF(L4/H4*100=0, "-", L4/H4*100), " ") ->  | Q4: =IF(I4<>0, IF(M4/I4*100=0, "-", M4/I4*100), " ") -> 
D6: PC implemented | E6: Date | F6: Population targeted for MDA 2 | J6: Population treated | N6: Programme coverage (%)
A7: Country | B7: Province/State | C7: District | F7: PreSAC | G7: SAC | H7: Adults | I7: Total | J7: PreSAC | K7: SAC | L7: Adults | M7: Total | N7: PreSAC | O7: SAC | P7: Adults | Q7: Total
A9: =IF(COUNTRY_INFO!A9=0," ",COUNTRY_INFO!A9) -> Tanzania | B9: =IF(COUNTRY_INFO!B9=0," ",COUNTRY_INFO!B9) -> Arusha | C9: =IF(COUNTRY_INFO!C9=0," ",COUNTRY_INFO!C9) -> Arusha City Council | D9: =IF(COUNTRY_INFO!$T$9:$T$1000="MDA2 (DEC+ALB)", COUNTRY_INFO!$T$9:$T$1000, " ") ->  | I9: =SUM(F9:H9) -> 0 | M9: =SUM(J9:L9) -> 0 | N9: =IF(F9<>0, IF(J9/F9*100=0, "-", J9/F9*100), " ") -> 
A10: =IF(COUNTRY_INFO!A10=0," ",COUNTRY_INFO!A10) -> Tanzania | B10: =IF(COUNTRY_INFO!B10=0," ",COUNTRY_INFO!B10) -> Arusha | C10: =IF(COUNTRY_INFO!C10=0," ",COUNTRY_INFO!C10) -> Arusha District Council | D10: =IF(COUNTRY_INFO!$T$9:$T$1000="MDA2 (DEC+ALB)", COUNTRY_INFO!$T$9:$T$1000, " ") ->  | I10: =SUM(F10:H10) -> 0 | M10: =SUM(J10:L10) -> 0 | N10: =IF(F10<>0, IF(J10/F10*100=0, "-", J10/F10*100), " ") ->  | O10: =IF(G10<>0, IF(K10/G10*100=0, "-", K10/G10*100), " ") ->  | P10: =IF(H10<>0, IF(L10/H10*100=0, "-", L10/H10*100), " ") ->  | Q10: =IF(I10<>0, IF(M10/I10*100=0, "-", M10/I10*100), " ") -> 
A11: =IF(COUNTRY_INFO!A11=0," ",COUNTRY_INFO!A11) -> Tanzania | B11: =IF(COUNTRY_INFO!B11=0," ",COUNTRY_INFO!B11) -> Arusha | C11: =IF(COUNTRY_INFO!C11=0," ",COUNTRY_INFO!C11) -> Karatu District Council | D11: =IF(COUNTRY_INFO!$T$9:$T$1000="MDA2 (DEC+ALB)", COUNTRY_INFO!$T$9:$T$1000, " ") ->  | I11: 0 | M11: 0
A12: =IF(COUNTRY_INFO!A12=0," ",COUNTRY_INFO!A12) -> Tanzania | B12: =IF(COUNTRY_INFO!B12=0," ",COUNTRY_INFO!B12) -> Arusha | C12: =IF(COUNTRY_INFO!C12=0," ",COUNTRY_INFO!C12) -> Longido District Council | D12: =IF(COUNTRY_INFO!$T$9:$T$1000="MDA2 (DEC+ALB)", COUNTRY_INFO!$T$9:$T$1000, " ") ->  | I12: 0 | M12: 0
A13: =IF(COUNTRY_INFO!A13=0," ",COUNTRY_INFO!A13) -> Tanzania | B13: =IF(COUNTRY_INFO!B13=0," ",COUNTRY_INFO!B13) -> Arusha | C13: =IF(COUNTRY_INFO!C13=0," ",COUNTRY_INFO!C13) -> Meru District Council | D13: =IF(COUNTRY_INFO!$T$9:$T$1000="MDA2 (DEC+ALB)", COUNTRY_INFO!$T$9:$T$1000, " ") ->  | I13: 0 | M13: 0
A14: =IF(COUNTRY_INFO!A14=0," ",COUNTRY_INFO!A14) -> Tanzania | B14: =IF(COUNTRY_INFO!B14=0," ",COUNTRY_INFO!B14) -> Arusha | C14: =IF(COUNTRY_INFO!C14=0," ",COUNTRY_INFO!C14) -> Monduli District Council | D14: =IF(COUNTRY_INFO!$T$9:$T$1000="MDA2 (DEC+ALB)", COUNTRY_INFO!$T$9:$T$1000, " ") ->  | I14: 0 | M14: 0
A15: =IF(COUNTRY_INFO!A15=0," ",COUNTRY_INFO!A15) -> Tanzania | B15: =IF(COUNTRY_INFO!B15=0," ",COUNTRY_INFO!B15) -> Arusha | C15: =IF(COUNTRY_INFO!C15=0," ",COUNTRY_INFO!C15) -> Ngorongoro District Council | D15: =IF(COUNTRY_INFO!$T$9:$T$1000="MDA2 (DEC+ALB)", COUNTRY_INFO!$T$9:$T$1000, " ") ->  | I15: 0 | M15: 0
A16: =IF(COUNTRY_INFO!A16=0," ",COUNTRY_INFO!A16) -> Tanzania | B16: =IF(COUNTRY_INFO!B16=0," ",COUNTRY_INFO!B16) -> Dar Es Salaam | C16: =IF(COUNTRY_INFO!C16=0," ",COUNTRY_INFO!C16) -> Dar es Salaam City Council | D16: =IF(COUNTRY_INFO!$T$9:$T$1000="MDA2 (DEC+ALB)", COUNTRY_INFO!$T$9:$T$1000, " ") ->  | I16: 0 | M16: 0
A17: =IF(COUNTRY_INFO!A17=0," ",COUNTRY_INFO!A17) -> Tanzania | B17: =IF(COUNTRY_INFO!B17=0," ",COUNTRY_INFO!B17) -> Dar Es Salaam | C17: =IF(COUNTRY_INFO!C17=0," ",COUNTRY_INFO!C17) -> Ilala Municipal Council | D17: =IF(COUNTRY_INFO!$T$9:$T$1000="MDA2 (DEC+ALB)", COUNTRY_INFO!$T$9:$T$1000, " ") ->  | I17: 0 | M17: 0
A18: =IF(COUNTRY_INFO!A18=0," ",COUNTRY_INFO!A18) -> Tanzania | B18: =IF(COUNTRY_INFO!B18=0," ",COUNTRY_INFO!B18) -> Dar Es Salaam | C18: =IF(COUNTRY_INFO!C18=0," ",COUNTRY_INFO!C18) -> Kigamboni Municipal Council | D18: =IF(COUNTRY_INFO!$T$9:$T$1000="MDA2 (DEC+ALB)", COUNTRY_INFO!$T$9:$T$1000, " ") ->  | I18: 0 | M18: 0
A19: =IF(COUNTRY_INFO!A19=0," ",COUNTRY_INFO!A19) -> Tanzania | B19: =IF(COUNTRY_INFO!B19=0," ",COUNTRY_INFO!B19) -> Dar Es Salaam | C19: =IF(COUNTRY_INFO!C19=0," ",COUNTRY_INFO!C19) -> Kinondoni Municipal Council | D19: =IF(COUNTRY_INFO!$T$9:$T$1000="MDA2 (DEC+ALB)", COUNTRY_INFO!$T$9:$T$1000, " ") ->  | I19: 0 | M19: 0
A20: =IF(COUNTRY_INFO!A20=0," ",COUNTRY_INFO!A20) -> Tanzania | B20: =IF(COUNTRY_INFO!B20=0," ",COUNTRY_INFO!B20) -> Dar Es Salaam | C20: =IF(COUNTRY_INFO!C20=0," ",COUNTRY_INFO!C20) -> Temeke Municipal Council | D20: =IF(COUNTRY_INFO!$T$9:$T$1000="MDA2 (DEC+ALB)", COUNTRY_INFO!$T$9:$T$1000, " ") ->  | I20: 0 | M20: 0
A21: =IF(COUNTRY_INFO!A21=0," ",COUNTRY_INFO!A21) -> Tanzania | B21: =IF(COUNTRY_INFO!B21=0," ",COUNTRY_INFO!B21) -> Dar Es Salaam | C21: =IF(COUNTRY_INFO!C21=0," ",COUNTRY_INFO!C21) -> Ubungo Municipal Council | D21: =IF(COUNTRY_INFO!$T$9:$T$1000="MDA2 (DEC+ALB)", COUNTRY_INFO!$T$9:$T$1000, " ") ->  | I21: 0 | M21: 0
A22: =IF(COUNTRY_INFO!A22=0," ",COUNTRY_INFO!A22) -> Tanzania | B22: =IF(COUNTRY_INFO!B22=0," ",COUNTRY_INFO!B22) -> Dodoma | C22: =IF(COUNTRY_INFO!C22=0," ",COUNTRY_INFO!C22) -> Bahi District Council | D22: =IF(COUNTRY_INFO!$T$9:$T$1000="MDA2 (DEC+ALB)", COUNTRY_INFO!$T$9:$T$1000, " ") ->  | I22: 0 | M22: 0
A23: =IF(COUNTRY_INFO!A23=0," ",COUNTRY_INFO!A23) -> Tanzania | B23: =IF(COUNTRY_INFO!B23=0," ",COUNTRY_INFO!B23) -> Dodoma | C23: =IF(COUNTRY_INFO!C23=0," ",COUNTRY_INFO!C23) -> Chamwino District Council | D23: =IF(COUNTRY_INFO!$T$9:$T$1000="MDA2 (DEC+ALB)", COUNTRY_INFO!$T$9:$T$1000, " ") ->  | I23: 0 | M23: 0
A24: =IF(COUNTRY_INFO!A24=0," ",COUNTRY_INFO!A24) -> Tanzania | B24: =IF(COUNTRY_INFO!B24=0," ",COUNTRY_INFO!B24) -> Dodoma | C24: =IF(COUNTRY_INFO!C24=0," ",COUNTRY_INFO!C24) -> Chemba District Council | D24: =IF(COUNTRY_INFO!$T$9:$T$1000="MDA2 (DEC+ALB)", COUNTRY_INFO!$T$9:$T$1000, " ") ->  | I24: 0 | M24: 0
A25: =IF(COUNTRY_INFO!A25=0," ",COUNTRY_INFO!A25) -> Tanzania | B25: =IF(COUNTRY_INFO!B25=0," ",COUNTRY_INFO!B25) -> Dodoma | C25: =IF(COUNTRY_INFO!C25=0," ",COUNTRY_INFO!C25) -> Dodoma City Council | D25: =IF(COUNTRY_INFO!$T$9:$T$1000="MDA2 (DEC+ALB)", COUNTRY_INFO!$T$9:$T$1000, " ") ->  | I25: 0 | M25: 0
A26: =IF(COUNTRY_INFO!A26=0," ",COUNTRY_INFO!A26) -> Tanzania | B26: =IF(COUNTRY_INFO!B26=0," ",COUNTRY_INFO!B26) -> Dodoma | C26: =IF(COUNTRY_INFO!C26=0," ",COUNTRY_INFO!C26) -> Kondoa District Council | D26: =IF(COUNTRY_INFO!$T$9:$T$1000="MDA2 (DEC+ALB)", COUNTRY_INFO!$T$9:$T$1000, " ") ->  | I26: 0 | M26: 0
A27: =IF(COUNTRY_INFO!A27=0," ",COUNTRY_INFO!A27) -> Tanzania | B27: =IF(COUNTRY_INFO!B27=0," ",COUNTRY_INFO!B27) -> Dodoma | C27: =IF(COUNTRY_INFO!C27=0," ",COUNTRY_INFO!C27) -> Kondoa Town Council | D27: =IF(COUNTRY_INFO!$T$9:$T$1000="MDA2 (DEC+ALB)", COUNTRY_INFO!$T$9:$T$1000, " ") ->  | I27: 0 | M27: 0
A28: =IF(COUNTRY_INFO!A28=0," ",COUNTRY_INFO!A28) -> Tanzania | B28: =IF(COUNTRY_INFO!B28=0," ",COUNTRY_INFO!B28) -> Dodoma | C28: =IF(COUNTRY_INFO!C28=0," ",COUNTRY_INFO!C28) -> Kongwa District Council | D28: =IF(COUNTRY_INFO!$T$9:$T$1000="MDA2 (DEC+ALB)", COUNTRY_INFO!$T$9:$T$1000, " ") ->  | I28: 0 | M28: 0
A29: =IF(COUNTRY_INFO!A29=0," ",COUNTRY_INFO!A29) -> Tanzania | B29: =IF(COUNTRY_INFO!B29=0," ",COUNTRY_INFO!B29) -> Dodoma | C29: =IF(COUNTRY_INFO!C29=0," ",COUNTRY_INFO!C29) -> Mpwapwa District Council | D29: =IF(COUNTRY_INFO!$T$9:$T$1000="MDA2 (DEC+ALB)", COUNTRY_INFO!$T$9:$T$1000, " ") ->  | I29: 0 | M29: 0
A30: =IF(COUNTRY_INFO!A30=0," ",COUNTRY_INFO!A30) -> Tanzania | B30: =IF(COUNTRY_INFO!B30=0," ",COUNTRY_INFO!B30) -> Geita | C30: =IF(COUNTRY_INFO!C30=0," ",COUNTRY_INFO!C30) -> Bukombe District Council | D30: =IF(COUNTRY_INFO!$T$9:$T$1000="MDA2 (DEC+ALB)", COUNTRY_INFO!$T$9:$T$1000, " ") ->  | I30: 0 | M30: 0
A31: =IF(COUNTRY_INFO!A31=0," ",COUNTRY_INFO!A31) -> Tanzania | B31: =IF(COUNTRY_INFO!B31=0," ",COUNTRY_INFO!B31) -> Geita | C31: =IF(COUNTRY_INFO!C31=0," ",COUNTRY_INFO!C31) -> Chato District Council | D31: =IF(COUNTRY_INFO!$T$9:$T$1000="MDA2 (DEC+ALB)", COUNTRY_INFO!$T$9:$T$1000, " ") ->  | I31: 0 | M31: 0
A32: =IF(COUNTRY_INFO!A32=0," ",COUNTRY_INFO!A32) -> Tanzania | B32: =IF(COUNTRY_INFO!B32=0," ",COUNTRY_INFO!B32) -> Geita | C32: =IF(COUNTRY_INFO!C32=0," ",COUNTRY_INFO!C32) -> Geita District Council | D32: =IF(COUNTRY_INFO!$T$9:$T$1000="MDA2 (DEC+ALB)", COUNTRY_INFO!$T$9:$T$1000, " ") ->  | I32: 0 | M32: 0
A33: =IF(COUNTRY_INFO!A33=0," ",COUNTRY_INFO!A33) -> Tanzania | B33: =IF(COUNTRY_INFO!B33=0," ",COUNTRY_INFO!B33) -> Geita | C33: =IF(COUNTRY_INFO!C33=0," ",COUNTRY_INFO!C33) -> Geita Town Council | D33: =IF(COUNTRY_INFO!$T$9:$T$1000="MDA2 (DEC+ALB)", COUNTRY_INFO!$T$9:$T$1000, " ") ->  | I33: 0 | M33: 0
A34: =IF(COUNTRY_INFO!A34=0," ",COUNTRY_INFO!A34) -> Tanzania | B34: =IF(COUNTRY_INFO!B34=0," ",COUNTRY_INFO!B34) -> Geita | C34: =IF(COUNTRY_INFO!C34=0," ",COUNTRY_INFO!C34) -> Mbogwe District Council | D34: =IF(COUNTRY_INFO!$T$9:$T$1000="MDA2 (DEC+ALB)", COUNTRY_INFO!$T$9:$T$1000, " ") ->  | I34: 0 | M34: 0
A35: =IF(COUNTRY_INFO!A35=0," ",COUNTRY_INFO!A35) -> Tanzania | B35: =IF(COUNTRY_INFO!B35=0," ",COUNTRY_INFO!B35) -> Geita | C35: =IF(COUNTRY_INFO!C35=0," ",COUNTRY_INFO!C35) -> Nyang'hwale District Council | D35: =IF(COUNTRY_INFO!$T$9:$T$1000="MDA2 (DEC+ALB)", COUNTRY_INFO!$T$9:$T$1000, " ") ->  | I35: 0 | M35: 0
A36: =IF(COUNTRY_INFO!A36=0," ",COUNTRY_INFO!A36) -> Tanzania | B36: =IF(COUNTRY_INFO!B36=0," ",COUNTRY_INFO!B36) -> Iringa | C36: =IF(COUNTRY_INFO!C36=0," ",COUNTRY_INFO!C36) -> Iringa District Council | D36: =IF(COUNTRY_INFO!$T$9:$T$1000="MDA2 (DEC+ALB)", COUNTRY_INFO!$T$9:$T$1000, " ") ->  | I36: 0 | M36: 0
A37: =IF(COUNTRY_INFO!A37=0," ",COUNTRY_INFO!A37) -> Tanzania | B37: =IF(COUNTRY_INFO!B37=0," ",COUNTRY_INFO!B37) -> Iringa | C37: =IF(COUNTRY_INFO!C37=0," ",COUNTRY_INFO!C37) -> Iringa Municipal Council | D37: =IF(COUNTRY_INFO!$T$9:$T$1000="MDA2 (DEC+ALB)", COUNTRY_INFO!$T$9:$T$1000, " ") ->  | I37: 0 | M37: 0
A38: =IF(COUNTRY_INFO!A38=0," ",COUNTRY_INFO!A38) -> Tanzania | B38: =IF(COUNTRY_INFO!B38=0," ",COUNTRY_INFO!B38) -> Iringa | C38: =IF(COUNTRY_INFO!C38=0," ",COUNTRY_INFO!C38) -> Kilolo District Council | D38: =IF(COUNTRY_INFO!$T$9:$T$1000="MDA2 (DEC+ALB)", COUNTRY_INFO!$T$9:$T$1000, " ") ->  | I38: 0 | M38: 0
A39: =IF(COUNTRY_INFO!A39=0," ",COUNTRY_INFO!A39) -> Tanzania | B39: =IF(COUNTRY_INFO!B39=0," ",COUNTRY_INFO!B39) -> Iringa | C39: =IF(COUNTRY_INFO!C39=0," ",COUNTRY_INFO!C39) -> Mafinga Town Council | D39: =IF(COUNTRY_INFO!$T$9:$T$1000="MDA2 (DEC+ALB)", COUNTRY_INFO!$T$9:$T$1000, " ") ->  | I39: 0 | M39: 0
A40: =IF(COUNTRY_INFO!A40=0," ",COUNTRY_INFO!A40) -> Tanzania | B40: =IF(COUNTRY_INFO!B40=0," ",COUNTRY_INFO!B40) -> Iringa | C40: =IF(COUNTRY_INFO!C40=0," ",COUNTRY_INFO!C40) -> Mufindi District Council | D40: =IF(COUNTRY_INFO!$T$9:$T$1000="MDA2 (DEC+ALB)", COUNTRY_INFO!$T$9:$T$1000, " ") ->  | I40: 0 | M40: 0
A41: =IF(COUNTRY_INFO!A41=0," ",COUNTRY_INFO!A41) -> Tanzania | B41: =IF(COUNTRY_INFO!B41=0," ",COUNTRY_INFO!B41) -> Kagera | C41: =IF(COUNTRY_INFO!C41=0," ",COUNTRY_INFO!C41) -> Biharamulo District Council | D41: =IF(COUNTRY_INFO!$T$9:$T$1000="MDA2 (DEC+ALB)", COUNTRY_INFO!$T$9:$T$1000, " ") ->  | I41: 0 | M41: 0
A42: =IF(COUNTRY_INFO!A42=0," ",COUNTRY_INFO!A42) -> Tanzania | B42: =IF(COUNTRY_INFO!B42=0," ",COUNTRY_INFO!B42) -> Kagera | C42: =IF(COUNTRY_INFO!C42=0," ",COUNTRY_INFO!C42) -> Bukoba District Council | D42: =IF(COUNTRY_INFO!$T$9:$T$1000="MDA2 (DEC+ALB)", COUNTRY_INFO!$T$9:$T$1000, " ") ->  | I42: 0 | M42: 0
A43: =IF(COUNTRY_INFO!A43=0," ",COUNTRY_INFO!A43) -> Tanzania | B43: =IF(COUNTRY_INFO!B43=0," ",COUNTRY_INFO!B43) -> Kagera | C43: =IF(COUNTRY_INFO!C43=0," ",COUNTRY_INFO!C43) -> Bukoba Municipal Council | D43: =IF(COUNTRY_INFO!$T$9:$T$1000="MDA2 (DEC+ALB)", COUNTRY_INFO!$T$9:$T$1000, " ") ->  | I43: 0 | M43: 0
A44: =IF(COUNTRY_INFO!A44=0," ",COUNTRY_INFO!A44) -> Tanzania | B44: =IF(COUNTRY_INFO!B44=0," ",COUNTRY_INFO!B44) -> Kagera | C44: =IF(COUNTRY_INFO!C44=0," ",COUNTRY_INFO!C44) -> Karagwe District Council | D44: =IF(COUNTRY_INFO!$T$9:$T$1000="MDA2 (DEC+ALB)", COUNTRY_INFO!$T$9:$T$1000, " ") ->  | I44: 0 | M44: 0
A45: =IF(COUNTRY_INFO!A45=0," ",COUNTRY_INFO!A45) -> Tanzania | B45: =IF(COUNTRY_INFO!B45=0," ",COUNTRY_INFO!B45) -> Kagera | C45: =IF(COUNTRY_INFO!C45=0," ",COUNTRY_INFO!C45) -> Kyerwa District Council | D45: =IF(COUNTRY_INFO!$T$9:$T$1000="MDA2 (DEC+ALB)", COUNTRY_INFO!$T$9:$T$1000, " ") ->  | I45: 0 | M45: 0
A46: =IF(COUNTRY_INFO!A46=0," ",COUNTRY_INFO!A46) -> Tanzania | B46: =IF(COUNTRY_INFO!B46=0," ",COUNTRY_INFO!B46) -> Kagera | C46: =IF(COUNTRY_INFO!C46=0," ",COUNTRY_INFO!C46) -> Missenyi District Council | D46: =IF(COUNTRY_INFO!$T$9:$T$1000="MDA2 (DEC+ALB)", COUNTRY_INFO!$T$9:$T$1000, " ") ->  | I46: 0 | M46: 0
A47: =IF(COUNTRY_INFO!A47=0," ",COUNTRY_INFO!A47) -> Tanzania | B47: =IF(COUNTRY_INFO!B47=0," ",COUNTRY_INFO!B47) -> Kagera | C47: =IF(COUNTRY_INFO!C47=0," ",COUNTRY_INFO!C47) -> Muleba District Council | D47: =IF(COUNTRY_INFO!$T$9:$T$1000="MDA2 (DEC+ALB)", COUNTRY_INFO!$T$9:$T$1000, " ") ->  | I47: 0 | M47: 0
A48: =IF(COUNTRY_INFO!A48=0," ",COUNTRY_INFO!A48) -> Tanzania | B48: =IF(COUNTRY_INFO!B48=0," ",COUNTRY_INFO!B48) -> Kagera | C48: =IF(COUNTRY_INFO!C48=0," ",COUNTRY_INFO!C48) -> Ngara District Council | D48: =IF(COUNTRY_INFO!$T$9:$T$1000="MDA2 (DEC+ALB)", COUNTRY_INFO!$T$9:$T$1000, " ") ->  | I48: 0 | M48: 0
A49: =IF(COUNTRY_INFO!A49=0," ",COUNTRY_INFO!A49) -> Tanzania | B49: =IF(COUNTRY_INFO!B49=0," ",COUNTRY_INFO!B49) -> Katavi | C49: =IF(COUNTRY_INFO!C49=0," ",COUNTRY_INFO!C49) -> Mlele District Council | D49: =IF(COUNTRY_INFO!$T$9:$T$1000="MDA2 (DEC+ALB)", COUNTRY_INFO!$T$9:$T$1000, " ") ->  | I49: 0 | M49: 0
A50: =IF(COUNTRY_INFO!A50=0," ",COUNTRY_INFO!A50) -> Tanzania | B50: =IF(COUNTRY_INFO!B50=0," ",COUNTRY_INFO!B50) -> Katavi | C50: =IF(COUNTRY_INFO!C50=0," ",COUNTRY_INFO!C50) -> Mpanda District Council | D50: =IF(COUNTRY_INFO!$T$9:$T$1000="MDA2 (DEC+ALB)", COUNTRY_INFO!$T$9:$T$1000, " ") ->  | I50: 0 | M50: 0
A51: =IF(COUNTRY_INFO!A51=0," ",COUNTRY_INFO!A51) -> Tanzania | B51: =IF(COUNTRY_INFO!B51=0," ",COUNTRY_INFO!B51) -> Katavi | C51: =IF(COUNTRY_INFO!C51=0," ",COUNTRY_INFO!C51) -> Mpanda Municipal Council | D51: =IF(COUNTRY_INFO!$T$9:$T$1000="MDA2 (DEC+ALB)", COUNTRY_INFO!$T$9:$T$1000, " ") ->  | I51: 0 | M51: 0
A52: =IF(COUNTRY_INFO!A52=0," ",COUNTRY_INFO!A52) -> Tanzania | B52: =IF(COUNTRY_INFO!B52=0," ",COUNTRY_INFO!B52) -> Katavi | C52: =IF(COUNTRY_INFO!C52=0," ",COUNTRY_INFO!C52) -> Mpimbwe District Council | D52: =IF(COUNTRY_INFO!$T$9:$T$1000="MDA2 (DEC+ALB)", COUNTRY_INFO!$T$9:$T$1000, " ") ->  | I52: 0 | M52: 0
A53: =IF(COUNTRY_INFO!A53=0," ",COUNTRY_INFO!A53) -> Tanzania | B53: =IF(COUNTRY_INFO!B53=0," ",COUNTRY_INFO!B53) -> Katavi | C53: =IF(COUNTRY_INFO!C53=0," ",COUNTRY_INFO!C53) -> Nsimbo District Council | D53: =IF(COUNTRY_INFO!$T$9:$T$1000="MDA2 (DEC+ALB)", COUNTRY_INFO!$T$9:$T$1000, " ") ->  | I53: 0 | M53: 0
A54: =IF(COUNTRY_INFO!A54=0," ",COUNTRY_INFO!A54) -> Tanzania | B54: =IF(COUNTRY_INFO!B54=0," ",COUNTRY_INFO!B54) -> Kigoma | C54: =IF(COUNTRY_INFO!C54=0," ",COUNTRY_INFO!C54) -> Buhigwe District Council | D54: =IF(COUNTRY_INFO!$T$9:$T$1000="MDA2 (DEC+ALB)", COUNTRY_INFO!$T$9:$T$1000, " ") ->  | I54: 0 | M54: 0
A55: =IF(COUNTRY_INFO!A55=0," ",COUNTRY_INFO!A55) -> Tanzania | B55: =IF(COUNTRY_INFO!B55=0," ",COUNTRY_INFO!B55) -> Kigoma | C55: =IF(COUNTRY_INFO!C55=0," ",COUNTRY_INFO!C55) -> Kakonko District Council | D55: =IF(COUNTRY_INFO!$T$9:$T$1000="MDA2 (DEC+ALB)", COUNTRY_INFO!$T$9:$T$1000, " ") ->  | I55: 0 | M55: 0
A56: =IF(COUNTRY_INFO!A56=0," ",COUNTRY_INFO!A56) -> Tanzania | B56: =IF(COUNTRY_INFO!B56=0," ",COUNTRY_INFO!B56) -> Kigoma | C56: =IF(COUNTRY_INFO!C56=0," ",COUNTRY_INFO!C56) -> Kasulu District Council | D56: =IF(COUNTRY_INFO!$T$9:$T$1000="MDA2 (DEC+ALB)", COUNTRY_INFO!$T$9:$T$1000, " ") ->  | I56: 0 | M56: 0
A57: =IF(COUNTRY_INFO!A57=0," ",COUNTRY_INFO!A57) -> Tanzania | B57: =IF(COUNTRY_INFO!B57=0," ",COUNTRY_INFO!B57) -> Kigoma | C57: =IF(COUNTRY_INFO!C57=0," ",COUNTRY_INFO!C57) -> Kasulu Town Council | D57: =IF(COUNTRY_INFO!$T$9:$T$1000="MDA2 (DEC+ALB)", COUNTRY_INFO!$T$9:$T$1000, " ") ->  | I57: 0 | M57: 0
A58: =IF(COUNTRY_INFO!A58=0," ",COUNTRY_INFO!A58) -> Tanzania | B58: =IF(COUNTRY_INFO!B58=0," ",COUNTRY_INFO!B58) -> Kigoma | C58: =IF(COUNTRY_INFO!C58=0," ",COUNTRY_INFO!C58) -> Kibondo District Council | D58: =IF(COUNTRY_INFO!$T$9:$T$1000="MDA2 (DEC+ALB)", COUNTRY_INFO!$T$9:$T$1000, " ") ->  | I58: 0 | M58: 0
A59: =IF(COUNTRY_INFO!A59=0," ",COUNTRY_INFO!A59) -> Tanzania | B59: =IF(COUNTRY_INFO!B59=0," ",COUNTRY_INFO!B59) -> Kigoma | C59: =IF(COUNTRY_INFO!C59=0," ",COUNTRY_INFO!C59) -> Kigoma District Council | D59: =IF(COUNTRY_INFO!$T$9:$T$1000="MDA2 (DEC+ALB)", COUNTRY_INFO!$T$9:$T$1000, " ") ->  | I59: 0 | M59: 0
A60: =IF(COUNTRY_INFO!A60=0," ",COUNTRY_INFO!A60) -> Tanzania | B60: =IF(COUNTRY_INFO!B60=0," ",COUNTRY_INFO!B60) -> Kigoma | C60: =IF(COUNTRY_INFO!C60=0," ",COUNTRY_INFO!C60) -> Kigoma-Ujiji Municipal Council | D60: =IF(COUNTRY_INFO!$T$9:$T$1000="MDA2 (DEC+ALB)", COUNTRY_INFO!$T$9:$T$1000, " ") ->  | I60: 0 | M60: 0
A61: =IF(COUNTRY_INFO!A61=0," ",COUNTRY_INFO!A61) -> Tanzania | B61: =IF(COUNTRY_INFO!B61=0," ",COUNTRY_INFO!B61) -> Kigoma | C61: =IF(COUNTRY_INFO!C61=0," ",COUNTRY_INFO!C61) -> Uvinza District Council | D61: =IF(COUNTRY_INFO!$T$9:$T$1000="MDA2 (DEC+ALB)", COUNTRY_INFO!$T$9:$T$1000, " ") ->  | I61: 0 | M61: 0
A62: =IF(COUNTRY_INFO!A62=0," ",COUNTRY_INFO!A62) -> Tanzania | B62: =IF(COUNTRY_INFO!B62=0," ",COUNTRY_INFO!B62) -> Kilimanjaro | C62: =IF(COUNTRY_INFO!C62=0," ",COUNTRY_INFO!C62) -> Hai District Council | D62: =IF(COUNTRY_INFO!$T$9:$T$1000="MDA2 (DEC+ALB)", COUNTRY_INFO!$T$9:$T$1000, " ") ->  | I62: 0 | M62: 0
A63: =IF(COUNTRY_INFO!A63=0," ",COUNTRY_INFO!A63) -> Tanzania | B63: =IF(COUNTRY_INFO!B63=0," ",COUNTRY_INFO!B63) -> Kilimanjaro | C63: =IF(COUNTRY_INFO!C63=0," ",COUNTRY_INFO!C63) -> Moshi District Council | D63: =IF(COUNTRY_INFO!$T$9:$T$1000="MDA2 (DEC+ALB)", COUNTRY_INFO!$T$9:$T$1000, " ") ->  | I63: 0 | M63: 0
A64: =IF(COUNTRY_INFO!A64=0," ",COUNTRY_INFO!A64) -> Tanzania | B64: =IF(COUNTRY_INFO!B64=0," ",COUNTRY_INFO!B64) -> Kilimanjaro | C64: =IF(COUNTRY_INFO!C64=0," ",COUNTRY_INFO!C64) -> Moshi Municipal Council | D64: =IF(COUNTRY_INFO!$T$9:$T$1000="MDA2 (DEC+ALB)", COUNTRY_INFO!$T$9:$T$1000, " ") ->  | I64: 0 | M64: 0
A65: =IF(COUNTRY_INFO!A65=0," ",COUNTRY_INFO!A65) -> Tanzania | B65: =IF(COUNTRY_INFO!B65=0," ",COUNTRY_INFO!B65) -> Kilimanjaro | C65: =IF(COUNTRY_INFO!C65=0," ",COUNTRY_INFO!C65) -> Mwanga District Council | D65: =IF(COUNTRY_INFO!$T$9:$T$1000="MDA2 (DEC+ALB)", COUNTRY_INFO!$T$9:$T$1000, " ") ->  | I65: 0 | M65: 0
A66: =IF(COUNTRY_INFO!A66=0," ",COUNTRY_INFO!A66) -> Tanzania | B66: =IF(COUNTRY_INFO!B66=0," ",COUNTRY_INFO!B66) -> Kilimanjaro | C66: =IF(COUNTRY_INFO!C66=0," ",COUNTRY_INFO!C66) -> Rombo District Council | D66: =IF(COUNTRY_INFO!$T$9:$T$1000="MDA2 (DEC+ALB)", COUNTRY_INFO!$T$9:$T$1000, " ") ->  | I66: 0 | M66: 0
A67: =IF(COUNTRY_INFO!A67=0," ",COUNTRY_INFO!A67) -> Tanzania | B67: =IF(COUNTRY_INFO!B67=0," ",COUNTRY_INFO!B67) -> Kilimanjaro | C67: =IF(COUNTRY_INFO!C67=0," ",COUNTRY_INFO!C67) -> Same District Council | D67: =IF(COUNTRY_INFO!$T$9:$T$1000="MDA2 (DEC+ALB)", COUNTRY_INFO!$T$9:$T$1000, " ") ->  | I67: 0 | M67: 0
A68: =IF(COUNTRY_INFO!A68=0," ",COUNTRY_INFO!A68) -> Tanzania | B68: =IF(COUNTRY_INFO!B68=0," ",COUNTRY_INFO!B68) -> Kilimanjaro | C68: =IF(COUNTRY_INFO!C68=0," ",COUNTRY_INFO!C68) -> Siha District Council | D68: =IF(COUNTRY_INFO!$T$9:$T$1000="MDA2 (DEC+ALB)", COUNTRY_INFO!$T$9:$T$1000, " ") ->  | I68: 0 | M68: 0
A69: =IF(COUNTRY_INFO!A69=0," ",COUNTRY_INFO!A69) -> Tanzania | B69: =IF(COUNTRY_INFO!B69=0," ",COUNTRY_INFO!B69) -> Lindi | C69: =IF(COUNTRY_INFO!C69=0," ",COUNTRY_INFO!C69) -> Kilwa District Council | D69: =IF(COUNTRY_INFO!$T$9:$T$1000="MDA2 (DEC+ALB)", COUNTRY_INFO!$T$9:$T$1000, " ") ->  | I69: 0 | M69: 0
A70: =IF(COUNTRY_INFO!A70=0," ",COUNTRY_INFO!A70) -> Tanzania | B70: =IF(COUNTRY_INFO!B70=0," ",COUNTRY_INFO!B70) -> Lindi | C70: =IF(COUNTRY_INFO!C70=0," ",COUNTRY_INFO!C70) -> Lindi District Council (Mtama District Council) | D70: =IF(COUNTRY_INFO!$T$9:$T$1000="MDA2 (DEC+ALB)", COUNTRY_INFO!$T$9:$T$1000, " ") ->  | I70: 0 | M70: 0
A71: =IF(COUNTRY_INFO!A71=0," ",COUNTRY_INFO!A71) -> Tanzania | B71: =IF(COUNTRY_INFO!B71=0," ",COUNTRY_INFO!B71) -> Lindi | C71: =IF(COUNTRY_INFO!C71=0," ",COUNTRY_INFO!C71) -> Lindi Municipal Council | D71: =IF(COUNTRY_INFO!$T$9:$T$1000="MDA2 (DEC+ALB)", COUNTRY_INFO!$T$9:$T$1000, " ") ->  | I71: 0 | M71: 0
A72: =IF(COUNTRY_INFO!A72=0," ",COUNTRY_INFO!A72) -> Tanzania | B72: =IF(COUNTRY_INFO!B72=0," ",COUNTRY_INFO!B72) -> Lindi | C72: =IF(COUNTRY_INFO!C72=0," ",COUNTRY_INFO!C72) -> Liwale District Council | D72: =IF(COUNTRY_INFO!$T$9:$T$1000="MDA2 (DEC+ALB)", COUNTRY_INFO!$T$9:$T$1000, " ") ->  | I72: 0 | M72: 0
A73: =IF(COUNTRY_INFO!A73=0," ",COUNTRY_INFO!A73) -> Tanzania | B73: =IF(COUNTRY_INFO!B73=0," ",COUNTRY_INFO!B73) -> Lindi | C73: =IF(COUNTRY_INFO!C73=0," ",COUNTRY_INFO!C73) -> Nachingwea District Council | D73: =IF(COUNTRY_INFO!$T$9:$T$1000="MDA2 (DEC+ALB)", COUNTRY_INFO!$T$9:$T$1000, " ") ->  | I73: 0 | M73: 0
A74: =IF(COUNTRY_INFO!A74=0," ",COUNTRY_INFO!A74) -> Tanzania | B74: =IF(COUNTRY_INFO!B74=0," ",COUNTRY_INFO!B74) -> Lindi | C74: =IF(COUNTRY_INFO!C74=0," ",COUNTRY_INFO!C74) -> Ruangwa District Council | D74: =IF(COUNTRY_INFO!$T$9:$T$1000="MDA2 (DEC+ALB)", COUNTRY_INFO!$T$9:$T$1000, " ") ->  | I74: =SUM(F74:H74) -> 0 | M74: =SUM(J74:L74) -> 0 | N74: =IF(F74<>0, IF(J74/F74*100=0, "-", J74/F74*100), " ") ->  | O74: =IF(G74<>0, IF(K74/G74*100=0, "-", K74/G74*100), " ") ->  | P74: =IF(H74<>0, IF(L74/H74*100=0, "-", L74/H74*100), " ") ->  | Q74: =IF(I74<>0, IF(M74/I74*100=0, "-", M74/I74*100), " ") -> 
A75: =IF(COUNTRY_INFO!A75=0," ",COUNTRY_INFO!A75) -> Tanzania | B75: =IF(COUNTRY_INFO!B75=0," ",COUNTRY_INFO!B75) -> Manyara | C75: =IF(COUNTRY_INFO!C75=0," ",COUNTRY_INFO!C75) -> Babati District Council | D75: =IF(COUNTRY_INFO!$T$9:$T$1000="MDA2 (DEC+ALB)", COUNTRY_INFO!$T$9:$T$1000, " ") ->  | I75: 0 | M75: 0
A76: =IF(COUNTRY_INFO!A76=0," ",COUNTRY_INFO!A76) -> Tanzania | B76: =IF(COUNTRY_INFO!B76=0," ",COUNTRY_INFO!B76) -> Manyara | C76: =IF(COUNTRY_INFO!C76=0," ",COUNTRY_INFO!C76) -> Babati Town Council | D76: =IF(COUNTRY_INFO!$T$9:$T$1000="MDA2 (DEC+ALB)", COUNTRY_INFO!$T$9:$T$1000, " ") ->  | I76: 0 | M76: 0
A77: =IF(COUNTRY_INFO!A77=0," ",COUNTRY_INFO!A77) -> Tanzania | B77: =IF(COUNTRY_INFO!B77=0," ",COUNTRY_INFO!B77) -> Manyara | C77: =IF(COUNTRY_INFO!C77=0," ",COUNTRY_INFO!C77) -> Hanang District Council | D77: =IF(COUNTRY_INFO!$T$9:$T$1000="MDA2 (DEC+ALB)", COUNTRY_INFO!$T$9:$T$1000, " ") ->  | I77: 0 | M77: 0
A78: =IF(COUNTRY_INFO!A78=0," ",COUNTRY_INFO!A78) -> Tanzania | B78: =IF(COUNTRY_INFO!B78=0," ",COUNTRY_INFO!B78) -> Manyara | C78: =IF(COUNTRY_INFO!C78=0," ",COUNTRY_INFO!C78) -> Kiteto District Council | D78: =IF(COUNTRY_INFO!$T$9:$T$1000="MDA2 (DEC+ALB)", COUNTRY_INFO!$T$9:$T$1000, " ") ->  | I78: 0 | M78: 0
A79: =IF(COUNTRY_INFO!A79=0," ",COUNTRY_INFO!A79) -> Tanzania | B79: =IF(COUNTRY_INFO!B79=0," ",COUNTRY_INFO!B79) -> Manyara | C79: =IF(COUNTRY_INFO!C79=0," ",COUNTRY_INFO!C79) -> Mbulu District Council | D79: =IF(COUNTRY_INFO!$T$9:$T$1000="MDA2 (DEC+ALB)", COUNTRY_INFO!$T$9:$T$1000, " ") ->  | I79: 0 | M79: 0
A80: =IF(COUNTRY_INFO!A80=0," ",COUNTRY_INFO!A80) -> Tanzania | B80: =IF(COUNTRY_INFO!B80=0," ",COUNTRY_INFO!B80) -> Manyara | C80: =IF(COUNTRY_INFO!C80=0," ",COUNTRY_INFO!C80) -> Mbulu Town Council | D80: =IF(COUNTRY_INFO!$T$9:$T$1000="MDA2 (DEC+ALB)", COUNTRY_INFO!$T$9:$T$1000, " ") ->  | I80: 0 | M80: 0
A81: =IF(COUNTRY_INFO!A81=0," ",COUNTRY_INFO!A81) -> Tanzania | B81: =IF(COUNTRY_INFO!B81=0," ",COUNTRY_INFO!B81) -> Manyara | C81: =IF(COUNTRY_INFO!C81=0," ",COUNTRY_INFO!C81) -> Simanjiro District Council | D81: =IF(COUNTRY_INFO!$T$9:$T$1000="MDA2 (DEC+ALB)", COUNTRY_INFO!$T$9:$T$1000, " ") ->  | I81: 0 | M81: 0
A82: =IF(COUNTRY_INFO!A82=0," ",COUNTRY_INFO!A82) -> Tanzania | B82: =IF(COUNTRY_INFO!B82=0," ",COUNTRY_INFO!B82) -> Mara | C82: =IF(COUNTRY_INFO!C82=0," ",COUNTRY_INFO!C82) -> Bunda District Council | D82: =IF(COUNTRY_INFO!$T$9:$T$1000="MDA2 (DEC+ALB)", COUNTRY_INFO!$T$9:$T$1000, " ") ->  | I82: 0 | M82: 0
A83: =IF(COUNTRY_INFO!A83=0," ",COUNTRY_INFO!A83) -> Tanzania | B83: =IF(COUNTRY_INFO!B83=0," ",COUNTRY_INFO!B83) -> Mara | C83: =IF(COUNTRY_INFO!C83=0," ",COUNTRY_INFO!C83) -> Bunda Town Council | D83: =IF(COUNTRY_INFO!$T$9:$T$1000="MDA2 (DEC+ALB)", COUNTRY_INFO!$T$9:$T$1000, " ") ->  | I83: 0 | M83: 0
A84: =IF(COUNTRY_INFO!A84=0," ",COUNTRY_INFO!A84) -> Tanzania | B84: =IF(COUNTRY_INFO!B84=0," ",COUNTRY_INFO!B84) -> Mara | C84: =IF(COUNTRY_INFO!C84=0," ",COUNTRY_INFO!C84) -> Butiama District Council | D84: =IF(COUNTRY_INFO!$T$9:$T$1000="MDA2 (DEC+ALB)", COUNTRY_INFO!$T$9:$T$1000, " ") ->  | I84: 0 | M84: 0
A85: =IF(COUNTRY_INFO!A85=0," ",COUNTRY_INFO!A85) -> Tanzania | B85: =IF(COUNTRY_INFO!B85=0," ",COUNTRY_INFO!B85) -> Mara | C85: =IF(COUNTRY_INFO!C85=0," ",COUNTRY_INFO!C85) -> Musoma District Council | D85: =IF(COUNTRY_INFO!$T$9:$T$1000="MDA2 (DEC+ALB)", COUNTRY_INFO!$T$9:$T$1000, " ") ->  | I85: 0 | M85: 0
A86: =IF(COUNTRY_INFO!A86=0," ",COUNTRY_INFO!A86) -> Tanzania | B86: =IF(COUNTRY_INFO!B86=0," ",COUNTRY_INFO!B86) -> Mara | C86: =IF(COUNTRY_INFO!C86=0," ",COUNTRY_INFO!C86) -> Musoma Municipal Council | D86: =IF(COUNTRY_INFO!$T$9:$T$1000="MDA2 (DEC+ALB)", COUNTRY_INFO!$T$9:$T$1000, " ") ->  | I86: 0 | M86: 0
A87: =IF(COUNTRY_INFO!A87=0," ",COUNTRY_INFO!A87) -> Tanzania | B87: =IF(COUNTRY_INFO!B87=0," ",COUNTRY_INFO!B87) -> Mara | C87: =IF(COUNTRY_INFO!C87=0," ",COUNTRY_INFO!C87) -> Rorya District Council | D87: =IF(COUNTRY_INFO!$T$9:$T$1000="MDA2 (DEC+ALB)", COUNTRY_INFO!$T$9:$T$1000, " ") ->  | I87: 0 | M87: 0
A88: =IF(COUNTRY_INFO!A88=0," ",COUNTRY_INFO!A88) -> Tanzania | B88: =IF(COUNTRY_INFO!B88=0," ",COUNTRY_INFO!B88) -> Mara | C88: =IF(COUNTRY_INFO!C88=0," ",COUNTRY_INFO!C88) -> Serengeti District Council | D88: =IF(COUNTRY_INFO!$T$9:$T$1000="MDA2 (DEC+ALB)", COUNTRY_INFO!$T$9:$T$1000, " ") ->  | I88: 0 | M88: 0
A89: =IF(COUNTRY_INFO!A89=0," ",COUNTRY_INFO!A89) -> Tanzania | B89: =IF(COUNTRY_INFO!B89=0," ",COUNTRY_INFO!B89) -> Mara | C89: =IF(COUNTRY_INFO!C89=0," ",COUNTRY_INFO!C89) -> Tarime District Council | D89: =IF(COUNTRY_INFO!$T$9:$T$1000="MDA2 (DEC+ALB)", COUNTRY_INFO!$T$9:$T$1000, " ") ->  | I89: 0 | M89: 0
A90: =IF(COUNTRY_INFO!A90=0," ",COUNTRY_INFO!A90) -> Tanzania | B90: =IF(COUNTRY_INFO!B90=0," ",COUNTRY_INFO!B90) -> Mara | C90: =IF(COUNTRY_INFO!C90=0," ",COUNTRY_INFO!C90) -> Tarime Town Council | D90: =IF(COUNTRY_INFO!$T$9:$T$1000="MDA2 (DEC+ALB)", COUNTRY_INFO!$T$9:$T$1000, " ") ->  | I90: 0 | M90: 0
A91: =IF(COUNTRY_INFO!A91=0," ",COUNTRY_INFO!A91) -> Tanzania | B91: =IF(COUNTRY_INFO!B91=0," ",COUNTRY_INFO!B91) -> Mbeya | C91: =IF(COUNTRY_INFO!C91=0," ",COUNTRY_INFO!C91) -> Busokelo District Council | D91: =IF(COUNTRY_INFO!$T$9:$T$1000="MDA2 (DEC+ALB)", COUNTRY_INFO!$T$9:$T$1000, " ") ->  | I91: 0 | M91: 0
A92: =IF(COUNTRY_INFO!A92=0," ",COUNTRY_INFO!A92) -> Tanzania | B92: =IF(COUNTRY_INFO!B92=0," ",COUNTRY_INFO!B92) -> Mbeya | C92: =IF(COUNTRY_INFO!C92=0," ",COUNTRY_INFO!C92) -> Chunya District Council | D92: =IF(COUNTRY_INFO!$T$9:$T$1000="MDA2 (DEC+ALB)", COUNTRY_INFO!$T$9:$T$1000, " ") ->  | I92: 0 | M92: 0
A93: =IF(COUNTRY_INFO!A93=0," ",COUNTRY_INFO!A93) -> Tanzania | B93: =IF(COUNTRY_INFO!B93=0," ",COUNTRY_INFO!B93) -> Mbeya | C93: =IF(COUNTRY_INFO!C93=0," ",COUNTRY_INFO!C93) -> Kyela District Council | D93: =IF(COUNTRY_INFO!$T$9:$T$1000="MDA2 (DEC+ALB)", COUNTRY_INFO!$T$9:$T$1000, " ") ->  | I93: 0 | M93: 0
A94: =IF(COUNTRY_INFO!A94=0," ",COUNTRY_INFO!A94) -> Tanzania | B94: =IF(COUNTRY_INFO!B94=0," ",COUNTRY_INFO!B94) -> Mbeya | C94: =IF(COUNTRY_INFO!C94=0," ",COUNTRY_INFO!C94) -> Mbarali District Council | D94: =IF(COUNTRY_INFO!$T$9:$T$1000="MDA2 (DEC+ALB)", COUNTRY_INFO!$T$9:$T$1000, " ") ->  | I94: 0 | M94: 0
A95: =IF(COUNTRY_INFO!A95=0," ",COUNTRY_INFO!A95) -> Tanzania | B95: =IF(COUNTRY_INFO!B95=0," ",COUNTRY_INFO!B95) -> Mbeya | C95: =IF(COUNTRY_INFO!C95=0," ",COUNTRY_INFO!C95) -> Mbeya City Council | D95: =IF(COUNTRY_INFO!$T$9:$T$1000="MDA2 (DEC+ALB)", COUNTRY_INFO!$T$9:$T$1000, " ") ->  | I95: 0 | M95: 0
A96: =IF(COUNTRY_INFO!A96=0," ",COUNTRY_INFO!A96) -> Tanzania | B96: =IF(COUNTRY_INFO!B96=0," ",COUNTRY_INFO!B96) -> Mbeya | C96: =IF(COUNTRY_INFO!C96=0," ",COUNTRY_INFO!C96) -> Mbeya District Council | D96: =IF(COUNTRY_INFO!$T$9:$T$1000="MDA2 (DEC+ALB)", COUNTRY_INFO!$T$9:$T$1000, " ") ->  | I96: 0 | M96: 0
A97: =IF(COUNTRY_INFO!A97=0," ",COUNTRY_INFO!A97) -> Tanzania | B97: =IF(COUNTRY_INFO!B97=0," ",COUNTRY_INFO!B97) -> Mbeya | C97: =IF(COUNTRY_INFO!C97=0," ",COUNTRY_INFO!C97) -> Rungwe District Council | D97: =IF(COUNTRY_INFO!$T$9:$T$1000="MDA2 (DEC+ALB)", COUNTRY_INFO!$T$9:$T$1000, " ") ->  | I97: 0 | M97: 0
A98: =IF(COUNTRY_INFO!A98=0," ",COUNTRY_INFO!A98) -> Tanzania | B98: =IF(COUNTRY_INFO!B98=0," ",COUNTRY_INFO!B98) -> Morogoro | C98: =IF(COUNTRY_INFO!C98=0," ",COUNTRY_INFO!C98) -> Gairo District Council | D98: =IF(COUNTRY_INFO!$T$9:$T$1000="MDA2 (DEC+ALB)", COUNTRY_INFO!$T$9:$T$1000, " ") ->  | I98: 0 | M98: 0
A99: =IF(COUNTRY_INFO!A99=0," ",COUNTRY_INFO!A99) -> Tanzania | B99: =IF(COUNTRY_INFO!B99=0," ",COUNTRY_INFO!B99) -> Morogoro | C99: =IF(COUNTRY_INFO!C99=0," ",COUNTRY_INFO!C99) -> Ifakara Town Council | D99: =IF(COUNTRY_INFO!$T$9:$T$1000="MDA2 (DEC+ALB)", COUNTRY_INFO!$T$9:$T$1000, " ") ->  | I99: 0 | M99: 0
A100: =IF(COUNTRY_INFO!A100=0," ",COUNTRY_INFO!A100) -> Tanzania | B100: =IF(COUNTRY_INFO!B100=0," ",COUNTRY_INFO!B100) -> Morogoro | C100: =IF(COUNTRY_INFO!C100=0," ",COUNTRY_INFO!C100) -> Kilombero District Council (Mlimba District Council) | D100: =IF(COUNTRY_INFO!$T$9:$T$1000="MDA2 (DEC+ALB)", COUNTRY_INFO!$T$9:$T$1000, " ") ->  | I100: 0 | M100: 0
A101: =IF(COUNTRY_INFO!A101=0," ",COUNTRY_INFO!A101) -> Tanzania | B101: =IF(COUNTRY_INFO!B101=0," ",COUNTRY_INFO!B101) -> Morogoro | C101: =IF(COUNTRY_INFO!C101=0," ",COUNTRY_INFO!C101) -> Kilosa District Council | D101: =IF(COUNTRY_INFO!$T$9:$T$1000="MDA2 (DEC+ALB)", COUNTRY_INFO!$T$9:$T$1000, " ") ->  | I101: 0 | M101: 0
A102: =IF(COUNTRY_INFO!A102=0," ",COUNTRY_INFO!A102) -> Tanzania | B102: =IF(COUNTRY_INFO!B102=0," ",COUNTRY_INFO!B102) -> Morogoro | C102: =IF(COUNTRY_INFO!C102=0," ",COUNTRY_INFO!C102) -> Malinyi District Council | D102: =IF(COUNTRY_INFO!$T$9:$T$1000="MDA2 (DEC+ALB)", COUNTRY_INFO!$T$9:$T$1000, " ") ->  | I102: 0 | M102: 0
A103: =IF(COUNTRY_INFO!A103=0," ",COUNTRY_INFO!A103) -> Tanzania | B103: =IF(COUNTRY_INFO!B103=0," ",COUNTRY_INFO!B103) -> Morogoro | C103: =IF(COUNTRY_INFO!C103=0," ",COUNTRY_INFO!C103) -> Morogoro District Council | D103: =IF(COUNTRY_INFO!$T$9:$T$1000="MDA2 (DEC+ALB)", COUNTRY_INFO!$T$9:$T$1000, " ") ->  | I103: 0 | M103: 0
A104: =IF(COUNTRY_INFO!A104=0," ",COUNTRY_INFO!A104) -> Tanzania | B104: =IF(COUNTRY_INFO!B104=0," ",COUNTRY_INFO!B104) -> Morogoro | C104: =IF(COUNTRY_INFO!C104=0," ",COUNTRY_INFO!C104) -> Morogoro Municipal Council | D104: =IF(COUNTRY_INFO!$T$9:$T$1000="MDA2 (DEC+ALB)", COUNTRY_INFO!$T$9:$T$1000, " ") ->  | I104: 0 | M104: 0
A105: =IF(COUNTRY_INFO!A105=0," ",COUNTRY_INFO!A105) -> Tanzania | B105: =IF(COUNTRY_INFO!B105=0," ",COUNTRY_INFO!B105) -> Morogoro | C105: =IF(COUNTRY_INFO!C105=0," ",COUNTRY_INFO!C105) -> Mvomero District Council | D105: =IF(COUNTRY_INFO!$T$9:$T$1000="MDA2 (DEC+ALB)", COUNTRY_INFO!$T$9:$T$1000, " ") ->  | I105: 0 | M105: 0
A106: =IF(COUNTRY_INFO!A106=0," ",COUNTRY_INFO!A106) -> Tanzania | B106: =IF(COUNTRY_INFO!B106=0," ",COUNTRY_INFO!B106) -> Morogoro | C106: =IF(COUNTRY_INFO!C106=0," ",COUNTRY_INFO!C106) -> Ulanga District Council | D106: =IF(COUNTRY_INFO!$T$9:$T$1000="MDA2 (DEC+ALB)", COUNTRY_INFO!$T$9:$T$1000, " ") ->  | I106: 0 | M106: 0
A107: =IF(COUNTRY_INFO!A107=0," ",COUNTRY_INFO!A107) -> Tanzania | B107: =IF(COUNTRY_INFO!B107=0," ",COUNTRY_INFO!B107) -> Mtwara | C107: =IF(COUNTRY_INFO!C107=0," ",COUNTRY_INFO!C107) -> Masasi District Council | D107: =IF(COUNTRY_INFO!$T$9:$T$1000="MDA2 (DEC+ALB)", COUNTRY_INFO!$T$9:$T$1000, " ") ->  | I107: 0 | M107: 0
A108: =IF(COUNTRY_INFO!A108=0," ",COUNTRY_INFO!A108) -> Tanzania | B108: =IF(COUNTRY_INFO!B108=0," ",COUNTRY_INFO!B108) -> Mtwara | C108: =IF(COUNTRY_INFO!C108=0," ",COUNTRY_INFO!C108) -> Masasi Town Council | D108: =IF(COUNTRY_INFO!$T$9:$T$1000="MDA2 (DEC+ALB)", COUNTRY_INFO!$T$9:$T$1000, " ") ->  | I108: 0 | M108: 0
A109: =IF(COUNTRY_INFO!A109=0," ",COUNTRY_INFO!A109) -> Tanzania | B109: =IF(COUNTRY_INFO!B109=0," ",COUNTRY_INFO!B109) -> Mtwara | C109: =IF(COUNTRY_INFO!C109=0," ",COUNTRY_INFO!C109) -> Mtwara District Council | D109: =IF(COUNTRY_INFO!$T$9:$T$1000="MDA2 (DEC+ALB)", COUNTRY_INFO!$T$9:$T$1000, " ") ->  | I109: 0 | M109: 0
A110: =IF(COUNTRY_INFO!A110=0," ",COUNTRY_INFO!A110) -> Tanzania | B110: =IF(COUNTRY_INFO!B110=0," ",COUNTRY_INFO!B110) -> Mtwara | C110: =IF(COUNTRY_INFO!C110=0," ",COUNTRY_INFO!C110) -> Mtwara-Mikindani Municipal Council | D110: =IF(COUNTRY_INFO!$T$9:$T$1000="MDA2 (DEC+ALB)", COUNTRY_INFO!$T$9:$T$1000, " ") ->  | I110: 0 | M110: 0
A111: =IF(COUNTRY_INFO!A111=0," ",COUNTRY_INFO!A111) -> Tanzania | B111: =IF(COUNTRY_INFO!B111=0," ",COUNTRY_INFO!B111) -> Mtwara | C111: =IF(COUNTRY_INFO!C111=0," ",COUNTRY_INFO!C111) -> Nanyamba Town Council | D111: =IF(COUNTRY_INFO!$T$9:$T$1000="MDA2 (DEC+ALB)", COUNTRY_INFO!$T$9:$T$1000, " ") ->  | I111: 0 | M111: 0
A112: =IF(COUNTRY_INFO!A112=0," ",COUNTRY_INFO!A112) -> Tanzania | B112: =IF(COUNTRY_INFO!B112=0," ",COUNTRY_INFO!B112) -> Mtwara | C112: =IF(COUNTRY_INFO!C112=0," ",COUNTRY_INFO!C112) -> Nanyumbu District Council | D112: =IF(COUNTRY_INFO!$T$9:$T$1000="MDA2 (DEC+ALB)", COUNTRY_INFO!$T$9:$T$1000, " ") ->  | I112: 0 | M112: 0
A113: =IF(COUNTRY_INFO!A113=0," ",COUNTRY_INFO!A113) -> Tanzania | B113: =IF(COUNTRY_INFO!B113=0," ",COUNTRY_INFO!B113) -> Mtwara | C113: =IF(COUNTRY_INFO!C113=0," ",COUNTRY_INFO!C113) -> Newala District Council | D113: =IF(COUNTRY_INFO!$T$9:$T$1000="MDA2 (DEC+ALB)", COUNTRY_INFO!$T$9:$T$1000, " ") ->  | I113: 0 | M113: 0
A114: =IF(COUNTRY_INFO!A114=0," ",COUNTRY_INFO!A114) -> Tanzania | B114: =IF(COUNTRY_INFO!B114=0," ",COUNTRY_INFO!B114) -> Mtwara | C114: =IF(COUNTRY_INFO!C114=0," ",COUNTRY_INFO!C114) -> Newala Town Council | D114: =IF(COUNTRY_INFO!$T$9:$T$1000="MDA2 (DEC+ALB)", COUNTRY_INFO!$T$9:$T$1000, " ") ->  | I114: 0 | M114: 0
A115: =IF(COUNTRY_INFO!A115=0," ",COUNTRY_INFO!A115) -> Tanzania | B115: =IF(COUNTRY_INFO!B115=0," ",COUNTRY_INFO!B115) -> Mtwara | C115: =IF(COUNTRY_INFO!C115=0," ",COUNTRY_INFO!C115) -> Tandahimba District Council | D115: =IF(COUNTRY_INFO!$T$9:$T$1000="MDA2 (DEC+ALB)", COUNTRY_INFO!$T$9:$T$1000, " ") ->  | I115: 0 | M115: 0
A116: =IF(COUNTRY_INFO!A116=0," ",COUNTRY_INFO!A116) -> Tanzania | B116: =IF(COUNTRY_INFO!B116=0," ",COUNTRY_INFO!B116) -> Mwanza | C116: =IF(COUNTRY_INFO!C116=0," ",COUNTRY_INFO!C116) -> Buchosa District Council | D116: =IF(COUNTRY_INFO!$T$9:$T$1000="MDA2 (DEC+ALB)", COUNTRY_INFO!$T$9:$T$1000, " ") ->  | I116: 0 | M116: 0
A117: =IF(COUNTRY_INFO!A117=0," ",COUNTRY_INFO!A117) -> Tanzania | B117: =IF(COUNTRY_INFO!B117=0," ",COUNTRY_INFO!B117) -> Mwanza | C117: =IF(COUNTRY_INFO!C117=0," ",COUNTRY_INFO!C117) -> Ilemela Municipal Council | D117: =IF(COUNTRY_INFO!$T$9:$T$1000="MDA2 (DEC+ALB)", COUNTRY_INFO!$T$9:$T$1000, " ") ->  | I117: 0 | M117: 0
A118: =IF(COUNTRY_INFO!A118=0," ",COUNTRY_INFO!A118) -> Tanzania | B118: =IF(COUNTRY_INFO!B118=0," ",COUNTRY_INFO!B118) -> Mwanza | C118: =IF(COUNTRY_INFO!C118=0," ",COUNTRY_INFO!C118) -> Kwimba District Council | D118: =IF(COUNTRY_INFO!$T$9:$T$1000="MDA2 (DEC+ALB)", COUNTRY_INFO!$T$9:$T$1000, " ") ->  | I118: 0 | M118: 0
A119: =IF(COUNTRY_INFO!A119=0," ",COUNTRY_INFO!A119) -> Tanzania | B119: =IF(COUNTRY_INFO!B119=0," ",COUNTRY_INFO!B119) -> Mwanza | C119: =IF(COUNTRY_INFO!C119=0," ",COUNTRY_INFO!C119) -> Magu District Council | D119: =IF(COUNTRY_INFO!$T$9:$T$1000="MDA2 (DEC+ALB)", COUNTRY_INFO!$T$9:$T$1000, " ") ->  | I119: 0 | M119: 0
A120: =IF(COUNTRY_INFO!A120=0," ",COUNTRY_INFO!A120) -> Tanzania | B120: =IF(COUNTRY_INFO!B120=0," ",COUNTRY_INFO!B120) -> Mwanza | C120: =IF(COUNTRY_INFO!C120=0," ",COUNTRY_INFO!C120) -> Misungwi District Council | D120: =IF(COUNTRY_INFO!$T$9:$T$1000="MDA2 (DEC+ALB)", COUNTRY_INFO!$T$9:$T$1000, " ") ->  | I120: 0 | M120: 0
A121: =IF(COUNTRY_INFO!A121=0," ",COUNTRY_INFO!A121) -> Tanzania | B121: =IF(COUNTRY_INFO!B121=0," ",COUNTRY_INFO!B121) -> Mwanza | C121: =IF(COUNTRY_INFO!C121=0," ",COUNTRY_INFO!C121) -> Mwanza-Nyamagana City Council | D121: =IF(COUNTRY_INFO!$T$9:$T$1000="MDA2 (DEC+ALB)", COUNTRY_INFO!$T$9:$T$1000, " ") ->  | I121: 0 | M121: 0
A122: =IF(COUNTRY_INFO!A122=0," ",COUNTRY_INFO!A122) -> Tanzania | B122: =IF(COUNTRY_INFO!B122=0," ",COUNTRY_INFO!B122) -> Mwanza | C122: =IF(COUNTRY_INFO!C122=0," ",COUNTRY_INFO!C122) -> Sengerema District Council | D122: =IF(COUNTRY_INFO!$T$9:$T$1000="MDA2 (DEC+ALB)", COUNTRY_INFO!$T$9:$T$1000, " ") ->  | I122: 0 | M122: 0
A123: =IF(COUNTRY_INFO!A123=0," ",COUNTRY_INFO!A123) -> Tanzania | B123: =IF(COUNTRY_INFO!B123=0," ",COUNTRY_INFO!B123) -> Mwanza | C123: =IF(COUNTRY_INFO!C123=0," ",COUNTRY_INFO!C123) -> Ukerewe District Council | D123: =IF(COUNTRY_INFO!$T$9:$T$1000="MDA2 (DEC+ALB)", COUNTRY_INFO!$T$9:$T$1000, " ") ->  | I123: 0 | M123: 0
A124: =IF(COUNTRY_INFO!A124=0," ",COUNTRY_INFO!A124) -> Tanzania | B124: =IF(COUNTRY_INFO!B124=0," ",COUNTRY_INFO!B124) -> Njombe | C124: =IF(COUNTRY_INFO!C124=0," ",COUNTRY_INFO!C124) -> Ludewa District Council | D124: =IF(COUNTRY_INFO!$T$9:$T$1000="MDA2 (DEC+ALB)", COUNTRY_INFO!$T$9:$T$1000, " ") ->  | I124: 0 | M124: 0
A125: =IF(COUNTRY_INFO!A125=0," ",COUNTRY_INFO!A125) -> Tanzania | B125: =IF(COUNTRY_INFO!B125=0," ",COUNTRY_INFO!B125) -> Njombe | C125: =IF(COUNTRY_INFO!C125=0," ",COUNTRY_INFO!C125) -> Makambako Town Council | D125: =IF(COUNTRY_INFO!$T$9:$T$1000="MDA2 (DEC+ALB)", COUNTRY_INFO!$T$9:$T$1000, " ") ->  | I125: 0 | M125: 0
A126: =IF(COUNTRY_INFO!A126=0," ",COUNTRY_INFO!A126) -> Tanzania | B126: =IF(COUNTRY_INFO!B126=0," ",COUNTRY_INFO!B126) -> Njombe | C126: =IF(COUNTRY_INFO!C126=0," ",COUNTRY_INFO!C126) -> Makete District Council | D126: =IF(COUNTRY_INFO!$T$9:$T$1000="MDA2 (DEC+ALB)", COUNTRY_INFO!$T$9:$T$1000, " ") ->  | I126: 0 | M126: 0
A127: =IF(COUNTRY_INFO!A127=0," ",COUNTRY_INFO!A127) -> Tanzania | B127: =IF(COUNTRY_INFO!B127=0," ",COUNTRY_INFO!B127) -> Njombe | C127: =IF(COUNTRY_INFO!C127=0," ",COUNTRY_INFO!C127) -> Njombe District Council | D127: =IF(COUNTRY_INFO!$T$9:$T$1000="MDA2 (DEC+ALB)", COUNTRY_INFO!$T$9:$T$1000, " ") ->  | I127: 0 | M127: 0
A128: =IF(COUNTRY_INFO!A128=0," ",COUNTRY_INFO!A128) -> Tanzania | B128: =IF(COUNTRY_INFO!B128=0," ",COUNTRY_INFO!B128) -> Njombe | C128: =IF(COUNTRY_INFO!C128=0," ",COUNTRY_INFO!C128) -> Njombe Town Council | D128: =IF(COUNTRY_INFO!$T$9:$T$1000="MDA2 (DEC+ALB)", COUNTRY_INFO!$T$9:$T$1000, " ") ->  | I128: 0 | M128: 0
A129: =IF(COUNTRY_INFO!A129=0," ",COUNTRY_INFO!A129) -> Tanzania | B129: =IF(COUNTRY_INFO!B129=0," ",COUNTRY_INFO!B129) -> Njombe | C129: =IF(COUNTRY_INFO!C129=0," ",COUNTRY_INFO!C129) -> Wanging'ombe District Council | D129: =IF(COUNTRY_INFO!$T$9:$T$1000="MDA2 (DEC+ALB)", COUNTRY_INFO!$T$9:$T$1000, " ") ->  | I129: 0 | M129: 0
A130: =IF(COUNTRY_INFO!A130=0," ",COUNTRY_INFO!A130) -> Tanzania | B130: =IF(COUNTRY_INFO!B130=0," ",COUNTRY_INFO!B130) -> Pwani | C130: =IF(COUNTRY_INFO!C130=0," ",COUNTRY_INFO!C130) -> Bagamoyo District Council | D130: =IF(COUNTRY_INFO!$T$9:$T$1000="MDA2 (DEC+ALB)", COUNTRY_INFO!$T$9:$T$1000, " ") ->  | I130: 0 | M130: 0
A131: =IF(COUNTRY_INFO!A131=0," ",COUNTRY_INFO!A131) -> Tanzania | B131: =IF(COUNTRY_INFO!B131=0," ",COUNTRY_INFO!B131) -> Pwani | C131: =IF(COUNTRY_INFO!C131=0," ",COUNTRY_INFO!C131) -> Chalinze District Council | D131: =IF(COUNTRY_INFO!$T$9:$T$1000="MDA2 (DEC+ALB)", COUNTRY_INFO!$T$9:$T$1000, " ") ->  | I131: 0 | M131: 0
A132: =IF(COUNTRY_INFO!A132=0," ",COUNTRY_INFO!A132) -> Tanzania | B132: =IF(COUNTRY_INFO!B132=0," ",COUNTRY_INFO!B132) -> Pwani | C132: =IF(COUNTRY_INFO!C132=0," ",COUNTRY_INFO!C132) -> Kibaha District Council | D132: =IF(COUNTRY_INFO!$T$9:$T$1000="MDA2 (DEC+ALB)", COUNTRY_INFO!$T$9:$T$1000, " ") ->  | I132: 0 | M132: 0
A133: =IF(COUNTRY_INFO!A133=0," ",COUNTRY_INFO!A133) -> Tanzania | B133: =IF(COUNTRY_INFO!B133=0," ",COUNTRY_INFO!B133) -> Pwani | C133: =IF(COUNTRY_INFO!C133=0," ",COUNTRY_INFO!C133) -> Kibaha Town Council | D133: =IF(COUNTRY_INFO!$T$9:$T$1000="MDA2 (DEC+ALB)", COUNTRY_INFO!$T$9:$T$1000, " ") ->  | I133: 0 | M133: 0
A134: =IF(COUNTRY_INFO!A134=0," ",COUNTRY_INFO!A134) -> Tanzania | B134: =IF(COUNTRY_INFO!B134=0," ",COUNTRY_INFO!B134) -> Pwani | C134: =IF(COUNTRY_INFO!C134=0," ",COUNTRY_INFO!C134) -> Kibiti District Council | D134: =IF(COUNTRY_INFO!$T$9:$T$1000="MDA2 (DEC+ALB)", COUNTRY_INFO!$T$9:$T$1000, " ") ->  | I134: 0 | M134: 0
A135: =IF(COUNTRY_INFO!A135=0," ",COUNTRY_INFO!A135) -> Tanzania | B135: =IF(COUNTRY_INFO!B135=0," ",COUNTRY_INFO!B135) -> Pwani | C135: =IF(COUNTRY_INFO!C135=0," ",COUNTRY_INFO!C135) -> Kisarawe District Council | D135: =IF(COUNTRY_INFO!$T$9:$T$1000="MDA2 (DEC+ALB)", COUNTRY_INFO!$T$9:$T$1000, " ") ->  | I135: 0 | M135: 0
A136: =IF(COUNTRY_INFO!A136=0," ",COUNTRY_INFO!A136) -> Tanzania | B136: =IF(COUNTRY_INFO!B136=0," ",COUNTRY_INFO!B136) -> Pwani | C136: =IF(COUNTRY_INFO!C136=0," ",COUNTRY_INFO!C136) -> Mafia District Council | D136: =IF(COUNTRY_INFO!$T$9:$T$1000="MDA2 (DEC+ALB)", COUNTRY_INFO!$T$9:$T$1000, " ") ->  | I136: 0 | M136: 0
A137: =IF(COUNTRY_INFO!A137=0," ",COUNTRY_INFO!A137) -> Tanzania | B137: =IF(COUNTRY_INFO!B137=0," ",COUNTRY_INFO!B137) -> Pwani | C137: =IF(COUNTRY_INFO!C137=0," ",COUNTRY_INFO!C137) -> Mkuranga District Council | D137: =IF(COUNTRY_INFO!$T$9:$T$1000="MDA2 (DEC+ALB)", COUNTRY_INFO!$T$9:$T$1000, " ") ->  | I137: 0 | M137: 0
A138: =IF(COUNTRY_INFO!A138=0," ",COUNTRY_INFO!A138) -> Tanzania | B138: =IF(COUNTRY_INFO!B138=0," ",COUNTRY_INFO!B138) -> Pwani | C138: =IF(COUNTRY_INFO!C138=0," ",COUNTRY_INFO!C138) -> Rufiji District Council | D138: =IF(COUNTRY_INFO!$T$9:$T$1000="MDA2 (DEC+ALB)", COUNTRY_INFO!$T$9:$T$1000, " ") ->  | I138: =SUM(F138:H138) -> 0 | M138: =SUM(J138:L138) -> 0 | N138: =IF(F138<>0, IF(J138/F138*100=0, "-", J138/F138*100), " ") ->  | O138: =IF(G138<>0, IF(K138/G138*100=0, "-", K138/G138*100), " ") ->  | P138: =IF(H138<>0, IF(L138/H138*100=0, "-", L138/H138*100), " ") ->  | Q138: =IF(I138<>0, IF(M138/I138*100=0, "-", M138/I138*100), " ") -> 
A139: =IF(COUNTRY_INFO!A139=0," ",COUNTRY_INFO!A139) -> Tanzania | B139: =IF(COUNTRY_INFO!B139=0," ",COUNTRY_INFO!B139) -> Rukwa | C139: =IF(COUNTRY_INFO!C139=0," ",COUNTRY_INFO!C139) -> Kalambo District Council | D139: =IF(COUNTRY_INFO!$T$9:$T$1000="MDA2 (DEC+ALB)", COUNTRY_INFO!$T$9:$T$1000, " ") ->  | I139: 0 | M139: 0
A140: =IF(COUNTRY_INFO!A140=0," ",COUNTRY_INFO!A140) -> Tanzania | B140: =IF(COUNTRY_INFO!B140=0," ",COUNTRY_INFO!B140) -> Rukwa | C140: =IF(COUNTRY_INFO!C140=0," ",COUNTRY_INFO!C140) -> Nkasi District Council | D140: =IF(COUNTRY_INFO!$T$9:$T$1000="MDA2 (DEC+ALB)", COUNTRY_INFO!$T$9:$T$1000, " ") ->  | I140: 0 | M140: 0
A141: =IF(COUNTRY_INFO!A141=0," ",COUNTRY_INFO!A141) -> Tanzania | B141: =IF(COUNTRY_INFO!B141=0," ",COUNTRY_INFO!B141) -> Rukwa | C141: =IF(COUNTRY_INFO!C141=0," ",COUNTRY_INFO!C141) -> Sumbawanga District Council | D141: =IF(COUNTRY_INFO!$T$9:$T$1000="MDA2 (DEC+ALB)", COUNTRY_INFO!$T$9:$T$1000, " ") ->  | I141: 0 | M141: 0
A142: =IF(COUNTRY_INFO!A142=0," ",COUNTRY_INFO!A142) -> Tanzania | B142: =IF(COUNTRY_INFO!B142=0," ",COUNTRY_INFO!B142) -> Rukwa | C142: =IF(COUNTRY_INFO!C142=0," ",COUNTRY_INFO!C142) -> Sumbawanga Municipal Council | D142: =IF(COUNTRY_INFO!$T$9:$T$1000="MDA2 (DEC+ALB)", COUNTRY_INFO!$T$9:$T$1000, " ") ->  | I142: 0 | M142: 0
A143: =IF(COUNTRY_INFO!A143=0," ",COUNTRY_INFO!A143) -> Tanzania | B143: =IF(COUNTRY_INFO!B143=0," ",COUNTRY_INFO!B143) -> Ruvuma | C143: =IF(COUNTRY_INFO!C143=0," ",COUNTRY_INFO!C143) -> Madaba District Council | D143: =IF(COUNTRY_INFO!$T$9:$T$1000="MDA2 (DEC+ALB)", COUNTRY_INFO!$T$9:$T$1000, " ") ->  | I143: 0 | M143: 0
A144: =IF(COUNTRY_INFO!A144=0," ",COUNTRY_INFO!A144) -> Tanzania | B144: =IF(COUNTRY_INFO!B144=0," ",COUNTRY_INFO!B144) -> Ruvuma | C144: =IF(COUNTRY_INFO!C144=0," ",COUNTRY_INFO!C144) -> Mbinga District Council | D144: =IF(COUNTRY_INFO!$T$9:$T$1000="MDA2 (DEC+ALB)", COUNTRY_INFO!$T$9:$T$1000, " ") ->  | I144: 0 | M144: 0
A145: =IF(COUNTRY_INFO!A145=0," ",COUNTRY_INFO!A145) -> Tanzania | B145: =IF(COUNTRY_INFO!B145=0," ",COUNTRY_INFO!B145) -> Ruvuma | C145: =IF(COUNTRY_INFO!C145=0," ",COUNTRY_INFO!C145) -> Mbinga Town Council | D145: =IF(COUNTRY_INFO!$T$9:$T$1000="MDA2 (DEC+ALB)", COUNTRY_INFO!$T$9:$T$1000, " ") ->  | I145: 0 | M145: 0
A146: =IF(COUNTRY_INFO!A146=0," ",COUNTRY_INFO!A146) -> Tanzania | B146: =IF(COUNTRY_INFO!B146=0," ",COUNTRY_INFO!B146) -> Ruvuma | C146: =IF(COUNTRY_INFO!C146=0," ",COUNTRY_INFO!C146) -> Namtumbo District Council | D146: =IF(COUNTRY_INFO!$T$9:$T$1000="MDA2 (DEC+ALB)", COUNTRY_INFO!$T$9:$T$1000, " ") ->  | I146: 0 | M146: 0
A147: =IF(COUNTRY_INFO!A147=0," ",COUNTRY_INFO!A147) -> Tanzania | B147: =IF(COUNTRY_INFO!B147=0," ",COUNTRY_INFO!B147) -> Ruvuma | C147: =IF(COUNTRY_INFO!C147=0," ",COUNTRY_INFO!C147) -> Nyasa District Council | D147: =IF(COUNTRY_INFO!$T$9:$T$1000="MDA2 (DEC+ALB)", COUNTRY_INFO!$T$9:$T$1000, " ") ->  | I147: 0 | M147: 0
A148: =IF(COUNTRY_INFO!A148=0," ",COUNTRY_INFO!A148) -> Tanzania | B148: =IF(COUNTRY_INFO!B148=0," ",COUNTRY_INFO!B148) -> Ruvuma | C148: =IF(COUNTRY_INFO!C148=0," ",COUNTRY_INFO!C148) -> Songea District Council | D148: =IF(COUNTRY_INFO!$T$9:$T$1000="MDA2 (DEC+ALB)", COUNTRY_INFO!$T$9:$T$1000, " ") ->  | I148: 0 | M148: 0
A149: =IF(COUNTRY_INFO!A149=0," ",COUNTRY_INFO!A149) -> Tanzania | B149: =IF(COUNTRY_INFO!B149=0," ",COUNTRY_INFO!B149) -> Ruvuma | C149: =IF(COUNTRY_INFO!C149=0," ",COUNTRY_INFO!C149) -> Songea Municipal Council | D149: =IF(COUNTRY_INFO!$T$9:$T$1000="MDA2 (DEC+ALB)", COUNTRY_INFO!$T$9:$T$1000, " ") ->  | I149: 0 | M149: 0
A150: =IF(COUNTRY_INFO!A150=0," ",COUNTRY_INFO!A150) -> Tanzania | B150: =IF(COUNTRY_INFO!B150=0," ",COUNTRY_INFO!B150) -> Ruvuma | C150: =IF(COUNTRY_INFO!C150=0," ",COUNTRY_INFO!C150) -> Tunduru District Council | D150: =IF(COUNTRY_INFO!$T$9:$T$1000="MDA2 (DEC+ALB)", COUNTRY_INFO!$T$9:$T$1000, " ") ->  | I150: 0 | M150: 0
A151: =IF(COUNTRY_INFO!A151=0," ",COUNTRY_INFO!A151) -> Tanzania | B151: =IF(COUNTRY_INFO!B151=0," ",COUNTRY_INFO!B151) -> Shinyanga | C151: =IF(COUNTRY_INFO!C151=0," ",COUNTRY_INFO!C151) -> Kahama Town Council | D151: =IF(COUNTRY_INFO!$T$9:$T$1000="MDA2 (DEC+ALB)", COUNTRY_INFO!$T$9:$T$1000, " ") ->  | I151: 0 | M151: 0
A152: =IF(COUNTRY_INFO!A152=0," ",COUNTRY_INFO!A152) -> Tanzania | B152: =IF(COUNTRY_INFO!B152=0," ",COUNTRY_INFO!B152) -> Shinyanga | C152: =IF(COUNTRY_INFO!C152=0," ",COUNTRY_INFO!C152) -> Kishapu District Council | D152: =IF(COUNTRY_INFO!$T$9:$T$1000="MDA2 (DEC+ALB)", COUNTRY_INFO!$T$9:$T$1000, " ") ->  | I152: 0 | M152: 0
A153: =IF(COUNTRY_INFO!A153=0," ",COUNTRY_INFO!A153) -> Tanzania | B153: =IF(COUNTRY_INFO!B153=0," ",COUNTRY_INFO!B153) -> Shinyanga | C153: =IF(COUNTRY_INFO!C153=0," ",COUNTRY_INFO!C153) -> Msalala District Council | D153: =IF(COUNTRY_INFO!$T$9:$T$1000="MDA2 (DEC+ALB)", COUNTRY_INFO!$T$9:$T$1000, " ") ->  | I153: 0 | M153: 0
A154: =IF(COUNTRY_INFO!A154=0," ",COUNTRY_INFO!A154) -> Tanzania | B154: =IF(COUNTRY_INFO!B154=0," ",COUNTRY_INFO!B154) -> Shinyanga | C154: =IF(COUNTRY_INFO!C154=0," ",COUNTRY_INFO!C154) -> Shinyanga District Council | D154: =IF(COUNTRY_INFO!$T$9:$T$1000="MDA2 (DEC+ALB)", COUNTRY_INFO!$T$9:$T$1000, " ") ->  | I154: 0 | M154: 0
A155: =IF(COUNTRY_INFO!A155=0," ",COUNTRY_INFO!A155) -> Tanzania | B155: =IF(COUNTRY_INFO!B155=0," ",COUNTRY_INFO!B155) -> Shinyanga | C155: =IF(COUNTRY_INFO!C155=0," ",COUNTRY_INFO!C155) -> Shinyanga Municipal Council | D155: =IF(COUNTRY_INFO!$T$9:$T$1000="MDA2 (DEC+ALB)", COUNTRY_INFO!$T$9:$T$1000, " ") ->  | I155: 0 | M155: 0
A156: =IF(COUNTRY_INFO!A156=0," ",COUNTRY_INFO!A156) -> Tanzania | B156: =IF(COUNTRY_INFO!B156=0," ",COUNTRY_INFO!B156) -> Shinyanga | C156: =IF(COUNTRY_INFO!C156=0," ",COUNTRY_INFO!C156) -> Ushetu District Council | D156: =IF(COUNTRY_INFO!$T$9:$T$1000="MDA2 (DEC+ALB)", COUNTRY_INFO!$T$9:$T$1000, " ") ->  | I156: 0 | M156: 0
A157: =IF(COUNTRY_INFO!A157=0," ",COUNTRY_INFO!A157) -> Tanzania | B157: =IF(COUNTRY_INFO!B157=0," ",COUNTRY_INFO!B157) -> Simiyu | C157: =IF(COUNTRY_INFO!C157=0," ",COUNTRY_INFO!C157) -> Bariadi District Council | D157: =IF(COUNTRY_INFO!$T$9:$T$1000="MDA2 (DEC+ALB)", COUNTRY_INFO!$T$9:$T$1000, " ") ->  | I157: 0 | M157: 0
A158: =IF(COUNTRY_INFO!A158=0," ",COUNTRY_INFO!A158) -> Tanzania | B158: =IF(COUNTRY_INFO!B158=0," ",COUNTRY_INFO!B158) -> Simiyu | C158: =IF(COUNTRY_INFO!C158=0," ",COUNTRY_INFO!C158) -> Bariadi Town Council | D158: =IF(COUNTRY_INFO!$T$9:$T$1000="MDA2 (DEC+ALB)", COUNTRY_INFO!$T$9:$T$1000, " ") ->  | I158: 0 | M158: 0
A159: =IF(COUNTRY_INFO!A159=0," ",COUNTRY_INFO!A159) -> Tanzania | B159: =IF(COUNTRY_INFO!B159=0," ",COUNTRY_INFO!B159) -> Simiyu | C159: =IF(COUNTRY_INFO!C159=0," ",COUNTRY_INFO!C159) -> Busega District Council | D159: =IF(COUNTRY_INFO!$T$9:$T$1000="MDA2 (DEC+ALB)", COUNTRY_INFO!$T$9:$T$1000, " ") ->  | I159: 0 | M159: 0
A160: =IF(COUNTRY_INFO!A160=0," ",COUNTRY_INFO!A160) -> Tanzania | B160: =IF(COUNTRY_INFO!B160=0," ",COUNTRY_INFO!B160) -> Simiyu | C160: =IF(COUNTRY_INFO!C160=0," ",COUNTRY_INFO!C160) -> Itilima District Council | D160: =IF(COUNTRY_INFO!$T$9:$T$1000="MDA2 (DEC+ALB)", COUNTRY_INFO!$T$9:$T$1000, " ") ->  | I160: 0 | M160: 0
A161: =IF(COUNTRY_INFO!A161=0," ",COUNTRY_INFO!A161) -> Tanzania | B161: =IF(COUNTRY_INFO!B161=0," ",COUNTRY_INFO!B161) -> Simiyu | C161: =IF(COUNTRY_INFO!C161=0," ",COUNTRY_INFO!C161) -> Maswa District Council | D161: =IF(COUNTRY_INFO!$T$9:$T$1000="MDA2 (DEC+ALB)", COUNTRY_INFO!$T$9:$T$1000, " ") ->  | I161: 0 | M161: 0
A162: =IF(COUNTRY_INFO!A162=0," ",COUNTRY_INFO!A162) -> Tanzania | B162: =IF(COUNTRY_INFO!B162=0," ",COUNTRY_INFO!B162) -> Simiyu | C162: =IF(COUNTRY_INFO!C162=0," ",COUNTRY_INFO!C162) -> Meatu District Council | D162: =IF(COUNTRY_INFO!$T$9:$T$1000="MDA2 (DEC+ALB)", COUNTRY_INFO!$T$9:$T$1000, " ") ->  | I162: 0 | M162: 0
A163: =IF(COUNTRY_INFO!A163=0," ",COUNTRY_INFO!A163) -> Tanzania | B163: =IF(COUNTRY_INFO!B163=0," ",COUNTRY_INFO!B163) -> Singida | C163: =IF(COUNTRY_INFO!C163=0," ",COUNTRY_INFO!C163) -> Ikungi District Council | D163: =IF(COUNTRY_INFO!$T$9:$T$1000="MDA2 (DEC+ALB)", COUNTRY_INFO!$T$9:$T$1000, " ") ->  | I163: 0 | M163: 0
A164: =IF(COUNTRY_INFO!A164=0," ",COUNTRY_INFO!A164) -> Tanzania | B164: =IF(COUNTRY_INFO!B164=0," ",COUNTRY_INFO!B164) -> Singida | C164: =IF(COUNTRY_INFO!C164=0," ",COUNTRY_INFO!C164) -> Iramba District Council | D164: =IF(COUNTRY_INFO!$T$9:$T$1000="MDA2 (DEC+ALB)", COUNTRY_INFO!$T$9:$T$1000, " ") ->  | I164: 0 | M164: 0
A165: =IF(COUNTRY_INFO!A165=0," ",COUNTRY_INFO!A165) -> Tanzania | B165: =IF(COUNTRY_INFO!B165=0," ",COUNTRY_INFO!B165) -> Singida | C165: =IF(COUNTRY_INFO!C165=0," ",COUNTRY_INFO!C165) -> Itigi District Council | D165: =IF(COUNTRY_INFO!$T$9:$T$1000="MDA2 (DEC+ALB)", COUNTRY_INFO!$T$9:$T$1000, " ") ->  | I165: 0 | M165: 0
A166: =IF(COUNTRY_INFO!A166=0," ",COUNTRY_INFO!A166) -> Tanzania | B166: =IF(COUNTRY_INFO!B166=0," ",COUNTRY_INFO!B166) -> Singida | C166: =IF(COUNTRY_INFO!C166=0," ",COUNTRY_INFO!C166) -> Manyoni District Council | D166: =IF(COUNTRY_INFO!$T$9:$T$1000="MDA2 (DEC+ALB)", COUNTRY_INFO!$T$9:$T$1000, " ") ->  | I166: 0 | M166: 0
